Workbook

Sheet Economic Model
A1: Trinidad
A2: $75 Oil - Financial Model
A4: CAPITAL COSTS | F4: 2023 | O4: 2024 | AA4: 2025 | AM4: 2026 | AY4: 2027
F5: APR | G5: MAY | H5: JUN | I5: JUL | J5: AUG | K5: SEP | L5: OCT | M5: NOV | N5: DEC | O5: JAN | P5: FEB | Q5: MAR | R5: APR | S5: MAY | T5: JUN | U5: JUL | V5: AUG | W5: SEP | X5: OCT | Y5: NOV | Z5: DEC | AA5: JAN | AB5: FEB | AC5: MAR | AD5: APR | AE5: MAY | AF5: JUN | AG5: JUL | AH5: AUG | AI5: SEP | AJ5: OCT | AK5: NOV | AL5: DEC | AM5: JAN | AN5: FEB | AO5: MAR | AP5: APR | AQ5: MAY | AR5: JUN | AS5: JUL | AT5: AUG | AU5: SEP | AV5: OCT | AW5: NOV | AX5: DEC | AY5: JAN | AZ5: FEB | BA5: MAR | BB5: APR | BC5: MAY | BD5: JUN | BE5: JUL | BF5: AUG | BG5: SEP | BH5: OCT
A7: Lease Owner Payment | F7: $0.50 | J7: $0.50
A8: Steam Generator Buyout | F8: $0.25 | H8: $0.25 | J8: $0.25 | L8: $0.25
A9: AVS Super Critical Steam System | G9: $0.30 | S9: $0.30 | Z9: $0.30
A10: Field Improvements | J10: =I44*$G$65 -> $0.04 | K10: =J44*$G$65 -> $0.04 | L10: $0.04 | M10: $0.05 | N10: $0.06 | O10: $0.06 | P10: $0.09 | Q10: $0.13 | R10: $0.19 | S10: $0.21 | T10: $0.33 | U10: $0.37 | V10: $0.39 | W10: $0.43 | X10: $0.45 | Y10: $0.49 | Z10: $0.46 | AA10: $0.42 | AB10: $0.40 | AC10: $0.42 | AD10: $0.39 | AE10: $0.37 | AF10: $0.37 | AG10: $0.43 | AH10: $0.46 | AI10: $0.47 | AJ10: $0.52 | AK10: =AJ44*$G$65 -> $0.54 | AL10: =AK44*$G$65 -> $0.56 | AM10: =AL44*$G$65 -> $0.56 | AN10: =AM44*$G$65 -> $0.56 | AO10: =AN44*$G$65 -> $0.59 | AP10: =AO44*$G$65 -> $0.55 | AQ10: =AP44*$G$65 -> $0.50 | AR10: =AQ44*$G$65 -> $0.49 | AS10: =AR44*$G$65 -> $0.47 | AT10: =AS44*$G$65 -> $0.44 | AU10: =AT44*$G$65 -> $0.45 | AV10: =AU44*$G$65 -> $0.45 | AW10: =AV44*$G$65 -> $0.47 | AX10: =AW44*$G$65 -> $0.43 | AY10: =AX44*$G$65 -> $0.42 | AZ10: =AY44*$G$65 -> $0.43 | BA10: =AZ44*$G$65 -> $0.42 | BB10: =BA44*$G$65 -> $0.41 | BC10: =BB44*$G$65 -> $0.38 | BD10: =BC44*$G$65 -> $0.45 | BE10: =BD44*$G$65 -> $0.45 | BF10: =BE44*$G$65 -> $0.48 | BG10: =BF44*$G$65 -> $0.51 | BH10: =BG44*$G$65 -> $0.55
A11: Second Steam Generator | N11: $1.00 | O11: 0.2 | T11: $1.00 | Z11: $1.20 | AG11: $1.20 | AN11: $1.20 | AU11: $1.20
A12: Outfit EOR Wells | F12: =$G$58*5 -> $0.20 | G12: $0.00 | H12: =$G$58*1 -> $0.04 | I12: =$G$58*2 -> $0.08 | J12: $0.08 | K12: $0.08 | L12: $0.08 | M12: $0.08 | N12: $0.08 | O12: $0.08 | P12: $0.08 | Q12: $0.08 | R12: $0.08 | S12: $0.08 | T12: $0.08 | U12: $0.08 | V12: $0.08 | W12: $0.08 | X12: $0.08 | Y12: $0.08 | Z12: $0.08 | AA12: $0.08 | AB12: $0.08 | AC12: $0.08 | AD12: $0.08 | AE12: $0.08 | AF12: $0.08 | AG12: $0.08 | AH12: $0.08 | AI12: $0.08 | AJ12: $0.08 | AK12: $0.08 | AL12: $0.08 | AM12: $0.08 | AN12: $0.08 | AO12: =$G$58*2 -> $0.08 | AP12: $0.08 | AQ12: $0.08 | AR12: $0.08 | AS12: $0.08 | AT12: $0.08 | AU12: $0.08 | AV12: $0.08 | AW12: $0.08 | AX12: $0.08 | AY12: $0.08 | AZ12: $0.08 | BA12: $0.08 | BB12: $0.08 | BC12: $0.08 | BD12: $0.08 | BE12: $0.08 | BF12: $0.08 | BG12: $0.08 | BH12: $0.08
A13: New Drilled Wells | T13: =G57+G58 -> $0.39 | W13: =G57+G58 -> $0.39
C14: Total Capex | F14: =SUM(F7:F12) -> $0.95 | G14: =SUM(G7:G12) -> $0.30 | H14: $0.29 | I14: $0.08 | J14: $0.87 | K14: $0.12 | L14: $0.37 | M14: $0.13 | N14: $1.14 | O14: $0.34 | P14: $0.17 | Q14: $0.21 | R14: $0.27 | S14: $0.59 | T14: $1.41 | U14: $0.45 | V14: $0.47 | W14: $0.51 | X14: $0.53 | Y14: $0.57 | Z14: $2.04 | AA14: $0.50 | AB14: $0.48 | AC14: $0.50 | AD14: $0.47 | AE14: $0.45 | AF14: $0.45 | AG14: $1.71 | AH14: $0.54 | AI14: $0.55 | AJ14: $0.60 | AK14: $0.62 | AL14: $0.64 | AM14: $0.64 | AN14: $1.84 | AO14: $0.67 | AP14: $0.63 | AQ14: $0.58 | AR14: $0.57 | AS14: $0.55 | AT14: $0.52 | AU14: $1.73 | AV14: $0.53 | AW14: $0.55 | AX14: $0.51 | AY14: $0.50 | AZ14: $0.51 | BA14: $0.50 | BB14: $0.49 | BC14: $0.46 | BD14: $0.53 | BE14: $0.53 | BF14: $0.56 | BG14: $0.59 | BH14: $0.63
A15: OPERATIONS COSTS
A17: Administration | F17: 0 | G17: 0 | H17: 0 | J17: $0.01 | K17: $0.03 | L17: $0.05 | M17: $0.05 | N17: $0.05 | O17: $0.10 | P17: $0.10 | Q17: $0.10 | R17: $0.10 | S17: $0.10 | T17: $0.10 | U17: $0.10 | V17: $0.10 | W17: $0.10 | X17: $0.10 | Y17: $0.10 | Z17: $0.10 | AA17: $0.10 | AB17: $0.10 | AC17: $0.10 | AD17: $0.10 | AE17: $0.10 | AF17: $0.10 | AG17: $0.10 | AH17: $0.10 | AI17: $0.10 | AJ17: $0.10 | AK17: $0.10 | AL17: $0.10 | AM17: $0.10 | AN17: $0.10 | AO17: $0.10 | AP17: $0.10 | AQ17: $0.10 | AR17: $0.10 | AS17: $0.10 | AT17: $0.10 | AU17: $0.10 | AV17: $0.10 | AW17: $0.10 | AX17: $0.10 | AY17: $0.10 | AZ17: $0.10 | BA17: $0.10 | BB17: $0.10 | BC17: $0.10 | BD17: $0.10 | BE17: $0.10 | BF17: $0.10 | BG17: $0.10 | BH17: $0.10
A18: SG&A | F18: 0 | G18: 0 | H18: 0 | J18: =0.025*J39 -> $0.03 | K18: $0.03 | L18: $0.05 | M18: $0.05 | N18: $0.05 | O18: $0.05 | P18: $0.05 | Q18: $0.08 | R18: $0.08 | S18: $0.08 | T18: $0.08 | U18: $0.08 | V18: $0.08 | W18: $0.08 | X18: $0.08 | Y18: $0.08 | Z18: $0.08 | AA18: $0.08 | AB18: $0.08 | AC18: $0.08 | AD18: =0.025*AD39 -> $0.08 | AE18: $0.08 | AF18: $0.08 | AG18: $0.08 | AH18: $0.08 | AI18: $0.08 | AJ18: $0.08 | AK18: $0.08 | AL18: $0.08 | AM18: $0.08 | AN18: $0.08 | AO18: $0.08 | AP18: =0.025*AP39 -> $0.08 | AQ18: $0.08 | AR18: $0.08 | AS18: $0.08 | AT18: $0.08 | AU18: $0.08 | AV18: $0.08 | AW18: $0.08 | AX18: $0.08 | AY18: $0.08 | AZ18: $0.08 | BA18: $0.08 | BB18: $0.08 | BC18: $0.08 | BD18: $0.08 | BE18: $0.08 | BF18: $0.08 | BG18: $0.08 | BH18: $0.08
A19: Field Personnel | F19: =0.005*F40 -> $0.03 | G19: =0.005*G40 -> $0.03 | H19: $0.03 | I19: $0.03 | J19: $0.03 | K19: $0.03 | L19: $0.04 | M19: $0.04 | N19: $0.04 | O19: $0.04 | P19: $0.04 | Q19: $0.04 | R19: $0.04 | S19: $0.04 | T19: $0.04 | U19: $0.04 | V19: $0.05 | W19: $0.05 | X19: $0.05 | Y19: $0.05 | Z19: $0.05 | AA19: $0.05 | AB19: $0.05 | AC19: $0.05 | AD19: =0.005*AD40 -> $0.05 | AE19: $0.05 | AF19: $0.05 | AG19: $0.05 | AH19: $0.05 | AI19: $0.05 | AJ19: $0.05 | AK19: $0.05 | AL19: $0.05 | AM19: $0.05 | AN19: $0.05 | AO19: $0.05 | AP19: =0.005*AP40 -> $0.05 | AQ19: $0.05 | AR19: $0.05 | AS19: $0.05 | AT19: $0.05 | AU19: $0.05 | AV19: $0.05 | AW19: $0.05 | AX19: $0.05 | AY19: $0.05 | AZ19: $0.05 | BA19: $0.05 | BB19: $0.05 | BC19: $0.05 | BD19: $0.05 | BE19: $0.05 | BF19: $0.05 | BG19: $0.05 | BH19: $0.05
A20: Government Produciton Share (10) | F20: =$G$66*F$44 -> 0 | G20: 0 | H20: =$G$66*H$44 -> $0.0 | I20: $0.1 | J20: $0.1 | K20: $0.1 | L20: $0.1 | M20: $0.1 | N20: $0.1 | O20: $0.1 | P20: =$G$66*P$44 -> $0.2 | Q20: $0.3 | R20: $0.3 | S20: $0.5 | T20: $0.6 | U20: $0.6 | V20: $0.7 | W20: $0.7 | X20: $0.8 | Y20: $0.7 | Z20: $0.7 | AA20: $0.6 | AB20: $0.7 | AC20: $0.6 | AD20: $0.6 | AE20: $0.6 | AF20: =$G$66*AF$44 -> $0.7 | AG20: $0.7 | AH20: $0.7 | AI20: $0.8 | AJ20: $0.9 | AK20: $0.9 | AL20: $0.9 | AM20: $0.9 | AN20: $0.9 | AO20: $0.9 | AP20: $0.8 | AQ20: $0.8 | AR20: $0.8 | AS20: $0.7 | AT20: =$G$66*AT$44 -> $0.7 | AU20: $0.7 | AV20: $0.8 | AW20: $0.7 | AX20: $0.7 | AY20: $0.7 | AZ20: $0.7 | BA20: $0.7 | BB20: $0.6 | BC20: $0.7 | BD20: $0.7 | BE20: $0.8 | BF20: =$G$66*BF$44 -> $0.8 | BG20: $0.9 | BH20: $1.0
A21: Government Royalty Cost (11) | F21: =$G$66*F$44 -> 0 | G21: 0 | H21: $0.0 | I21: $0.1 | J21: $0.1 | K21: $0.1 | L21: $0.1 | M21: $0.1 | N21: $0.1 | O21: $0.1 | P21: $0.2 | Q21: $0.3 | R21: $0.3 | S21: $0.5 | T21: $0.6 | U21: $0.6 | V21: $0.7 | W21: $0.7 | X21: $0.8 | Y21: $0.7 | Z21: $0.7 | AA21: $0.6 | AB21: $0.7 | AC21: $0.6 | AD21: $0.6 | AE21: $0.6 | AF21: $0.7 | AG21: $0.7 | AH21: $0.7 | AI21: $0.8 | AJ21: $0.9 | AK21: $0.9 | AL21: $0.9 | AM21: $0.9 | AN21: $0.9 | AO21: $0.9 | AP21: $0.8 | AQ21: $0.8 | AR21: $0.8 | AS21: $0.7 | AT21: $0.7 | AU21: $0.7 | AV21: $0.8 | AW21: $0.7 | AX21: $0.7 | AY21: $0.7 | AZ21: $0.7 | BA21: $0.7 | BB21: $0.6 | BC21: $0.7 | BD21: $0.7 | BE21: $0.8 | BF21: $0.8 | BG21: $0.9 | BH21: $1.0
A22: Surcharge for High Oil Price (12) | F22: =((($G$59)*$G$68)*(F33*30))/1000000 -> 0 | G22: 0 | H22: 0 | I22: 0 | J22: 0 | K22: 0 | L22: 0 | M22: 0 | N22: 0 | O22: 0 | P22: 0 | Q22: 0 | R22: 0 | S22: 0 | T22: 0 | U22: 0 | V22: 0 | W22: 0 | X22: 0 | Y22: 0 | Z22: 0 | AA22: 0 | AB22: 0 | AC22: 0 | AD22: 0 | AE22: 0 | AF22: 0 | AG22: 0 | AH22: 0 | AI22: 0 | AJ22: 0 | AK22: 0 | AL22: =((($G$59)*$G$68)*(AL33*30))/1000000 -> 0 | AM22: 0 | AN22: 0 | AO22: 0 | AP22: 0 | AQ22: 0 | AR22: 0 | AS22: 0 | AT22: 0 | AU22: 0 | AV22: 0 | AW22: 0 | AX22: 0 | AY22: 0 | AZ22: 0 | BA22: 0 | BB22: 0 | BC22: 0 | BD22: 0 | BE22: 0 | BF22: 0 | BG22: 0 | BH22: 0
A23: Pipeline Cost | F23: =((F33-70)*30*$G$61*30)/1000000 -> 0 | G23: 0 | H23: =((H33-100)*30*$G$61*30)/1000000 -> $0.11 | I23: $0.18 | J23: $0.20 | K23: $0.22 | L23: $0.27 | M23: $0.27 | N23: $0.27 | O23: $0.43 | P23: $0.62 | Q23: $0.95 | R23: $1.04 | S23: $1.64 | T23: $1.84 | U23: $1.91 | V23: $2.12 | W23: $2.20 | X23: $2.43 | Y23: $2.25 | Z23: $2.10 | AA23: $1.99 | AB23: $2.08 | AC23: $1.92 | AD23: $1.84 | AE23: $1.81 | AF23: $2.13 | AG23: $2.28 | AH23: $2.31 | AI23: $2.54 | AJ23: $2.66 | AK23: $2.79 | AL23: $2.79 | AM23: $2.74 | AN23: =((AN33-100)*30*$G$61*30)/1000000 -> $2.90 | AO23: $2.71 | AP23: $2.47 | AQ23: $2.43 | AR23: $2.34 | AS23: $2.19 | AT23: $2.20 | AU23: $2.20 | AV23: $2.34 | AW23: $2.12 | AX23: $2.08 | AY23: $2.14 | AZ23: $2.07 | BA23: $2.02 | BB23: $1.88 | BC23: $2.20 | BD23: $2.23 | BE23: $2.35 | BF23: $2.53 | BG23: $2.73 | BH23: $3.03
A24: Misc. Maintenance | F24: 0 | G24: 0 | I24: $0.01 | J24: $0.01 | K24: $0.01 | L24: $0.03 | M24: $0.01 | N24: $0.01 | O24: $0.01 | P24: $0.01 | Q24: $0.01 | R24: $0.03 | S24: $0.01 | T24: $0.01 | U24: $0.01 | V24: $0.01 | W24: $0.01 | X24: $0.03 | Y24: $0.01 | Z24: $0.01 | AA24: $0.01 | AB24: $0.01 | AC24: $0.01 | AD24: $0.03 | AE24: $0.01 | AF24: $0.01 | AG24: $0.01 | AH24: $0.01 | AI24: $0.01 | AJ24: $0.03 | AK24: $0.01 | AL24: $0.01 | AM24: $0.01 | AN24: $0.01 | AO24: $0.01 | AP24: $0.03 | AQ24: $0.01 | AR24: $0.01 | AS24: $0.01 | AT24: $0.01 | AU24: $0.01 | AV24: $0.03 | AW24: $0.01 | AX24: $0.01 | AY24: $0.01 | AZ24: $0.01 | BA24: $0.01 | BB24: $0.03 | BC24: $0.01 | BD24: $0.01 | BE24: $0.01 | BF24: $0.01 | BG24: $0.01 | BH24: $0.03
A25: Fuel, Electricity & Maintenance | F25: 0 | G25: 0 | H25: 0 | I25: $0.15 | J25: $0.15 | K25: $0.15 | L25: $0.15 | M25: $0.20 | N25: $0.20 | O25: $0.20 | P25: $0.20 | Q25: $0.20 | R25: $0.20 | S25: $0.20 | T25: $0.20 | U25: $0.20 | V25: $0.20 | W25: $0.20 | X25: $0.20 | Y25: $0.20 | Z25: $0.20 | AA25: $0.20 | AB25: $0.20 | AC25: $0.20 | AD25: $0.20 | AE25: $0.20 | AF25: $0.20 | AG25: $0.20 | AH25: $0.20 | AI25: $0.20 | AJ25: $0.20 | AK25: $0.20 | AL25: $0.20 | AM25: $0.20 | AN25: $0.20 | AO25: $0.20 | AP25: $0.20 | AQ25: $0.20 | AR25: $0.20 | AS25: $0.20 | AT25: $0.20 | AU25: $0.20 | AV25: $0.20 | AW25: $0.20 | AX25: $0.20 | AY25: $0.20 | AZ25: $0.20 | BA25: $0.20 | BB25: $0.20 | BC25: $0.20 | BD25: $0.20 | BE25: $0.20 | BF25: $0.20 | BG25: $0.20 | BH25: $0.20
A27: OPEX Subtotal | F27: =SUM(F17:F26) -> $0.03 | G27: =SUM(G17:G26) -> $0.03 | H27: $0.22 | I27: $0.49 | J27: $0.56 | K27: $0.61 | L27: $0.77 | M27: $0.80 | N27: $0.80 | O27: $1.10 | P27: $1.42 | Q27: $1.99 | R27: $2.16 | S27: $3.13 | T27: $3.46 | U27: $3.58 | V27: $3.93 | W27: $4.07 | X27: $4.46 | Y27: $4.14 | Z27: $3.89 | AA27: $3.71 | AB27: $3.86 | AC27: $3.60 | AD27: =SUM(AD17:AD26) -> $3.48 | AE27: $3.42 | AF27: $3.95 | AG27: $4.19 | AH27: $4.24 | AI27: $4.63 | AJ27: $4.85 | AK27: $5.03 | AL27: $5.03 | AM27: $4.95 | AN27: $5.22 | AO27: $4.90 | AP27: =SUM(AP17:AP26) -> $4.52 | AQ27: $4.43 | AR27: $4.29 | AS27: $4.04 | AT27: $4.07 | AU27: $4.07 | AV27: $4.31 | AW27: $3.93 | AX27: $3.87 | AY27: $3.96 | AZ27: $3.84 | BA27: $3.76 | BB27: $3.55 | BC27: $4.06 | BD27: $4.11 | BE27: $4.30 | BF27: $4.61 | BG27: $4.93 | BH27: $5.44
A29: OPERATIONAL DATA
A31: Base Wells in Production | F31: 25 | G31: 25 | H31: 25 | I31: 25 | J31: 25 | K31: 25 | L31: 26 | M31: 26 | N31: 26 | O31: 27 | P31: 27 | Q31: 27 | R31: 27 | S31: 27 | T31: 27 | U31: 27 | V31: 27 | W31: 27 | X31: 27 | Y31: 27 | Z31: 27 | AA31: 27 | AB31: 27 | AC31: 27 | AD31: 28 | AE31: 29 | AF31: 30 | AG31: 31 | AH31: 32 | AI31: 33 | AJ31: 34 | AK31: 27 | AL31: 27 | AM31: 27 | AN31: 27 | AO31: 27 | AP31: 28 | AQ31: 29 | AR31: 30 | AS31: 31 | AT31: 32 | AU31: 33 | AV31: 34 | AW31: 27 | AX31: 27 | AY31: 27 | AZ31: 27 | BA31: 27 | BB31: 28 | BC31: 29 | BD31: 30 | BE31: 31 | BF31: 32 | BG31: 33 | BH31: 34
A32: EOR Wells in Production | F32: 00 | G32: 00 | H32: 00 | I32: =H32+$G$62 -> 02 | J32: 04 | K32: 06 | L32: 08 | M32: 10 | N32: 12 | O32: 14 | P32: 16 | Q32: 18 | R32: 20 | S32: 22 | T32: 24 | U32: 26 | V32: 28 | W32: 30 | X32: 32 | Y32: 34 | Z32: 36 | AA32: 38 | AB32: 40 | AC32: 42 | AD32: 44 | AE32: 46 | AF32: 48 | AG32: 50 | AH32: 52 | AI32: 54 | AJ32: 56 | AK32: 58 | AL32: 60 | AM32: 62 | AN32: 64 | AO32: =AN32+$G$62 -> 66 | AP32: 68 | AQ32: 70 | AR32: 72 | AS32: 74 | AT32: 76 | AU32: 78 | AV32: 80 | AW32: 82 | AX32: 84 | AY32: 86 | AZ32: 88 | BA32: 90 | BB32: 92 | BC32: 94 | BD32: 96 | BE32: 98 | BF32: 100 | BG32: 102 | BH32: 104
A33: Daily Total Production | F33: ='Base Huff and Puff'!C201 -> 70 | G33: ='Base Huff and Puff'!D201 -> 64 | H33: ='Base Huff and Puff'!E201 -> 353 | I33: ='Base Huff and Puff'!F201 -> 499 | J33: ='Base Huff and Puff'!G201 -> 549 | K33: ='Base Huff and Puff'!H201 -> 590 | L33: ='Base Huff and Puff'!I201 -> 702 | M33: ='Base Huff and Puff'!J201 -> 703 | N33: ='Base Huff and Puff'!K201 -> 708 | O33: ='Base Huff and Puff'!L201 -> 1046 | P33: ='Base Huff and Puff'!M201 -> 1480 | Q33: ='Base Huff and Puff'!N201 -> 2214 | R33: ='Base Huff and Puff'!O201 -> 2408 | S33: ='Base Huff and Puff'!P201 -> 3751 | T33: ='Base Huff and Puff'!Q201 -> 4186 | U33: ='Base Huff and Puff'!R201 -> 4352 | V33: ='Base Huff and Puff'!S201 -> 4811 | W33: ='Base Huff and Puff'!T201 -> 4996 | X33: ='Base Huff and Puff'!U201 -> 5496 | Y33: ='Base Huff and Puff'!V201 -> 5090 | Z33: ='Base Huff and Puff'!W201 -> 4760 | AA33: ='Base Huff and Puff'!X201 -> 4516 | AB33: ='Base Huff and Puff'!Y201 -> 4723 | AC33: ='Base Huff and Puff'!Z201 -> 4369 | AD33: ='Base Huff and Puff'!AA201 -> 4183 | AE33: ='Base Huff and Puff'!AB201 -> 4126 | AF33: ='Base Huff and Puff'!AC201 -> 4836 | AG33: ='Base Huff and Puff'!AD201 -> 5160 | AH33: ='Base Huff and Puff'!AE201 -> 5235 | AI33: ='Base Huff and Puff'!AF201 -> 5749 | AJ33: ='Base Huff and Puff'!AG201 -> 6019 | AK33: ='Base Huff and Puff'!AH201 -> 6290 | AL33: ='Base Huff and Puff'!AI201 -> 6290 | AM33: ='Base Huff and Puff'!AJ201 -> 6192 | AN33: ='Base Huff and Puff'!AK201 -> 6555 | AO33: ='Base Huff and Puff'!AL201 -> 6122 | AP33: ='Base Huff and Puff'!AM201 -> 5585 | AQ33: ='Base Huff and Puff'!AN201 -> 5489 | AR33: ='Base Huff and Puff'!AO201 -> 5300 | AS33: ='Base Huff and Puff'!AP201 -> 4956 | AT33: ='Base Huff and Puff'!AQ201 -> 4998 | AU33: ='Base Huff and Puff'!AR201 -> 4998 | AV33: ='Base Huff and Puff'!AS201 -> 5292 | AW33: ='Base Huff and Puff'!AT201 -> 4810 | AX33: ='Base Huff and Puff'!AU201 -> 4729 | AY33: ='Base Huff and Puff'!AV201 -> 4846 | AZ33: ='Base Huff and Puff'!AW201 -> 4690 | BA33: ='Base Huff and Puff'!AX201 -> 4588 | BB33: ='Base Huff and Puff'!AY201 -> 4270 | BC33: ='Base Huff and Puff'!AZ201 -> 4983 | BD33: ='Base Huff and Puff'!BA201 -> 5056 | BE33: ='Base Huff and Puff'!BB201 -> 5315 | BF33: ='Base Huff and Puff'!BC201 -> 5724 | BG33: ='Base Huff and Puff'!BD201 -> 6157 | BH33: ='Base Huff and Puff'!BE201 -> 6823
F34: =F33*30.4 -> 2128 | G34: =G33*30.4 -> 1936.48 | H34: 10731.45131 | I34: 15158.44815 | J34: 16685.33203 | K34: 17927.218 | L34: 21327.4348 | M34: 21375.76909 | N34: 21508.40839 | O34: 31809.66904 | P34: 44983.86676 | Q34: 67295.79002 | R34: 73209.26735 | S34: 114025.2258 | T34: 127266.8476 | U34: 132298.8615 | V34: 146264.3102 | W34: 151869.3509 | X34: 167077.3311 | Y34: 154734.839 | Z34: 144690.7864 | AA34: 137280.122 | AB34: 143586.3168 | AC34: 132826.4621 | AD34: 127162.2699 | AE34: 125424.5042 | AF34: 147009.6614 | AG34: 156876.7158 | AH34: 159151.9799 | AI34: 174773.6507 | AJ34: 182985.873 | AK34: 191217.9874 | AL34: 191217.9874 | AM34: 188246.1141 | AN34: 199268.4427 | AO34: 186123.3387 | AP34: 169793.191 | AQ34: 166871.1156 | AR34: 161130.4668 | AS34: 150668.2578 | AT34: 151938.2224 | AU34: 151938.2224 | AV34: 160867.735 | AW34: 146229.2224 | AX34: 143750.5463 | AY34: 147325.9105 | AZ34: 142575.337 | BA34: 139489.4002 | BB34: 129801.7044 | BC34: 151497.9757 | BD34: 153704.5083 | BE34: 161572.5495 | BF34: 174015.2717 | BG34: 187164.0926 | BH34: 207429.9819
A35: ESG Matters
B36: CO2 Sequesterd (MT/month) | I36: =((H33)*15*30.4)/1000 -> 161 | J36: =((I33)*15*30.4)/1000 -> 227 | K36: 250 | L36: 269 | M36: 320 | N36: 321 | O36: 323 | P36: 477 | Q36: 675 | R36: 1009 | S36: 1098 | T36: 1710 | U36: 1909 | V36: 1984 | W36: 2194 | X36: 2278 | Y36: 2506 | Z36: 2321 | AA36: 2170 | AB36: 2059 | AC36: 2154 | AD36: 1992 | AE36: 1907 | AF36: 1881 | AG36: 2205 | AH36: 2353 | AI36: 2387 | AJ36: 2622 | AK36: 2745 | AL36: 2868 | AM36: 2868 | AN36: 2824 | AO36: 2989 | AP36: 2792 | AQ36: 2547 | AR36: 2503 | AS36: 2417 | AT36: 2260 | AU36: 2279 | AV36: 2279 | AW36: 2413 | AX36: 2193 | AY36: 2156 | AZ36: 2210 | BA36: 2139 | BB36: 2092 | BC36: 1947 | BD36: 2272 | BE36: 2306 | BF36: 2424 | BG36: 2610 | BH36: 2807
A38: Personnel in Field
B39: Expats In Field ($25K) | F39: 1 | G39: 1 | H39: 1 | I39: 1 | J39: 1 | K39: 1 | L39: 2 | M39: 2 | N39: 2 | O39: 2 | P39: 2 | Q39: 3 | R39: 3 | S39: 3 | T39: 3 | U39: 3 | V39: 3 | W39: 3 | X39: 3 | Y39: 3 | Z39: 3 | AA39: 3 | AB39: 3 | AC39: 3 | AD39: 3 | AE39: 3 | AF39: 3 | AG39: 3 | AH39: 3 | AI39: 3 | AJ39: 3 | AK39: 3 | AL39: 3 | AM39: 3 | AN39: 3 | AO39: 3 | AP39: 3 | AQ39: 3 | AR39: 3 | AS39: 3 | AT39: 3 | AU39: 3 | AV39: 3 | AW39: 3 | AX39: 3 | AY39: 3 | AZ39: 3 | BA39: 3 | BB39: 3 | BC39: 3 | BD39: 3 | BE39: 3 | BF39: 3 | BG39: 3 | BH39: 3
B40: Local Oil Men ($5K) | F40: 6 | G40: 6 | H40: 6 | I40: 6 | J40: 6 | K40: 6 | L40: 8 | M40: 8 | N40: 8 | O40: 8 | P40: 8 | Q40: 8 | R40: 8 | S40: 8 | T40: 8 | U40: 8 | V40: 10 | W40: 10 | X40: 10 | Y40: 10 | Z40: 10 | AA40: 10 | AB40: 10 | AC40: 10 | AD40: 10 | AE40: 10 | AF40: 10 | AG40: 10 | AH40: 10 | AI40: 10 | AJ40: 10 | AK40: 10 | AL40: 10 | AM40: 10 | AN40: 10 | AO40: 10 | AP40: 10 | AQ40: 10 | AR40: 10 | AS40: 10 | AT40: 10 | AU40: 10 | AV40: 10 | AW40: 10 | AX40: 10 | AY40: 10 | AZ40: 10 | BA40: 10 | BB40: 10 | BC40: 10 | BD40: 10 | BE40: 10 | BF40: 10 | BG40: 10 | BH40: 10
A42: FINANCIAL SUMMARY
A44: GROSS OIL REVENUE | F44: =((F33-70)*30.4*$G$59)/1000000 -> 0 | G44: =((G33-95)*30.4*$G$59)/1000000 -> $(0.07) | H44: =0.8*(((H33-100)*30.4*$G$59)/1000000) -> $0.46 | I44: =0.8*(((I33-100)*30.4*$G$59)/1000000) -> $0.73 | J44: $0.82 | K44: $0.89 | L44: $1.10 | M44: $1.10 | N44: $1.11 | O44: $1.73 | P44: $2.52 | Q44: $3.86 | R44: $4.21 | S44: $6.66 | T44: $7.45 | U44: $7.76 | V44: $8.59 | W44: $8.93 | X44: $9.84 | Y44: $9.10 | Z44: $8.50 | AA44: $8.05 | AB44: $8.43 | AC44: $7.79 | AD44: $7.45 | AE44: $7.34 | AF44: $8.64 | AG44: $9.23 | AH44: $9.37 | AI44: $10.30 | AJ44: $10.80 | AK44: $11.29 | AL44: $11.29 | AM44: $11.11 | AN44: =0.8*(((AN33-100)*30.4*$G$59)/1000000) -> $11.77 | AO44: $10.99 | AP44: $10.01 | AQ44: $9.83 | AR44: $9.49 | AS44: $8.86 | AT44: $8.93 | AU44: $8.93 | AV44: $9.47 | AW44: $8.59 | AX44: $8.44 | AY44: $8.66 | AZ44: $8.37 | BA44: $8.19 | BB44: $7.61 | BC44: $8.91 | BD44: $9.04 | BE44: $9.51 | BF44: $10.26 | BG44: $11.05 | BH44: $12.26
A45: GROSS CO2 CREDITS | F45: =($G$60*F36)/1000000 -> 0 | G45: 0 | H45: 0 | I45: 0 | J45: 0 | K45: 0 | L45: 0 | M45: 0 | N45: 0 | O45: 0 | P45: 0 | Q45: 0 | R45: 0 | S45: 0 | T45: 0 | U45: 0 | V45: 0 | W45: 0 | X45: 0 | Y45: 0 | Z45: 0 | AA45: 0 | AB45: 0 | AC45: 0 | AD45: =($G$60*AD36)/1000000 -> 0 | AE45: 0 | AF45: 0 | AG45: 0 | AH45: 0 | AI45: 0 | AJ45: 0 | AK45: 0 | AL45: 0 | AM45: 0 | AN45: 0 | AO45: 0 | AP45: =($G$60*AP36)/1000000 -> 0 | AQ45: 0 | AR45: 0 | AS45: 0 | AT45: 0 | AU45: 0 | AV45: 0 | AW45: 0 | AX45: 0 | AY45: 0 | AZ45: 0 | BA45: 0 | BB45: 0 | BC45: 0 | BD45: 0 | BE45: 0 | BF45: 0 | BG45: 0 | BH45: 0
A46: GROSS PROFIT | F46: =F44+F45-F27 -> $(0.03) | G46: =G44+G45-G27 -> $(0.10) | H46: =H44+H45-H27 -> $0.24 | I46: $0.24 | J46: $0.26 | K46: $0.28 | L46: $0.33 | M46: $0.30 | N46: $0.31 | O46: $0.62 | P46: $1.09 | Q46: $1.86 | R46: $2.05 | S46: $3.53 | T46: $4.00 | U46: $4.18 | V46: $4.66 | W46: $4.86 | X46: $5.38 | Y46: $4.96 | Z46: $4.61 | AA46: $4.34 | AB46: $4.57 | AC46: $4.19 | AD46: $3.96 | AE46: $3.92 | AF46: $4.69 | AG46: $5.04 | AH46: $5.12 | AI46: $5.68 | AJ46: $5.95 | AK46: $6.26 | AL46: =AL44+AL45-AL27 -> $6.26 | AM46: $6.16 | AN46: $6.55 | AO46: $6.08 | AP46: $5.48 | AQ46: $5.40 | AR46: $5.19 | AS46: $4.82 | AT46: $4.87 | AU46: $4.87 | AV46: $5.16 | AW46: $4.66 | AX46: $4.57 | AY46: $4.70 | AZ46: $4.53 | BA46: $4.42 | BB46: $4.06 | BC46: $4.85 | BD46: $4.93 | BE46: $5.21 | BF46: $5.65 | BG46: $6.12 | BH46: $6.82
A47: WITHOLDING TAX with EOR | F47: =IF(F46>0,$G$69*F46,0) -> 0 | G47: =IF(G46>0,$G$69*G46,0) -> 0 | H47: =IF(H46>0,$G$69*H46,0) -> $0.04 | I47: $0.04 | J47: $0.04 | K47: $0.04 | L47: $0.05 | M47: $0.05 | N47: $0.05 | O47: =IF(O46>0,$G$69*O46,0) -> $0.09 | P47: $0.16 | Q47: $0.28 | R47: $0.31 | S47: $0.53 | T47: $0.60 | U47: $0.63 | V47: $0.70 | W47: $0.73 | X47: $0.81 | Y47: $0.74 | Z47: $0.69 | AA47: $0.65 | AB47: $0.69 | AC47: $0.63 | AD47: =IF(AD46>0,$G$69*AD46,0) -> $0.59 | AE47: $0.59 | AF47: $0.70 | AG47: $0.76 | AH47: $0.77 | AI47: $0.85 | AJ47: $0.89 | AK47: $0.94 | AL47: $0.94 | AM47: $0.92 | AN47: $0.98 | AO47: $0.91 | AP47: =IF(AP46>0,$G$69*AP46,0) -> $0.82 | AQ47: $0.81 | AR47: $0.78 | AS47: $0.72 | AT47: $0.73 | AU47: $0.73 | AV47: $0.77 | AW47: $0.70 | AX47: $0.69 | AY47: $0.71 | AZ47: $0.68 | BA47: $0.66 | BB47: $0.61 | BC47: $0.73 | BD47: $0.74 | BE47: $0.78 | BF47: $0.85 | BG47: $0.92 | BH47: $1.02
A49: NET PROFIT after TAX | F49: =F46-F47 -> $(0.03) | G49: =G46-G47 -> $(0.10) | H49: =H46-H47 -> $0.21 | I49: =I46-I47 -> $0.21 | J49: $0.22 | K49: $0.24 | L49: $0.28 | M49: $0.26 | N49: $0.26 | O49: $0.53 | P49: $0.93 | Q49: $1.58 | R49: $1.74 | S49: $3.00 | T49: $3.40 | U49: $3.55 | V49: $3.96 | W49: $4.13 | X49: $4.58 | Y49: $4.22 | Z49: $3.92 | AA49: $3.69 | AB49: $3.88 | AC49: $3.56 | AD49: =AD46-AD47 -> $3.37 | AE49: $3.33 | AF49: $3.99 | AG49: $4.29 | AH49: $4.35 | AI49: $4.83 | AJ49: $5.06 | AK49: $5.32 | AL49: $5.32 | AM49: $5.23 | AN49: $5.57 | AO49: $5.17 | AP49: =AP46-AP47 -> $4.66 | AQ49: $4.59 | AR49: $4.41 | AS49: $4.10 | AT49: $4.14 | AU49: $4.14 | AV49: $4.39 | AW49: $3.96 | AX49: $3.89 | AY49: $4.00 | AZ49: $3.85 | BA49: $3.76 | BB49: $3.45 | BC49: $4.12 | BD49: $4.19 | BE49: $4.43 | BF49: $4.80 | BG49: $5.20 | BH49: $5.80
A50: CAPITAL INTO COMPANY | F50: =G55 -> $2.00 | L50: $1.00
A52: CASH ON HAND ($M) | F52: =F50-SUM(F7:F14)+F49 -> 0.07 | G52: =G50-SUM(G7:G14)+G49+F52 -> (0.63) | H52: =H50-SUM(H7:H14)+H49+G52 -> (1.00) | I52: =I50-SUM(I7:I14)+I49+H52 -> (0.96) | J52: =J50-SUM(J7:J14)+J49+I52 -> (2.47) | K52: =K50-SUM(K7:K14)+K49+J52 -> (2.47) | L52: =L50-SUM(L7:L14)+L49+K52 -> (1.94) | M52: (1.95) | N52: (3.96) | O52: (4.10) | P52: =O52-SUM(P7:P12)+P49+P50 -> (3.34) | Q52: (1.96) | R52: (0.49) | S52: 1.92 | T52: 3.90 | U52: 7.00 | V52: 10.50 | W52: 14.12 | X52: 18.17 | Y52: 21.82 | Z52: 23.70 | AA52: 26.89 | AB52: 30.29 | AC52: 33.34 | AD52: 36.24 | AE52: 39.12 | AF52: 42.66 | AG52: 45.24 | AH52: 49.05 | AI52: 53.33 | AJ52: 57.79 | AK52: 62.49 | AL52: 67.17 | AM52: 71.76 | AN52: 75.50 | AO52: 80.00 | AP52: 84.03 | AQ52: 88.03 | AR52: 91.88 | AS52: 95.42 | AT52: 99.03 | AU52: 101.44 | AV52: 105.30 | AW52: 108.71 | AX52: 112.09 | AY52: 115.58 | AZ52: 118.92 | BA52: 122.18 | BB52: 125.14 | BC52: 128.80 | BD52: 132.47 | BE52: 136.36 | BF52: 140.61 | BG52: 145.22 | BH52: 150.39
A54: Notes
B55: 1 | D55: Initial Raise Oct 2022 | G55: $2.00
B56: 2 | D56: Second Raise at IPO | G56: $1.00 | H56: Minimum Required
B57: 2 | D57: Cost of New Well Drilling | G57: $0.35 | H57: There is a requirement to drill 2 new wells in the next two years
B58: 3 | D58: Cost of Outfitting a Well | G58: $0.04 | H58: Sand Control, Rods, Tubing, Pumps, Etc. & Installation
B59: 4 | D59: Asssumed OIL sale price | G59: 75 | H59: $/BBL
B60: 5 | D60: Assumed CO2 Credit | G60: 0 | H60: $/MT
B61: 5 | D61: Pipeline Cost | G61: $0.50 | H61: $/bbl
B62: 6 | D62: Wells Enchanced | G62: 2 | H62: Per Month Initially | J62: 5 | K62: after bring in 50 MMBTU Steam Generator
B63: 7 | D63: Owner Payment | G63: $1.00 | H63: Annual Payment to maintain PSA, until 500 bopd is reached. Then no further payments
B64: 8 | D64: Long Term Steam Generator | G64: $1.20 | H64: Brought in for year 2 for long term injection
B65: 9 | D65: Field Improvements | G65: 5% | H65: of gross revenue after 6 months
B66: 10 | D66: Government Production Participation | G66: 8% | H66: Government Cut of gross production
B67: 11 | D67: Government Royalty | G67: 8% | H67: Government Royalty on Production
B68: 12 | D68: High Oil Price Surchage | G68: 0% | H68: On total production when oil is above $80 per bbl
B69: 13 | D69: Withholding Tax Rate | G69: 15% | H69: Generally it is 30%, but there is a 50% reduction when using EOR

Sheet Financial highlights
B6: Finacial highlights
B8: Year | D8: 2023 | E8: 2024 | F8: 2025
B9: Barrels Produced (bbl/d) | D9: =ROUND(SUM('Economic Model'!F34:N34),-2)/365*12/9 -> 471 | E9: =ROUND(SUM('Economic Model'!O34:Z34),-2)/365 -> 3,714 | F9: =ROUND(SUM('Economic Model'!AA34:AL34), -2)/365 -> 5,122
B10: Net Revenue | D10: =ROUND(SUM('Economic Model'!F44:N44)*1000000,-3) -> $6,135,000 | E10: =ROUND(SUM('Economic Model'!O44:Z44)*1000000,-3) -> $79,143,000 | F10: =ROUND(SUM('Economic Model'!AA44:AL44)*1000000,-3) -> $109,982,000
B11: Op Expenses | D11: =ROUND(SUM('Economic Model'!F27:N27)*-1000000,-3) -> $(4,294,000) | E11: =ROUND(SUM('Economic Model'!O27:Z27)*-1000000,-3) -> $(37,328,000) | F11: =ROUND(SUM('Economic Model'!AA27:AL27)*-1000000,-3) -> $(49,991,000)
B12: Capex* | D12: =ROUND(SUM('Economic Model'!F49:N49)*-1000000,-3) -> $(1,545,000) | E12: =ROUND(SUM('Economic Model'!O14:Z14)*-1000000,-3) -> $(7,548,000) | F12: =ROUND(SUM('Economic Model'!AA14:AL14)*-1000000,-3) -> $(7,520,000)
B13: Net Profit after tax | D13: =ROUND(SUM('Economic Model'!F49:N49)*1000000,-3) -> $1,545,000 | E13: =ROUND(SUM('Economic Model'!O49:Z49)*1000000,-3) -> $35,542,000 | F13: =ROUND(SUM('Economic Model'!AA49:AL49)*1000000,-3) -> $50,992,000
B15: *CapEx includes WI payments

Sheet Base Huff and Puff
C1: Year 01 | BC1: Year 02 | DC1: Year 03 | FC1: Year 04 | HC1: Year 03
A2: Method | B2: Well Number | C2: 1 | D2: 2 | E2: 3 | F2: 4 | G2: 5 | H2: 6 | I2: 7 | J2: 8 | K2: 9 | L2: 10 | M2: 11 | N2: 12 | O2: 13 | P2: 14 | Q2: 15 | R2: 16 | S2: 17 | T2: 18 | U2: 19 | V2: 20 | W2: 21 | X2: 22 | Y2: 23 | Z2: 24 | AA2: 25 | AB2: 26 | AC2: 27 | AD2: 28 | AE2: 29 | AF2: 30 | AG2: 31 | AH2: 32 | AI2: 33 | AJ2: 34 | AK2: 35 | AL2: 36 | AM2: 37 | AN2: 38 | AO2: 39 | AP2: 40 | AQ2: 41 | AR2: 42 | AS2: 43 | AT2: 44 | AU2: 45 | AV2: 46 | AW2: 47 | AX2: 48 | AY2: 49 | AZ2: 50 | BA2: 51 | BB2: 52 | BC2: 1 | BD2: 2 | BE2: 3 | BF2: 4 | BG2: 5 | BH2: 6 | BI2: 7 | BJ2: 8 | BK2: 9 | BL2: 10 | BM2: 11 | BN2: 12 | BO2: 13 | BP2: 14 | BQ2: 15 | BR2: 16 | BS2: 17 | BT2: 18 | BU2: 19 | BV2: 20 | BW2: 21 | BX2: 22 | BY2: 23 | BZ2: 24 | CA2: 25 | CB2: 26 | CC2: 27 | CD2: 28 | CE2: 29 | CF2: 30 | CG2: 31 | CH2: 32 | CI2: 33 | CJ2: 34 | CK2: 35 | CL2: 36 | CM2: 37 | CN2: 38 | CO2: 39 | CP2: 40 | CQ2: 41 | CR2: 42 | CS2: 43 | CT2: 44 | CU2: 45 | CV2: 46 | CW2: 47 | CX2: 48 | CY2: 49 | CZ2: 50 | DA2: 51 | DB2: 52 | DC2: 1 | DD2: 2 | DE2: 3 | DF2: 4 | DG2: 5 | DH2: 6 | DI2: 7 | DJ2: 8 | DK2: 9 | DL2: 10 | DM2: 11 | DN2: 12 | DO2: 13 | DP2: 14 | DQ2: 15 | DR2: 16 | DS2: 17 | DT2: 18 | DU2: 19 | DV2: 20 | DW2: 21 | DX2: 22 | DY2: 23 | DZ2: 24 | EA2: 25 | EB2: 26 | EC2: 27 | ED2: 28 | EE2: 29 | EF2: 30 | EG2: 31 | EH2: 32 | EI2: 33 | EJ2: 34 | EK2: 35 | EL2: 36 | EM2: 37 | EN2: 38 | EO2: 39 | EP2: 40 | EQ2: 41 | ER2: 42 | ES2: 43 | ET2: 44 | EU2: 45 | EV2: 46 | EW2: 47 | EX2: 48 | EY2: 49 | EZ2: 50 | FA2: 51 | FB2: 52 | FC2: 1 | FD2: 2 | FE2: 3 | FF2: 4 | FG2: 5 | FH2: 6 | FI2: 7 | FJ2: 8 | FK2: 9 | FL2: 10 | FM2: 11 | FN2: 12 | FO2: 13 | FP2: 14 | FQ2: 15 | FR2: 16 | FS2: 17 | FT2: 18 | FU2: 19 | FV2: 20 | FW2: 21 | FX2: 22 | FY2: 23 | FZ2: 24 | GA2: 25 | GB2: 26 | GC2: 27 | GD2: 28 | GE2: 29 | GF2: 30 | GG2: 31 | GH2: 32 | GI2: 33 | GJ2: 34 | GK2: 35 | GL2: 36 | GM2: 37 | GN2: 38 | GO2: 39 | GP2: 40 | GQ2: 41 | GR2: 42 | GS2: 43 | GT2: 44 | GU2: 45 | GV2: 46 | GW2: 47 | GX2: 48 | GY2: 49 | GZ2: 50 | HA2: 51 | HB2: 52 | HC2: 1 | HD2: 2 | HE2: 3 | HF2: 4 | HG2: 5 | HH2: 6 | HI2: 7 | HJ2: 8 | HK2: 9 | HL2: 10 | HM2: 11 | HN2: 12 | HO2: 13 | HP2: 14 | HQ2: 15 | HR2: 16 | HS2: 17 | HT2: 18 | HU2: 19 | HV2: 20 | HW2: 21 | HX2: 22 | HY2: 23 | HZ2: 24 | IA2: 25 | IB2: 26 | IC2: 27 | ID2: 28 | IE2: 29 | IF2: 30 | IG2: 31 | IH2: 32 | II2: 33 | IJ2: 34 | IK2: 35 | IL2: 36 | IM2: 37 | IN2: 38 | IO2: 39 | IP2: 40 | IQ2: 41 | IR2: 42 | IS2: 43 | IT2: 44 | IU2: 45 | IV2: 46 | IW2: 47 | IX2: 48 | IY2: 49 | IZ2: 50 | JA2: 51 | JB2: 52
A3: Cleanout | B3: Well 1 | C3: 10 | D3: 10 | E3: 0 | F3: 10 | G3: =F3*0.97 -> 9.7 | H3: =G3*0.97 -> 9.409 | I3: 9.12673 | J3: 8.8529281 | K3: 8.587340257 | L3: 8.329720049 | M3: 8.079828448 | N3: 7.837433594 | O3: 7.602310587 | P3: 7.374241269 | Q3: 7.153014031 | R3: 6.93842361 | S3: 6.730270902 | T3: 6.528362775 | U3: 6.332511891 | V3: 6.142536535 | W3: 5.958260439 | X3: 5.779512625 | Y3: 5.606127247 | Z3: 5.437943429 | AA3: 5.274805126 | AB3: 5.116560973 | AC3: 4.963064143 | AD3: =AC3*0.97 -> 4.814172219 | AE3: =AD3*0.97 -> 4.669747053 | AF3: =AE3*0.97 -> 4.529654641 | AG3: 0 | AH3: 10 | AI3: =AH3*0.97 -> 9.7 | AJ3: =AI3*0.97 -> 9.409 | AK3: 9.12673 | AL3: 8.8529281 | AM3: 8.587340257 | AN3: 8.329720049 | AO3: 8.079828448 | AP3: 7.837433594 | AQ3: 7.602310587 | AR3: 7.374241269 | AS3: 7.153014031 | AT3: 6.93842361 | AU3: 6.730270902 | AV3: 6.528362775 | AW3: 6.332511891 | AX3: 6.142536535 | AY3: 5.958260439 | AZ3: 5.779512625 | BA3: 5.606127247 | BB3: 5.437943429 | BC3: 5.274805126 | BD3: 5.116560973 | BE3: 4.963064143 | BF3: =BE3*0.97 -> 4.814172219 | BG3: =BF3*0.97 -> 4.669747053 | BH3: =BG3*0.97 -> 4.529654641 | BI3: 0 | BJ3: =C$182 -> 0 | BK3: =D$182 -> 0 | BL3: 0 | BM3: 0 | BN3: 0 | BO3: 0 | BP3: 100 | BQ3: 95 | BR3: 90.25 | BS3: 85.7375 | BT3: 81.450625 | BU3: 77.37809375 | BV3: 73.50918906 | BW3: 69.83372961 | BX3: 67.73871772 | BY3: 65.70655619 | BZ3: 63.7353595 | CA3: 61.82329872 | CB3: 59.96859976 | CC3: 58.16954176 | CD3: 56.42445551 | CE3: 54.73172185 | CF3: 53.08977019 | CG3: 51.49707709 | CH3: 49.95216477 | CI3: 48.45359983 | CJ3: 46.99999183 | CK3: 45.58999208 | CL3: 44.22229232 | CM3: 42.89562355 | CN3: 41.60875484 | CO3: 40.3604922 | CP3: 0 | CQ3: 0 | CR3: 0 | CS3: 0 | CT3: 0 | CU3: 0 | CV3: 80 | CW3: 76 | CX3: 72.2 | CY3: 68.59 | CZ3: 65.1605 | DA3: 61.902475 | DB3: 58.80735125 | DC3: 55.86698369 | DD3: 54.19097418 | DE3: 52.56524495 | DF3: 50.9882876 | DG3: 49.45863897 | DH3: 47.97487981 | DI3: 46.53563341 | DJ3: 45.13956441 | DK3: 43.78537748 | DL3: 42.47181615 | DM3: 41.19766167 | DN3: 39.96173182 | DO3: 38.76287986 | DP3: 37.59999347 | DQ3: 36.47199366 | DR3: 35.37783385 | DS3: 34.31649884 | DT3: 33.28700387 | DU3: 32.28839376 | DV3: 0 | DW3: =BP$182 -> 0 | DX3: 0 | DY3: 0 | DZ3: 0 | EA3: 0 | EB3: 64 | EC3: 60.8 | ED3: 57.76 | EE3: 54.872 | EF3: 52.1284 | EG3: 49.52198 | EH3: 47.045881 | EI3: 44.69358695 | EJ3: 43.35277934 | EK3: 42.05219596 | EL3: 40.79063008 | EM3: 39.56691118 | EN3: 38.37990384 | EO3: 37.22850673 | EP3: 36.11165153 | EQ3: 35.02830198 | ER3: 33.97745292 | ES3: 32.95812933 | ET3: 31.96938545 | EU3: 31.01030389 | EV3: 30.07999477 | EW3: 29.17759493 | EX3: 28.30226708 | EY3: 27.45319907 | EZ3: 26.6296031 | FA3: 25.83071501 | FB3: 0 | FC3: 0 | FD3: 0 | FE3: 0 | FF3: 0 | FG3: 0 | FH3: 51.2 | FI3: 48.64 | FJ3: 46.208 | FK3: 43.8976 | FL3: 41.70272 | FM3: 39.617584 | FN3: 37.6367048 | FO3: 35.75486956 | FP3: 34.68222347 | FQ3: 33.64175677 | FR3: 32.63250407 | FS3: 31.65352894 | FT3: 30.70392308 | FU3: 29.78280538 | FV3: 28.88932122 | FW3: 28.02264159 | FX3: 27.18196234 | FY3: 26.36650347 | FZ3: 25.57550836 | GA3: 24.80824311 | GB3: 24.06399582 | GC3: 23.34207594 | GD3: 22.64181367 | GE3: 21.96255926 | GF3: 21.30368248 | GG3: 20.664572 | GH3: 0 | GI3: =EB$182 -> 0 | GJ3: 0 | GK3: 0 | GL3: 0 | GM3: 0 | GN3: 40.96 | GO3: 38.912 | GP3: 36.9664 | GQ3: 35.11808 | GR3: 33.362176 | GS3: 31.6940672 | GT3: 30.10936384 | GU3: 28.60389565 | GV3: 27.74577878 | GW3: 26.91340542 | GX3: 26.10600325 | GY3: 25.32282316 | GZ3: 24.56313846 | HA3: 23.82624431 | HB3: 23.11145698 | HC3: 22.41811327 | HD3: 21.74556987 | HE3: 21.09320277 | HF3: 20.46040669 | HG3: 19.84659449 | HH3: 19.25119666 | HI3: 18.67366076 | HJ3: 18.11345093 | HK3: 17.57004741 | HL3: 17.04294598 | HM3: 16.5316576 | HN3: 0 | HO3: 0 | HP3: 0 | HQ3: 0 | HR3: 0 | HS3: 0 | HT3: Put to Long Term Steam
A4: ". " | B4: Well 2 | C4: 8 | D4: 8 | E4: 8 | F4: 0 | G4: 8 | H4: =G4*0.97 -> 7.76 | I4: 7.5272 | J4: 7.301384 | K4: 7.08234248 | L4: 6.869872206 | M4: 6.663776039 | N4: 6.463862758 | O4: 6.269946876 | P4: 6.081848469 | Q4: 5.899393015 | R4: 5.722411225 | S4: 5.550738888 | T4: 5.384216721 | U4: 5.22269022 | V4: 5.066009513 | W4: 4.914029228 | X4: 4.766608351 | Y4: 4.6236101 | Z4: 4.484901797 | AA4: 4.350354743 | AB4: 4.219844101 | AC4: 4.093248778 | AD4: 3.970451315 | AE4: 3.851337775 | AF4: 3.735797642 | AG4: =AF4*0.97 -> 3.623723713 | AH4: 0 | AI4: 8 | AJ4: =AI4*0.97 -> 7.76 | AK4: 7.5272 | AL4: 7.301384 | AM4: 7.08234248 | AN4: 6.869872206 | AO4: 6.663776039 | AP4: 6.463862758 | AQ4: 6.269946876 | AR4: 6.081848469 | AS4: 5.899393015 | AT4: 5.722411225 | AU4: 5.550738888 | AV4: 5.384216721 | AW4: 5.22269022 | AX4: 5.066009513 | AY4: 4.914029228 | AZ4: 4.766608351 | BA4: 4.6236101 | BB4: 4.484901797 | BC4: 4.350354743 | BD4: 4.219844101 | BE4: 4.093248778 | BF4: 3.970451315 | BG4: 3.851337775 | BH4: 3.735797642 | BI4: =BH4*0.97 -> 3.623723713 | BJ4: =C$182 -> 0 | BK4: 0 | BL4: 0 | BM4: 0 | BN4: 0 | BO4: 0 | BP4: 100 | BQ4: 95 | BR4: 90.25 | BS4: 85.7375 | BT4: 81.450625 | BU4: 77.37809375 | BV4: 73.50918906 | BW4: 69.83372961 | BX4: 67.73871772 | BY4: 65.70655619 | BZ4: 63.7353595 | CA4: 61.82329872 | CB4: 59.96859976 | CC4: 58.16954176 | CD4: 56.42445551 | CE4: 54.73172185 | CF4: 53.08977019 | CG4: 51.49707709 | CH4: 49.95216477 | CI4: 48.45359983 | CJ4: 46.99999183 | CK4: 45.58999208 | CL4: 44.22229232 | CM4: 42.89562355 | CN4: 41.60875484 | CO4: 40.3604922 | CP4: 0 | CQ4: 0 | CR4: 0 | CS4: 0 | CT4: 0 | CU4: 0 | CV4: 80 | CW4: 76 | CX4: 72.2 | CY4: 68.59 | CZ4: 65.1605 | DA4: 61.902475 | DB4: 58.80735125 | DC4: 55.86698369 | DD4: 54.19097418 | DE4: 52.56524495 | DF4: 50.9882876 | DG4: 49.45863897 | DH4: 47.97487981 | DI4: 46.53563341 | DJ4: 45.13956441 | DK4: 43.78537748 | DL4: 42.47181615 | DM4: 41.19766167 | DN4: 39.96173182 | DO4: 38.76287986 | DP4: 37.59999347 | DQ4: 36.47199366 | DR4: 35.37783385 | DS4: 34.31649884 | DT4: 33.28700387 | DU4: 32.28839376 | DV4: 0 | DW4: 0 | DX4: 0 | DY4: 0 | DZ4: 0 | EA4: 0 | EB4: 64 | EC4: 60.8 | ED4: 57.76 | EE4: 54.872 | EF4: 52.1284 | EG4: 49.52198 | EH4: 47.045881 | EI4: 44.69358695 | EJ4: 43.35277934 | EK4: 42.05219596 | EL4: 40.79063008 | EM4: 39.56691118 | EN4: 38.37990384 | EO4: 37.22850673 | EP4: 36.11165153 | EQ4: 35.02830198 | ER4: 33.97745292 | ES4: 32.95812933 | ET4: 31.96938545 | EU4: 31.01030389 | EV4: 30.07999477 | EW4: 29.17759493 | EX4: 28.30226708 | EY4: 27.45319907 | EZ4: 26.6296031 | FA4: 25.83071501 | FB4: 0 | FC4: 0 | FD4: 0 | FE4: 0 | FF4: 0 | FG4: 0 | FH4: 51.2 | FI4: 48.64 | FJ4: 46.208 | FK4: 43.8976 | FL4: 41.70272 | FM4: 39.617584 | FN4: 37.6367048 | FO4: 35.75486956 | FP4: 34.68222347 | FQ4: 33.64175677 | FR4: 32.63250407 | FS4: 31.65352894 | FT4: 30.70392308 | FU4: 29.78280538 | FV4: 28.88932122 | FW4: 28.02264159 | FX4: 27.18196234 | FY4: 26.36650347 | FZ4: 25.57550836 | GA4: 24.80824311 | GB4: 24.06399582 | GC4: 23.34207594 | GD4: 22.64181367 | GE4: 21.96255926 | GF4: 21.30368248 | GG4: 20.664572 | GH4: 0 | GI4: 0 | GJ4: 0 | GK4: 0 | GL4: 0 | GM4: 0 | GN4: 40.96 | GO4: 38.912 | GP4: 36.9664 | GQ4: 35.11808 | GR4: 33.362176 | GS4: 31.6940672 | GT4: 30.10936384 | GU4: 28.60389565 | GV4: 27.74577878 | GW4: 26.91340542 | GX4: 26.10600325 | GY4: 25.32282316 | GZ4: 24.56313846 | HA4: 23.82624431 | HB4: 23.11145698 | HC4: 22.41811327 | HD4: 21.74556987 | HE4: 21.09320277 | HF4: 20.46040669 | HG4: 19.84659449 | HH4: 19.25119666 | HI4: 18.67366076 | HJ4: 18.11345093 | HK4: 17.57004741 | HL4: 17.04294598 | HM4: 16.5316576 | HN4: 0 | HO4: 0 | HP4: 0 | HQ4: 0 | HR4: 0 | HS4: 0 | HT4: 40 | HU4: 42 | HV4: 44.1 | HW4: 46.305 | HX4: 48.62025 | HY4: 51.0512625 | HZ4: 53.60382563 | IA4: 56.28401691 | IB4: 59.09821775 | IC4: 62.05312864 | ID4: 65.15578507 | IE4: 68.41357432 | IF4: 71.83425304 | IG4: 75.42596569 | IH4: 79.19726398 | II4: 83.15712718 | IJ4: 85 | IK4: 85 | IL4: 85 | IM4: 85 | IN4: 85 | IO4: 85 | IP4: 85 | IQ4: 85 | IR4: 85 | IS4: 85 | IT4: 85 | IU4: =GN$182 -> 85 | IV4: 85 | IW4: 85 | IX4: 85 | IY4: 85 | IZ4: 85 | JA4: 85 | JB4: 85
A5: ". " | B5: Well 3 | C5: 6 | D5: 6 | E5: 6 | F5: 6 | G5: 0 | H5: 8 | I5: =H5*0.97 -> 7.76 | J5: =I5*0.97 -> 7.5272 | K5: =J5*0.97 -> 7.301384 | L5: =K5*0.97 -> 7.08234248 | M5: =L5*0.97 -> 6.869872206 | N5: =M5*0.97 -> 6.663776039 | O5: =N5*0.97 -> 6.463862758 | P5: =O5*0.97 -> 6.269946876 | Q5: =P5*0.97 -> 6.081848469 | R5: =Q5*0.97 -> 5.899393015 | S5: =R5*0.97 -> 5.722411225 | T5: =S5*0.97 -> 5.550738888 | U5: =T5*0.97 -> 5.384216721 | V5: =U5*0.97 -> 5.22269022 | W5: =V5*0.97 -> 5.066009513 | X5: =W5*0.97 -> 4.914029228 | Y5: =X5*0.97 -> 4.766608351 | Z5: =Y5*0.97 -> 4.6236101 | AA5: =Z5*0.97 -> 4.484901797 | AB5: =AA5*0.97 -> 4.350354743 | AC5: =AB5*0.97 -> 4.219844101 | AD5: 4.093248778 | AE5: 3.970451315 | AF5: 3.851337775 | AG5: =AF5*0.97 -> 3.735797642 | AH5: =AG5*0.97 -> 3.623723713 | AI5: 0 | AJ5: 8 | AK5: =AJ5*0.97 -> 7.76 | AL5: =AK5*0.97 -> 7.5272 | AM5: =AL5*0.97 -> 7.301384 | AN5: =AM5*0.97 -> 7.08234248 | AO5: =AN5*0.97 -> 6.869872206 | AP5: =AO5*0.97 -> 6.663776039 | AQ5: =AP5*0.97 -> 6.463862758 | AR5: =AQ5*0.97 -> 6.269946876 | AS5: =AR5*0.97 -> 6.081848469 | AT5: =AS5*0.97 -> 5.899393015 | AU5: =AT5*0.97 -> 5.722411225 | AV5: =AU5*0.97 -> 5.550738888 | AW5: =AV5*0.97 -> 5.384216721 | AX5: =AW5*0.97 -> 5.22269022 | AY5: =AX5*0.97 -> 5.066009513 | AZ5: =AY5*0.97 -> 4.914029228 | BA5: =AZ5*0.97 -> 4.766608351 | BB5: =BA5*0.97 -> 4.6236101 | BC5: =BB5*0.97 -> 4.484901797 | BD5: =BC5*0.97 -> 4.350354743 | BE5: =BD5*0.97 -> 4.219844101 | BF5: 4.093248778 | BG5: 3.970451315 | BH5: 3.851337775 | BI5: =BH5*0.97 -> 3.735797642 | BJ5: =C$182 -> 0 | BK5: 0 | BL5: 0 | BM5: 0 | BN5: 0 | BO5: 0 | BP5: 100 | BQ5: 95 | BR5: 90.25 | BS5: 85.7375 | BT5: 81.450625 | BU5: 77.37809375 | BV5: 73.50918906 | BW5: 69.83372961 | BX5: 67.73871772 | BY5: 65.70655619 | BZ5: 63.7353595 | CA5: 61.82329872 | CB5: 59.96859976 | CC5: 58.16954176 | CD5: 56.42445551 | CE5: 54.73172185 | CF5: 53.08977019 | CG5: 51.49707709 | CH5: 49.95216477 | CI5: 48.45359983 | CJ5: 46.99999183 | CK5: 45.58999208 | CL5: 44.22229232 | CM5: 42.89562355 | CN5: 41.60875484 | CO5: 40.3604922 | CP5: 0 | CQ5: 0 | CR5: 0 | CS5: 0 | CT5: 0 | CU5: 0 | CV5: 80 | CW5: 76 | CX5: 72.2 | CY5: 68.59 | CZ5: 65.1605 | DA5: 61.902475 | DB5: 58.80735125 | DC5: 55.86698369 | DD5: 54.19097418 | DE5: 52.56524495 | DF5: 50.9882876 | DG5: 49.45863897 | DH5: 47.97487981 | DI5: 46.53563341 | DJ5: 45.13956441 | DK5: 43.78537748 | DL5: 42.47181615 | DM5: 41.19766167 | DN5: 39.96173182 | DO5: 38.76287986 | DP5: 37.59999347 | DQ5: 36.47199366 | DR5: 35.37783385 | DS5: 34.31649884 | DT5: 33.28700387 | DU5: 32.28839376 | DV5: 0 | DW5: 0 | DX5: 0 | DY5: 0 | DZ5: 0 | EA5: 0 | EB5: 64 | EC5: 60.8 | ED5: 57.76 | EE5: 54.872 | EF5: 52.1284 | EG5: 49.52198 | EH5: 47.045881 | EI5: 44.69358695 | EJ5: 43.35277934 | EK5: 42.05219596 | EL5: 40.79063008 | EM5: 39.56691118 | EN5: 38.37990384 | EO5: 37.22850673 | EP5: 36.11165153 | EQ5: 35.02830198 | ER5: 33.97745292 | ES5: 32.95812933 | ET5: 31.96938545 | EU5: 31.01030389 | EV5: 30.07999477 | EW5: 29.17759493 | EX5: 28.30226708 | EY5: 27.45319907 | EZ5: 26.6296031 | FA5: 25.83071501 | FB5: 0 | FC5: 0 | FD5: 0 | FE5: 0 | FF5: 0 | FG5: 0 | FH5: 51.2 | FI5: 48.64 | FJ5: 46.208 | FK5: 43.8976 | FL5: 41.70272 | FM5: 39.617584 | FN5: 37.6367048 | FO5: 35.75486956 | FP5: 34.68222347 | FQ5: 33.64175677 | FR5: 32.63250407 | FS5: 31.65352894 | FT5: 30.70392308 | FU5: 29.78280538 | FV5: 28.88932122 | FW5: 28.02264159 | FX5: 27.18196234 | FY5: 26.36650347 | FZ5: 25.57550836 | GA5: 24.80824311 | GB5: 24.06399582 | GC5: 23.34207594 | GD5: 22.64181367 | GE5: 21.96255926 | GF5: 21.30368248 | GG5: 20.664572 | GH5: 0 | GI5: 0 | GJ5: 0 | GK5: 0 | GL5: 0 | GM5: 0 | GN5: 40.96 | GO5: 38.912 | GP5: 36.9664 | GQ5: 35.11808 | GR5: 33.362176 | GS5: 31.6940672 | GT5: 30.10936384 | GU5: 28.60389565 | GV5: 27.74577878 | GW5: 26.91340542 | GX5: 26.10600325 | GY5: 25.32282316 | GZ5: 24.56313846 | HA5: 23.82624431 | HB5: 23.11145698 | HC5: 22.41811327 | HD5: 21.74556987 | HE5: 21.09320277 | HF5: 20.46040669 | HG5: 19.84659449 | HH5: 19.25119666 | HI5: 18.67366076 | HJ5: 18.11345093 | HK5: 17.57004741 | HL5: 17.04294598 | HM5: 16.5316576 | HN5: 0 | HO5: 0 | HP5: 0 | HQ5: 0 | HR5: 0 | HS5: 0 | HT5: 40 | HU5: 42 | HV5: 44.1 | HW5: 46.305 | HX5: 48.62025 | HY5: 51.0512625 | HZ5: 53.60382563 | IA5: 56.28401691 | IB5: 59.09821775 | IC5: 62.05312864 | ID5: 65.15578507 | IE5: 68.41357432 | IF5: 71.83425304 | IG5: 75.42596569 | IH5: 79.19726398 | II5: 83.15712718 | IJ5: 85 | IK5: 85 | IL5: 85 | IM5: 85 | IN5: 85 | IO5: 85 | IP5: 85 | IQ5: 85 | IR5: 85 | IS5: 85 | IT5: 85 | IU5: 85 | IV5: 85 | IW5: 85 | IX5: 85 | IY5: 85 | IZ5: 85 | JA5: 85 | JB5: 85
A6: ". " | B6: Well 4 | C6: 4 | D6: 4 | E6: 4 | F6: 4 | G6: 4 | H6: 0 | I6: 8 | J6: =I6*0.97 -> 7.76 | K6: 7.5272 | L6: 7.301384 | M6: 7.08234248 | N6: 6.869872206 | O6: 6.663776039 | P6: 6.463862758 | Q6: 6.269946876 | R6: 6.081848469 | S6: 5.899393015 | T6: 5.722411225 | U6: 5.550738888 | V6: 5.384216721 | W6: 5.22269022 | X6: 5.066009513 | Y6: 4.914029228 | Z6: 4.766608351 | AA6: 4.6236101 | AB6: 4.484901797 | AC6: 4.350354743 | AD6: 4.219844101 | AE6: 4.093248778 | AF6: 3.970451315 | AG6: 3.851337775 | AH6: =AG6*0.97 -> 3.735797642 | AI6: =AH6*0.97 -> 3.623723713 | AJ6: 0 | AK6: 8 | AL6: =AK6*0.97 -> 7.76 | AM6: 7.5272 | AN6: 7.301384 | AO6: 7.08234248 | AP6: 6.869872206 | AQ6: 6.663776039 | AR6: 6.463862758 | AS6: 6.269946876 | AT6: 6.081848469 | AU6: 5.899393015 | AV6: 5.722411225 | AW6: 5.550738888 | AX6: 5.384216721 | AY6: 5.22269022 | AZ6: 5.066009513 | BA6: 4.914029228 | BB6: 4.766608351 | BC6: 4.6236101 | BD6: 4.484901797 | BE6: 4.350354743 | BF6: 4.219844101 | BG6: 4.093248778 | BH6: 3.970451315 | BI6: 3.851337775 | BJ6: =C$182 -> 0 | BK6: 0 | BL6: 0 | BM6: 0 | BN6: 0 | BO6: 0 | BP6: 100 | BQ6: 95 | BR6: 90.25 | BS6: 85.7375 | BT6: 81.450625 | BU6: 77.37809375 | BV6: 73.50918906 | BW6: 69.83372961 | BX6: 67.73871772 | BY6: 65.70655619 | BZ6: 63.7353595 | CA6: 61.82329872 | CB6: 59.96859976 | CC6: 58.16954176 | CD6: 56.42445551 | CE6: 54.73172185 | CF6: 53.08977019 | CG6: 51.49707709 | CH6: 49.95216477 | CI6: 48.45359983 | CJ6: 46.99999183 | CK6: 45.58999208 | CL6: 44.22229232 | CM6: 42.89562355 | CN6: 41.60875484 | CO6: 40.3604922 | CP6: 0 | CQ6: 0 | CR6: 0 | CS6: 0 | CT6: 0 | CU6: 0 | CV6: 80 | CW6: 76 | CX6: 72.2 | CY6: 68.59 | CZ6: 65.1605 | DA6: 61.902475 | DB6: 58.80735125 | DC6: 55.86698369 | DD6: 54.19097418 | DE6: 52.56524495 | DF6: 50.9882876 | DG6: 49.45863897 | DH6: 47.97487981 | DI6: 46.53563341 | DJ6: 45.13956441 | DK6: 43.78537748 | DL6: 42.47181615 | DM6: 41.19766167 | DN6: 39.96173182 | DO6: 38.76287986 | DP6: 37.59999347 | DQ6: 36.47199366 | DR6: 35.37783385 | DS6: 34.31649884 | DT6: 33.28700387 | DU6: 32.28839376 | DV6: =BO$182 -> 0 | DW6: 0 | DX6: 0 | DY6: 0 | DZ6: 0 | EA6: 0 | EB6: 64 | EC6: 60.8 | ED6: 57.76 | EE6: 54.872 | EF6: 52.1284 | EG6: 49.52198 | EH6: 47.045881 | EI6: 44.69358695 | EJ6: 43.35277934 | EK6: 42.05219596 | EL6: 40.79063008 | EM6: 39.56691118 | EN6: 38.37990384 | EO6: 37.22850673 | EP6: 36.11165153 | EQ6: 35.02830198 | ER6: 33.97745292 | ES6: 32.95812933 | ET6: 31.96938545 | EU6: 31.01030389 | EV6: 30.07999477 | EW6: 29.17759493 | EX6: 28.30226708 | EY6: 27.45319907 | EZ6: 26.6296031 | FA6: 25.83071501 | FB6: 0 | FC6: 0 | FD6: 0 | FE6: 0 | FF6: 0 | FG6: 0 | FH6: 51.2 | FI6: 48.64 | FJ6: 46.208 | FK6: 43.8976 | FL6: 41.70272 | FM6: 39.617584 | FN6: 37.6367048 | FO6: 35.75486956 | FP6: 34.68222347 | FQ6: 33.64175677 | FR6: 32.63250407 | FS6: 31.65352894 | FT6: 30.70392308 | FU6: 29.78280538 | FV6: 28.88932122 | FW6: 28.02264159 | FX6: 27.18196234 | FY6: 26.36650347 | FZ6: 25.57550836 | GA6: 24.80824311 | GB6: 24.06399582 | GC6: 23.34207594 | GD6: 22.64181367 | GE6: 21.96255926 | GF6: 21.30368248 | GG6: 20.664572 | GH6: =EA$182 -> 0 | GI6: 0 | GJ6: 0 | GK6: 0 | GL6: 0 | GM6: 0 | GN6: 40.96 | GO6: 38.912 | GP6: 36.9664 | GQ6: 35.11808 | GR6: 33.362176 | GS6: 31.6940672 | GT6: 30.10936384 | GU6: 28.60389565 | GV6: 27.74577878 | GW6: 26.91340542 | GX6: 26.10600325 | GY6: 25.32282316 | GZ6: 24.56313846 | HA6: 23.82624431 | HB6: 23.11145698 | HC6: 22.41811327 | HD6: 21.74556987 | HE6: 21.09320277 | HF6: 20.46040669 | HG6: 19.84659449 | HH6: 19.25119666 | HI6: 18.67366076 | HJ6: 18.11345093 | HK6: 17.57004741 | HL6: 17.04294598 | HM6: 16.5316576 | HN6: 0 | HO6: 0 | HP6: 0 | HQ6: 0 | HR6: 0 | HS6: 0 | HT6: 40 | HU6: 42 | HV6: 44.1 | HW6: 46.305 | HX6: 48.62025 | HY6: 51.0512625 | HZ6: 53.60382563 | IA6: 56.28401691 | IB6: 59.09821775 | IC6: 62.05312864 | ID6: 65.15578507 | IE6: 68.41357432 | IF6: 71.83425304 | IG6: 75.42596569 | IH6: 79.19726398 | II6: 83.15712718 | IJ6: 85 | IK6: 85 | IL6: 85 | IM6: 85 | IN6: 85 | IO6: 85 | IP6: 85 | IQ6: 85 | IR6: 85 | IS6: 85 | IT6: =GM$182 -> 85 | IU6: 85 | IV6: 85 | IW6: 85 | IX6: 85 | IY6: 85 | IZ6: 85 | JA6: 85 | JB6: 85
A7: ". " | B7: Well 5 | C7: 2 | D7: 2 | E7: 2 | F7: 2 | G7: 2 | H7: 2 | I7: 0 | J7: 8 | K7: =J7*0.97 -> 7.76 | L7: 7.5272 | M7: 7.301384 | N7: 7.08234248 | O7: 6.869872206 | P7: 6.663776039 | Q7: 6.463862758 | R7: 6.269946876 | S7: 6.081848469 | T7: 5.899393015 | U7: 5.722411225 | V7: 5.550738888 | W7: 5.384216721 | X7: 5.22269022 | Y7: 5.066009513 | Z7: 4.914029228 | AA7: 4.766608351 | AB7: 4.6236101 | AC7: 4.484901797 | AD7: 4.350354743 | AE7: 4.219844101 | AF7: 4.093248778 | AG7: 3.970451315 | AH7: 3.851337775 | AI7: =AH7*0.97 -> 3.735797642 | AJ7: =AI7*0.97 -> 3.623723713 | AK7: 0 | AL7: 8 | AM7: =AL7*0.97 -> 7.76 | AN7: 7.5272 | AO7: 7.301384 | AP7: 7.08234248 | AQ7: 6.869872206 | AR7: 6.663776039 | AS7: 6.463862758 | AT7: 6.269946876 | AU7: 6.081848469 | AV7: 5.899393015 | AW7: 5.722411225 | AX7: 5.550738888 | AY7: 5.384216721 | AZ7: 5.22269022 | BA7: 5.066009513 | BB7: 4.914029228 | BC7: 4.766608351 | BD7: 4.6236101 | BE7: 4.484901797 | BF7: 4.350354743 | BG7: 4.219844101 | BH7: 4.093248778 | BI7: 3.970451315 | BJ7: =C$182 -> 0 | BK7: =D$182 -> 0 | BL7: 0 | BM7: 0 | BN7: 0 | BO7: 0 | BP7: 100 | BQ7: 95 | BR7: 90.25 | BS7: 85.7375 | BT7: 81.450625 | BU7: 77.37809375 | BV7: 73.50918906 | BW7: 69.83372961 | BX7: 67.73871772 | BY7: 65.70655619 | BZ7: 63.7353595 | CA7: 61.82329872 | CB7: 59.96859976 | CC7: 58.16954176 | CD7: 56.42445551 | CE7: 54.73172185 | CF7: 53.08977019 | CG7: 51.49707709 | CH7: 49.95216477 | CI7: 48.45359983 | CJ7: 46.99999183 | CK7: 45.58999208 | CL7: 44.22229232 | CM7: 42.89562355 | CN7: 41.60875484 | CO7: 40.3604922 | CP7: 0 | CQ7: 0 | CR7: 0 | CS7: 0 | CT7: 0 | CU7: 0 | CV7: 80 | CW7: 76 | CX7: 72.2 | CY7: 68.59 | CZ7: 65.1605 | DA7: 61.902475 | DB7: 58.80735125 | DC7: 55.86698369 | DD7: 54.19097418 | DE7: 52.56524495 | DF7: 50.9882876 | DG7: 49.45863897 | DH7: 47.97487981 | DI7: 46.53563341 | DJ7: 45.13956441 | DK7: 43.78537748 | DL7: 42.47181615 | DM7: 41.19766167 | DN7: 39.96173182 | DO7: 38.76287986 | DP7: 37.59999347 | DQ7: 36.47199366 | DR7: 35.37783385 | DS7: 34.31649884 | DT7: 33.28700387 | DU7: 32.28839376 | DV7: 0 | DW7: =BP$182 -> 0 | DX7: 0 | DY7: 0 | DZ7: 0 | EA7: 0 | EB7: 64 | EC7: 60.8 | ED7: 57.76 | EE7: 54.872 | EF7: 52.1284 | EG7: 49.52198 | EH7: 47.045881 | EI7: 44.69358695 | EJ7: 43.35277934 | EK7: 42.05219596 | EL7: 40.79063008 | EM7: 39.56691118 | EN7: 38.37990384 | EO7: 37.22850673 | EP7: 36.11165153 | EQ7: 35.02830198 | ER7: 33.97745292 | ES7: 32.95812933 | ET7: 31.96938545 | EU7: 31.01030389 | EV7: 30.07999477 | EW7: 29.17759493 | EX7: 28.30226708 | EY7: 27.45319907 | EZ7: 26.6296031 | FA7: 25.83071501 | FB7: 0 | FC7: 0 | FD7: 0 | FE7: 0 | FF7: 0 | FG7: 0 | FH7: 51.2 | FI7: 48.64 | FJ7: 46.208 | FK7: 43.8976 | FL7: 41.70272 | FM7: 39.617584 | FN7: 37.6367048 | FO7: 35.75486956 | FP7: 34.68222347 | FQ7: 33.64175677 | FR7: 32.63250407 | FS7: 31.65352894 | FT7: 30.70392308 | FU7: 29.78280538 | FV7: 28.88932122 | FW7: 28.02264159 | FX7: 27.18196234 | FY7: 26.36650347 | FZ7: 25.57550836 | GA7: 24.80824311 | GB7: 24.06399582 | GC7: 23.34207594 | GD7: 22.64181367 | GE7: 21.96255926 | GF7: 21.30368248 | GG7: 20.664572 | GH7: 0 | GI7: =EB$182 -> 0 | GJ7: 0 | GK7: 0 | GL7: 0 | GM7: 0 | GN7: 40.96 | GO7: 38.912 | GP7: 36.9664 | GQ7: 35.11808 | GR7: 33.362176 | GS7: 31.6940672 | GT7: 30.10936384 | GU7: 28.60389565 | GV7: 27.74577878 | GW7: 26.91340542 | GX7: 26.10600325 | GY7: 25.32282316 | GZ7: 24.56313846 | HA7: 23.82624431 | HB7: 23.11145698 | HC7: 22.41811327 | HD7: 21.74556987 | HE7: 21.09320277 | HF7: 20.46040669 | HG7: 19.84659449 | HH7: 19.25119666 | HI7: 18.67366076 | HJ7: 18.11345093 | HK7: 17.57004741 | HL7: 17.04294598 | HM7: 16.5316576 | HN7: 0 | HO7: 0 | HP7: 0 | HQ7: 0 | HR7: 0 | HS7: 0 | HT7: 40 | HU7: 42 | HV7: 44.1 | HW7: 46.305 | HX7: 48.62025 | HY7: 51.0512625 | HZ7: 53.60382563 | IA7: 56.28401691 | IB7: 59.09821775 | IC7: 62.05312864 | ID7: 65.15578507 | IE7: 68.41357432 | IF7: 71.83425304 | IG7: 75.42596569 | IH7: 79.19726398 | II7: 83.15712718 | IJ7: 85 | IK7: 85 | IL7: 85 | IM7: 85 | IN7: 85 | IO7: 85 | IP7: 85 | IQ7: 85 | IR7: 85 | IS7: 85 | IT7: 85 | IU7: 85 | IV7: 85 | IW7: 85 | IX7: 85 | IY7: 85 | IZ7: 85 | JA7: 85 | JB7: 85
A8: ". " | B8: Well 6 | C8: 2 | D8: 2 | E8: 2 | F8: 2 | G8: 2 | H8: 2 | I8: 2 | J8: 0 | K8: 8 | L8: =K8*0.97 -> 7.76 | M8: 7.5272 | N8: 7.301384 | O8: 7.08234248 | P8: 6.869872206 | Q8: 6.663776039 | R8: 6.463862758 | S8: 6.269946876 | T8: 6.081848469 | U8: 5.899393015 | V8: 5.722411225 | W8: 5.550738888 | X8: 5.384216721 | Y8: 5.22269022 | Z8: 5.066009513 | AA8: 4.914029228 | AB8: 4.766608351 | AC8: 4.6236101 | AD8: 4.484901797 | AE8: 4.350354743 | AF8: 4.219844101 | AG8: 4.093248778 | AH8: 3.970451315 | AI8: 3.851337775 | AJ8: 3.735797642 | AK8: =AJ8*0.97 -> 3.623723713 | AL8: 0 | AM8: 8 | AN8: =AM8*0.97 -> 7.76 | AO8: 7.5272 | AP8: 7.301384 | AQ8: 7.08234248 | AR8: 6.869872206 | AS8: 6.663776039 | AT8: 6.463862758 | AU8: 6.269946876 | AV8: 6.081848469 | AW8: 5.899393015 | AX8: 5.722411225 | AY8: 5.550738888 | AZ8: 5.384216721 | BA8: 5.22269022 | BB8: 5.066009513 | BC8: 4.914029228 | BD8: 4.766608351 | BE8: 4.6236101 | BF8: 4.484901797 | BG8: =C$182 -> 0 | BH8: =D$182 -> 0 | BI8: 0 | BJ8: 0 | BK8: 0 | BL8: 0 | BM8: 100 | BN8: 95 | BO8: 90.25 | BP8: 85.7375 | BQ8: 81.450625 | BR8: 77.37809375 | BS8: 73.50918906 | BT8: 69.83372961 | BU8: 67.73871772 | BV8: 65.70655619 | BW8: 63.7353595 | BX8: 61.82329872 | BY8: 59.96859976 | BZ8: 58.16954176 | CA8: 56.42445551 | CB8: 54.73172185 | CC8: 53.08977019 | CD8: 51.49707709 | CE8: 49.95216477 | CF8: 48.45359983 | CG8: 46.99999183 | CH8: 45.58999208 | CI8: 44.22229232 | CJ8: 42.89562355 | CK8: 41.60875484 | CL8: 40.3604922 | CM8: 0 | CN8: 0 | CO8: 0 | CP8: 0 | CQ8: 0 | CR8: 0 | CS8: 80 | CT8: 76 | CU8: 72.2 | CV8: 68.59 | CW8: 65.1605 | CX8: 61.902475 | CY8: 58.80735125 | CZ8: 55.86698369 | DA8: 54.19097418 | DB8: 52.56524495 | DC8: 50.9882876 | DD8: 49.45863897 | DE8: 47.97487981 | DF8: 46.53563341 | DG8: 45.13956441 | DH8: 43.78537748 | DI8: 42.47181615 | DJ8: 41.19766167 | DK8: 39.96173182 | DL8: 38.76287986 | DM8: 37.59999347 | DN8: 36.47199366 | DO8: 35.37783385 | DP8: 34.31649884 | DQ8: 33.28700387 | DR8: 32.28839376 | DS8: 0 | DT8: =BP$182 -> 0 | DU8: 0 | DV8: 0 | DW8: 0 | DX8: 0 | DY8: 64 | DZ8: 60.8 | EA8: 57.76 | EB8: 54.872 | EC8: 52.1284 | ED8: 49.52198 | EE8: 47.045881 | EF8: 44.69358695 | EG8: 43.35277934 | EH8: 42.05219596 | EI8: 40.79063008 | EJ8: 39.56691118 | EK8: 38.37990384 | EL8: 37.22850673 | EM8: 36.11165153 | EN8: 35.02830198 | EO8: 33.97745292 | EP8: 32.95812933 | EQ8: 31.96938545 | ER8: 31.01030389 | ES8: 30.07999477 | ET8: 29.17759493 | EU8: 28.30226708 | EV8: 27.45319907 | EW8: 26.6296031 | EX8: 25.83071501 | EY8: 0 | EZ8: 0 | FA8: 0 | FB8: 0 | FC8: 0 | FD8: 0 | FE8: 51.2 | FF8: 48.64 | FG8: 46.208 | FH8: 43.8976 | FI8: 41.70272 | FJ8: 39.617584 | FK8: 37.6367048 | FL8: 35.75486956 | FM8: 34.68222347 | FN8: 33.64175677 | FO8: 32.63250407 | FP8: 31.65352894 | FQ8: 30.70392308 | FR8: 29.78280538 | FS8: 28.88932122 | FT8: 28.02264159 | FU8: 27.18196234 | FV8: 26.36650347 | FW8: 25.57550836 | FX8: 24.80824311 | FY8: 24.06399582 | FZ8: 23.34207594 | GA8: 22.64181367 | GB8: 21.96255926 | GC8: 21.30368248 | GD8: 20.664572 | GE8: 0 | GF8: =EB$182 -> 0 | GG8: 0 | GH8: 0 | GI8: 0 | GJ8: 0 | GK8: 40.96 | GL8: 38.912 | GM8: 36.9664 | GN8: 35.11808 | GO8: 33.362176 | GP8: 31.6940672 | GQ8: 30.10936384 | GR8: 28.60389565 | GS8: 27.74577878 | GT8: 26.91340542 | GU8: 26.10600325 | GV8: 25.32282316 | GW8: 24.56313846 | GX8: 23.82624431 | GY8: 23.11145698 | GZ8: 22.41811327 | HA8: 21.74556987 | HB8: 21.09320277 | HC8: 20.46040669 | HD8: 19.84659449 | HE8: 19.25119666 | HF8: 18.67366076 | HG8: 18.11345093 | HH8: 17.57004741 | HI8: 17.04294598 | HJ8: 16.5316576 | HK8: 0 | HL8: 0 | HM8: 0 | HN8: 0 | HO8: 0 | HP8: 0 | HQ8: Put to Long Term Steam
A9: ". " | B9: Well 7 | C9: 2 | D9: 2 | E9: 2 | F9: 2 | G9: 2 | H9: 2 | I9: 2 | J9: 2 | K9: 0 | L9: 8 | M9: =L9*0.97 -> 7.76 | N9: 7.5272 | O9: 7.301384 | P9: 7.08234248 | Q9: 6.869872206 | R9: 6.663776039 | S9: 6.463862758 | T9: 6.269946876 | U9: 6.081848469 | V9: 5.899393015 | W9: 5.722411225 | X9: 5.550738888 | Y9: 5.384216721 | Z9: 5.22269022 | AA9: 5.066009513 | AB9: 4.914029228 | AC9: 4.766608351 | AD9: 4.6236101 | AE9: 4.484901797 | AF9: 4.350354743 | AG9: 4.219844101 | AH9: 4.093248778 | AI9: 3.970451315 | AJ9: 3.851337775 | AK9: 3.735797642 | AL9: =AK9*0.97 -> 3.623723713 | AM9: 0 | AN9: 8 | AO9: =AN9*0.97 -> 7.76 | AP9: 7.5272 | AQ9: 7.301384 | AR9: 7.08234248 | AS9: 6.869872206 | AT9: 6.663776039 | AU9: 6.463862758 | AV9: 6.269946876 | AW9: 6.081848469 | AX9: 5.899393015 | AY9: 5.722411225 | AZ9: 5.550738888 | BA9: 5.384216721 | BB9: 5.22269022 | BC9: 5.066009513 | BD9: 4.914029228 | BE9: 4.766608351 | BF9: 4.6236101 | BG9: =C$182 -> 0 | BH9: 0 | BI9: 0 | BJ9: 0 | BK9: 0 | BL9: 0 | BM9: 100 | BN9: 95 | BO9: 90.25 | BP9: 85.7375 | BQ9: 81.450625 | BR9: 77.37809375 | BS9: 73.50918906 | BT9: 69.83372961 | BU9: 67.73871772 | BV9: 65.70655619 | BW9: 63.7353595 | BX9: 61.82329872 | BY9: 59.96859976 | BZ9: 58.16954176 | CA9: 56.42445551 | CB9: 54.73172185 | CC9: 53.08977019 | CD9: 51.49707709 | CE9: 49.95216477 | CF9: 48.45359983 | CG9: 46.99999183 | CH9: 45.58999208 | CI9: 44.22229232 | CJ9: 42.89562355 | CK9: 41.60875484 | CL9: 40.3604922 | CM9: 0 | CN9: 0 | CO9: 0 | CP9: 0 | CQ9: 0 | CR9: 0 | CS9: 80 | CT9: 76 | CU9: 72.2 | CV9: 68.59 | CW9: 65.1605 | CX9: 61.902475 | CY9: 58.80735125 | CZ9: 55.86698369 | DA9: 54.19097418 | DB9: 52.56524495 | DC9: 50.9882876 | DD9: 49.45863897 | DE9: 47.97487981 | DF9: 46.53563341 | DG9: 45.13956441 | DH9: 43.78537748 | DI9: 42.47181615 | DJ9: 41.19766167 | DK9: 39.96173182 | DL9: 38.76287986 | DM9: 37.59999347 | DN9: 36.47199366 | DO9: 35.37783385 | DP9: 34.31649884 | DQ9: 33.28700387 | DR9: 32.28839376 | DS9: 0 | DT9: 0 | DU9: 0 | DV9: 0 | DW9: 0 | DX9: 0 | DY9: 64 | DZ9: 60.8 | EA9: 57.76 | EB9: 54.872 | EC9: 52.1284 | ED9: 49.52198 | EE9: 47.045881 | EF9: 44.69358695 | EG9: 43.35277934 | EH9: 42.05219596 | EI9: 40.79063008 | EJ9: 39.56691118 | EK9: 38.37990384 | EL9: 37.22850673 | EM9: 36.11165153 | EN9: 35.02830198 | EO9: 33.97745292 | EP9: 32.95812933 | EQ9: 31.96938545 | ER9: 31.01030389 | ES9: 30.07999477 | ET9: 29.17759493 | EU9: 28.30226708 | EV9: 27.45319907 | EW9: 26.6296031 | EX9: 25.83071501 | EY9: 0 | EZ9: 0 | FA9: 0 | FB9: 0 | FC9: 0 | FD9: 0 | FE9: 51.2 | FF9: 48.64 | FG9: 46.208 | FH9: 43.8976 | FI9: 41.70272 | FJ9: 39.617584 | FK9: 37.6367048 | FL9: 35.75486956 | FM9: 34.68222347 | FN9: 33.64175677 | FO9: 32.63250407 | FP9: 31.65352894 | FQ9: 30.70392308 | FR9: 29.78280538 | FS9: 28.88932122 | FT9: 28.02264159 | FU9: 27.18196234 | FV9: 26.36650347 | FW9: 25.57550836 | FX9: 24.80824311 | FY9: 24.06399582 | FZ9: 23.34207594 | GA9: 22.64181367 | GB9: 21.96255926 | GC9: 21.30368248 | GD9: 20.664572 | GE9: 0 | GF9: 0 | GG9: 0 | GH9: 0 | GI9: 0 | GJ9: 0 | GK9: 40.96 | GL9: 38.912 | GM9: 36.9664 | GN9: 35.11808 | GO9: 33.362176 | GP9: 31.6940672 | GQ9: 30.10936384 | GR9: 28.60389565 | GS9: 27.74577878 | GT9: 26.91340542 | GU9: 26.10600325 | GV9: 25.32282316 | GW9: 24.56313846 | GX9: 23.82624431 | GY9: 23.11145698 | GZ9: 22.41811327 | HA9: 21.74556987 | HB9: 21.09320277 | HC9: 20.46040669 | HD9: 19.84659449 | HE9: 19.25119666 | HF9: 18.67366076 | HG9: 18.11345093 | HH9: 17.57004741 | HI9: 17.04294598 | HJ9: 16.5316576 | HK9: 0 | HL9: 0 | HM9: 0 | HN9: 0 | HO9: 0 | HP9: 0 | HQ9: 40 | HR9: 42 | HS9: 44.1 | HT9: 46.305 | HU9: 48.62025 | HV9: 51.0512625 | HW9: 53.60382563 | HX9: 56.28401691 | HY9: 59.09821775 | HZ9: 62.05312864 | IA9: 65.15578507 | IB9: 68.41357432 | IC9: 71.83425304 | ID9: 75.42596569 | IE9: 79.19726398 | IF9: 83.15712718 | IG9: 85 | IH9: 85 | II9: 85 | IJ9: 85 | IK9: 85 | IL9: 85 | IM9: 85 | IN9: 85 | IO9: 85 | IP9: 85 | IQ9: 85 | IR9: =GN$182 -> 85 | IS9: 85 | IT9: 85 | IU9: 85 | IV9: 85 | IW9: 85 | IX9: 85 | IY9: 85 | IZ9: 85 | JA9: 85 | JB9: 85
A10: ". " | B10: Well 8 | C10: 2 | D10: 2 | E10: 2 | F10: 2 | G10: 2 | H10: 2 | I10: 2 | J10: 2 | K10: 2 | L10: 0 | M10: 8 | N10: =M10*0.97 -> 7.76 | O10: 7.5272 | P10: 7.301384 | Q10: 7.08234248 | R10: 6.869872206 | S10: 6.663776039 | T10: 6.463862758 | U10: 6.269946876 | V10: 6.081848469 | W10: 5.899393015 | X10: 5.722411225 | Y10: 5.550738888 | Z10: 5.384216721 | AA10: 5.22269022 | AB10: 5.066009513 | AC10: 4.914029228 | AD10: 4.766608351 | AE10: 4.6236101 | AF10: 4.484901797 | AG10: 4.350354743 | AH10: 4.219844101 | AI10: 4.093248778 | AJ10: 3.970451315 | AK10: 3.851337775 | AL10: 3.735797642 | AM10: =AL10*0.97 -> 3.623723713 | AN10: 0 | AO10: 8 | AP10: =AO10*0.97 -> 7.76 | AQ10: 7.5272 | AR10: 7.301384 | AS10: 7.08234248 | AT10: 6.869872206 | AU10: 6.663776039 | AV10: 6.463862758 | AW10: 6.269946876 | AX10: 6.081848469 | AY10: 5.899393015 | AZ10: 5.722411225 | BA10: 5.550738888 | BB10: 5.384216721 | BC10: 5.22269022 | BD10: 5.066009513 | BE10: 4.914029228 | BF10: 4.766608351 | BG10: =C$182 -> 0 | BH10: 0 | BI10: 0 | BJ10: 0 | BK10: 0 | BL10: 0 | BM10: 100 | BN10: 95 | BO10: 90.25 | BP10: 85.7375 | BQ10: 81.450625 | BR10: 77.37809375 | BS10: 73.50918906 | BT10: 69.83372961 | BU10: 67.73871772 | BV10: 65.70655619 | BW10: 63.7353595 | BX10: 61.82329872 | BY10: 59.96859976 | BZ10: 58.16954176 | CA10: 56.42445551 | CB10: 54.73172185 | CC10: 53.08977019 | CD10: 51.49707709 | CE10: 49.95216477 | CF10: 48.45359983 | CG10: 46.99999183 | CH10: 45.58999208 | CI10: 44.22229232 | CJ10: 42.89562355 | CK10: 41.60875484 | CL10: 40.3604922 | CM10: 0 | CN10: 0 | CO10: 0 | CP10: 0 | CQ10: 0 | CR10: 0 | CS10: 80 | CT10: 76 | CU10: 72.2 | CV10: 68.59 | CW10: 65.1605 | CX10: 61.902475 | CY10: 58.80735125 | CZ10: 55.86698369 | DA10: 54.19097418 | DB10: 52.56524495 | DC10: 50.9882876 | DD10: 49.45863897 | DE10: 47.97487981 | DF10: 46.53563341 | DG10: 45.13956441 | DH10: 43.78537748 | DI10: 42.47181615 | DJ10: 41.19766167 | DK10: 39.96173182 | DL10: 38.76287986 | DM10: 37.59999347 | DN10: 36.47199366 | DO10: 35.37783385 | DP10: 34.31649884 | DQ10: 33.28700387 | DR10: 32.28839376 | DS10: 0 | DT10: 0 | DU10: 0 | DV10: 0 | DW10: 0 | DX10: 0 | DY10: 64 | DZ10: 60.8 | EA10: 57.76 | EB10: 54.872 | EC10: 52.1284 | ED10: 49.52198 | EE10: 47.045881 | EF10: 44.69358695 | EG10: 43.35277934 | EH10: 42.05219596 | EI10: 40.79063008 | EJ10: 39.56691118 | EK10: 38.37990384 | EL10: 37.22850673 | EM10: 36.11165153 | EN10: 35.02830198 | EO10: 33.97745292 | EP10: 32.95812933 | EQ10: 31.96938545 | ER10: 31.01030389 | ES10: 30.07999477 | ET10: 29.17759493 | EU10: 28.30226708 | EV10: 27.45319907 | EW10: 26.6296031 | EX10: 25.83071501 | EY10: 0 | EZ10: 0 | FA10: 0 | FB10: 0 | FC10: 0 | FD10: 0 | FE10: 51.2 | FF10: 48.64 | FG10: 46.208 | FH10: 43.8976 | FI10: 41.70272 | FJ10: 39.617584 | FK10: 37.6367048 | FL10: 35.75486956 | FM10: 34.68222347 | FN10: 33.64175677 | FO10: 32.63250407 | FP10: 31.65352894 | FQ10: 30.70392308 | FR10: 29.78280538 | FS10: 28.88932122 | FT10: 28.02264159 | FU10: 27.18196234 | FV10: 26.36650347 | FW10: 25.57550836 | FX10: 24.80824311 | FY10: 24.06399582 | FZ10: 23.34207594 | GA10: 22.64181367 | GB10: 21.96255926 | GC10: 21.30368248 | GD10: 20.664572 | GE10: 0 | GF10: 0 | GG10: 0 | GH10: 0 | GI10: 0 | GJ10: 0 | GK10: 40.96 | GL10: 38.912 | GM10: 36.9664 | GN10: 35.11808 | GO10: 33.362176 | GP10: 31.6940672 | GQ10: 30.10936384 | GR10: 28.60389565 | GS10: 27.74577878 | GT10: 26.91340542 | GU10: 26.10600325 | GV10: 25.32282316 | GW10: 24.56313846 | GX10: 23.82624431 | GY10: 23.11145698 | GZ10: 22.41811327 | HA10: 21.74556987 | HB10: 21.09320277 | HC10: 20.46040669 | HD10: 19.84659449 | HE10: 19.25119666 | HF10: 18.67366076 | HG10: 18.11345093 | HH10: 17.57004741 | HI10: 17.04294598 | HJ10: 16.5316576 | HK10: 0 | HL10: 0 | HM10: 0 | HN10: 0 | HO10: 0 | HP10: 0 | HQ10: 40 | HR10: 42 | HS10: 44.1 | HT10: 46.305 | HU10: 48.62025 | HV10: 51.0512625 | HW10: 53.60382563 | HX10: 56.28401691 | HY10: 59.09821775 | HZ10: 62.05312864 | IA10: 65.15578507 | IB10: 68.41357432 | IC10: 71.83425304 | ID10: 75.42596569 | IE10: 79.19726398 | IF10: 83.15712718 | IG10: 85 | IH10: 85 | II10: 85 | IJ10: 85 | IK10: 85 | IL10: 85 | IM10: 85 | IN10: 85 | IO10: 85 | IP10: 85 | IQ10: 85 | IR10: 85 | IS10: 85 | IT10: 85 | IU10: 85 | IV10: 85 | IW10: 85 | IX10: 85 | IY10: 85 | IZ10: 85 | JA10: 85 | JB10: 85
A11: ". " | B11: Well 9 | C11: 2 | D11: 2 | E11: 2 | F11: 2 | G11: 2 | H11: 2 | I11: 2 | J11: 2 | K11: 2 | L11: 2 | M11: 0 | N11: 8 | O11: =N11*0.97 -> 7.76 | P11: 7.5272 | Q11: 7.301384 | R11: 7.08234248 | S11: 6.869872206 | T11: 6.663776039 | U11: 6.463862758 | V11: 6.269946876 | W11: 6.081848469 | X11: 5.899393015 | Y11: 5.722411225 | Z11: 5.550738888 | AA11: 5.384216721 | AB11: 5.22269022 | AC11: 5.066009513 | AD11: 4.914029228 | AE11: 4.766608351 | AF11: 4.6236101 | AG11: 4.484901797 | AH11: 4.350354743 | AI11: 4.219844101 | AJ11: 4.093248778 | AK11: 3.970451315 | AL11: 3.851337775 | AM11: 3.735797642 | AN11: =AM11*0.97 -> 3.623723713 | AO11: 0 | AP11: 8 | AQ11: =AP11*0.97 -> 7.76 | AR11: 7.5272 | AS11: 7.301384 | AT11: 7.08234248 | AU11: 6.869872206 | AV11: 6.663776039 | AW11: 6.463862758 | AX11: 6.269946876 | AY11: 6.081848469 | AZ11: 5.899393015 | BA11: 5.722411225 | BB11: 5.550738888 | BC11: 5.384216721 | BD11: 5.22269022 | BE11: 5.066009513 | BF11: 4.914029228 | BG11: =C$182 -> 0 | BH11: 0 | BI11: 0 | BJ11: 0 | BK11: 0 | BL11: 0 | BM11: 100 | BN11: 95 | BO11: 90.25 | BP11: 85.7375 | BQ11: 81.450625 | BR11: 77.37809375 | BS11: 73.50918906 | BT11: 69.83372961 | BU11: 67.73871772 | BV11: 65.70655619 | BW11: 63.7353595 | BX11: 61.82329872 | BY11: 59.96859976 | BZ11: 58.16954176 | CA11: 56.42445551 | CB11: 54.73172185 | CC11: 53.08977019 | CD11: 51.49707709 | CE11: 49.95216477 | CF11: 48.45359983 | CG11: 46.99999183 | CH11: 45.58999208 | CI11: 44.22229232 | CJ11: 42.89562355 | CK11: 41.60875484 | CL11: 40.3604922 | CM11: 0 | CN11: 0 | CO11: 0 | CP11: 0 | CQ11: 0 | CR11: 0 | CS11: 80 | CT11: 76 | CU11: 72.2 | CV11: 68.59 | CW11: 65.1605 | CX11: 61.902475 | CY11: 58.80735125 | CZ11: 55.86698369 | DA11: 54.19097418 | DB11: 52.56524495 | DC11: 50.9882876 | DD11: 49.45863897 | DE11: 47.97487981 | DF11: 46.53563341 | DG11: 45.13956441 | DH11: 43.78537748 | DI11: 42.47181615 | DJ11: 41.19766167 | DK11: 39.96173182 | DL11: 38.76287986 | DM11: 37.59999347 | DN11: 36.47199366 | DO11: 35.37783385 | DP11: 34.31649884 | DQ11: 33.28700387 | DR11: 32.28839376 | DS11: =BO$182 -> 0 | DT11: 0 | DU11: 0 | DV11: 0 | DW11: 0 | DX11: 0 | DY11: 64 | DZ11: 60.8 | EA11: 57.76 | EB11: 54.872 | EC11: 52.1284 | ED11: 49.52198 | EE11: 47.045881 | EF11: 44.69358695 | EG11: 43.35277934 | EH11: 42.05219596 | EI11: 40.79063008 | EJ11: 39.56691118 | EK11: 38.37990384 | EL11: 37.22850673 | EM11: 36.11165153 | EN11: 35.02830198 | EO11: 33.97745292 | EP11: 32.95812933 | EQ11: 31.96938545 | ER11: 31.01030389 | ES11: 30.07999477 | ET11: 29.17759493 | EU11: 28.30226708 | EV11: 27.45319907 | EW11: 26.6296031 | EX11: 25.83071501 | EY11: 0 | EZ11: 0 | FA11: 0 | FB11: 0 | FC11: 0 | FD11: 0 | FE11: 51.2 | FF11: 48.64 | FG11: 46.208 | FH11: 43.8976 | FI11: 41.70272 | FJ11: 39.617584 | FK11: 37.6367048 | FL11: 35.75486956 | FM11: 34.68222347 | FN11: 33.64175677 | FO11: 32.63250407 | FP11: 31.65352894 | FQ11: 30.70392308 | FR11: 29.78280538 | FS11: 28.88932122 | FT11: 28.02264159 | FU11: 27.18196234 | FV11: 26.36650347 | FW11: 25.57550836 | FX11: 24.80824311 | FY11: 24.06399582 | FZ11: 23.34207594 | GA11: 22.64181367 | GB11: 21.96255926 | GC11: 21.30368248 | GD11: 20.664572 | GE11: =EA$182 -> 0 | GF11: 0 | GG11: 0 | GH11: 0 | GI11: 0 | GJ11: 0 | GK11: 40.96 | GL11: 38.912 | GM11: 36.9664 | GN11: 35.11808 | GO11: 33.362176 | GP11: 31.6940672 | GQ11: 30.10936384 | GR11: 28.60389565 | GS11: 27.74577878 | GT11: 26.91340542 | GU11: 26.10600325 | GV11: 25.32282316 | GW11: 24.56313846 | GX11: 23.82624431 | GY11: 23.11145698 | GZ11: 22.41811327 | HA11: 21.74556987 | HB11: 21.09320277 | HC11: 20.46040669 | HD11: 19.84659449 | HE11: 19.25119666 | HF11: 18.67366076 | HG11: 18.11345093 | HH11: 17.57004741 | HI11: 17.04294598 | HJ11: 16.5316576 | HK11: 0 | HL11: 0 | HM11: 0 | HN11: 0 | HO11: 0 | HP11: 0 | HQ11: 40 | HR11: 42 | HS11: 44.1 | HT11: 46.305 | HU11: 48.62025 | HV11: 51.0512625 | HW11: 53.60382563 | HX11: 56.28401691 | HY11: 59.09821775 | HZ11: 62.05312864 | IA11: 65.15578507 | IB11: 68.41357432 | IC11: 71.83425304 | ID11: 75.42596569 | IE11: 79.19726398 | IF11: 83.15712718 | IG11: 85 | IH11: 85 | II11: 85 | IJ11: 85 | IK11: 85 | IL11: 85 | IM11: 85 | IN11: 85 | IO11: 85 | IP11: 85 | IQ11: =GM$182 -> 85 | IR11: 85 | IS11: 85 | IT11: 85 | IU11: 85 | IV11: 85 | IW11: 85 | IX11: 85 | IY11: 85 | IZ11: 85 | JA11: 85 | JB11: 85
A12: ". " | B12: Well 10 | C12: 2 | D12: 2 | E12: 2 | F12: 2 | G12: 2 | H12: 2 | I12: 2 | J12: 2 | K12: 2 | L12: 2 | M12: 2 | N12: 0 | O12: 8 | P12: =O12*0.97 -> 7.76 | Q12: 7.5272 | R12: 7.301384 | S12: 7.08234248 | T12: 6.869872206 | U12: 6.663776039 | V12: 6.463862758 | W12: 6.269946876 | X12: 6.081848469 | Y12: 5.899393015 | Z12: 5.722411225 | AA12: 5.550738888 | AB12: 5.384216721 | AC12: 5.22269022 | AD12: 5.066009513 | AE12: 4.914029228 | AF12: 4.766608351 | AG12: 4.6236101 | AH12: 4.484901797 | AI12: 4.350354743 | AJ12: 4.219844101 | AK12: 4.093248778 | AL12: 3.970451315 | AM12: 3.851337775 | AN12: 3.735797642 | AO12: =AN12*0.97 -> 3.623723713 | AP12: 0 | AQ12: 8 | AR12: =AQ12*0.97 -> 7.76 | AS12: 7.5272 | AT12: 7.301384 | AU12: 7.08234248 | AV12: 6.869872206 | AW12: 6.663776039 | AX12: 6.463862758 | AY12: 6.269946876 | AZ12: 6.081848469 | BA12: 5.899393015 | BB12: 5.722411225 | BC12: 5.550738888 | BD12: 5.384216721 | BE12: 5.22269022 | BF12: 5.066009513 | BG12: =C$182 -> 0 | BH12: =D$182 -> 0 | BI12: 0 | BJ12: 0 | BK12: 0 | BL12: 0 | BM12: 100 | BN12: 95 | BO12: 90.25 | BP12: 85.7375 | BQ12: 81.450625 | BR12: 77.37809375 | BS12: 73.50918906 | BT12: 69.83372961 | BU12: 67.73871772 | BV12: 65.70655619 | BW12: 63.7353595 | BX12: 61.82329872 | BY12: 59.96859976 | BZ12: 58.16954176 | CA12: 56.42445551 | CB12: 54.73172185 | CC12: 53.08977019 | CD12: 51.49707709 | CE12: 49.95216477 | CF12: 48.45359983 | CG12: 46.99999183 | CH12: 45.58999208 | CI12: 44.22229232 | CJ12: 42.89562355 | CK12: 41.60875484 | CL12: 40.3604922 | CM12: 0 | CN12: 0 | CO12: 0 | CP12: 0 | CQ12: 0 | CR12: 0 | CS12: 80 | CT12: 76 | CU12: 72.2 | CV12: 68.59 | CW12: 65.1605 | CX12: 61.902475 | CY12: 58.80735125 | CZ12: 55.86698369 | DA12: 54.19097418 | DB12: 52.56524495 | DC12: 50.9882876 | DD12: 49.45863897 | DE12: 47.97487981 | DF12: 46.53563341 | DG12: 45.13956441 | DH12: 43.78537748 | DI12: 42.47181615 | DJ12: 41.19766167 | DK12: 39.96173182 | DL12: 38.76287986 | DM12: 37.59999347 | DN12: 36.47199366 | DO12: 35.37783385 | DP12: 34.31649884 | DQ12: 33.28700387 | DR12: 32.28839376 | DS12: 0 | DT12: =BP$182 -> 0 | DU12: 0 | DV12: 0 | DW12: 0 | DX12: 0 | DY12: 64 | DZ12: 60.8 | EA12: 57.76 | EB12: 54.872 | EC12: 52.1284 | ED12: 49.52198 | EE12: 47.045881 | EF12: 44.69358695 | EG12: 43.35277934 | EH12: 42.05219596 | EI12: 40.79063008 | EJ12: 39.56691118 | EK12: 38.37990384 | EL12: 37.22850673 | EM12: 36.11165153 | EN12: 35.02830198 | EO12: 33.97745292 | EP12: 32.95812933 | EQ12: 31.96938545 | ER12: 31.01030389 | ES12: 30.07999477 | ET12: 29.17759493 | EU12: 28.30226708 | EV12: 27.45319907 | EW12: 26.6296031 | EX12: 25.83071501 | EY12: 0 | EZ12: 0 | FA12: 0 | FB12: 0 | FC12: 0 | FD12: 0 | FE12: 51.2 | FF12: 48.64 | FG12: 46.208 | FH12: 43.8976 | FI12: 41.70272 | FJ12: 39.617584 | FK12: 37.6367048 | FL12: 35.75486956 | FM12: 34.68222347 | FN12: 33.64175677 | FO12: 32.63250407 | FP12: 31.65352894 | FQ12: 30.70392308 | FR12: 29.78280538 | FS12: 28.88932122 | FT12: 28.02264159 | FU12: 27.18196234 | FV12: 26.36650347 | FW12: 25.57550836 | FX12: 24.80824311 | FY12: 24.06399582 | FZ12: 23.34207594 | GA12: 22.64181367 | GB12: 21.96255926 | GC12: 21.30368248 | GD12: 20.664572 | GE12: 0 | GF12: =EB$182 -> 0 | GG12: 0 | GH12: 0 | GI12: 0 | GJ12: 0 | GK12: 40.96 | GL12: 38.912 | GM12: 36.9664 | GN12: 35.11808 | GO12: 33.362176 | GP12: 31.6940672 | GQ12: 30.10936384 | GR12: 28.60389565 | GS12: 27.74577878 | GT12: 26.91340542 | GU12: 26.10600325 | GV12: 25.32282316 | GW12: 24.56313846 | GX12: 23.82624431 | GY12: 23.11145698 | GZ12: 22.41811327 | HA12: 21.74556987 | HB12: 21.09320277 | HC12: 20.46040669 | HD12: 19.84659449 | HE12: 19.25119666 | HF12: 18.67366076 | HG12: 18.11345093 | HH12: 17.57004741 | HI12: 17.04294598 | HJ12: 16.5316576 | HK12: 0 | HL12: 0 | HM12: 0 | HN12: 0 | HO12: 0 | HP12: 0 | HQ12: 40 | HR12: 42 | HS12: 44.1 | HT12: 46.305 | HU12: 48.62025 | HV12: 51.0512625 | HW12: 53.60382563 | HX12: 56.28401691 | HY12: 59.09821775 | HZ12: 62.05312864 | IA12: 65.15578507 | IB12: 68.41357432 | IC12: 71.83425304 | ID12: 75.42596569 | IE12: 79.19726398 | IF12: 83.15712718 | IG12: 85 | IH12: 85 | II12: 85 | IJ12: 85 | IK12: 85 | IL12: 85 | IM12: 85 | IN12: 85 | IO12: 85 | IP12: 85 | IQ12: 85 | IR12: 85 | IS12: 85 | IT12: 85 | IU12: 85 | IV12: 85 | IW12: 85 | IX12: 85 | IY12: 85 | IZ12: 85 | JA12: 85 | JB12: 85
A13: ". " | B13: Well 11 | C13: 2 | D13: 2 | E13: 2 | F13: 2 | G13: 2 | H13: 2 | I13: 2 | J13: 2 | K13: 2 | L13: 2 | M13: 2 | N13: 2 | O13: 0 | P13: 8 | Q13: =P13*0.97 -> 7.76 | R13: 7.5272 | S13: 7.301384 | T13: 7.08234248 | U13: 6.869872206 | V13: 6.663776039 | W13: 6.463862758 | X13: 6.269946876 | Y13: 6.081848469 | Z13: 5.899393015 | AA13: 5.722411225 | AB13: 5.550738888 | AC13: 5.384216721 | AD13: 5.22269022 | AE13: 5.066009513 | AF13: 4.914029228 | AG13: 4.766608351 | AH13: 4.6236101 | AI13: 4.484901797 | AJ13: 4.350354743 | AK13: 4.219844101 | AL13: 4.093248778 | AM13: 3.970451315 | AN13: 3.851337775 | AO13: 3.735797642 | AP13: =AO13*0.97 -> 3.623723713 | AQ13: 0 | AR13: 8 | AS13: =AR13*0.97 -> 7.76 | AT13: 7.5272 | AU13: 7.301384 | AV13: 7.08234248 | AW13: 6.869872206 | AX13: 6.663776039 | AY13: 6.463862758 | AZ13: 6.269946876 | BA13: 6.081848469 | BB13: 5.899393015 | BC13: 5.722411225 | BD13: =C$182 -> 0 | BE13: =D$182 -> 0 | BF13: 0 | BG13: 0 | BH13: 0 | BI13: 0 | BJ13: 100 | BK13: 95 | BL13: 90.25 | BM13: 85.7375 | BN13: 81.450625 | BO13: 77.37809375 | BP13: 73.50918906 | BQ13: 69.83372961 | BR13: 67.73871772 | BS13: 65.70655619 | BT13: 63.7353595 | BU13: 61.82329872 | BV13: 59.96859976 | BW13: 58.16954176 | BX13: 56.42445551 | BY13: 54.73172185 | BZ13: 53.08977019 | CA13: 51.49707709 | CB13: 49.95216477 | CC13: 48.45359983 | CD13: 46.99999183 | CE13: 45.58999208 | CF13: 44.22229232 | CG13: 42.89562355 | CH13: 41.60875484 | CI13: 40.3604922 | CJ13: 0 | CK13: 0 | CL13: 0 | CM13: 0 | CN13: 0 | CO13: 0 | CP13: 80 | CQ13: 76 | CR13: 72.2 | CS13: 68.59 | CT13: 65.1605 | CU13: 61.902475 | CV13: 58.80735125 | CW13: 55.86698369 | CX13: 54.19097418 | CY13: 52.56524495 | CZ13: 50.9882876 | DA13: 49.45863897 | DB13: 47.97487981 | DC13: 46.53563341 | DD13: 45.13956441 | DE13: 43.78537748 | DF13: 42.47181615 | DG13: 41.19766167 | DH13: 39.96173182 | DI13: 38.76287986 | DJ13: 37.59999347 | DK13: 36.47199366 | DL13: 35.37783385 | DM13: 34.31649884 | DN13: 33.28700387 | DO13: 32.28839376 | DP13: 0 | DQ13: =BP$182 -> 0 | DR13: 0 | DS13: 0 | DT13: 0 | DU13: 0 | DV13: 64 | DW13: 60.8 | DX13: 57.76 | DY13: 54.872 | DZ13: 52.1284 | EA13: 49.52198 | EB13: 47.045881 | EC13: 44.69358695 | ED13: 43.35277934 | EE13: 42.05219596 | EF13: 40.79063008 | EG13: 39.56691118 | EH13: 38.37990384 | EI13: 37.22850673 | EJ13: 36.11165153 | EK13: 35.02830198 | EL13: 33.97745292 | EM13: 32.95812933 | EN13: 31.96938545 | EO13: 31.01030389 | EP13: 30.07999477 | EQ13: 29.17759493 | ER13: 28.30226708 | ES13: 27.45319907 | ET13: 26.6296031 | EU13: 25.83071501 | EV13: 0 | EW13: 0 | EX13: 0 | EY13: 0 | EZ13: 0 | FA13: 0 | FB13: 51.2 | FC13: 48.64 | FD13: 46.208 | FE13: 43.8976 | FF13: 41.70272 | FG13: 39.617584 | FH13: 37.6367048 | FI13: 35.75486956 | FJ13: 34.68222347 | FK13: 33.64175677 | FL13: 32.63250407 | FM13: 31.65352894 | FN13: 30.70392308 | FO13: 29.78280538 | FP13: 28.88932122 | FQ13: 28.02264159 | FR13: 27.18196234 | FS13: 26.36650347 | FT13: 25.57550836 | FU13: 24.80824311 | FV13: 24.06399582 | FW13: 23.34207594 | FX13: 22.64181367 | FY13: 21.96255926 | FZ13: 21.30368248 | GA13: 20.664572 | GB13: 0 | GC13: =EB$182 -> 0 | GD13: 0 | GE13: 0 | GF13: 0 | GG13: 0 | GH13: 40.96 | GI13: 38.912 | GJ13: 36.9664 | GK13: 35.11808 | GL13: 33.362176 | GM13: 31.6940672 | GN13: 30.10936384 | GO13: 28.60389565 | GP13: 27.74577878 | GQ13: 26.91340542 | GR13: 26.10600325 | GS13: 25.32282316 | GT13: 24.56313846 | GU13: 23.82624431 | GV13: 23.11145698 | GW13: 22.41811327 | GX13: 21.74556987 | GY13: 21.09320277 | GZ13: 20.46040669 | HA13: 19.84659449 | HB13: 19.25119666 | HC13: 18.67366076 | HD13: 18.11345093 | HE13: 17.57004741 | HF13: 17.04294598 | HG13: 16.5316576 | HH13: 0 | HI13: 0 | HJ13: 0 | HK13: 0 | HL13: 0 | HM13: 0 | HN13: Put to Long Term Steam
A14: ". " | B14: Well 12 | C14: 2 | D14: 2 | E14: 2 | F14: 2 | G14: 2 | H14: 2 | I14: 2 | J14: 2 | K14: 2 | L14: 2 | M14: 2 | N14: 2 | O14: 2 | P14: 0 | Q14: 8 | R14: =Q14*0.97 -> 7.76 | S14: 7.5272 | T14: 7.301384 | U14: 7.08234248 | V14: 6.869872206 | W14: 6.663776039 | X14: 6.463862758 | Y14: 6.269946876 | Z14: 6.081848469 | AA14: 5.899393015 | AB14: 5.722411225 | AC14: 5.550738888 | AD14: 5.384216721 | AE14: 5.22269022 | AF14: 5.066009513 | AG14: 4.914029228 | AH14: 4.766608351 | AI14: 4.6236101 | AJ14: 4.484901797 | AK14: 4.350354743 | AL14: 4.219844101 | AM14: 4.093248778 | AN14: 3.970451315 | AO14: 3.851337775 | AP14: 3.735797642 | AQ14: =AP14*0.97 -> 3.623723713 | AR14: 0 | AS14: 8 | AT14: =AS14*0.97 -> 7.76 | AU14: 7.5272 | AV14: 7.301384 | AW14: 7.08234248 | AX14: 6.869872206 | AY14: 6.663776039 | AZ14: 6.463862758 | BA14: 6.269946876 | BB14: 6.081848469 | BC14: 5.899393015 | BD14: =C$182 -> 0 | BE14: 0 | BF14: 0 | BG14: 0 | BH14: 0 | BI14: 0 | BJ14: 100 | BK14: 95 | BL14: 90.25 | BM14: 85.7375 | BN14: 81.450625 | BO14: 77.37809375 | BP14: 73.50918906 | BQ14: 69.83372961 | BR14: 67.73871772 | BS14: 65.70655619 | BT14: 63.7353595 | BU14: 61.82329872 | BV14: 59.96859976 | BW14: 58.16954176 | BX14: 56.42445551 | BY14: 54.73172185 | BZ14: 53.08977019 | CA14: 51.49707709 | CB14: 49.95216477 | CC14: 48.45359983 | CD14: 46.99999183 | CE14: 45.58999208 | CF14: 44.22229232 | CG14: 42.89562355 | CH14: 41.60875484 | CI14: 40.3604922 | CJ14: 0 | CK14: 0 | CL14: 0 | CM14: 0 | CN14: 0 | CO14: 0 | CP14: 80 | CQ14: 76 | CR14: 72.2 | CS14: 68.59 | CT14: 65.1605 | CU14: 61.902475 | CV14: 58.80735125 | CW14: 55.86698369 | CX14: 54.19097418 | CY14: 52.56524495 | CZ14: 50.9882876 | DA14: 49.45863897 | DB14: 47.97487981 | DC14: 46.53563341 | DD14: 45.13956441 | DE14: 43.78537748 | DF14: 42.47181615 | DG14: 41.19766167 | DH14: 39.96173182 | DI14: 38.76287986 | DJ14: 37.59999347 | DK14: 36.47199366 | DL14: 35.37783385 | DM14: 34.31649884 | DN14: 33.28700387 | DO14: 32.28839376 | DP14: 0 | DQ14: 0 | DR14: 0 | DS14: 0 | DT14: 0 | DU14: 0 | DV14: 64 | DW14: 60.8 | DX14: 57.76 | DY14: 54.872 | DZ14: 52.1284 | EA14: 49.52198 | EB14: 47.045881 | EC14: 44.69358695 | ED14: 43.35277934 | EE14: 42.05219596 | EF14: 40.79063008 | EG14: 39.56691118 | EH14: 38.37990384 | EI14: 37.22850673 | EJ14: 36.11165153 | EK14: 35.02830198 | EL14: 33.97745292 | EM14: 32.95812933 | EN14: 31.96938545 | EO14: 31.01030389 | EP14: 30.07999477 | EQ14: 29.17759493 | ER14: 28.30226708 | ES14: 27.45319907 | ET14: 26.6296031 | EU14: 25.83071501 | EV14: 0 | EW14: 0 | EX14: 0 | EY14: 0 | EZ14: 0 | FA14: 0 | FB14: 51.2 | FC14: 48.64 | FD14: 46.208 | FE14: 43.8976 | FF14: 41.70272 | FG14: 39.617584 | FH14: 37.6367048 | FI14: 35.75486956 | FJ14: 34.68222347 | FK14: 33.64175677 | FL14: 32.63250407 | FM14: 31.65352894 | FN14: 30.70392308 | FO14: 29.78280538 | FP14: 28.88932122 | FQ14: 28.02264159 | FR14: 27.18196234 | FS14: 26.36650347 | FT14: 25.57550836 | FU14: 24.80824311 | FV14: 24.06399582 | FW14: 23.34207594 | FX14: 22.64181367 | FY14: 21.96255926 | FZ14: 21.30368248 | GA14: 20.664572 | GB14: 0 | GC14: 0 | GD14: 0 | GE14: 0 | GF14: 0 | GG14: 0 | GH14: 40.96 | GI14: 38.912 | GJ14: 36.9664 | GK14: 35.11808 | GL14: 33.362176 | GM14: 31.6940672 | GN14: 30.10936384 | GO14: 28.60389565 | GP14: 27.74577878 | GQ14: 26.91340542 | GR14: 26.10600325 | GS14: 25.32282316 | GT14: 24.56313846 | GU14: 23.82624431 | GV14: 23.11145698 | GW14: 22.41811327 | GX14: 21.74556987 | GY14: 21.09320277 | GZ14: 20.46040669 | HA14: 19.84659449 | HB14: 19.25119666 | HC14: 18.67366076 | HD14: 18.11345093 | HE14: 17.57004741 | HF14: 17.04294598 | HG14: 16.5316576 | HH14: 0 | HI14: 0 | HJ14: 0 | HK14: 0 | HL14: 0 | HM14: 0 | HN14: 40 | HO14: 42 | HP14: 44.1 | HQ14: 46.305 | HR14: 48.62025 | HS14: 51.0512625 | HT14: 53.60382563 | HU14: 56.28401691 | HV14: 59.09821775 | HW14: 62.05312864 | HX14: 65.15578507 | HY14: 68.41357432 | HZ14: 71.83425304 | IA14: 75.42596569 | IB14: 79.19726398 | IC14: 83.15712718 | ID14: 85 | IE14: 85 | IF14: 85 | IG14: 85 | IH14: 85 | II14: 85 | IJ14: 85 | IK14: 85 | IL14: 85 | IM14: 85 | IN14: 85 | IO14: =GN$182 -> 85 | IP14: 85 | IQ14: 85 | IR14: 85 | IS14: 85 | IT14: 85 | IU14: 85 | IV14: 85 | IW14: 85 | IX14: 85 | IY14: 85 | IZ14: 85 | JA14: 85 | JB14: 85
A15: ". " | B15: Well 13 | C15: 2 | D15: 2 | E15: 2 | F15: 2 | G15: 2 | H15: 2 | I15: 2 | J15: 2 | K15: 2 | L15: 2 | M15: 2 | N15: 2 | O15: 2 | P15: 2 | Q15: 0 | R15: 8 | S15: =R15*0.97 -> 7.76 | T15: 7.5272 | U15: 7.301384 | V15: 7.08234248 | W15: 6.869872206 | X15: 6.663776039 | Y15: 6.463862758 | Z15: 6.269946876 | AA15: 6.081848469 | AB15: 5.899393015 | AC15: 5.722411225 | AD15: 5.550738888 | AE15: 5.384216721 | AF15: 5.22269022 | AG15: 5.066009513 | AH15: 4.914029228 | AI15: 4.766608351 | AJ15: 4.6236101 | AK15: 4.484901797 | AL15: 4.350354743 | AM15: 4.219844101 | AN15: 4.093248778 | AO15: 3.970451315 | AP15: 3.851337775 | AQ15: 3.735797642 | AR15: =AQ15*0.97 -> 3.623723713 | AS15: 0 | AT15: 8 | AU15: =AT15*0.97 -> 7.76 | AV15: 7.5272 | AW15: 7.301384 | AX15: 7.08234248 | AY15: 6.869872206 | AZ15: 6.663776039 | BA15: 6.463862758 | BB15: 6.269946876 | BC15: 6.081848469 | BD15: =C$182 -> 0 | BE15: 0 | BF15: 0 | BG15: 0 | BH15: 0 | BI15: 0 | BJ15: 100 | BK15: 95 | BL15: 90.25 | BM15: 85.7375 | BN15: 81.450625 | BO15: 77.37809375 | BP15: 73.50918906 | BQ15: 69.83372961 | BR15: 67.73871772 | BS15: 65.70655619 | BT15: 63.7353595 | BU15: 61.82329872 | BV15: 59.96859976 | BW15: 58.16954176 | BX15: 56.42445551 | BY15: 54.73172185 | BZ15: 53.08977019 | CA15: 51.49707709 | CB15: 49.95216477 | CC15: 48.45359983 | CD15: 46.99999183 | CE15: 45.58999208 | CF15: 44.22229232 | CG15: 42.89562355 | CH15: 41.60875484 | CI15: 40.3604922 | CJ15: 0 | CK15: 0 | CL15: 0 | CM15: 0 | CN15: 0 | CO15: 0 | CP15: 80 | CQ15: 76 | CR15: 72.2 | CS15: 68.59 | CT15: 65.1605 | CU15: 61.902475 | CV15: 58.80735125 | CW15: 55.86698369 | CX15: 54.19097418 | CY15: 52.56524495 | CZ15: 50.9882876 | DA15: 49.45863897 | DB15: 47.97487981 | DC15: 46.53563341 | DD15: 45.13956441 | DE15: 43.78537748 | DF15: 42.47181615 | DG15: 41.19766167 | DH15: 39.96173182 | DI15: 38.76287986 | DJ15: 37.59999347 | DK15: 36.47199366 | DL15: 35.37783385 | DM15: 34.31649884 | DN15: 33.28700387 | DO15: 32.28839376 | DP15: 0 | DQ15: 0 | DR15: 0 | DS15: 0 | DT15: 0 | DU15: 0 | DV15: 64 | DW15: 60.8 | DX15: 57.76 | DY15: 54.872 | DZ15: 52.1284 | EA15: 49.52198 | EB15: 47.045881 | EC15: 44.69358695 | ED15: 43.35277934 | EE15: 42.05219596 | EF15: 40.79063008 | EG15: 39.56691118 | EH15: 38.37990384 | EI15: 37.22850673 | EJ15: 36.11165153 | EK15: 35.02830198 | EL15: 33.97745292 | EM15: 32.95812933 | EN15: 31.96938545 | EO15: 31.01030389 | EP15: 30.07999477 | EQ15: 29.17759493 | ER15: 28.30226708 | ES15: 27.45319907 | ET15: 26.6296031 | EU15: 25.83071501 | EV15: 0 | EW15: 0 | EX15: 0 | EY15: 0 | EZ15: 0 | FA15: 0 | FB15: 51.2 | FC15: 48.64 | FD15: 46.208 | FE15: 43.8976 | FF15: 41.70272 | FG15: 39.617584 | FH15: 37.6367048 | FI15: 35.75486956 | FJ15: 34.68222347 | FK15: 33.64175677 | FL15: 32.63250407 | FM15: 31.65352894 | FN15: 30.70392308 | FO15: 29.78280538 | FP15: 28.88932122 | FQ15: 28.02264159 | FR15: 27.18196234 | FS15: 26.36650347 | FT15: 25.57550836 | FU15: 24.80824311 | FV15: 24.06399582 | FW15: 23.34207594 | FX15: 22.64181367 | FY15: 21.96255926 | FZ15: 21.30368248 | GA15: 20.664572 | GB15: 0 | GC15: 0 | GD15: 0 | GE15: 0 | GF15: 0 | GG15: 0 | GH15: 40.96 | GI15: 38.912 | GJ15: 36.9664 | GK15: 35.11808 | GL15: 33.362176 | GM15: 31.6940672 | GN15: 30.10936384 | GO15: 28.60389565 | GP15: 27.74577878 | GQ15: 26.91340542 | GR15: 26.10600325 | GS15: 25.32282316 | GT15: 24.56313846 | GU15: 23.82624431 | GV15: 23.11145698 | GW15: 22.41811327 | GX15: 21.74556987 | GY15: 21.09320277 | GZ15: 20.46040669 | HA15: 19.84659449 | HB15: 19.25119666 | HC15: 18.67366076 | HD15: 18.11345093 | HE15: 17.57004741 | HF15: 17.04294598 | HG15: 16.5316576 | HH15: 0 | HI15: 0 | HJ15: 0 | HK15: 0 | HL15: 0 | HM15: 0 | HN15: 40 | HO15: 42 | HP15: 44.1 | HQ15: 46.305 | HR15: 48.62025 | HS15: 51.0512625 | HT15: 53.60382563 | HU15: 56.28401691 | HV15: 59.09821775 | HW15: 62.05312864 | HX15: 65.15578507 | HY15: 68.41357432 | HZ15: 71.83425304 | IA15: 75.42596569 | IB15: 79.19726398 | IC15: 83.15712718 | ID15: 85 | IE15: 85 | IF15: 85 | IG15: 85 | IH15: 85 | II15: 85 | IJ15: 85 | IK15: 85 | IL15: 85 | IM15: 85 | IN15: 85 | IO15: 85 | IP15: 85 | IQ15: 85 | IR15: 85 | IS15: 85 | IT15: 85 | IU15: 85 | IV15: 85 | IW15: 85 | IX15: 85 | IY15: 85 | IZ15: 85 | JA15: 85 | JB15: 85
A16: ". " | B16: Well 14 | C16: 2 | D16: 2 | E16: 2 | F16: 2 | G16: 2 | H16: 2 | I16: 2 | J16: 2 | K16: 2 | L16: 2 | M16: 2 | N16: 2 | O16: 2 | P16: 2 | Q16: 2 | R16: 0 | S16: 8 | T16: =S16*0.97 -> 7.76 | U16: 7.5272 | V16: 7.301384 | W16: 7.08234248 | X16: 6.869872206 | Y16: 6.663776039 | Z16: 6.463862758 | AA16: 6.269946876 | AB16: 6.081848469 | AC16: 5.899393015 | AD16: 5.722411225 | AE16: 5.550738888 | AF16: 5.384216721 | AG16: 5.22269022 | AH16: 5.066009513 | AI16: 4.914029228 | AJ16: 4.766608351 | AK16: 4.6236101 | AL16: 4.484901797 | AM16: 4.350354743 | AN16: 4.219844101 | AO16: 4.093248778 | AP16: 3.970451315 | AQ16: 3.851337775 | AR16: 3.735797642 | AS16: =AR16*0.97 -> 3.623723713 | AT16: 0 | AU16: 8 | AV16: =AU16*0.97 -> 7.76 | AW16: 7.5272 | AX16: 7.301384 | AY16: 7.08234248 | AZ16: 6.869872206 | BA16: 6.663776039 | BB16: 6.463862758 | BC16: 6.269946876 | BD16: =C$182 -> 0 | BE16: 0 | BF16: 0 | BG16: 0 | BH16: 0 | BI16: 0 | BJ16: 100 | BK16: 95 | BL16: 90.25 | BM16: 85.7375 | BN16: 81.450625 | BO16: 77.37809375 | BP16: 73.50918906 | BQ16: 69.83372961 | BR16: 67.73871772 | BS16: 65.70655619 | BT16: 63.7353595 | BU16: 61.82329872 | BV16: 59.96859976 | BW16: 58.16954176 | BX16: 56.42445551 | BY16: 54.73172185 | BZ16: 53.08977019 | CA16: 51.49707709 | CB16: 49.95216477 | CC16: 48.45359983 | CD16: 46.99999183 | CE16: 45.58999208 | CF16: 44.22229232 | CG16: 42.89562355 | CH16: 41.60875484 | CI16: 40.3604922 | CJ16: 0 | CK16: 0 | CL16: 0 | CM16: 0 | CN16: 0 | CO16: 0 | CP16: 80 | CQ16: 76 | CR16: 72.2 | CS16: 68.59 | CT16: 65.1605 | CU16: 61.902475 | CV16: 58.80735125 | CW16: 55.86698369 | CX16: 54.19097418 | CY16: 52.56524495 | CZ16: 50.9882876 | DA16: 49.45863897 | DB16: 47.97487981 | DC16: 46.53563341 | DD16: 45.13956441 | DE16: 43.78537748 | DF16: 42.47181615 | DG16: 41.19766167 | DH16: 39.96173182 | DI16: 38.76287986 | DJ16: 37.59999347 | DK16: 36.47199366 | DL16: 35.37783385 | DM16: 34.31649884 | DN16: 33.28700387 | DO16: 32.28839376 | DP16: =BO$182 -> 0 | DQ16: 0 | DR16: 0 | DS16: 0 | DT16: 0 | DU16: 0 | DV16: 64 | DW16: 60.8 | DX16: 57.76 | DY16: 54.872 | DZ16: 52.1284 | EA16: 49.52198 | EB16: 47.045881 | EC16: 44.69358695 | ED16: 43.35277934 | EE16: 42.05219596 | EF16: 40.79063008 | EG16: 39.56691118 | EH16: 38.37990384 | EI16: 37.22850673 | EJ16: 36.11165153 | EK16: 35.02830198 | EL16: 33.97745292 | EM16: 32.95812933 | EN16: 31.96938545 | EO16: 31.01030389 | EP16: 30.07999477 | EQ16: 29.17759493 | ER16: 28.30226708 | ES16: 27.45319907 | ET16: 26.6296031 | EU16: 25.83071501 | EV16: 0 | EW16: 0 | EX16: 0 | EY16: 0 | EZ16: 0 | FA16: 0 | FB16: 51.2 | FC16: 48.64 | FD16: 46.208 | FE16: 43.8976 | FF16: 41.70272 | FG16: 39.617584 | FH16: 37.6367048 | FI16: 35.75486956 | FJ16: 34.68222347 | FK16: 33.64175677 | FL16: 32.63250407 | FM16: 31.65352894 | FN16: 30.70392308 | FO16: 29.78280538 | FP16: 28.88932122 | FQ16: 28.02264159 | FR16: 27.18196234 | FS16: 26.36650347 | FT16: 25.57550836 | FU16: 24.80824311 | FV16: 24.06399582 | FW16: 23.34207594 | FX16: 22.64181367 | FY16: 21.96255926 | FZ16: 21.30368248 | GA16: 20.664572 | GB16: =EA$182 -> 0 | GC16: 0 | GD16: 0 | GE16: 0 | GF16: 0 | GG16: 0 | GH16: 40.96 | GI16: 38.912 | GJ16: 36.9664 | GK16: 35.11808 | GL16: 33.362176 | GM16: 31.6940672 | GN16: 30.10936384 | GO16: 28.60389565 | GP16: 27.74577878 | GQ16: 26.91340542 | GR16: 26.10600325 | GS16: 25.32282316 | GT16: 24.56313846 | GU16: 23.82624431 | GV16: 23.11145698 | GW16: 22.41811327 | GX16: 21.74556987 | GY16: 21.09320277 | GZ16: 20.46040669 | HA16: 19.84659449 | HB16: 19.25119666 | HC16: 18.67366076 | HD16: 18.11345093 | HE16: 17.57004741 | HF16: 17.04294598 | HG16: 16.5316576 | HH16: 0 | HI16: 0 | HJ16: 0 | HK16: 0 | HL16: 0 | HM16: 0 | HN16: 40 | HO16: 42 | HP16: 44.1 | HQ16: 46.305 | HR16: 48.62025 | HS16: 51.0512625 | HT16: 53.60382563 | HU16: 56.28401691 | HV16: 59.09821775 | HW16: 62.05312864 | HX16: 65.15578507 | HY16: 68.41357432 | HZ16: 71.83425304 | IA16: 75.42596569 | IB16: 79.19726398 | IC16: 83.15712718 | ID16: 85 | IE16: 85 | IF16: 85 | IG16: 85 | IH16: 85 | II16: 85 | IJ16: 85 | IK16: 85 | IL16: 85 | IM16: 85 | IN16: =GM$182 -> 85 | IO16: 85 | IP16: 85 | IQ16: 85 | IR16: 85 | IS16: 85 | IT16: 85 | IU16: 85 | IV16: 85 | IW16: 85 | IX16: 85 | IY16: 85 | IZ16: 85 | JA16: 85 | JB16: 85
A17: ". " | B17: Well 15 | C17: 2 | D17: 2 | E17: 2 | F17: 2 | G17: 2 | H17: 2 | I17: 2 | J17: 2 | K17: 2 | L17: 2 | M17: 2 | N17: 2 | O17: 2 | P17: 2 | Q17: 2 | R17: 2 | S17: 0 | T17: 8 | U17: =T17*0.97 -> 7.76 | V17: 7.5272 | W17: 7.301384 | X17: 7.08234248 | Y17: 6.869872206 | Z17: 6.663776039 | AA17: 6.463862758 | AB17: 6.269946876 | AC17: 6.081848469 | AD17: 5.899393015 | AE17: 5.722411225 | AF17: 5.550738888 | AG17: 5.384216721 | AH17: 5.22269022 | AI17: 5.066009513 | AJ17: 4.914029228 | AK17: 4.766608351 | AL17: 4.6236101 | AM17: 4.484901797 | AN17: 4.350354743 | AO17: 4.219844101 | AP17: 4.093248778 | AQ17: 3.970451315 | AR17: 3.851337775 | AS17: 3.735797642 | AT17: =AS17*0.97 -> 3.623723713 | AU17: 0 | AV17: 8 | AW17: =AV17*0.97 -> 7.76 | AX17: 7.5272 | AY17: 7.301384 | AZ17: 7.08234248 | BA17: 6.869872206 | BB17: 6.663776039 | BC17: 6.463862758 | BD17: =C$182 -> 0 | BE17: =D$182 -> 0 | BF17: 0 | BG17: 0 | BH17: 0 | BI17: 0 | BJ17: 100 | BK17: 95 | BL17: 90.25 | BM17: 85.7375 | BN17: 81.450625 | BO17: 77.37809375 | BP17: 73.50918906 | BQ17: 69.83372961 | BR17: 67.73871772 | BS17: 65.70655619 | BT17: 63.7353595 | BU17: 61.82329872 | BV17: 59.96859976 | BW17: 58.16954176 | BX17: 56.42445551 | BY17: 54.73172185 | BZ17: 53.08977019 | CA17: 51.49707709 | CB17: 49.95216477 | CC17: 48.45359983 | CD17: 46.99999183 | CE17: 45.58999208 | CF17: 44.22229232 | CG17: 42.89562355 | CH17: 41.60875484 | CI17: 40.3604922 | CJ17: 0 | CK17: 0 | CL17: 0 | CM17: 0 | CN17: 0 | CO17: 0 | CP17: 80 | CQ17: 76 | CR17: 72.2 | CS17: 68.59 | CT17: 65.1605 | CU17: 61.902475 | CV17: 58.80735125 | CW17: 55.86698369 | CX17: 54.19097418 | CY17: 52.56524495 | CZ17: 50.9882876 | DA17: 49.45863897 | DB17: 47.97487981 | DC17: 46.53563341 | DD17: 45.13956441 | DE17: 43.78537748 | DF17: 42.47181615 | DG17: 41.19766167 | DH17: 39.96173182 | DI17: 38.76287986 | DJ17: 37.59999347 | DK17: 36.47199366 | DL17: 35.37783385 | DM17: 34.31649884 | DN17: 33.28700387 | DO17: 32.28839376 | DP17: 0 | DQ17: =BP$182 -> 0 | DR17: 0 | DS17: 0 | DT17: 0 | DU17: 0 | DV17: 64 | DW17: 60.8 | DX17: 57.76 | DY17: 54.872 | DZ17: 52.1284 | EA17: 49.52198 | EB17: 47.045881 | EC17: 44.69358695 | ED17: 43.35277934 | EE17: 42.05219596 | EF17: 40.79063008 | EG17: 39.56691118 | EH17: 38.37990384 | EI17: 37.22850673 | EJ17: 36.11165153 | EK17: 35.02830198 | EL17: 33.97745292 | EM17: 32.95812933 | EN17: 31.96938545 | EO17: 31.01030389 | EP17: 30.07999477 | EQ17: 29.17759493 | ER17: 28.30226708 | ES17: 27.45319907 | ET17: 26.6296031 | EU17: 25.83071501 | EV17: 0 | EW17: 0 | EX17: 0 | EY17: 0 | EZ17: 0 | FA17: 0 | FB17: 51.2 | FC17: 48.64 | FD17: 46.208 | FE17: 43.8976 | FF17: 41.70272 | FG17: 39.617584 | FH17: 37.6367048 | FI17: 35.75486956 | FJ17: 34.68222347 | FK17: 33.64175677 | FL17: 32.63250407 | FM17: 31.65352894 | FN17: 30.70392308 | FO17: 29.78280538 | FP17: 28.88932122 | FQ17: 28.02264159 | FR17: 27.18196234 | FS17: 26.36650347 | FT17: 25.57550836 | FU17: 24.80824311 | FV17: 24.06399582 | FW17: 23.34207594 | FX17: 22.64181367 | FY17: 21.96255926 | FZ17: 21.30368248 | GA17: 20.664572 | GB17: 0 | GC17: =EB$182 -> 0 | GD17: 0 | GE17: 0 | GF17: 0 | GG17: 0 | GH17: 40.96 | GI17: 38.912 | GJ17: 36.9664 | GK17: 35.11808 | GL17: 33.362176 | GM17: 31.6940672 | GN17: 30.10936384 | GO17: 28.60389565 | GP17: 27.74577878 | GQ17: 26.91340542 | GR17: 26.10600325 | GS17: 25.32282316 | GT17: 24.56313846 | GU17: 23.82624431 | GV17: 23.11145698 | GW17: 22.41811327 | GX17: 21.74556987 | GY17: 21.09320277 | GZ17: 20.46040669 | HA17: 19.84659449 | HB17: 19.25119666 | HC17: 18.67366076 | HD17: 18.11345093 | HE17: 17.57004741 | HF17: 17.04294598 | HG17: 16.5316576 | HH17: 0 | HI17: 0 | HJ17: 0 | HK17: 0 | HL17: 0 | HM17: 0 | HN17: 40 | HO17: 42 | HP17: 44.1 | HQ17: 46.305 | HR17: 48.62025 | HS17: 51.0512625 | HT17: 53.60382563 | HU17: 56.28401691 | HV17: 59.09821775 | HW17: 62.05312864 | HX17: 65.15578507 | HY17: 68.41357432 | HZ17: 71.83425304 | IA17: 75.42596569 | IB17: 79.19726398 | IC17: 83.15712718 | ID17: 85 | IE17: 85 | IF17: 85 | IG17: 85 | IH17: 85 | II17: 85 | IJ17: 85 | IK17: 85 | IL17: 85 | IM17: 85 | IN17: 85 | IO17: 85 | IP17: 85 | IQ17: 85 | IR17: 85 | IS17: 85 | IT17: 85 | IU17: 85 | IV17: 85 | IW17: 85 | IX17: 85 | IY17: 85 | IZ17: 85 | JA17: 85 | JB17: 85
A18: ". " | B18: Well 16 | C18: 2 | D18: 2 | E18: 2 | F18: 2 | G18: 2 | H18: 2 | I18: 2 | J18: 2 | K18: 2 | L18: 2 | M18: 2 | N18: 2 | O18: 2 | P18: 2 | Q18: 2 | R18: 2 | S18: 2 | T18: 0 | U18: 8 | V18: =U18*0.97 -> 7.76 | W18: 7.5272 | X18: 7.301384 | Y18: 7.08234248 | Z18: 6.869872206 | AA18: 6.663776039 | AB18: 6.463862758 | AC18: 6.269946876 | AD18: 6.081848469 | AE18: 5.899393015 | AF18: 5.722411225 | AG18: 5.550738888 | AH18: 5.384216721 | AI18: 5.22269022 | AJ18: 5.066009513 | AK18: 4.914029228 | AL18: 4.766608351 | AM18: 4.6236101 | AN18: 4.484901797 | AO18: 4.350354743 | AP18: 4.219844101 | AQ18: 4.093248778 | AR18: 3.970451315 | AS18: 3.851337775 | AT18: 3.735797642 | AU18: =AT18*0.97 -> 3.623723713 | AV18: 0 | AW18: 8 | AX18: =AW18*0.97 -> 7.76 | AY18: 7.5272 | AZ18: 7.301384 | BA18: =C$182 -> 0 | BB18: =D$182 -> 0 | BC18: 0 | BD18: 0 | BE18: 0 | BF18: 0 | BG18: 100 | BH18: 95 | BI18: 90.25 | BJ18: 85.7375 | BK18: 81.450625 | BL18: 77.37809375 | BM18: 73.50918906 | BN18: 69.83372961 | BO18: 67.73871772 | BP18: 65.70655619 | BQ18: 63.7353595 | BR18: 61.82329872 | BS18: 59.96859976 | BT18: 58.16954176 | BU18: 56.42445551 | BV18: 54.73172185 | BW18: 53.08977019 | BX18: 51.49707709 | BY18: 49.95216477 | BZ18: 48.45359983 | CA18: 46.99999183 | CB18: 45.58999208 | CC18: 44.22229232 | CD18: 42.89562355 | CE18: 41.60875484 | CF18: 40.3604922 | CG18: 0 | CH18: 0 | CI18: 0 | CJ18: 0 | CK18: 0 | CL18: 0 | CM18: 80 | CN18: 76 | CO18: 72.2 | CP18: 68.59 | CQ18: 65.1605 | CR18: 61.902475 | CS18: 58.80735125 | CT18: 55.86698369 | CU18: 54.19097418 | CV18: 52.56524495 | CW18: 50.9882876 | CX18: 49.45863897 | CY18: 47.97487981 | CZ18: 46.53563341 | DA18: 45.13956441 | DB18: 43.78537748 | DC18: 42.47181615 | DD18: 41.19766167 | DE18: 39.96173182 | DF18: 38.76287986 | DG18: 37.59999347 | DH18: 36.47199366 | DI18: 35.37783385 | DJ18: 34.31649884 | DK18: 33.28700387 | DL18: 32.28839376 | DM18: 0 | DN18: =BP$182 -> 0 | DO18: 0 | DP18: 0 | DQ18: 0 | DR18: 0 | DS18: 64 | DT18: 60.8 | DU18: 57.76 | DV18: 54.872 | DW18: 52.1284 | DX18: 49.52198 | DY18: 47.045881 | DZ18: 44.69358695 | EA18: 43.35277934 | EB18: 42.05219596 | EC18: 40.79063008 | ED18: 39.56691118 | EE18: 38.37990384 | EF18: 37.22850673 | EG18: 36.11165153 | EH18: 35.02830198 | EI18: 33.97745292 | EJ18: 32.95812933 | EK18: 31.96938545 | EL18: 31.01030389 | EM18: 30.07999477 | EN18: 29.17759493 | EO18: 28.30226708 | EP18: 27.45319907 | EQ18: 26.6296031 | ER18: 25.83071501 | ES18: 0 | ET18: 0 | EU18: 0 | EV18: 0 | EW18: 0 | EX18: 0 | EY18: 51.2 | EZ18: 48.64 | FA18: 46.208 | FB18: 43.8976 | FC18: 41.70272 | FD18: 39.617584 | FE18: 37.6367048 | FF18: 35.75486956 | FG18: 34.68222347 | FH18: 33.64175677 | FI18: 32.63250407 | FJ18: 31.65352894 | FK18: 30.70392308 | FL18: 29.78280538 | FM18: 28.88932122 | FN18: 28.02264159 | FO18: 27.18196234 | FP18: 26.36650347 | FQ18: 25.57550836 | FR18: 24.80824311 | FS18: 24.06399582 | FT18: 23.34207594 | FU18: 22.64181367 | FV18: 21.96255926 | FW18: 21.30368248 | FX18: 20.664572 | FY18: 0 | FZ18: =EB$182 -> 0 | GA18: 0 | GB18: 0 | GC18: 0 | GD18: 0 | GE18: 40.96 | GF18: 38.912 | GG18: 36.9664 | GH18: 35.11808 | GI18: 33.362176 | GJ18: 31.6940672 | GK18: 30.10936384 | GL18: 28.60389565 | GM18: 27.74577878 | GN18: 26.91340542 | GO18: 26.10600325 | GP18: 25.32282316 | GQ18: 24.56313846 | GR18: 23.82624431 | GS18: 23.11145698 | GT18: 22.41811327 | GU18: 21.74556987 | GV18: 21.09320277 | GW18: 20.46040669 | GX18: 19.84659449 | GY18: 19.25119666 | GZ18: 18.67366076 | HA18: 18.11345093 | HB18: 17.57004741 | HC18: 17.04294598 | HD18: 16.5316576 | HE18: 0 | HF18: 0 | HG18: 0 | HH18: 0 | HI18: 0 | HJ18: 0 | HK18: Put to Long Term Steam
A19: ". " | B19: Well 17 | C19: 2 | D19: 2 | E19: 2 | F19: 2 | G19: 2 | H19: 2 | I19: 2 | J19: 2 | K19: 2 | L19: 2 | M19: 2 | N19: 2 | O19: 2 | P19: 2 | Q19: 2 | R19: 2 | S19: 2 | T19: 2 | U19: 0 | V19: 8 | W19: =V19*0.97 -> 7.76 | X19: 7.5272 | Y19: 7.301384 | Z19: 7.08234248 | AA19: 6.869872206 | AB19: 6.663776039 | AC19: 6.463862758 | AD19: 6.269946876 | AE19: 6.081848469 | AF19: 5.899393015 | AG19: 5.722411225 | AH19: 5.550738888 | AI19: 5.384216721 | AJ19: 5.22269022 | AK19: 5.066009513 | AL19: 4.914029228 | AM19: 4.766608351 | AN19: 4.6236101 | AO19: 4.484901797 | AP19: 4.350354743 | AQ19: 4.219844101 | AR19: 4.093248778 | AS19: 3.970451315 | AT19: 3.851337775 | AU19: 3.735797642 | AV19: =AU19*0.97 -> 3.623723713 | AW19: 0 | AX19: 8 | AY19: =AX19*0.97 -> 7.76 | AZ19: 7.5272 | BA19: =C$182 -> 0 | BB19: 0 | BC19: 0 | BD19: 0 | BE19: 0 | BF19: 0 | BG19: 100 | BH19: 95 | BI19: 90.25 | BJ19: 85.7375 | BK19: 81.450625 | BL19: 77.37809375 | BM19: 73.50918906 | BN19: 69.83372961 | BO19: 67.73871772 | BP19: 65.70655619 | BQ19: 63.7353595 | BR19: 61.82329872 | BS19: 59.96859976 | BT19: 58.16954176 | BU19: 56.42445551 | BV19: 54.73172185 | BW19: 53.08977019 | BX19: 51.49707709 | BY19: 49.95216477 | BZ19: 48.45359983 | CA19: 46.99999183 | CB19: 45.58999208 | CC19: 44.22229232 | CD19: 42.89562355 | CE19: 41.60875484 | CF19: 40.3604922 | CG19: 0 | CH19: 0 | CI19: 0 | CJ19: 0 | CK19: 0 | CL19: 0 | CM19: 80 | CN19: 76 | CO19: 72.2 | CP19: 68.59 | CQ19: 65.1605 | CR19: 61.902475 | CS19: 58.80735125 | CT19: 55.86698369 | CU19: 54.19097418 | CV19: 52.56524495 | CW19: 50.9882876 | CX19: 49.45863897 | CY19: 47.97487981 | CZ19: 46.53563341 | DA19: 45.13956441 | DB19: 43.78537748 | DC19: 42.47181615 | DD19: 41.19766167 | DE19: 39.96173182 | DF19: 38.76287986 | DG19: 37.59999347 | DH19: 36.47199366 | DI19: 35.37783385 | DJ19: 34.31649884 | DK19: 33.28700387 | DL19: 32.28839376 | DM19: 0 | DN19: 0 | DO19: 0 | DP19: 0 | DQ19: 0 | DR19: 0 | DS19: 64 | DT19: 60.8 | DU19: 57.76 | DV19: 54.872 | DW19: 52.1284 | DX19: 49.52198 | DY19: 47.045881 | DZ19: 44.69358695 | EA19: 43.35277934 | EB19: 42.05219596 | EC19: 40.79063008 | ED19: 39.56691118 | EE19: 38.37990384 | EF19: 37.22850673 | EG19: 36.11165153 | EH19: 35.02830198 | EI19: 33.97745292 | EJ19: 32.95812933 | EK19: 31.96938545 | EL19: 31.01030389 | EM19: 30.07999477 | EN19: 29.17759493 | EO19: 28.30226708 | EP19: 27.45319907 | EQ19: 26.6296031 | ER19: 25.83071501 | ES19: 0 | ET19: 0 | EU19: 0 | EV19: 0 | EW19: 0 | EX19: 0 | EY19: 51.2 | EZ19: 48.64 | FA19: 46.208 | FB19: 43.8976 | FC19: 41.70272 | FD19: 39.617584 | FE19: 37.6367048 | FF19: 35.75486956 | FG19: 34.68222347 | FH19: 33.64175677 | FI19: 32.63250407 | FJ19: 31.65352894 | FK19: 30.70392308 | FL19: 29.78280538 | FM19: 28.88932122 | FN19: 28.02264159 | FO19: 27.18196234 | FP19: 26.36650347 | FQ19: 25.57550836 | FR19: 24.80824311 | FS19: 24.06399582 | FT19: 23.34207594 | FU19: 22.64181367 | FV19: 21.96255926 | FW19: 21.30368248 | FX19: 20.664572 | FY19: 0 | FZ19: 0 | GA19: 0 | GB19: 0 | GC19: 0 | GD19: 0 | GE19: 40.96 | GF19: 38.912 | GG19: 36.9664 | GH19: 35.11808 | GI19: 33.362176 | GJ19: 31.6940672 | GK19: 30.10936384 | GL19: 28.60389565 | GM19: 27.74577878 | GN19: 26.91340542 | GO19: 26.10600325 | GP19: 25.32282316 | GQ19: 24.56313846 | GR19: 23.82624431 | GS19: 23.11145698 | GT19: 22.41811327 | GU19: 21.74556987 | GV19: 21.09320277 | GW19: 20.46040669 | GX19: 19.84659449 | GY19: 19.25119666 | GZ19: 18.67366076 | HA19: 18.11345093 | HB19: 17.57004741 | HC19: 17.04294598 | HD19: 16.5316576 | HE19: 0 | HF19: 0 | HG19: 0 | HH19: 0 | HI19: 0 | HJ19: 0 | HK19: 40 | HL19: 42 | HM19: 44.1 | HN19: 46.305 | HO19: 48.62025 | HP19: 51.0512625 | HQ19: 53.60382563 | HR19: 56.28401691 | HS19: 59.09821775 | HT19: 62.05312864 | HU19: 65.15578507 | HV19: 68.41357432 | HW19: 71.83425304 | HX19: 75.42596569 | HY19: 79.19726398 | HZ19: 83.15712718 | IA19: 85 | IB19: 85 | IC19: 85 | ID19: 85 | IE19: 85 | IF19: 85 | IG19: 85 | IH19: 85 | II19: 85 | IJ19: 85 | IK19: 85 | IL19: =GN$182 -> 85 | IM19: 85 | IN19: 85 | IO19: 85 | IP19: 85 | IQ19: 85 | IR19: 85 | IS19: 85 | IT19: 85 | IU19: 85 | IV19: 85 | IW19: 85 | IX19: 85 | IY19: 85 | IZ19: 85 | JA19: 85 | JB19: 85
A20: ". " | B20: Well 18 | C20: 2 | D20: 2 | E20: 2 | F20: 2 | G20: 2 | H20: 2 | I20: 2 | J20: 2 | K20: 2 | L20: 2 | M20: 2 | N20: 2 | O20: 2 | P20: 2 | Q20: 2 | R20: 2 | S20: 2 | T20: 2 | U20: 2 | V20: 0 | W20: 8 | X20: =W20*0.97 -> 7.76 | Y20: 7.5272 | Z20: 7.301384 | AA20: 7.08234248 | AB20: 6.869872206 | AC20: 6.663776039 | AD20: 6.463862758 | AE20: 6.269946876 | AF20: 6.081848469 | AG20: 5.899393015 | AH20: 5.722411225 | AI20: 5.550738888 | AJ20: 5.384216721 | AK20: 5.22269022 | AL20: 5.066009513 | AM20: 4.914029228 | AN20: 4.766608351 | AO20: 4.6236101 | AP20: 4.484901797 | AQ20: 4.350354743 | AR20: 4.219844101 | AS20: 4.093248778 | AT20: 3.970451315 | AU20: 3.851337775 | AV20: 3.735797642 | AW20: =AV20*0.97 -> 3.623723713 | AX20: =C$182 -> 0 | AY20: 8 | AZ20: =AY20*0.97 -> 7.76 | BA20: =C$182 -> 0 | BB20: 0 | BC20: 0 | BD20: 0 | BE20: 0 | BF20: 0 | BG20: 100 | BH20: 95 | BI20: 90.25 | BJ20: 85.7375 | BK20: 81.450625 | BL20: 77.37809375 | BM20: 73.50918906 | BN20: 69.83372961 | BO20: 67.73871772 | BP20: 65.70655619 | BQ20: 63.7353595 | BR20: 61.82329872 | BS20: 59.96859976 | BT20: 58.16954176 | BU20: 56.42445551 | BV20: 54.73172185 | BW20: 53.08977019 | BX20: 51.49707709 | BY20: 49.95216477 | BZ20: 48.45359983 | CA20: 46.99999183 | CB20: 45.58999208 | CC20: 44.22229232 | CD20: 42.89562355 | CE20: 41.60875484 | CF20: 40.3604922 | CG20: 0 | CH20: 0 | CI20: 0 | CJ20: 0 | CK20: 0 | CL20: 0 | CM20: 80 | CN20: 76 | CO20: 72.2 | CP20: 68.59 | CQ20: 65.1605 | CR20: 61.902475 | CS20: 58.80735125 | CT20: 55.86698369 | CU20: 54.19097418 | CV20: 52.56524495 | CW20: 50.9882876 | CX20: 49.45863897 | CY20: 47.97487981 | CZ20: 46.53563341 | DA20: 45.13956441 | DB20: 43.78537748 | DC20: 42.47181615 | DD20: 41.19766167 | DE20: 39.96173182 | DF20: 38.76287986 | DG20: 37.59999347 | DH20: 36.47199366 | DI20: 35.37783385 | DJ20: 34.31649884 | DK20: 33.28700387 | DL20: 32.28839376 | DM20: 0 | DN20: 0 | DO20: 0 | DP20: 0 | DQ20: 0 | DR20: 0 | DS20: 64 | DT20: 60.8 | DU20: 57.76 | DV20: 54.872 | DW20: 52.1284 | DX20: 49.52198 | DY20: 47.045881 | DZ20: 44.69358695 | EA20: 43.35277934 | EB20: 42.05219596 | EC20: 40.79063008 | ED20: 39.56691118 | EE20: 38.37990384 | EF20: 37.22850673 | EG20: 36.11165153 | EH20: 35.02830198 | EI20: 33.97745292 | EJ20: 32.95812933 | EK20: 31.96938545 | EL20: 31.01030389 | EM20: 30.07999477 | EN20: 29.17759493 | EO20: 28.30226708 | EP20: 27.45319907 | EQ20: 26.6296031 | ER20: 25.83071501 | ES20: 0 | ET20: 0 | EU20: 0 | EV20: 0 | EW20: 0 | EX20: 0 | EY20: 51.2 | EZ20: 48.64 | FA20: 46.208 | FB20: 43.8976 | FC20: 41.70272 | FD20: 39.617584 | FE20: 37.6367048 | FF20: 35.75486956 | FG20: 34.68222347 | FH20: 33.64175677 | FI20: 32.63250407 | FJ20: 31.65352894 | FK20: 30.70392308 | FL20: 29.78280538 | FM20: 28.88932122 | FN20: 28.02264159 | FO20: 27.18196234 | FP20: 26.36650347 | FQ20: 25.57550836 | FR20: 24.80824311 | FS20: 24.06399582 | FT20: 23.34207594 | FU20: 22.64181367 | FV20: 21.96255926 | FW20: 21.30368248 | FX20: 20.664572 | FY20: 0 | FZ20: 0 | GA20: 0 | GB20: 0 | GC20: 0 | GD20: 0 | GE20: 40.96 | GF20: 38.912 | GG20: 36.9664 | GH20: 35.11808 | GI20: 33.362176 | GJ20: 31.6940672 | GK20: 30.10936384 | GL20: 28.60389565 | GM20: 27.74577878 | GN20: 26.91340542 | GO20: 26.10600325 | GP20: 25.32282316 | GQ20: 24.56313846 | GR20: 23.82624431 | GS20: 23.11145698 | GT20: 22.41811327 | GU20: 21.74556987 | GV20: 21.09320277 | GW20: 20.46040669 | GX20: 19.84659449 | GY20: 19.25119666 | GZ20: 18.67366076 | HA20: 18.11345093 | HB20: 17.57004741 | HC20: 17.04294598 | HD20: 16.5316576 | HE20: 0 | HF20: 0 | HG20: 0 | HH20: 0 | HI20: 0 | HJ20: 0 | HK20: 40 | HL20: 42 | HM20: 44.1 | HN20: 46.305 | HO20: 48.62025 | HP20: 51.0512625 | HQ20: 53.60382563 | HR20: 56.28401691 | HS20: 59.09821775 | HT20: 62.05312864 | HU20: 65.15578507 | HV20: 68.41357432 | HW20: 71.83425304 | HX20: 75.42596569 | HY20: 79.19726398 | HZ20: 83.15712718 | IA20: 85 | IB20: 85 | IC20: 85 | ID20: 85 | IE20: 85 | IF20: 85 | IG20: 85 | IH20: 85 | II20: 85 | IJ20: 85 | IK20: 85 | IL20: 85 | IM20: 85 | IN20: 85 | IO20: 85 | IP20: 85 | IQ20: 85 | IR20: 85 | IS20: 85 | IT20: 85 | IU20: 85 | IV20: 85 | IW20: 85 | IX20: 85 | IY20: 85 | IZ20: 85 | JA20: 85 | JB20: 85
A21: ". " | B21: Well 19 | C21: 2 | D21: 2 | E21: 2 | F21: 2 | G21: 2 | H21: 2 | I21: 2 | J21: 2 | K21: 2 | L21: 2 | M21: 2 | N21: 2 | O21: 2 | P21: 2 | Q21: 2 | R21: 2 | S21: 2 | T21: 2 | U21: 2 | V21: 2 | W21: 0 | X21: 8 | Y21: =X21*0.97 -> 7.76 | Z21: 7.5272 | AA21: 7.301384 | AB21: 7.08234248 | AC21: 6.869872206 | AD21: 6.663776039 | AE21: 6.463862758 | AF21: 6.269946876 | AG21: 6.081848469 | AH21: 5.899393015 | AI21: 5.722411225 | AJ21: 5.550738888 | AK21: 5.384216721 | AL21: 5.22269022 | AM21: 5.066009513 | AN21: 4.914029228 | AO21: 4.766608351 | AP21: 4.6236101 | AQ21: 4.484901797 | AR21: 4.350354743 | AS21: 4.219844101 | AT21: 4.093248778 | AU21: 3.970451315 | AV21: 3.851337775 | AW21: 3.735797642 | AX21: =AW21*0.97 -> 3.623723713 | AY21: 0 | AZ21: 8 | BA21: =C$182 -> 0 | BB21: 0 | BC21: 0 | BD21: 0 | BE21: 0 | BF21: 0 | BG21: 100 | BH21: 95 | BI21: 90.25 | BJ21: 85.7375 | BK21: 81.450625 | BL21: 77.37809375 | BM21: 73.50918906 | BN21: 69.83372961 | BO21: 67.73871772 | BP21: 65.70655619 | BQ21: 63.7353595 | BR21: 61.82329872 | BS21: 59.96859976 | BT21: 58.16954176 | BU21: 56.42445551 | BV21: 54.73172185 | BW21: 53.08977019 | BX21: 51.49707709 | BY21: 49.95216477 | BZ21: 48.45359983 | CA21: 46.99999183 | CB21: 45.58999208 | CC21: 44.22229232 | CD21: 42.89562355 | CE21: 41.60875484 | CF21: 40.3604922 | CG21: 0 | CH21: 0 | CI21: 0 | CJ21: 0 | CK21: 0 | CL21: 0 | CM21: 80 | CN21: 76 | CO21: 72.2 | CP21: 68.59 | CQ21: 65.1605 | CR21: 61.902475 | CS21: 58.80735125 | CT21: 55.86698369 | CU21: 54.19097418 | CV21: 52.56524495 | CW21: 50.9882876 | CX21: 49.45863897 | CY21: 47.97487981 | CZ21: 46.53563341 | DA21: 45.13956441 | DB21: 43.78537748 | DC21: 42.47181615 | DD21: 41.19766167 | DE21: 39.96173182 | DF21: 38.76287986 | DG21: 37.59999347 | DH21: 36.47199366 | DI21: 35.37783385 | DJ21: 34.31649884 | DK21: 33.28700387 | DL21: 32.28839376 | DM21: =BO$182 -> 0 | DN21: 0 | DO21: 0 | DP21: 0 | DQ21: 0 | DR21: 0 | DS21: 64 | DT21: 60.8 | DU21: 57.76 | DV21: 54.872 | DW21: 52.1284 | DX21: 49.52198 | DY21: 47.045881 | DZ21: 44.69358695 | EA21: 43.35277934 | EB21: 42.05219596 | EC21: 40.79063008 | ED21: 39.56691118 | EE21: 38.37990384 | EF21: 37.22850673 | EG21: 36.11165153 | EH21: 35.02830198 | EI21: 33.97745292 | EJ21: 32.95812933 | EK21: 31.96938545 | EL21: 31.01030389 | EM21: 30.07999477 | EN21: 29.17759493 | EO21: 28.30226708 | EP21: 27.45319907 | EQ21: 26.6296031 | ER21: 25.83071501 | ES21: 0 | ET21: 0 | EU21: 0 | EV21: 0 | EW21: 0 | EX21: 0 | EY21: 51.2 | EZ21: 48.64 | FA21: 46.208 | FB21: 43.8976 | FC21: 41.70272 | FD21: 39.617584 | FE21: 37.6367048 | FF21: 35.75486956 | FG21: 34.68222347 | FH21: 33.64175677 | FI21: 32.63250407 | FJ21: 31.65352894 | FK21: 30.70392308 | FL21: 29.78280538 | FM21: 28.88932122 | FN21: 28.02264159 | FO21: 27.18196234 | FP21: 26.36650347 | FQ21: 25.57550836 | FR21: 24.80824311 | FS21: 24.06399582 | FT21: 23.34207594 | FU21: 22.64181367 | FV21: 21.96255926 | FW21: 21.30368248 | FX21: 20.664572 | FY21: =EA$182 -> 0 | FZ21: 0 | GA21: 0 | GB21: 0 | GC21: 0 | GD21: 0 | GE21: 40.96 | GF21: 38.912 | GG21: 36.9664 | GH21: 35.11808 | GI21: 33.362176 | GJ21: 31.6940672 | GK21: 30.10936384 | GL21: 28.60389565 | GM21: 27.74577878 | GN21: 26.91340542 | GO21: 26.10600325 | GP21: 25.32282316 | GQ21: 24.56313846 | GR21: 23.82624431 | GS21: 23.11145698 | GT21: 22.41811327 | GU21: 21.74556987 | GV21: 21.09320277 | GW21: 20.46040669 | GX21: 19.84659449 | GY21: 19.25119666 | GZ21: 18.67366076 | HA21: 18.11345093 | HB21: 17.57004741 | HC21: 17.04294598 | HD21: 16.5316576 | HE21: 0 | HF21: 0 | HG21: 0 | HH21: 0 | HI21: 0 | HJ21: 0 | HK21: 40 | HL21: 42 | HM21: 44.1 | HN21: 46.305 | HO21: 48.62025 | HP21: 51.0512625 | HQ21: 53.60382563 | HR21: 56.28401691 | HS21: 59.09821775 | HT21: 62.05312864 | HU21: 65.15578507 | HV21: 68.41357432 | HW21: 71.83425304 | HX21: 75.42596569 | HY21: 79.19726398 | HZ21: 83.15712718 | IA21: 85 | IB21: 85 | IC21: 85 | ID21: 85 | IE21: 85 | IF21: 85 | IG21: 85 | IH21: 85 | II21: 85 | IJ21: 85 | IK21: =GM$182 -> 85 | IL21: 85 | IM21: 85 | IN21: 85 | IO21: 85 | IP21: 85 | IQ21: 85 | IR21: 85 | IS21: 85 | IT21: 85 | IU21: 85 | IV21: 85 | IW21: 85 | IX21: 85 | IY21: 85 | IZ21: 85 | JA21: 85 | JB21: 85
A22: ". " | B22: Well 20 | C22: 2 | D22: 2 | E22: 2 | F22: 2 | G22: 2 | H22: 2 | I22: 2 | J22: 2 | K22: 2 | L22: 2 | M22: 2 | N22: 2 | O22: 2 | P22: 2 | Q22: 2 | R22: 2 | S22: 2 | T22: 2 | U22: 2 | V22: 2 | W22: 2 | X22: 0 | Y22: 8 | Z22: =Y22*0.97 -> 7.76 | AA22: 7.5272 | AB22: 7.301384 | AC22: 7.08234248 | AD22: 6.869872206 | AE22: 6.663776039 | AF22: 6.463862758 | AG22: 6.269946876 | AH22: 6.081848469 | AI22: 5.899393015 | AJ22: 5.722411225 | AK22: 5.550738888 | AL22: 5.384216721 | AM22: 5.22269022 | AN22: 5.066009513 | AO22: 4.914029228 | AP22: 4.766608351 | AQ22: 4.6236101 | AR22: 4.484901797 | AS22: 4.350354743 | AT22: 4.219844101 | AU22: 4.093248778 | AV22: 3.970451315 | AW22: 3.851337775 | AX22: 3.735797642 | AY22: =AX22*0.97 -> 3.623723713 | AZ22: 0 | BA22: =C$182 -> 0 | BB22: =D$182 -> 0 | BC22: 0 | BD22: 0 | BE22: 0 | BF22: 0 | BG22: 100 | BH22: 95 | BI22: 90.25 | BJ22: 85.7375 | BK22: 81.450625 | BL22: 77.37809375 | BM22: 73.50918906 | BN22: 69.83372961 | BO22: 67.73871772 | BP22: 65.70655619 | BQ22: 63.7353595 | BR22: 61.82329872 | BS22: 59.96859976 | BT22: 58.16954176 | BU22: 56.42445551 | BV22: 54.73172185 | BW22: 53.08977019 | BX22: 51.49707709 | BY22: 49.95216477 | BZ22: 48.45359983 | CA22: 46.99999183 | CB22: 45.58999208 | CC22: 44.22229232 | CD22: 42.89562355 | CE22: 41.60875484 | CF22: 40.3604922 | CG22: 0 | CH22: 0 | CI22: 0 | CJ22: 0 | CK22: 0 | CL22: 0 | CM22: 80 | CN22: 76 | CO22: 72.2 | CP22: 68.59 | CQ22: 65.1605 | CR22: 61.902475 | CS22: 58.80735125 | CT22: 55.86698369 | CU22: 54.19097418 | CV22: 52.56524495 | CW22: 50.9882876 | CX22: 49.45863897 | CY22: 47.97487981 | CZ22: 46.53563341 | DA22: 45.13956441 | DB22: 43.78537748 | DC22: 42.47181615 | DD22: 41.19766167 | DE22: 39.96173182 | DF22: 38.76287986 | DG22: 37.59999347 | DH22: 36.47199366 | DI22: 35.37783385 | DJ22: 34.31649884 | DK22: 33.28700387 | DL22: 32.28839376 | DM22: 0 | DN22: =BP$182 -> 0 | DO22: 0 | DP22: 0 | DQ22: 0 | DR22: 0 | DS22: 64 | DT22: 60.8 | DU22: 57.76 | DV22: 54.872 | DW22: 52.1284 | DX22: 49.52198 | DY22: 47.045881 | DZ22: 44.69358695 | EA22: 43.35277934 | EB22: 42.05219596 | EC22: 40.79063008 | ED22: 39.56691118 | EE22: 38.37990384 | EF22: 37.22850673 | EG22: 36.11165153 | EH22: 35.02830198 | EI22: 33.97745292 | EJ22: 32.95812933 | EK22: 31.96938545 | EL22: 31.01030389 | EM22: 30.07999477 | EN22: 29.17759493 | EO22: 28.30226708 | EP22: 27.45319907 | EQ22: 26.6296031 | ER22: 25.83071501 | ES22: 0 | ET22: 0 | EU22: 0 | EV22: 0 | EW22: 0 | EX22: 0 | EY22: 51.2 | EZ22: 48.64 | FA22: 46.208 | FB22: 43.8976 | FC22: 41.70272 | FD22: 39.617584 | FE22: 37.6367048 | FF22: 35.75486956 | FG22: 34.68222347 | FH22: 33.64175677 | FI22: 32.63250407 | FJ22: 31.65352894 | FK22: 30.70392308 | FL22: 29.78280538 | FM22: 28.88932122 | FN22: 28.02264159 | FO22: 27.18196234 | FP22: 26.36650347 | FQ22: 25.57550836 | FR22: 24.80824311 | FS22: 24.06399582 | FT22: 23.34207594 | FU22: 22.64181367 | FV22: 21.96255926 | FW22: 21.30368248 | FX22: 20.664572 | FY22: 0 | FZ22: =EB$182 -> 0 | GA22: 0 | GB22: 0 | GC22: 0 | GD22: 0 | GE22: 40.96 | GF22: 38.912 | GG22: 36.9664 | GH22: 35.11808 | GI22: 33.362176 | GJ22: 31.6940672 | GK22: 30.10936384 | GL22: 28.60389565 | GM22: 27.74577878 | GN22: 26.91340542 | GO22: 26.10600325 | GP22: 25.32282316 | GQ22: 24.56313846 | GR22: 23.82624431 | GS22: 23.11145698 | GT22: 22.41811327 | GU22: 21.74556987 | GV22: 21.09320277 | GW22: 20.46040669 | GX22: 19.84659449 | GY22: 19.25119666 | GZ22: 18.67366076 | HA22: 18.11345093 | HB22: 17.57004741 | HC22: 17.04294598 | HD22: 16.5316576 | HE22: 0 | HF22: 0 | HG22: 0 | HH22: 0 | HI22: 0 | HJ22: 0 | HK22: 40 | HL22: 42 | HM22: 44.1 | HN22: 46.305 | HO22: 48.62025 | HP22: 51.0512625 | HQ22: 53.60382563 | HR22: 56.28401691 | HS22: 59.09821775 | HT22: 62.05312864 | HU22: 65.15578507 | HV22: 68.41357432 | HW22: 71.83425304 | HX22: 75.42596569 | HY22: 79.19726398 | HZ22: 83.15712718 | IA22: 85 | IB22: 85 | IC22: 85 | ID22: 85 | IE22: 85 | IF22: 85 | IG22: 85 | IH22: 85 | II22: 85 | IJ22: 85 | IK22: 85 | IL22: 85 | IM22: 85 | IN22: 85 | IO22: 85 | IP22: 85 | IQ22: 85 | IR22: 85 | IS22: 85 | IT22: 85 | IU22: 85 | IV22: 85 | IW22: 85 | IX22: 85 | IY22: 85 | IZ22: 85 | JA22: 85 | JB22: 85
A23: ". " | B23: Well 21 | C23: 2 | D23: 2 | E23: 2 | F23: 2 | G23: 2 | H23: 2 | I23: 2 | J23: 2 | K23: 2 | L23: 2 | M23: 2 | N23: 2 | O23: 2 | P23: 2 | Q23: 2 | R23: 2 | S23: 2 | T23: 2 | U23: 2 | V23: 2 | W23: 2 | X23: 2 | Y23: 0 | Z23: 8 | AA23: =Z23*0.97 -> 7.76 | AB23: 7.5272 | AC23: 7.301384 | AD23: 7.08234248 | AE23: 6.869872206 | AF23: 6.663776039 | AG23: 6.463862758 | AH23: 6.269946876 | AI23: 6.081848469 | AJ23: 5.899393015 | AK23: 5.722411225 | AL23: 5.550738888 | AM23: 5.384216721 | AN23: 5.22269022 | AO23: 5.066009513 | AP23: 4.914029228 | AQ23: 4.766608351 | AR23: 4.6236101 | AS23: 4.484901797 | AT23: 4.350354743 | AU23: 4.219844101 | AV23: 4.093248778 | AW23: 3.970451315 | AX23: =C$182 -> 0 | AY23: =D$182 -> 0 | AZ23: =E$182 -> 0 | BA23: =F$182 -> 0 | BB23: =G$182 -> 0 | BC23: =H$182 -> 0 | BD23: =I$182 -> 100 | BE23: =J$182 -> 95 | BF23: =K$182 -> 90.25 | BG23: =L$182 -> 85.7375 | BH23: =M$182 -> 81.450625 | BI23: =N$182 -> 77.37809375 | BJ23: =O$182 -> 73.50918906 | BK23: =P$182 -> 69.83372961 | BL23: =Q$182 -> 67.73871772 | BM23: =R$182 -> 65.70655619 | BN23: =S$182 -> 63.7353595 | BO23: =T$182 -> 61.82329872 | BP23: =U$182 -> 59.96859976 | BQ23: =V$182 -> 58.16954176 | BR23: =W$182 -> 56.42445551 | BS23: =X$182 -> 54.73172185 | BT23: =Y$182 -> 53.08977019 | BU23: =Z$182 -> 51.49707709 | BV23: =AA$182 -> 49.95216477 | BW23: =AB$182 -> 48.45359983 | BX23: =AC$182 -> 46.99999183 | BY23: =AD$182 -> 45.58999208 | BZ23: =AE$182 -> 44.22229232 | CA23: =AF$182 -> 42.89562355 | CB23: =AG$182 -> 41.60875484 | CC23: =AH$182 -> 40.3604922 | CD23: =AI$182 -> 0 | CE23: =AJ$182 -> 0 | CF23: =AK$182 -> 0 | CG23: =AL$182 -> 0 | CH23: =AM$182 -> 0 | CI23: =AN$182 -> 0 | CJ23: =AO$182 -> 80 | CK23: =AP$182 -> 76 | CL23: =AQ$182 -> 72.2 | CM23: =AR$182 -> 68.59 | CN23: =AS$182 -> 65.1605 | CO23: =AT$182 -> 61.902475 | CP23: =AU$182 -> 58.80735125 | CQ23: =AV$182 -> 55.86698369 | CR23: =AW$182 -> 54.19097418 | CS23: =AX$182 -> 52.56524495 | CT23: =AY$182 -> 50.9882876 | CU23: =AZ$182 -> 49.45863897 | CV23: =BA$182 -> 47.97487981 | CW23: =BB$182 -> 46.53563341 | CX23: =BC$182 -> 45.13956441 | CY23: =BD$182 -> 43.78537748 | CZ23: =BE$182 -> 42.47181615 | DA23: =BF$182 -> 41.19766167 | DB23: =BG$182 -> 39.96173182 | DC23: =BH$182 -> 38.76287986 | DD23: =BI$182 -> 37.59999347 | DE23: =BJ$182 -> 36.47199366 | DF23: =BK$182 -> 35.37783385 | DG23: =BL$182 -> 34.31649884 | DH23: =BM$182 -> 33.28700387 | DI23: =BN$182 -> 32.28839376 | DJ23: =BO$182 -> 0 | DK23: =BP$182 -> 0 | DL23: =BQ$182 -> 0 | DM23: =BR$182 -> 0 | DN23: =BS$182 -> 0 | DO23: =BT$182 -> 0 | DP23: =BU$182 -> 64 | DQ23: =BV$182 -> 60.8 | DR23: =BW$182 -> 57.76 | DS23: =BX$182 -> 54.872 | DT23: =BY$182 -> 52.1284 | DU23: =BZ$182 -> 49.52198 | DV23: =CA$182 -> 47.045881 | DW23: =CB$182 -> 44.69358695 | DX23: =CC$182 -> 43.35277934 | DY23: =CD$182 -> 42.05219596 | DZ23: =CE$182 -> 40.79063008 | EA23: =CF$182 -> 39.56691118 | EB23: =CG$182 -> 38.37990384 | EC23: =CH$182 -> 37.22850673 | ED23: =CI$182 -> 36.11165153 | EE23: =CJ$182 -> 35.02830198 | EF23: =CK$182 -> 33.97745292 | EG23: =CL$182 -> 32.95812933 | EH23: =CM$182 -> 31.96938545 | EI23: =CN$182 -> 31.01030389 | EJ23: =CO$182 -> 30.07999477 | EK23: =CP$182 -> 29.17759493 | EL23: =CQ$182 -> 28.30226708 | EM23: =CR$182 -> 27.45319907 | EN23: =CS$182 -> 26.6296031 | EO23: =CT$182 -> 25.83071501 | EP23: =CU$182 -> 0 | EQ23: =CV$182 -> 0 | ER23: =CW$182 -> 0 | ES23: =CX$182 -> 0 | ET23: =CY$182 -> 0 | EU23: =CZ$182 -> 0 | EV23: =DA$182 -> 51.2 | EW23: =DB$182 -> 48.64 | EX23: =DC$182 -> 46.208 | EY23: =DD$182 -> 43.8976 | EZ23: =DE$182 -> 41.70272 | FA23: =DF$182 -> 39.617584 | FB23: =DG$182 -> 37.6367048 | FC23: =DH$182 -> 35.75486956 | FD23: =DI$182 -> 34.68222347 | FE23: =DJ$182 -> 33.64175677 | FF23: =DK$182 -> 32.63250407 | FG23: =DL$182 -> 31.65352894 | FH23: =DM$182 -> 30.70392308 | FI23: =DN$182 -> 29.78280538 | FJ23: =DO$182 -> 28.88932122 | FK23: =DP$182 -> 28.02264159 | FL23: =DQ$182 -> 27.18196234 | FM23: =DR$182 -> 26.36650347 | FN23: =DS$182 -> 25.57550836 | FO23: =DT$182 -> 24.80824311 | FP23: =DU$182 -> 24.06399582 | FQ23: =DV$182 -> 23.34207594 | FR23: =DW$182 -> 22.64181367 | FS23: =DX$182 -> 21.96255926 | FT23: =DY$182 -> 21.30368248 | FU23: =DZ$182 -> 20.664572 | FV23: =EA$182 -> 0 | FW23: =EB$182 -> 0 | FX23: =EC$182 -> 0 | FY23: =ED$182 -> 0 | FZ23: =EE$182 -> 0 | GA23: =EF$182 -> 0 | GB23: =EG$182 -> 40.96 | GC23: =EH$182 -> 38.912 | GD23: =EI$182 -> 36.9664 | GE23: =EJ$182 -> 35.11808 | GF23: =EK$182 -> 33.362176 | GG23: =EL$182 -> 31.6940672 | GH23: =EM$182 -> 30.10936384 | GI23: =EN$182 -> 28.60389565 | GJ23: =EO$182 -> 27.74577878 | GK23: =EP$182 -> 26.91340542 | GL23: =EQ$182 -> 26.10600325 | GM23: =ER$182 -> 25.32282316 | GN23: =ES$182 -> 24.56313846 | GO23: =ET$182 -> 23.82624431 | GP23: =EU$182 -> 23.11145698 | GQ23: =EV$182 -> 22.41811327 | GR23: =EW$182 -> 21.74556987 | GS23: =EX$182 -> 21.09320277 | GT23: =EY$182 -> 20.46040669 | GU23: =EZ$182 -> 19.84659449 | GV23: =FA$182 -> 19.25119666 | GW23: =FB$182 -> 18.67366076 | GX23: =FC$182 -> 18.11345093 | GY23: =FD$182 -> 17.57004741 | GZ23: =FE$182 -> 17.04294598 | HA23: =FF$182 -> 16.5316576 | HB23: =FG$182 -> 0 | HC23: =FH$182 -> 0 | HD23: =FI$182 -> 0 | HE23: =FJ$182 -> 0 | HF23: =FK$182 -> 0 | HG23: =FL$182 -> 0 | HH23: Put to Long Term Steam
A24: ". " | B24: Well 22 | C24: 2 | D24: 2 | E24: 2 | F24: 2 | G24: 2 | H24: 2 | I24: 2 | J24: 2 | K24: 2 | L24: 2 | M24: 2 | N24: 2 | O24: 2 | P24: 2 | Q24: 2 | R24: 2 | S24: 2 | T24: 2 | U24: 2 | V24: 2 | W24: 2 | X24: 2 | Y24: 2 | Z24: 0 | AA24: 8 | AB24: =AA24*0.97 -> 7.76 | AC24: 7.5272 | AD24: 7.301384 | AE24: 7.08234248 | AF24: 6.869872206 | AG24: 6.663776039 | AH24: 6.463862758 | AI24: 6.269946876 | AJ24: 6.081848469 | AK24: 5.899393015 | AL24: 5.722411225 | AM24: 5.550738888 | AN24: 5.384216721 | AO24: 5.22269022 | AP24: 5.066009513 | AQ24: 4.914029228 | AR24: 4.766608351 | AS24: 4.6236101 | AT24: 4.484901797 | AU24: 4.350354743 | AV24: 4.219844101 | AW24: 4.093248778 | AX24: 0 | AY24: 0 | AZ24: 0 | BA24: 0 | BB24: 0 | BC24: 0 | BD24: 100 | BE24: 95 | BF24: 90.25 | BG24: 85.7375 | BH24: 81.450625 | BI24: 77.37809375 | BJ24: 73.50918906 | BK24: 69.83372961 | BL24: 67.73871772 | BM24: 65.70655619 | BN24: 63.7353595 | BO24: 61.82329872 | BP24: 59.96859976 | BQ24: 58.16954176 | BR24: 56.42445551 | BS24: 54.73172185 | BT24: 53.08977019 | BU24: 51.49707709 | BV24: 49.95216477 | BW24: 48.45359983 | BX24: 46.99999183 | BY24: 45.58999208 | BZ24: 44.22229232 | CA24: 42.89562355 | CB24: 41.60875484 | CC24: 40.3604922 | CD24: 0 | CE24: 0 | CF24: 0 | CG24: 0 | CH24: 0 | CI24: 0 | CJ24: 80 | CK24: 76 | CL24: 72.2 | CM24: 68.59 | CN24: 65.1605 | CO24: 61.902475 | CP24: 58.80735125 | CQ24: 55.86698369 | CR24: 54.19097418 | CS24: 52.56524495 | CT24: 50.9882876 | CU24: 49.45863897 | CV24: 47.97487981 | CW24: 46.53563341 | CX24: 45.13956441 | CY24: 43.78537748 | CZ24: 42.47181615 | DA24: 41.19766167 | DB24: 39.96173182 | DC24: 38.76287986 | DD24: 37.59999347 | DE24: 36.47199366 | DF24: 35.37783385 | DG24: 34.31649884 | DH24: 33.28700387 | DI24: 32.28839376 | DJ24: 0 | DK24: 0 | DL24: 0 | DM24: 0 | DN24: 0 | DO24: 0 | DP24: 64 | DQ24: 60.8 | DR24: 57.76 | DS24: 54.872 | DT24: 52.1284 | DU24: 49.52198 | DV24: 47.045881 | DW24: 44.69358695 | DX24: 43.35277934 | DY24: 42.05219596 | DZ24: 40.79063008 | EA24: 39.56691118 | EB24: 38.37990384 | EC24: 37.22850673 | ED24: 36.11165153 | EE24: 35.02830198 | EF24: 33.97745292 | EG24: 32.95812933 | EH24: 31.96938545 | EI24: 31.01030389 | EJ24: 30.07999477 | EK24: 29.17759493 | EL24: 28.30226708 | EM24: 27.45319907 | EN24: 26.6296031 | EO24: 25.83071501 | EP24: 0 | EQ24: 0 | ER24: 0 | ES24: 0 | ET24: 0 | EU24: 0 | EV24: 51.2 | EW24: 48.64 | EX24: 46.208 | EY24: 43.8976 | EZ24: 41.70272 | FA24: 39.617584 | FB24: 37.6367048 | FC24: 35.75486956 | FD24: 34.68222347 | FE24: 33.64175677 | FF24: 32.63250407 | FG24: 31.65352894 | FH24: 30.70392308 | FI24: 29.78280538 | FJ24: 28.88932122 | FK24: 28.02264159 | FL24: 27.18196234 | FM24: 26.36650347 | FN24: 25.57550836 | FO24: 24.80824311 | FP24: 24.06399582 | FQ24: 23.34207594 | FR24: 22.64181367 | FS24: 21.96255926 | FT24: 21.30368248 | FU24: 20.664572 | FV24: 0 | FW24: 0 | FX24: 0 | FY24: 0 | FZ24: 0 | GA24: 0 | GB24: 40.96 | GC24: 38.912 | GD24: 36.9664 | GE24: 35.11808 | GF24: 33.362176 | GG24: 31.6940672 | GH24: 30.10936384 | GI24: 28.60389565 | GJ24: 27.74577878 | GK24: 26.91340542 | GL24: 26.10600325 | GM24: 25.32282316 | GN24: 24.56313846 | GO24: 23.82624431 | GP24: 23.11145698 | GQ24: 22.41811327 | GR24: 21.74556987 | GS24: 21.09320277 | GT24: 20.46040669 | GU24: 19.84659449 | GV24: 19.25119666 | GW24: 18.67366076 | GX24: 18.11345093 | GY24: 17.57004741 | GZ24: 17.04294598 | HA24: 16.5316576 | HB24: 0 | HC24: 0 | HD24: 0 | HE24: 0 | HF24: 0 | HG24: 0 | HH24: =FM$182 -> 40 | HI24: =FN$182 -> 42 | HJ24: =FO$182 -> 44.1 | HK24: =FP$182 -> 46.305 | HL24: =FQ$182 -> 48.62025 | HM24: =FR$182 -> 51.0512625 | HN24: =FS$182 -> 53.60382563 | HO24: =FT$182 -> 56.28401691 | HP24: =FU$182 -> 59.09821775 | HQ24: =FV$182 -> 62.05312864 | HR24: =FW$182 -> 65.15578507 | HS24: =FX$182 -> 68.41357432 | HT24: =FY$182 -> 71.83425304 | HU24: =FZ$182 -> 75.42596569 | HV24: =GA$182 -> 79.19726398 | HW24: =GB$182 -> 83.15712718 | HX24: =GC$182 -> 85 | HY24: =GD$182 -> 85 | HZ24: =GE$182 -> 85 | IA24: =GF$182 -> 85 | IB24: =GG$182 -> 85 | IC24: =GH$182 -> 85 | ID24: =GI$182 -> 85 | IE24: =GJ$182 -> 85 | IF24: =GK$182 -> 85 | IG24: =GL$182 -> 85 | IH24: =GM$182 -> 85 | II24: =GN$182 -> 85 | IJ24: =GO$182 -> 85 | IK24: =GP$182 -> 85 | IL24: =GQ$182 -> 85 | IM24: =GR$182 -> 85 | IN24: =GS$182 -> 85 | IO24: =GT$182 -> 85 | IP24: =GU$182 -> 85 | IQ24: =GV$182 -> 85 | IR24: =GW$182 -> 85 | IS24: =GX$182 -> 85 | IT24: =GY$182 -> 85 | IU24: =GZ$182 -> 85 | IV24: =HA$182 -> 85 | IW24: =HB$182 -> 85 | IX24: =HC$182 -> 85 | IY24: =HD$182 -> 85 | IZ24: =HE$182 -> 85 | JA24: =HF$182 -> 85 | JB24: =HG$182 -> 85
A25: ". " | B25: Well 23 | C25: 2 | D25: 2 | E25: 2 | F25: 2 | G25: 2 | H25: 2 | I25: 2 | J25: 2 | K25: 2 | L25: 2 | M25: 2 | N25: 2 | O25: 2 | P25: 2 | Q25: 2 | R25: 2 | S25: 2 | T25: 2 | U25: 2 | V25: 2 | W25: 2 | X25: 2 | Y25: 2 | Z25: 2 | AA25: 0 | AB25: 8 | AC25: =AB25*0.97 -> 7.76 | AD25: 7.5272 | AE25: 7.301384 | AF25: 7.08234248 | AG25: 6.869872206 | AH25: 6.663776039 | AI25: 6.463862758 | AJ25: 6.269946876 | AK25: 6.081848469 | AL25: 5.899393015 | AM25: 5.722411225 | AN25: 5.550738888 | AO25: 5.384216721 | AP25: 5.22269022 | AQ25: 5.066009513 | AR25: 4.914029228 | AS25: 4.766608351 | AT25: 4.6236101 | AU25: 4.484901797 | AV25: 4.350354743 | AW25: 4.219844101 | AX25: 0 | AY25: 0 | AZ25: 0 | BA25: 0 | BB25: 0 | BC25: 0 | BD25: 100 | BE25: 95 | BF25: 90.25 | BG25: 85.7375 | BH25: 81.450625 | BI25: 77.37809375 | BJ25: 73.50918906 | BK25: 69.83372961 | BL25: 67.73871772 | BM25: 65.70655619 | BN25: 63.7353595 | BO25: 61.82329872 | BP25: 59.96859976 | BQ25: 58.16954176 | BR25: 56.42445551 | BS25: 54.73172185 | BT25: 53.08977019 | BU25: 51.49707709 | BV25: 49.95216477 | BW25: 48.45359983 | BX25: 46.99999183 | BY25: 45.58999208 | BZ25: 44.22229232 | CA25: 42.89562355 | CB25: 41.60875484 | CC25: 40.3604922 | CD25: 0 | CE25: 0 | CF25: 0 | CG25: 0 | CH25: 0 | CI25: 0 | CJ25: 80 | CK25: 76 | CL25: 72.2 | CM25: 68.59 | CN25: 65.1605 | CO25: 61.902475 | CP25: 58.80735125 | CQ25: 55.86698369 | CR25: 54.19097418 | CS25: 52.56524495 | CT25: 50.9882876 | CU25: 49.45863897 | CV25: 47.97487981 | CW25: 46.53563341 | CX25: 45.13956441 | CY25: 43.78537748 | CZ25: 42.47181615 | DA25: 41.19766167 | DB25: 39.96173182 | DC25: 38.76287986 | DD25: 37.59999347 | DE25: 36.47199366 | DF25: 35.37783385 | DG25: 34.31649884 | DH25: 33.28700387 | DI25: 32.28839376 | DJ25: 0 | DK25: 0 | DL25: 0 | DM25: 0 | DN25: 0 | DO25: 0 | DP25: 64 | DQ25: 60.8 | DR25: 57.76 | DS25: 54.872 | DT25: 52.1284 | DU25: 49.52198 | DV25: 47.045881 | DW25: 44.69358695 | DX25: 43.35277934 | DY25: 42.05219596 | DZ25: 40.79063008 | EA25: 39.56691118 | EB25: 38.37990384 | EC25: 37.22850673 | ED25: 36.11165153 | EE25: 35.02830198 | EF25: 33.97745292 | EG25: 32.95812933 | EH25: 31.96938545 | EI25: 31.01030389 | EJ25: 30.07999477 | EK25: 29.17759493 | EL25: 28.30226708 | EM25: 27.45319907 | EN25: 26.6296031 | EO25: 25.83071501 | EP25: 0 | EQ25: 0 | ER25: 0 | ES25: 0 | ET25: 0 | EU25: 0 | EV25: 51.2 | EW25: 48.64 | EX25: 46.208 | EY25: 43.8976 | EZ25: 41.70272 | FA25: 39.617584 | FB25: 37.6367048 | FC25: 35.75486956 | FD25: 34.68222347 | FE25: 33.64175677 | FF25: 32.63250407 | FG25: 31.65352894 | FH25: 30.70392308 | FI25: 29.78280538 | FJ25: 28.88932122 | FK25: 28.02264159 | FL25: 27.18196234 | FM25: 26.36650347 | FN25: 25.57550836 | FO25: 24.80824311 | FP25: 24.06399582 | FQ25: 23.34207594 | FR25: 22.64181367 | FS25: 21.96255926 | FT25: 21.30368248 | FU25: 20.664572 | FV25: 0 | FW25: 0 | FX25: 0 | FY25: 0 | FZ25: 0 | GA25: 0 | GB25: 40.96 | GC25: 38.912 | GD25: 36.9664 | GE25: 35.11808 | GF25: 33.362176 | GG25: 31.6940672 | GH25: 30.10936384 | GI25: 28.60389565 | GJ25: 27.74577878 | GK25: 26.91340542 | GL25: 26.10600325 | GM25: 25.32282316 | GN25: 24.56313846 | GO25: 23.82624431 | GP25: 23.11145698 | GQ25: 22.41811327 | GR25: 21.74556987 | GS25: 21.09320277 | GT25: 20.46040669 | GU25: 19.84659449 | GV25: 19.25119666 | GW25: 18.67366076 | GX25: 18.11345093 | GY25: 17.57004741 | GZ25: 17.04294598 | HA25: 16.5316576 | HB25: 0 | HC25: 0 | HD25: 0 | HE25: 0 | HF25: 0 | HG25: 0 | HH25: 40 | HI25: 42 | HJ25: 44.1 | HK25: 46.305 | HL25: 48.62025 | HM25: 51.0512625 | HN25: 53.60382563 | HO25: 56.28401691 | HP25: 59.09821775 | HQ25: 62.05312864 | HR25: 65.15578507 | HS25: 68.41357432 | HT25: 71.83425304 | HU25: 75.42596569 | HV25: 79.19726398 | HW25: 83.15712718 | HX25: 85 | HY25: 85 | HZ25: 85 | IA25: 85 | IB25: 85 | IC25: 85 | ID25: 85 | IE25: 85 | IF25: 85 | IG25: 85 | IH25: 85 | II25: 85 | IJ25: 85 | IK25: 85 | IL25: 85 | IM25: 85 | IN25: 85 | IO25: 85 | IP25: 85 | IQ25: 85 | IR25: 85 | IS25: 85 | IT25: 85 | IU25: 85 | IV25: 85 | IW25: 85 | IX25: 85 | IY25: 85 | IZ25: 85 | JA25: 85 | JB25: 85
A26: ". " | B26: Well 24 | C26: 2 | D26: 2 | E26: 2 | F26: 2 | G26: 2 | H26: 2 | I26: 2 | J26: 2 | K26: 2 | L26: 2 | M26: 2 | N26: 2 | O26: 2 | P26: 2 | Q26: 2 | R26: 2 | S26: 2 | T26: 2 | U26: 2 | V26: 2 | W26: 2 | X26: 2 | Y26: 2 | Z26: 2 | AA26: 2 | AB26: 0 | AC26: 8 | AD26: =AC26*0.97 -> 7.76 | AE26: 7.5272 | AF26: 7.301384 | AG26: 7.08234248 | AH26: 6.869872206 | AI26: 6.663776039 | AJ26: 6.463862758 | AK26: 6.269946876 | AL26: 6.081848469 | AM26: 5.899393015 | AN26: 5.722411225 | AO26: 5.550738888 | AP26: 5.384216721 | AQ26: 5.22269022 | AR26: 5.066009513 | AS26: 4.914029228 | AT26: 4.766608351 | AU26: 4.6236101 | AV26: 4.484901797 | AW26: 4.350354743 | AX26: 0 | AY26: 0 | AZ26: 0 | BA26: 0 | BB26: 0 | BC26: 0 | BD26: 100 | BE26: 95 | BF26: 90.25 | BG26: 85.7375 | BH26: 81.450625 | BI26: 77.37809375 | BJ26: 73.50918906 | BK26: 69.83372961 | BL26: 67.73871772 | BM26: 65.70655619 | BN26: 63.7353595 | BO26: 61.82329872 | BP26: 59.96859976 | BQ26: 58.16954176 | BR26: 56.42445551 | BS26: 54.73172185 | BT26: 53.08977019 | BU26: 51.49707709 | BV26: 49.95216477 | BW26: 48.45359983 | BX26: 46.99999183 | BY26: 45.58999208 | BZ26: 44.22229232 | CA26: 42.89562355 | CB26: 41.60875484 | CC26: 40.3604922 | CD26: 0 | CE26: 0 | CF26: 0 | CG26: 0 | CH26: 0 | CI26: 0 | CJ26: 80 | CK26: 76 | CL26: 72.2 | CM26: 68.59 | CN26: 65.1605 | CO26: 61.902475 | CP26: 58.80735125 | CQ26: 55.86698369 | CR26: 54.19097418 | CS26: 52.56524495 | CT26: 50.9882876 | CU26: 49.45863897 | CV26: 47.97487981 | CW26: 46.53563341 | CX26: 45.13956441 | CY26: 43.78537748 | CZ26: 42.47181615 | DA26: 41.19766167 | DB26: 39.96173182 | DC26: 38.76287986 | DD26: 37.59999347 | DE26: 36.47199366 | DF26: 35.37783385 | DG26: 34.31649884 | DH26: 33.28700387 | DI26: 32.28839376 | DJ26: 0 | DK26: 0 | DL26: 0 | DM26: 0 | DN26: 0 | DO26: 0 | DP26: 64 | DQ26: 60.8 | DR26: 57.76 | DS26: 54.872 | DT26: 52.1284 | DU26: 49.52198 | DV26: 47.045881 | DW26: 44.69358695 | DX26: 43.35277934 | DY26: 42.05219596 | DZ26: 40.79063008 | EA26: 39.56691118 | EB26: 38.37990384 | EC26: 37.22850673 | ED26: 36.11165153 | EE26: 35.02830198 | EF26: 33.97745292 | EG26: 32.95812933 | EH26: 31.96938545 | EI26: 31.01030389 | EJ26: 30.07999477 | EK26: 29.17759493 | EL26: 28.30226708 | EM26: 27.45319907 | EN26: 26.6296031 | EO26: 25.83071501 | EP26: 0 | EQ26: 0 | ER26: 0 | ES26: 0 | ET26: 0 | EU26: 0 | EV26: 51.2 | EW26: 48.64 | EX26: 46.208 | EY26: 43.8976 | EZ26: 41.70272 | FA26: 39.617584 | FB26: 37.6367048 | FC26: 35.75486956 | FD26: 34.68222347 | FE26: 33.64175677 | FF26: 32.63250407 | FG26: 31.65352894 | FH26: 30.70392308 | FI26: 29.78280538 | FJ26: 28.88932122 | FK26: 28.02264159 | FL26: 27.18196234 | FM26: 26.36650347 | FN26: 25.57550836 | FO26: 24.80824311 | FP26: 24.06399582 | FQ26: 23.34207594 | FR26: 22.64181367 | FS26: 21.96255926 | FT26: 21.30368248 | FU26: 20.664572 | FV26: 0 | FW26: 0 | FX26: 0 | FY26: 0 | FZ26: 0 | GA26: 0 | GB26: 40.96 | GC26: 38.912 | GD26: 36.9664 | GE26: 35.11808 | GF26: 33.362176 | GG26: 31.6940672 | GH26: 30.10936384 | GI26: 28.60389565 | GJ26: 27.74577878 | GK26: 26.91340542 | GL26: 26.10600325 | GM26: 25.32282316 | GN26: 24.56313846 | GO26: 23.82624431 | GP26: 23.11145698 | GQ26: 22.41811327 | GR26: 21.74556987 | GS26: 21.09320277 | GT26: 20.46040669 | GU26: 19.84659449 | GV26: 19.25119666 | GW26: 18.67366076 | GX26: 18.11345093 | GY26: 17.57004741 | GZ26: 17.04294598 | HA26: 16.5316576 | HB26: 0 | HC26: 0 | HD26: 0 | HE26: 0 | HF26: 0 | HG26: 0 | HH26: 40 | HI26: 42 | HJ26: 44.1 | HK26: 46.305 | HL26: 48.62025 | HM26: 51.0512625 | HN26: 53.60382563 | HO26: 56.28401691 | HP26: 59.09821775 | HQ26: 62.05312864 | HR26: 65.15578507 | HS26: 68.41357432 | HT26: 71.83425304 | HU26: 75.42596569 | HV26: 79.19726398 | HW26: 83.15712718 | HX26: 85 | HY26: 85 | HZ26: 85 | IA26: 85 | IB26: 85 | IC26: 85 | ID26: 85 | IE26: 85 | IF26: 85 | IG26: 85 | IH26: 85 | II26: 85 | IJ26: 85 | IK26: 85 | IL26: 85 | IM26: 85 | IN26: 85 | IO26: 85 | IP26: 85 | IQ26: 85 | IR26: 85 | IS26: 85 | IT26: 85 | IU26: 85 | IV26: 85 | IW26: 85 | IX26: 85 | IY26: 85 | IZ26: 85 | JA26: 85 | JB26: 85
A27: ". " | B27: Well 25 | C27: 2 | D27: 2 | E27: 2 | F27: 2 | G27: 2 | H27: 2 | I27: 2 | J27: 2 | K27: 2 | L27: 2 | M27: 2 | N27: 2 | O27: 2 | P27: 2 | Q27: 2 | R27: 2 | S27: 2 | T27: 2 | U27: 2 | V27: 2 | W27: 2 | X27: 2 | Y27: 2 | Z27: 2 | AA27: 2 | AB27: 2 | AC27: 0 | AD27: 8 | AE27: =AD27*0.97 -> 7.76 | AF27: 7.5272 | AG27: 7.301384 | AH27: 7.08234248 | AI27: 6.869872206 | AJ27: 6.663776039 | AK27: 6.463862758 | AL27: 6.269946876 | AM27: 6.081848469 | AN27: 5.899393015 | AO27: 5.722411225 | AP27: 5.550738888 | AQ27: 5.384216721 | AR27: 5.22269022 | AS27: 5.066009513 | AT27: 4.914029228 | AU27: 4.766608351 | AV27: 4.6236101 | AW27: 4.484901797 | AX27: 0 | AY27: 0 | AZ27: 0 | BA27: 0 | BB27: 0 | BC27: 0 | BD27: 100 | BE27: 95 | BF27: 90.25 | BG27: 85.7375 | BH27: 81.450625 | BI27: 77.37809375 | BJ27: 73.50918906 | BK27: 69.83372961 | BL27: 67.73871772 | BM27: 65.70655619 | BN27: 63.7353595 | BO27: 61.82329872 | BP27: 59.96859976 | BQ27: 58.16954176 | BR27: 56.42445551 | BS27: 54.73172185 | BT27: 53.08977019 | BU27: 51.49707709 | BV27: 49.95216477 | BW27: 48.45359983 | BX27: 46.99999183 | BY27: 45.58999208 | BZ27: 44.22229232 | CA27: 42.89562355 | CB27: 41.60875484 | CC27: 40.3604922 | CD27: 0 | CE27: 0 | CF27: 0 | CG27: 0 | CH27: 0 | CI27: 0 | CJ27: 80 | CK27: 76 | CL27: 72.2 | CM27: 68.59 | CN27: 65.1605 | CO27: 61.902475 | CP27: 58.80735125 | CQ27: 55.86698369 | CR27: 54.19097418 | CS27: 52.56524495 | CT27: 50.9882876 | CU27: 49.45863897 | CV27: 47.97487981 | CW27: 46.53563341 | CX27: 45.13956441 | CY27: 43.78537748 | CZ27: 42.47181615 | DA27: 41.19766167 | DB27: 39.96173182 | DC27: 38.76287986 | DD27: 37.59999347 | DE27: 36.47199366 | DF27: 35.37783385 | DG27: 34.31649884 | DH27: 33.28700387 | DI27: 32.28839376 | DJ27: 0 | DK27: 0 | DL27: 0 | DM27: 0 | DN27: 0 | DO27: 0 | DP27: 64 | DQ27: 60.8 | DR27: 57.76 | DS27: 54.872 | DT27: 52.1284 | DU27: 49.52198 | DV27: 47.045881 | DW27: 44.69358695 | DX27: 43.35277934 | DY27: 42.05219596 | DZ27: 40.79063008 | EA27: 39.56691118 | EB27: 38.37990384 | EC27: 37.22850673 | ED27: 36.11165153 | EE27: 35.02830198 | EF27: 33.97745292 | EG27: 32.95812933 | EH27: 31.96938545 | EI27: 31.01030389 | EJ27: 30.07999477 | EK27: 29.17759493 | EL27: 28.30226708 | EM27: 27.45319907 | EN27: 26.6296031 | EO27: 25.83071501 | EP27: 0 | EQ27: 0 | ER27: 0 | ES27: 0 | ET27: 0 | EU27: 0 | EV27: 51.2 | EW27: 48.64 | EX27: 46.208 | EY27: 43.8976 | EZ27: 41.70272 | FA27: 39.617584 | FB27: 37.6367048 | FC27: 35.75486956 | FD27: 34.68222347 | FE27: 33.64175677 | FF27: 32.63250407 | FG27: 31.65352894 | FH27: 30.70392308 | FI27: 29.78280538 | FJ27: 28.88932122 | FK27: 28.02264159 | FL27: 27.18196234 | FM27: 26.36650347 | FN27: 25.57550836 | FO27: 24.80824311 | FP27: 24.06399582 | FQ27: 23.34207594 | FR27: 22.64181367 | FS27: 21.96255926 | FT27: 21.30368248 | FU27: 20.664572 | FV27: 0 | FW27: 0 | FX27: 0 | FY27: 0 | FZ27: 0 | GA27: 0 | GB27: 40.96 | GC27: 38.912 | GD27: 36.9664 | GE27: 35.11808 | GF27: 33.362176 | GG27: 31.6940672 | GH27: 30.10936384 | GI27: 28.60389565 | GJ27: 27.74577878 | GK27: 26.91340542 | GL27: 26.10600325 | GM27: 25.32282316 | GN27: 24.56313846 | GO27: 23.82624431 | GP27: 23.11145698 | GQ27: 22.41811327 | GR27: 21.74556987 | GS27: 21.09320277 | GT27: 20.46040669 | GU27: 19.84659449 | GV27: 19.25119666 | GW27: 18.67366076 | GX27: 18.11345093 | GY27: 17.57004741 | GZ27: 17.04294598 | HA27: 16.5316576 | HB27: 0 | HC27: 0 | HD27: 0 | HE27: 0 | HF27: 0 | HG27: 0 | HH27: 40 | HI27: 42 | HJ27: 44.1 | HK27: 46.305 | HL27: 48.62025 | HM27: 51.0512625 | HN27: 53.60382563 | HO27: 56.28401691 | HP27: 59.09821775 | HQ27: 62.05312864 | HR27: 65.15578507 | HS27: 68.41357432 | HT27: 71.83425304 | HU27: 75.42596569 | HV27: 79.19726398 | HW27: 83.15712718 | HX27: 85 | HY27: 85 | HZ27: 85 | IA27: 85 | IB27: 85 | IC27: 85 | ID27: 85 | IE27: 85 | IF27: 85 | IG27: 85 | IH27: 85 | II27: 85 | IJ27: 85 | IK27: 85 | IL27: 85 | IM27: 85 | IN27: 85 | IO27: 85 | IP27: 85 | IQ27: 85 | IR27: 85 | IS27: 85 | IT27: 85 | IU27: 85 | IV27: 85 | IW27: 85 | IX27: 85 | IY27: 85 | IZ27: 85 | JA27: 85 | JB27: 85
A28: 10 MMBTU | B28: Well 001 | C28: =C$182 -> 0 | D28: =D$182 -> 0 | E28: 0 | F28: 0 | G28: 0 | H28: 0 | I28: 100 | J28: 95 | K28: 90.25 | L28: 85.7375 | M28: 81.450625 | N28: 77.37809375 | O28: 73.50918906 | P28: 69.83372961 | Q28: 67.73871772 | R28: 65.70655619 | S28: 63.7353595 | T28: 61.82329872 | U28: 59.96859976 | V28: 58.16954176 | W28: 56.42445551 | X28: 54.73172185 | Y28: 53.08977019 | Z28: 51.49707709 | AA28: 49.95216477 | AB28: 48.45359983 | AC28: 46.99999183 | AD28: 45.58999208 | AE28: 44.22229232 | AF28: 42.89562355 | AG28: 41.60875484 | AH28: 40.3604922 | AI28: 0 | AJ28: 0 | AK28: 0 | AL28: 0 | AM28: 0 | AN28: 0 | AO28: 80 | AP28: 76 | AQ28: 72.2 | AR28: 68.59 | AS28: 65.1605 | AT28: 61.902475 | AU28: 58.80735125 | AV28: 55.86698369 | AW28: 54.19097418 | AX28: 52.56524495 | AY28: 50.9882876 | AZ28: 49.45863897 | BA28: 47.97487981 | BB28: 46.53563341 | BC28: 45.13956441 | BD28: 43.78537748 | BE28: 42.47181615 | BF28: 41.19766167 | BG28: 39.96173182 | BH28: 38.76287986 | BI28: 37.59999347 | BJ28: 36.47199366 | BK28: 35.37783385 | BL28: 34.31649884 | BM28: 33.28700387 | BN28: 32.28839376 | BO28: 0 | BP28: =BP$182 -> 0 | BQ28: 0 | BR28: 0 | BS28: 0 | BT28: 0 | BU28: 64 | BV28: 60.8 | BW28: 57.76 | BX28: 54.872 | BY28: 52.1284 | BZ28: 49.52198 | CA28: 47.045881 | CB28: 44.69358695 | CC28: 43.35277934 | CD28: 42.05219596 | CE28: 40.79063008 | CF28: 39.56691118 | CG28: 38.37990384 | CH28: 37.22850673 | CI28: 36.11165153 | CJ28: 35.02830198 | CK28: 33.97745292 | CL28: 32.95812933 | CM28: 31.96938545 | CN28: 31.01030389 | CO28: 30.07999477 | CP28: 29.17759493 | CQ28: 28.30226708 | CR28: 27.45319907 | CS28: 26.6296031 | CT28: 25.83071501 | CU28: 0 | CV28: 0 | CW28: 0 | CX28: 0 | CY28: 0 | CZ28: 0 | DA28: 51.2 | DB28: 48.64 | DC28: 46.208 | DD28: 43.8976 | DE28: 41.70272 | DF28: 39.617584 | DG28: 37.6367048 | DH28: 35.75486956 | DI28: 34.68222347 | DJ28: 33.64175677 | DK28: 32.63250407 | DL28: 31.65352894 | DM28: 30.70392308 | DN28: 29.78280538 | DO28: 28.88932122 | DP28: 28.02264159 | DQ28: 27.18196234 | DR28: 26.36650347 | DS28: 25.57550836 | DT28: 24.80824311 | DU28: 24.06399582 | DV28: 23.34207594 | DW28: 22.64181367 | DX28: 21.96255926 | DY28: 21.30368248 | DZ28: 20.664572 | EA28: 0 | EB28: =EB$182 -> 0 | EC28: 0 | ED28: 0 | EE28: 0 | EF28: 0 | EG28: 40.96 | EH28: 38.912 | EI28: 36.9664 | EJ28: 35.11808 | EK28: 33.362176 | EL28: 31.6940672 | EM28: 30.10936384 | EN28: 28.60389565 | EO28: 27.74577878 | EP28: 26.91340542 | EQ28: 26.10600325 | ER28: 25.32282316 | ES28: 24.56313846 | ET28: 23.82624431 | EU28: 23.11145698 | EV28: 22.41811327 | EW28: 21.74556987 | EX28: 21.09320277 | EY28: 20.46040669 | EZ28: 19.84659449 | FA28: 19.25119666 | FB28: 18.67366076 | FC28: 18.11345093 | FD28: 17.57004741 | FE28: 17.04294598 | FF28: 16.5316576 | FG28: 0 | FH28: 0 | FI28: 0 | FJ28: 0 | FK28: 0 | FL28: 0 | FM28: Put to Long Term Steam
A29: Generator | B29: Well 002 | C29: =C$182 -> 0 | D29: 0 | E29: 0 | F29: 0 | G29: 0 | H29: 0 | I29: 100 | J29: 95 | K29: 90.25 | L29: 85.7375 | M29: 81.450625 | N29: 77.37809375 | O29: 73.50918906 | P29: 69.83372961 | Q29: 67.73871772 | R29: 65.70655619 | S29: 63.7353595 | T29: 61.82329872 | U29: 59.96859976 | V29: 58.16954176 | W29: 56.42445551 | X29: 54.73172185 | Y29: 53.08977019 | Z29: 51.49707709 | AA29: 49.95216477 | AB29: 48.45359983 | AC29: 46.99999183 | AD29: 45.58999208 | AE29: 44.22229232 | AF29: 42.89562355 | AG29: 41.60875484 | AH29: 40.3604922 | AI29: 0 | AJ29: 0 | AK29: 0 | AL29: 0 | AM29: 0 | AN29: 0 | AO29: 80 | AP29: 76 | AQ29: 72.2 | AR29: 68.59 | AS29: 65.1605 | AT29: 61.902475 | AU29: 58.80735125 | AV29: 55.86698369 | AW29: 54.19097418 | AX29: 52.56524495 | AY29: 50.9882876 | AZ29: 49.45863897 | BA29: 47.97487981 | BB29: 46.53563341 | BC29: 45.13956441 | BD29: 43.78537748 | BE29: 42.47181615 | BF29: 41.19766167 | BG29: 39.96173182 | BH29: 38.76287986 | BI29: 37.59999347 | BJ29: 36.47199366 | BK29: 35.37783385 | BL29: 34.31649884 | BM29: 33.28700387 | BN29: 32.28839376 | BO29: 0 | BP29: 0 | BQ29: 0 | BR29: 0 | BS29: 0 | BT29: 0 | BU29: 64 | BV29: 60.8 | BW29: 57.76 | BX29: 54.872 | BY29: 52.1284 | BZ29: 49.52198 | CA29: 47.045881 | CB29: 44.69358695 | CC29: 43.35277934 | CD29: 42.05219596 | CE29: 40.79063008 | CF29: 39.56691118 | CG29: 38.37990384 | CH29: 37.22850673 | CI29: 36.11165153 | CJ29: 35.02830198 | CK29: 33.97745292 | CL29: 32.95812933 | CM29: 31.96938545 | CN29: 31.01030389 | CO29: 30.07999477 | CP29: 29.17759493 | CQ29: 28.30226708 | CR29: 27.45319907 | CS29: 26.6296031 | CT29: 25.83071501 | CU29: 0 | CV29: 0 | CW29: 0 | CX29: 0 | CY29: 0 | CZ29: 0 | DA29: 51.2 | DB29: 48.64 | DC29: 46.208 | DD29: 43.8976 | DE29: 41.70272 | DF29: 39.617584 | DG29: 37.6367048 | DH29: 35.75486956 | DI29: 34.68222347 | DJ29: 33.64175677 | DK29: 32.63250407 | DL29: 31.65352894 | DM29: 30.70392308 | DN29: 29.78280538 | DO29: 28.88932122 | DP29: 28.02264159 | DQ29: 27.18196234 | DR29: 26.36650347 | DS29: 25.57550836 | DT29: 24.80824311 | DU29: 24.06399582 | DV29: 23.34207594 | DW29: 22.64181367 | DX29: 21.96255926 | DY29: 21.30368248 | DZ29: 20.664572 | EA29: 0 | EB29: 0 | EC29: 0 | ED29: 0 | EE29: 0 | EF29: 0 | EG29: 40.96 | EH29: 38.912 | EI29: 36.9664 | EJ29: 35.11808 | EK29: 33.362176 | EL29: 31.6940672 | EM29: 30.10936384 | EN29: 28.60389565 | EO29: 27.74577878 | EP29: 26.91340542 | EQ29: 26.10600325 | ER29: 25.32282316 | ES29: 24.56313846 | ET29: 23.82624431 | EU29: 23.11145698 | EV29: 22.41811327 | EW29: 21.74556987 | EX29: 21.09320277 | EY29: 20.46040669 | EZ29: 19.84659449 | FA29: 19.25119666 | FB29: 18.67366076 | FC29: 18.11345093 | FD29: 17.57004741 | FE29: 17.04294598 | FF29: 16.5316576 | FG29: 0 | FH29: 0 | FI29: 0 | FJ29: 0 | FK29: 0 | FL29: 0 | FM29: Put to Long Term Steam
A30: 1 well at a | B30: Well 003 | C30: =C$182 -> 0 | D30: 0 | E30: 0 | F30: 0 | G30: 0 | H30: 0 | I30: 100 | J30: 95 | K30: 90.25 | L30: 85.7375 | M30: 81.450625 | N30: 77.37809375 | O30: 73.50918906 | P30: 69.83372961 | Q30: 67.73871772 | R30: 65.70655619 | S30: 63.7353595 | T30: 61.82329872 | U30: 59.96859976 | V30: 58.16954176 | W30: 56.42445551 | X30: 54.73172185 | Y30: 53.08977019 | Z30: 51.49707709 | AA30: 49.95216477 | AB30: 48.45359983 | AC30: 46.99999183 | AD30: 45.58999208 | AE30: 44.22229232 | AF30: 42.89562355 | AG30: 41.60875484 | AH30: 40.3604922 | AI30: 0 | AJ30: 0 | AK30: 0 | AL30: 0 | AM30: 0 | AN30: 0 | AO30: 80 | AP30: 76 | AQ30: 72.2 | AR30: 68.59 | AS30: 65.1605 | AT30: 61.902475 | AU30: 58.80735125 | AV30: 55.86698369 | AW30: 54.19097418 | AX30: 52.56524495 | AY30: 50.9882876 | AZ30: 49.45863897 | BA30: 47.97487981 | BB30: 46.53563341 | BC30: 45.13956441 | BD30: 43.78537748 | BE30: 42.47181615 | BF30: 41.19766167 | BG30: 39.96173182 | BH30: 38.76287986 | BI30: 37.59999347 | BJ30: 36.47199366 | BK30: 35.37783385 | BL30: 34.31649884 | BM30: 33.28700387 | BN30: 32.28839376 | BO30: 0 | BP30: 0 | BQ30: 0 | BR30: 0 | BS30: 0 | BT30: 0 | BU30: 64 | BV30: 60.8 | BW30: 57.76 | BX30: 54.872 | BY30: 52.1284 | BZ30: 49.52198 | CA30: 47.045881 | CB30: 44.69358695 | CC30: 43.35277934 | CD30: 42.05219596 | CE30: 40.79063008 | CF30: 39.56691118 | CG30: 38.37990384 | CH30: 37.22850673 | CI30: 36.11165153 | CJ30: 35.02830198 | CK30: 33.97745292 | CL30: 32.95812933 | CM30: 31.96938545 | CN30: 31.01030389 | CO30: 30.07999477 | CP30: 29.17759493 | CQ30: 28.30226708 | CR30: 27.45319907 | CS30: 26.6296031 | CT30: 25.83071501 | CU30: 0 | CV30: 0 | CW30: 0 | CX30: 0 | CY30: 0 | CZ30: 0 | DA30: 51.2 | DB30: 48.64 | DC30: 46.208 | DD30: 43.8976 | DE30: 41.70272 | DF30: 39.617584 | DG30: 37.6367048 | DH30: 35.75486956 | DI30: 34.68222347 | DJ30: 33.64175677 | DK30: 32.63250407 | DL30: 31.65352894 | DM30: 30.70392308 | DN30: 29.78280538 | DO30: 28.88932122 | DP30: 28.02264159 | DQ30: 27.18196234 | DR30: 26.36650347 | DS30: 25.57550836 | DT30: 24.80824311 | DU30: 24.06399582 | DV30: 23.34207594 | DW30: 22.64181367 | DX30: 21.96255926 | DY30: 21.30368248 | DZ30: 20.664572 | EA30: 0 | EB30: 0 | EC30: 0 | ED30: 0 | EE30: 0 | EF30: 0 | EG30: 40.96 | EH30: 38.912 | EI30: 36.9664 | EJ30: 35.11808 | EK30: 33.362176 | EL30: 31.6940672 | EM30: 30.10936384 | EN30: 28.60389565 | EO30: 27.74577878 | EP30: 26.91340542 | EQ30: 26.10600325 | ER30: 25.32282316 | ES30: 24.56313846 | ET30: 23.82624431 | EU30: 23.11145698 | EV30: 22.41811327 | EW30: 21.74556987 | EX30: 21.09320277 | EY30: 20.46040669 | EZ30: 19.84659449 | FA30: 19.25119666 | FB30: 18.67366076 | FC30: 18.11345093 | FD30: 17.57004741 | FE30: 17.04294598 | FF30: 16.5316576 | FG30: 0 | FH30: 0 | FI30: 0 | FJ30: 0 | FK30: 0 | FL30: 0 | FM30: 40 | FN30: 42 | FO30: 44.1 | FP30: 46.305 | FQ30: 48.62025 | FR30: 51.0512625 | FS30: 53.60382563 | FT30: 56.28401691 | FU30: 59.09821775 | FV30: 62.05312864 | FW30: 65.15578507 | FX30: 68.41357432 | FY30: 71.83425304 | FZ30: 75.42596569 | GA30: 79.19726398 | GB30: 83.15712718 | GC30: 85 | GD30: 85 | GE30: 85 | GF30: 85 | GG30: 85 | GH30: 85 | GI30: 85 | GJ30: 85 | GK30: 85 | GL30: 85 | GM30: 85 | GN30: =GN$182 -> 85 | GO30: 85 | GP30: 85 | GQ30: 85 | GR30: 85 | GS30: 85 | GT30: 85 | GU30: 85 | GV30: 85 | GW30: 85 | GX30: 85 | GY30: 85 | GZ30: 85 | HA30: 85 | HB30: 85 | HC30: 85 | HD30: 85 | HE30: 85 | HF30: 85 | HG30: 85 | HH30: 85 | HI30: 85 | HJ30: 85 | HK30: 85 | HL30: 85 | HM30: 85 | HN30: 85 | HO30: 85 | HP30: 85 | HQ30: 85 | HR30: 85 | HS30: 85 | HT30: 85 | HU30: 85 | HV30: 85 | HW30: 85 | HX30: 85 | HY30: 85 | HZ30: 85 | IA30: 85 | IB30: 85 | IC30: 85 | ID30: 85 | IE30: 85 | IF30: 85 | IG30: 85 | IH30: 85 | II30: 85 | IJ30: 85 | IK30: 85 | IL30: 85 | IM30: 85 | IN30: 85 | IO30: 85 | IP30: 85 | IQ30: 85 | IR30: 85 | IS30: 85 | IT30: 85 | IU30: 85 | IV30: 85 | IW30: 85 | IX30: 85 | IY30: 85 | IZ30: =IZ$182 -> 85 | JA30: 85 | JB30: 85
A31: time | B31: Well 004 | G31: =C$182 -> 0 | H31: =D$182 -> 0 | I31: 0 | J31: 0 | K31: 0 | L31: 0 | M31: 100 | N31: 95 | O31: 90.25 | P31: 85.7375 | Q31: 81.450625 | R31: 77.37809375 | S31: 73.50918906 | T31: 69.83372961 | U31: 67.73871772 | V31: 65.70655619 | W31: 63.7353595 | X31: 61.82329872 | Y31: 59.96859976 | Z31: 58.16954176 | AA31: 56.42445551 | AB31: 54.73172185 | AC31: 53.08977019 | AD31: 51.49707709 | AE31: 49.95216477 | AF31: 48.45359983 | AG31: 46.99999183 | AH31: 45.58999208 | AI31: 44.22229232 | AJ31: 42.89562355 | AK31: 41.60875484 | AL31: 40.3604922 | AM31: 0 | AN31: 0 | AO31: 0 | AP31: 0 | AQ31: 0 | AR31: 0 | AS31: 80 | AT31: 76 | AU31: 72.2 | AV31: 68.59 | AW31: 65.1605 | AX31: 61.902475 | AY31: 58.80735125 | AZ31: 55.86698369 | BA31: 54.19097418 | BB31: 52.56524495 | BC31: 50.9882876 | BD31: 49.45863897 | BE31: 47.97487981 | BF31: 46.53563341 | BG31: 45.13956441 | BH31: 43.78537748 | BI31: 42.47181615 | BJ31: 41.19766167 | BK31: 39.96173182 | BL31: 38.76287986 | BM31: 37.59999347 | BN31: 36.47199366 | BO31: 35.37783385 | BP31: 34.31649884 | BQ31: 33.28700387 | BR31: 32.28839376 | BS31: 0 | BT31: =BP$182 -> 0 | BU31: 0 | BV31: 0 | BW31: 0 | BX31: 0 | BY31: 64 | BZ31: 60.8 | CA31: 57.76 | CB31: 54.872 | CC31: 52.1284 | CD31: 49.52198 | CE31: 47.045881 | CF31: 44.69358695 | CG31: 43.35277934 | CH31: 42.05219596 | CI31: 40.79063008 | CJ31: 39.56691118 | CK31: 38.37990384 | CL31: 37.22850673 | CM31: 36.11165153 | CN31: 35.02830198 | CO31: 33.97745292 | CP31: 32.95812933 | CQ31: 31.96938545 | CR31: 31.01030389 | CS31: 30.07999477 | CT31: 29.17759493 | CU31: 28.30226708 | CV31: 27.45319907 | CW31: 26.6296031 | CX31: 25.83071501 | CY31: 0 | CZ31: 0 | DA31: 0 | DB31: 0 | DC31: 0 | DD31: 0 | DE31: 51.2 | DF31: 48.64 | DG31: 46.208 | DH31: 43.8976 | DI31: 41.70272 | DJ31: 39.617584 | DK31: 37.6367048 | DL31: 35.75486956 | DM31: 34.68222347 | DN31: 33.64175677 | DO31: 32.63250407 | DP31: 31.65352894 | DQ31: 30.70392308 | DR31: 29.78280538 | DS31: 28.88932122 | DT31: 28.02264159 | DU31: 27.18196234 | DV31: 26.36650347 | DW31: 25.57550836 | DX31: 24.80824311 | DY31: 24.06399582 | DZ31: 23.34207594 | EA31: 22.64181367 | EB31: 21.96255926 | EC31: 21.30368248 | ED31: 20.664572 | EE31: 0 | EF31: =EB$182 -> 0 | EG31: 0 | EH31: 0 | EI31: 0 | EJ31: 0 | EK31: 40.96 | EL31: 38.912 | EM31: 36.9664 | EN31: 35.11808 | EO31: 33.362176 | EP31: 31.6940672 | EQ31: 30.10936384 | ER31: 28.60389565 | ES31: 27.74577878 | ET31: 26.91340542 | EU31: 26.10600325 | EV31: 25.32282316 | EW31: 24.56313846 | EX31: 23.82624431 | EY31: 23.11145698 | EZ31: 22.41811327 | FA31: 21.74556987 | FB31: 21.09320277 | FC31: 20.46040669 | FD31: 19.84659449 | FE31: 19.25119666 | FF31: 18.67366076 | FG31: 18.11345093 | FH31: 17.57004741 | FI31: 17.04294598 | FJ31: 16.5316576 | FK31: 0 | FL31: 0 | FM31: 0 | FN31: 0 | FO31: 0 | FP31: 0 | FQ31: Put to Long Term Steam
A32: ". " | B32: Well 005 | J32: =C$182 -> 0 | K32: =D$182 -> 0 | L32: 0 | M32: 0 | N32: 0 | O32: 0 | P32: 100 | Q32: 95 | R32: 90.25 | S32: 85.7375 | T32: 81.450625 | U32: 77.37809375 | V32: 73.50918906 | W32: 69.83372961 | X32: 67.73871772 | Y32: 65.70655619 | Z32: 63.7353595 | AA32: 61.82329872 | AB32: 59.96859976 | AC32: 58.16954176 | AD32: 56.42445551 | AE32: 54.73172185 | AF32: 53.08977019 | AG32: 51.49707709 | AH32: 49.95216477 | AI32: 48.45359983 | AJ32: 46.99999183 | AK32: 45.58999208 | AL32: 44.22229232 | AM32: 42.89562355 | AN32: 41.60875484 | AO32: 40.3604922 | AP32: 0 | AQ32: 0 | AR32: 0 | AS32: 0 | AT32: 0 | AU32: 0 | AV32: 80 | AW32: 76 | AX32: 72.2 | AY32: 68.59 | AZ32: 65.1605 | BA32: 61.902475 | BB32: 58.80735125 | BC32: 55.86698369 | BD32: 54.19097418 | BE32: 52.56524495 | BF32: 50.9882876 | BG32: 49.45863897 | BH32: 47.97487981 | BI32: 46.53563341 | BJ32: 45.13956441 | BK32: 43.78537748 | BL32: 42.47181615 | BM32: 41.19766167 | BN32: 39.96173182 | BO32: 38.76287986 | BP32: 37.59999347 | BQ32: 36.47199366 | BR32: 35.37783385 | BS32: 34.31649884 | BT32: 33.28700387 | BU32: 32.28839376 | BV32: 0 | BW32: =BP$182 -> 0 | BX32: 0 | BY32: 0 | BZ32: 0 | CA32: 0 | CB32: 64 | CC32: 60.8 | CD32: 57.76 | CE32: 54.872 | CF32: 52.1284 | CG32: 49.52198 | CH32: 47.045881 | CI32: 44.69358695 | CJ32: 43.35277934 | CK32: 42.05219596 | CL32: 40.79063008 | CM32: 39.56691118 | CN32: 38.37990384 | CO32: 37.22850673 | CP32: 36.11165153 | CQ32: 35.02830198 | CR32: 33.97745292 | CS32: 32.95812933 | CT32: 31.96938545 | CU32: 31.01030389 | CV32: 30.07999477 | CW32: 29.17759493 | CX32: 28.30226708 | CY32: 27.45319907 | CZ32: 26.6296031 | DA32: 25.83071501 | DB32: 0 | DC32: 0 | DD32: 0 | DE32: 0 | DF32: 0 | DG32: 0 | DH32: 51.2 | DI32: 48.64 | DJ32: 46.208 | DK32: 43.8976 | DL32: 41.70272 | DM32: 39.617584 | DN32: 37.6367048 | DO32: 35.75486956 | DP32: 34.68222347 | DQ32: 33.64175677 | DR32: 32.63250407 | DS32: 31.65352894 | DT32: 30.70392308 | DU32: 29.78280538 | DV32: 28.88932122 | DW32: 28.02264159 | DX32: 27.18196234 | DY32: 26.36650347 | DZ32: 25.57550836 | EA32: 24.80824311 | EB32: 24.06399582 | EC32: 23.34207594 | ED32: 22.64181367 | EE32: 21.96255926 | EF32: 21.30368248 | EG32: 20.664572 | EH32: 0 | EI32: =EB$182 -> 0 | EJ32: 0 | EK32: 0 | EL32: 0 | EM32: 0 | EN32: 40.96 | EO32: 38.912 | EP32: 36.9664 | EQ32: 35.11808 | ER32: 33.362176 | ES32: 31.6940672 | ET32: 30.10936384 | EU32: 28.60389565 | EV32: 27.74577878 | EW32: 26.91340542 | EX32: 26.10600325 | EY32: 25.32282316 | EZ32: 24.56313846 | FA32: 23.82624431 | FB32: 23.11145698 | FC32: 22.41811327 | FD32: 21.74556987 | FE32: 21.09320277 | FF32: 20.46040669 | FG32: 19.84659449 | FH32: 19.25119666 | FI32: 18.67366076 | FJ32: 18.11345093 | FK32: 17.57004741 | FL32: 17.04294598 | FM32: 16.5316576 | FN32: 0 | FO32: 0 | FP32: 0 | FQ32: 0 | FR32: 0 | FS32: 0 | FT32: 40 | FU32: 42 | FV32: 44.1 | FW32: 46.305 | FX32: 48.62025 | FY32: 51.0512625 | FZ32: 53.60382563 | GA32: 56.28401691 | GB32: 59.09821775 | GC32: 62.05312864 | GD32: 65.15578507 | GE32: 68.41357432 | GF32: 71.83425304 | GG32: 75.42596569 | GH32: 79.19726398 | GI32: 83.15712718 | GJ32: 85 | GK32: 85 | GL32: 85 | GM32: 85 | GN32: 85 | GO32: 85 | GP32: 85 | GQ32: 85 | GR32: 85 | GS32: 85 | GT32: 85 | GU32: =GN$182 -> 85 | GV32: 85 | GW32: 85 | GX32: 85 | GY32: 85 | GZ32: 85 | HA32: 85 | HB32: 85 | HC32: 85 | HD32: 85 | HE32: 85 | HF32: 85 | HG32: 85 | HH32: 85 | HI32: 85 | HJ32: 85 | HK32: 85 | HL32: 85 | HM32: 85 | HN32: 85 | HO32: 85 | HP32: 85 | HQ32: 85 | HR32: 85 | HS32: 85 | HT32: 85 | HU32: 85 | HV32: 85 | HW32: 85 | HX32: 85 | HY32: 85 | HZ32: 85 | IA32: 85 | IB32: 85 | IC32: 85 | ID32: 85 | IE32: 85 | IF32: 85 | IG32: 85 | IH32: 85 | II32: 85 | IJ32: 85 | IK32: 85 | IL32: 85 | IM32: 85 | IN32: 85 | IO32: 85 | IP32: 85 | IQ32: 85 | IR32: 85 | IS32: 85 | IT32: 85 | IU32: 85 | IV32: 85 | IW32: 85 | IX32: 85 | IY32: 85 | IZ32: 85 | JA32: 85 | JB32: 85
A33: ". " | B33: Well 006 | M33: =C$182 -> 0 | N33: =D$182 -> 0 | O33: 0 | P33: 0 | Q33: 0 | R33: 0 | S33: 100 | T33: 95 | U33: 90.25 | V33: 85.7375 | W33: 81.450625 | X33: 77.37809375 | Y33: 73.50918906 | Z33: 69.83372961 | AA33: 67.73871772 | AB33: 65.70655619 | AC33: 63.7353595 | AD33: 61.82329872 | AE33: 59.96859976 | AF33: 58.16954176 | AG33: 56.42445551 | AH33: 54.73172185 | AI33: 53.08977019 | AJ33: 51.49707709 | AK33: 49.95216477 | AL33: 48.45359983 | AM33: 46.99999183 | AN33: 45.58999208 | AO33: 44.22229232 | AP33: 42.89562355 | AQ33: 41.60875484 | AR33: 40.3604922 | AS33: 0 | AT33: 0 | AU33: 0 | AV33: 0 | AW33: 0 | AX33: 0 | AY33: 80 | AZ33: 76 | BA33: 72.2 | BB33: 68.59 | BC33: 65.1605 | BD33: 61.902475 | BE33: 58.80735125 | BF33: 55.86698369 | BG33: 54.19097418 | BH33: 52.56524495 | BI33: 50.9882876 | BJ33: 49.45863897 | BK33: 47.97487981 | BL33: 46.53563341 | BM33: 45.13956441 | BN33: 43.78537748 | BO33: 42.47181615 | BP33: 41.19766167 | BQ33: 39.96173182 | BR33: 38.76287986 | BS33: 37.59999347 | BT33: 36.47199366 | BU33: 35.37783385 | BV33: 34.31649884 | BW33: 33.28700387 | BX33: 32.28839376 | BY33: 0 | BZ33: =BP$182 -> 0 | CA33: 0 | CB33: 0 | CC33: 0 | CD33: 0 | CE33: 64 | CF33: 60.8 | CG33: 57.76 | CH33: 54.872 | CI33: 52.1284 | CJ33: 49.52198 | CK33: 47.045881 | CL33: 44.69358695 | CM33: 43.35277934 | CN33: 42.05219596 | CO33: 40.79063008 | CP33: 39.56691118 | CQ33: 38.37990384 | CR33: 37.22850673 | CS33: 36.11165153 | CT33: 35.02830198 | CU33: 33.97745292 | CV33: 32.95812933 | CW33: 31.96938545 | CX33: 31.01030389 | CY33: 30.07999477 | CZ33: 29.17759493 | DA33: 28.30226708 | DB33: 27.45319907 | DC33: 26.6296031 | DD33: 25.83071501 | DE33: 0 | DF33: 0 | DG33: 0 | DH33: 0 | DI33: 0 | DJ33: 0 | DK33: 51.2 | DL33: 48.64 | DM33: 46.208 | DN33: 43.8976 | DO33: 41.70272 | DP33: 39.617584 | DQ33: 37.6367048 | DR33: 35.75486956 | DS33: 34.68222347 | DT33: 33.64175677 | DU33: 32.63250407 | DV33: 31.65352894 | DW33: 30.70392308 | DX33: 29.78280538 | DY33: 28.88932122 | DZ33: 28.02264159 | EA33: 27.18196234 | EB33: 26.36650347 | EC33: 25.57550836 | ED33: 24.80824311 | EE33: 24.06399582 | EF33: 23.34207594 | EG33: 22.64181367 | EH33: 21.96255926 | EI33: 21.30368248 | EJ33: 20.664572 | EK33: 0 | EL33: =EB$182 -> 0 | EM33: 0 | EN33: 0 | EO33: 0 | EP33: 0 | EQ33: 40.96 | ER33: 38.912 | ES33: 36.9664 | ET33: 35.11808 | EU33: 33.362176 | EV33: 31.6940672 | EW33: 30.10936384 | EX33: 28.60389565 | EY33: 27.74577878 | EZ33: 26.91340542 | FA33: 26.10600325 | FB33: 25.32282316 | FC33: 24.56313846 | FD33: 23.82624431 | FE33: 23.11145698 | FF33: 22.41811327 | FG33: 21.74556987 | FH33: 21.09320277 | FI33: 20.46040669 | FJ33: 19.84659449 | FK33: 19.25119666 | FL33: 18.67366076 | FM33: 18.11345093 | FN33: 17.57004741 | FO33: 17.04294598 | FP33: 16.5316576 | FQ33: 0 | FR33: 0 | FS33: 0 | FT33: 0 | FU33: 0 | FV33: 0 | FW33: 40 | FX33: 42 | FY33: 44.1 | FZ33: 46.305 | GA33: 48.62025 | GB33: 51.0512625 | GC33: 53.60382563 | GD33: 56.28401691 | GE33: 59.09821775 | GF33: 62.05312864 | GG33: 65.15578507 | GH33: 68.41357432 | GI33: 71.83425304 | GJ33: 75.42596569 | GK33: 79.19726398 | GL33: 83.15712718 | GM33: 85 | GN33: 85 | GO33: 85 | GP33: 85 | GQ33: 85 | GR33: 85 | GS33: 85 | GT33: 85 | GU33: 85 | GV33: 85 | GW33: 85 | GX33: =GN$182 -> 85 | GY33: 85 | GZ33: 85 | HA33: 85 | HB33: 85 | HC33: 85 | HD33: 85 | HE33: 85 | HF33: 85 | HG33: 85 | HH33: 85 | HI33: 85 | HJ33: 85 | HK33: 85 | HL33: 85 | HM33: 85 | HN33: 85 | HO33: 85 | HP33: 85 | HQ33: 85 | HR33: 85 | HS33: 85 | HT33: 85 | HU33: 85 | HV33: 85 | HW33: 85 | HX33: 85 | HY33: 85 | HZ33: 85 | IA33: 85 | IB33: 85 | IC33: 85 | ID33: 85 | IE33: 85 | IF33: 85 | IG33: 85 | IH33: 85 | II33: 85 | IJ33: 85 | IK33: 85 | IL33: 85 | IM33: 85 | IN33: 85 | IO33: 85 | IP33: 85 | IQ33: 85 | IR33: 85 | IS33: 85 | IT33: 85 | IU33: 85 | IV33: 85 | IW33: 85 | IX33: 85 | IY33: 85 | IZ33: 85 | JA33: 85 | JB33: 85
A34: ". " | B34: Well 007 | P34: =C$182 -> 0 | Q34: =D$182 -> 0 | R34: 0 | S34: 0 | T34: 0 | U34: 0 | V34: 100 | W34: 95 | X34: 90.25 | Y34: 85.7375 | Z34: 81.450625 | AA34: 77.37809375 | AB34: 73.50918906 | AC34: 69.83372961 | AD34: 67.73871772 | AE34: 65.70655619 | AF34: 63.7353595 | AG34: 61.82329872 | AH34: 59.96859976 | AI34: 58.16954176 | AJ34: 56.42445551 | AK34: 54.73172185 | AL34: 53.08977019 | AM34: 51.49707709 | AN34: 49.95216477 | AO34: 48.45359983 | AP34: 46.99999183 | AQ34: 45.58999208 | AR34: 44.22229232 | AS34: 42.89562355 | AT34: 41.60875484 | AU34: 40.3604922 | AV34: 0 | AW34: 0 | AX34: 0 | AY34: 0 | AZ34: 0 | BA34: 0 | BB34: 80 | BC34: 76 | BD34: 72.2 | BE34: 68.59 | BF34: 65.1605 | BG34: 61.902475 | BH34: 58.80735125 | BI34: 55.86698369 | BJ34: 54.19097418 | BK34: 52.56524495 | BL34: 50.9882876 | BM34: 49.45863897 | BN34: 47.97487981 | BO34: 46.53563341 | BP34: 45.13956441 | BQ34: 43.78537748 | BR34: 42.47181615 | BS34: 41.19766167 | BT34: 39.96173182 | BU34: 38.76287986 | BV34: 37.59999347 | BW34: 36.47199366 | BX34: 35.37783385 | BY34: 34.31649884 | BZ34: 33.28700387 | CA34: 32.28839376 | CB34: 0 | CC34: =BP$182 -> 0 | CD34: 0 | CE34: 0 | CF34: 0 | CG34: 0 | CH34: 64 | CI34: 60.8 | CJ34: 57.76 | CK34: 54.872 | CL34: 52.1284 | CM34: 49.52198 | CN34: 47.045881 | CO34: 44.69358695 | CP34: 43.35277934 | CQ34: 42.05219596 | CR34: 40.79063008 | CS34: 39.56691118 | CT34: 38.37990384 | CU34: 37.22850673 | CV34: 36.11165153 | CW34: 35.02830198 | CX34: 33.97745292 | CY34: 32.95812933 | CZ34: 31.96938545 | DA34: 31.01030389 | DB34: 30.07999477 | DC34: 29.17759493 | DD34: 28.30226708 | DE34: 27.45319907 | DF34: 26.6296031 | DG34: 25.83071501 | DH34: 0 | DI34: 0 | DJ34: 0 | DK34: 0 | DL34: 0 | DM34: 0 | DN34: 51.2 | DO34: 48.64 | DP34: 46.208 | DQ34: 43.8976 | DR34: 41.70272 | DS34: 39.617584 | DT34: 37.6367048 | DU34: 35.75486956 | DV34: 34.68222347 | DW34: 33.64175677 | DX34: 32.63250407 | DY34: 31.65352894 | DZ34: 30.70392308 | EA34: 29.78280538 | EB34: 28.88932122 | EC34: 28.02264159 | ED34: 27.18196234 | EE34: 26.36650347 | EF34: 25.57550836 | EG34: 24.80824311 | EH34: 24.06399582 | EI34: 23.34207594 | EJ34: 22.64181367 | EK34: 21.96255926 | EL34: 21.30368248 | EM34: 20.664572 | EN34: 0 | EO34: =EB$182 -> 0 | EP34: 0 | EQ34: 0 | ER34: 0 | ES34: 0 | ET34: 40.96 | EU34: 38.912 | EV34: 36.9664 | EW34: 35.11808 | EX34: 33.362176 | EY34: 31.6940672 | EZ34: 30.10936384 | FA34: 28.60389565 | FB34: 27.74577878 | FC34: 26.91340542 | FD34: 26.10600325 | FE34: 25.32282316 | FF34: 24.56313846 | FG34: 23.82624431 | FH34: 23.11145698 | FI34: 22.41811327 | FJ34: 21.74556987 | FK34: 21.09320277 | FL34: 20.46040669 | FM34: 19.84659449 | FN34: 19.25119666 | FO34: 18.67366076 | FP34: 18.11345093 | FQ34: 17.57004741 | FR34: 17.04294598 | FS34: 16.5316576 | FT34: 0 | FU34: 0 | FV34: 0 | FW34: 0 | FX34: 0 | FY34: 0 | FZ34: 40 | GA34: 42 | GB34: 44.1 | GC34: 46.305 | GD34: 48.62025 | GE34: 51.0512625 | GF34: 53.60382563 | GG34: 56.28401691 | GH34: 59.09821775 | GI34: 62.05312864 | GJ34: 65.15578507 | GK34: 68.41357432 | GL34: 71.83425304 | GM34: 75.42596569 | GN34: 79.19726398 | GO34: 83.15712718 | GP34: 85 | GQ34: 85 | GR34: 85 | GS34: 85 | GT34: 85 | GU34: 85 | GV34: 85 | GW34: 85 | GX34: 85 | GY34: 85 | GZ34: 85 | HA34: =GN$182 -> 85 | HB34: 85 | HC34: 85 | HD34: 85 | HE34: 85 | HF34: 85 | HG34: 85 | HH34: 85 | HI34: 85 | HJ34: 85 | HK34: 85 | HL34: 85 | HM34: 85 | HN34: 85 | HO34: 85 | HP34: 85 | HQ34: 85 | HR34: 85 | HS34: 85 | HT34: 85 | HU34: 85 | HV34: 85 | HW34: 85 | HX34: 85 | HY34: 85 | HZ34: 85 | IA34: 85 | IB34: 85 | IC34: 85 | ID34: 85 | IE34: 85 | IF34: 85 | IG34: 85 | IH34: 85 | II34: 85 | IJ34: 85 | IK34: 85 | IL34: 85 | IM34: 85 | IN34: 85 | IO34: 85 | IP34: 85 | IQ34: 85 | IR34: 85 | IS34: 85 | IT34: 85 | IU34: 85 | IV34: 85 | IW34: 85 | IX34: 85 | IY34: 85 | IZ34: 85 | JA34: 85 | JB34: 85
A35: ". " | B35: Well 008 | S35: =C$182 -> 0 | T35: =D$182 -> 0 | U35: 0 | V35: 0 | W35: 0 | X35: 0 | Y35: 100 | Z35: 95 | AA35: 90.25 | AB35: 85.7375 | AC35: 81.450625 | AD35: 77.37809375 | AE35: 73.50918906 | AF35: 69.83372961 | AG35: 67.73871772 | AH35: 65.70655619 | AI35: 63.7353595 | AJ35: 61.82329872 | AK35: 59.96859976 | AL35: 58.16954176 | AM35: 56.42445551 | AN35: 54.73172185 | AO35: 53.08977019 | AP35: 51.49707709 | AQ35: 49.95216477 | AR35: 48.45359983 | AS35: 46.99999183 | AT35: 45.58999208 | AU35: 44.22229232 | AV35: 42.89562355 | AW35: 41.60875484 | AX35: 40.3604922 | AY35: 0 | AZ35: 0 | BA35: 0 | BB35: 0 | BC35: 0 | BD35: 0 | BE35: 80 | BF35: 76 | BG35: 72.2 | BH35: 68.59 | BI35: 65.1605 | BJ35: 61.902475 | BK35: 58.80735125 | BL35: 55.86698369 | BM35: 54.19097418 | BN35: 52.56524495 | BO35: 50.9882876 | BP35: 49.45863897 | BQ35: 47.97487981 | BR35: 46.53563341 | BS35: 45.13956441 | BT35: 43.78537748 | BU35: 42.47181615 | BV35: 41.19766167 | BW35: 39.96173182 | BX35: 38.76287986 | BY35: 37.59999347 | BZ35: 36.47199366 | CA35: 35.37783385 | CB35: 34.31649884 | CC35: 33.28700387 | CD35: 32.28839376 | CE35: 0 | CF35: =BP$182 -> 0 | CG35: 0 | CH35: 0 | CI35: 0 | CJ35: 0 | CK35: 64 | CL35: 60.8 | CM35: 57.76 | CN35: 54.872 | CO35: 52.1284 | CP35: 49.52198 | CQ35: 47.045881 | CR35: 44.69358695 | CS35: 43.35277934 | CT35: 42.05219596 | CU35: 40.79063008 | CV35: 39.56691118 | CW35: 38.37990384 | CX35: 37.22850673 | CY35: 36.11165153 | CZ35: 35.02830198 | DA35: 33.97745292 | DB35: 32.95812933 | DC35: 31.96938545 | DD35: 31.01030389 | DE35: 30.07999477 | DF35: 29.17759493 | DG35: 28.30226708 | DH35: 27.45319907 | DI35: 26.6296031 | DJ35: 25.83071501 | DK35: 0 | DL35: 0 | DM35: 0 | DN35: 0 | DO35: 0 | DP35: 0 | DQ35: 51.2 | DR35: 48.64 | DS35: 46.208 | DT35: 43.8976 | DU35: 41.70272 | DV35: 39.617584 | DW35: 37.6367048 | DX35: 35.75486956 | DY35: 34.68222347 | DZ35: 33.64175677 | EA35: 32.63250407 | EB35: 31.65352894 | EC35: 30.70392308 | ED35: 29.78280538 | EE35: 28.88932122 | EF35: 28.02264159 | EG35: 27.18196234 | EH35: 26.36650347 | EI35: 25.57550836 | EJ35: 24.80824311 | EK35: 24.06399582 | EL35: 23.34207594 | EM35: 22.64181367 | EN35: 21.96255926 | EO35: 21.30368248 | EP35: 20.664572 | EQ35: 0 | ER35: =EB$182 -> 0 | ES35: 0 | ET35: 0 | EU35: 0 | EV35: 0 | EW35: 40.96 | EX35: 38.912 | EY35: 36.9664 | EZ35: 35.11808 | FA35: 33.362176 | FB35: 31.6940672 | FC35: 30.10936384 | FD35: 28.60389565 | FE35: 27.74577878 | FF35: 26.91340542 | FG35: 26.10600325 | FH35: 25.32282316 | FI35: 24.56313846 | FJ35: 23.82624431 | FK35: 23.11145698 | FL35: 22.41811327 | FM35: 21.74556987 | FN35: 21.09320277 | FO35: 20.46040669 | FP35: 19.84659449 | FQ35: 19.25119666 | FR35: 18.67366076 | FS35: 18.11345093 | FT35: 17.57004741 | FU35: 17.04294598 | FV35: 16.5316576 | FW35: 0 | FX35: 0 | FY35: 0 | FZ35: 0 | GA35: 0 | GB35: 0 | GC35: 40 | GD35: 42 | GE35: 44.1 | GF35: 46.305 | GG35: 48.62025 | GH35: 51.0512625 | GI35: 53.60382563 | GJ35: 56.28401691 | GK35: 59.09821775 | GL35: 62.05312864 | GM35: 65.15578507 | GN35: 68.41357432 | GO35: 71.83425304 | GP35: 75.42596569 | GQ35: 79.19726398 | GR35: 83.15712718 | GS35: 85 | GT35: 85 | GU35: 85 | GV35: 85 | GW35: 85 | GX35: 85 | GY35: 85 | GZ35: 85 | HA35: 85 | HB35: 85 | HC35: 85 | HD35: =GN$182 -> 85 | HE35: 85 | HF35: 85 | HG35: 85 | HH35: 85 | HI35: 85 | HJ35: 85 | HK35: 85 | HL35: 85 | HM35: 85 | HN35: 85 | HO35: 85 | HP35: 85 | HQ35: 85 | HR35: 85 | HS35: 85 | HT35: 85 | HU35: 85 | HV35: 85 | HW35: 85 | HX35: 85 | HY35: 85 | HZ35: 85 | IA35: 85 | IB35: 85 | IC35: 85 | ID35: 85 | IE35: 85 | IF35: 85 | IG35: 85 | IH35: 85 | II35: 85 | IJ35: 85 | IK35: 85 | IL35: 85 | IM35: 85 | IN35: 85 | IO35: 85 | IP35: 85 | IQ35: 85 | IR35: 85 | IS35: 85 | IT35: 85 | IU35: 85 | IV35: 85 | IW35: 85 | IX35: 85 | IY35: 85 | IZ35: 85 | JA35: 85 | JB35: 85
A36: ". " | B36: Well 009 | V36: =C$182 -> 0 | W36: =D$182 -> 0 | X36: 0 | Y36: 0 | Z36: 0 | AA36: 0 | AB36: 100 | AC36: 95 | AD36: 90.25 | AE36: 85.7375 | AF36: 81.450625 | AG36: 77.37809375 | AH36: 73.50918906 | AI36: 69.83372961 | AJ36: 67.73871772 | AK36: 65.70655619 | AL36: 63.7353595 | AM36: 61.82329872 | AN36: 59.96859976 | AO36: 58.16954176 | AP36: 56.42445551 | AQ36: 54.73172185 | AR36: 53.08977019 | AS36: 51.49707709 | AT36: 49.95216477 | AU36: 48.45359983 | AV36: 46.99999183 | AW36: 45.58999208 | AX36: 44.22229232 | AY36: 42.89562355 | AZ36: 41.60875484 | BA36: 40.3604922 | BB36: 0 | BC36: 0 | BD36: 0 | BE36: 0 | BF36: 0 | BG36: 0 | BH36: 80 | BI36: 76 | BJ36: 72.2 | BK36: 68.59 | BL36: 65.1605 | BM36: 61.902475 | BN36: 58.80735125 | BO36: 55.86698369 | BP36: 54.19097418 | BQ36: 52.56524495 | BR36: 50.9882876 | BS36: 49.45863897 | BT36: 47.97487981 | BU36: 46.53563341 | BV36: 45.13956441 | BW36: 43.78537748 | BX36: 42.47181615 | BY36: 41.19766167 | BZ36: 39.96173182 | CA36: 38.76287986 | CB36: 37.59999347 | CC36: 36.47199366 | CD36: 35.37783385 | CE36: 34.31649884 | CF36: 33.28700387 | CG36: 32.28839376 | CH36: 0 | CI36: =BP$182 -> 0 | CJ36: 0 | CK36: 0 | CL36: 0 | CM36: 0 | CN36: 64 | CO36: 60.8 | CP36: 57.76 | CQ36: 54.872 | CR36: 52.1284 | CS36: 49.52198 | CT36: 47.045881 | CU36: 44.69358695 | CV36: 43.35277934 | CW36: 42.05219596 | CX36: 40.79063008 | CY36: 39.56691118 | CZ36: 38.37990384 | DA36: 37.22850673 | DB36: 36.11165153 | DC36: 35.02830198 | DD36: 33.97745292 | DE36: 32.95812933 | DF36: 31.96938545 | DG36: 31.01030389 | DH36: 30.07999477 | DI36: 29.17759493 | DJ36: 28.30226708 | DK36: 27.45319907 | DL36: 26.6296031 | DM36: 25.83071501 | DN36: 0 | DO36: 0 | DP36: 0 | DQ36: 0 | DR36: 0 | DS36: 0 | DT36: 51.2 | DU36: 48.64 | DV36: 46.208 | DW36: 43.8976 | DX36: 41.70272 | DY36: 39.617584 | DZ36: 37.6367048 | EA36: 35.75486956 | EB36: 34.68222347 | EC36: 33.64175677 | ED36: 32.63250407 | EE36: 31.65352894 | EF36: 30.70392308 | EG36: 29.78280538 | EH36: 28.88932122 | EI36: 28.02264159 | EJ36: 27.18196234 | EK36: 26.36650347 | EL36: 25.57550836 | EM36: 24.80824311 | EN36: 24.06399582 | EO36: 23.34207594 | EP36: 22.64181367 | EQ36: 21.96255926 | ER36: 21.30368248 | ES36: 20.664572 | ET36: 0 | EU36: =EB$182 -> 0 | EV36: 0 | EW36: 0 | EX36: 0 | EY36: 0 | EZ36: 40.96 | FA36: 38.912 | FB36: 36.9664 | FC36: 35.11808 | FD36: 33.362176 | FE36: 31.6940672 | FF36: 30.10936384 | FG36: 28.60389565 | FH36: 27.74577878 | FI36: 26.91340542 | FJ36: 26.10600325 | FK36: 25.32282316 | FL36: 24.56313846 | FM36: 23.82624431 | FN36: 23.11145698 | FO36: 22.41811327 | FP36: 21.74556987 | FQ36: 21.09320277 | FR36: 20.46040669 | FS36: 19.84659449 | FT36: 19.25119666 | FU36: 18.67366076 | FV36: 18.11345093 | FW36: 17.57004741 | FX36: 17.04294598 | FY36: 16.5316576 | FZ36: 0 | GA36: 0 | GB36: 0 | GC36: 0 | GD36: 0 | GE36: 0 | GF36: Put to Long Term Steam
A37: ". " | B37: Well 010 | Y37: =C$182 -> 0 | Z37: =D$182 -> 0 | AA37: 0 | AB37: 0 | AC37: 0 | AD37: 0 | AE37: 100 | AF37: 95 | AG37: 90.25 | AH37: 85.7375 | AI37: 81.450625 | AJ37: 77.37809375 | AK37: 73.50918906 | AL37: 69.83372961 | AM37: 67.73871772 | AN37: 65.70655619 | AO37: 63.7353595 | AP37: 61.82329872 | AQ37: 59.96859976 | AR37: 58.16954176 | AS37: 56.42445551 | AT37: 54.73172185 | AU37: 53.08977019 | AV37: 51.49707709 | AW37: 49.95216477 | AX37: 48.45359983 | AY37: 46.99999183 | AZ37: 45.58999208 | BA37: 44.22229232 | BB37: 42.89562355 | BC37: 41.60875484 | BD37: 40.3604922 | BE37: 0 | BF37: 0 | BG37: 0 | BH37: 0 | BI37: 0 | BJ37: 0 | BK37: 80 | BL37: 76 | BM37: 72.2 | BN37: 68.59 | BO37: 65.1605 | BP37: 61.902475 | BQ37: 58.80735125 | BR37: 55.86698369 | BS37: 54.19097418 | BT37: 52.56524495 | BU37: 50.9882876 | BV37: 49.45863897 | BW37: 47.97487981 | BX37: 46.53563341 | BY37: 45.13956441 | BZ37: 43.78537748 | CA37: 42.47181615 | CB37: 41.19766167 | CC37: 39.96173182 | CD37: 38.76287986 | CE37: 37.59999347 | CF37: 36.47199366 | CG37: 35.37783385 | CH37: 34.31649884 | CI37: 33.28700387 | CJ37: 32.28839376 | CK37: 0 | CL37: =BP$182 -> 0 | CM37: 0 | CN37: 0 | CO37: 0 | CP37: 0 | CQ37: 64 | CR37: 60.8 | CS37: 57.76 | CT37: 54.872 | CU37: 52.1284 | CV37: 49.52198 | CW37: 47.045881 | CX37: 44.69358695 | CY37: 43.35277934 | CZ37: 42.05219596 | DA37: 40.79063008 | DB37: 39.56691118 | DC37: 38.37990384 | DD37: 37.22850673 | DE37: 36.11165153 | DF37: 35.02830198 | DG37: 33.97745292 | DH37: 32.95812933 | DI37: 31.96938545 | DJ37: 31.01030389 | DK37: 30.07999477 | DL37: 29.17759493 | DM37: 28.30226708 | DN37: 27.45319907 | DO37: 26.6296031 | DP37: 25.83071501 | DQ37: 0 | DR37: 0 | DS37: 0 | DT37: 0 | DU37: 0 | DV37: 0 | DW37: 51.2 | DX37: 48.64 | DY37: 46.208 | DZ37: 43.8976 | EA37: 41.70272 | EB37: 39.617584 | EC37: 37.6367048 | ED37: 35.75486956 | EE37: 34.68222347 | EF37: 33.64175677 | EG37: 32.63250407 | EH37: 31.65352894 | EI37: 30.70392308 | EJ37: 29.78280538 | EK37: 28.88932122 | EL37: 28.02264159 | EM37: 27.18196234 | EN37: 26.36650347 | EO37: 25.57550836 | EP37: 24.80824311 | EQ37: 24.06399582 | ER37: 23.34207594 | ES37: 22.64181367 | ET37: 21.96255926 | EU37: 21.30368248 | EV37: 20.664572 | EW37: 0 | EX37: =EB$182 -> 0 | EY37: 0 | EZ37: 0 | FA37: 0 | FB37: 0 | FC37: 40.96 | FD37: 38.912 | FE37: 36.9664 | FF37: 35.11808 | FG37: 33.362176 | FH37: 31.6940672 | FI37: 30.10936384 | FJ37: 28.60389565 | FK37: 27.74577878 | FL37: 26.91340542 | FM37: 26.10600325 | FN37: 25.32282316 | FO37: 24.56313846 | FP37: 23.82624431 | FQ37: 23.11145698 | FR37: 22.41811327 | FS37: 21.74556987 | FT37: 21.09320277 | FU37: 20.46040669 | FV37: 19.84659449 | FW37: 19.25119666 | FX37: 18.67366076 | FY37: 18.11345093 | FZ37: 17.57004741 | GA37: 17.04294598 | GB37: 16.5316576 | GC37: 0 | GD37: 0 | GE37: 0 | GF37: 0 | GG37: 0 | GH37: 0 | GI37: 40 | GJ37: 42 | GK37: 44.1 | GL37: 46.305 | GM37: 48.62025 | GN37: 51.0512625 | GO37: 53.60382563 | GP37: 56.28401691 | GQ37: 59.09821775 | GR37: 62.05312864 | GS37: 65.15578507 | GT37: 68.41357432 | GU37: 71.83425304 | GV37: 75.42596569 | GW37: 79.19726398 | GX37: 83.15712718 | GY37: 85 | GZ37: 85 | HA37: 85 | HB37: 85 | HC37: 85 | HD37: 85 | HE37: 85 | HF37: 85 | HG37: 85 | HH37: 85 | HI37: 85 | HJ37: =GN$182 -> 85 | HK37: 85 | HL37: 85 | HM37: 85 | HN37: 85 | HO37: 85 | HP37: 85 | HQ37: 85 | HR37: 85 | HS37: 85 | HT37: 85 | HU37: 85 | HV37: 85 | HW37: 85 | HX37: 85 | HY37: 85 | HZ37: 85 | IA37: 85 | IB37: 85 | IC37: 85 | ID37: 85 | IE37: 85 | IF37: 85 | IG37: 85 | IH37: 85 | II37: 85 | IJ37: 85 | IK37: 85 | IL37: 85 | IM37: 85 | IN37: 85 | IO37: 85 | IP37: 85 | IQ37: 85 | IR37: 85 | IS37: 85 | IT37: 85 | IU37: 85 | IV37: 85 | IW37: 85 | IX37: 85 | IY37: 85 | IZ37: 85 | JA37: 85 | JB37: 85
A38: ". " | B38: Well 011 | AB38: =C$182 -> 0 | AC38: =D$182 -> 0 | AD38: 0 | AE38: 0 | AF38: 0 | AG38: 0 | AH38: 100 | AI38: 95 | AJ38: 90.25 | AK38: 85.7375 | AL38: 81.450625 | AM38: 77.37809375 | AN38: 73.50918906 | AO38: 69.83372961 | AP38: 67.73871772 | AQ38: 65.70655619 | AR38: 63.7353595 | AS38: 61.82329872 | AT38: 59.96859976 | AU38: 58.16954176 | AV38: 56.42445551 | AW38: 54.73172185 | AX38: 53.08977019 | AY38: 51.49707709 | AZ38: 49.95216477 | BA38: 48.45359983 | BB38: 46.99999183 | BC38: 45.58999208 | BD38: 44.22229232 | BE38: 42.89562355 | BF38: 41.60875484 | BG38: 40.3604922 | BH38: 0 | BI38: 0 | BJ38: 0 | BK38: 0 | BL38: 0 | BM38: 0 | BN38: 80 | BO38: 76 | BP38: 72.2 | BQ38: 68.59 | BR38: 65.1605 | BS38: 61.902475 | BT38: 58.80735125 | BU38: 55.86698369 | BV38: 54.19097418 | BW38: 52.56524495 | BX38: 50.9882876 | BY38: 49.45863897 | BZ38: 47.97487981 | CA38: 46.53563341 | CB38: 45.13956441 | CC38: 43.78537748 | CD38: 42.47181615 | CE38: 41.19766167 | CF38: 39.96173182 | CG38: 38.76287986 | CH38: 37.59999347 | CI38: 36.47199366 | CJ38: 35.37783385 | CK38: 34.31649884 | CL38: 33.28700387 | CM38: 32.28839376 | CN38: 0 | CO38: =BP$182 -> 0 | CP38: 0 | CQ38: 0 | CR38: 0 | CS38: 0 | CT38: 64 | CU38: 60.8 | CV38: 57.76 | CW38: 54.872 | CX38: 52.1284 | CY38: 49.52198 | CZ38: 47.045881 | DA38: 44.69358695 | DB38: 43.35277934 | DC38: 42.05219596 | DD38: 40.79063008 | DE38: 39.56691118 | DF38: 38.37990384 | DG38: 37.22850673 | DH38: 36.11165153 | DI38: 35.02830198 | DJ38: 33.97745292 | DK38: 32.95812933 | DL38: 31.96938545 | DM38: 31.01030389 | DN38: 30.07999477 | DO38: 29.17759493 | DP38: 28.30226708 | DQ38: 27.45319907 | DR38: 26.6296031 | DS38: 25.83071501 | DT38: 0 | DU38: 0 | DV38: 0 | DW38: 0 | DX38: 0 | DY38: 0 | DZ38: 51.2 | EA38: 48.64 | EB38: 46.208 | EC38: 43.8976 | ED38: 41.70272 | EE38: 39.617584 | EF38: 37.6367048 | EG38: 35.75486956 | EH38: 34.68222347 | EI38: 33.64175677 | EJ38: 32.63250407 | EK38: 31.65352894 | EL38: 30.70392308 | EM38: 29.78280538 | EN38: 28.88932122 | EO38: 28.02264159 | EP38: 27.18196234 | EQ38: 26.36650347 | ER38: 25.57550836 | ES38: 24.80824311 | ET38: 24.06399582 | EU38: 23.34207594 | EV38: 22.64181367 | EW38: 21.96255926 | EX38: 21.30368248 | EY38: 20.664572 | EZ38: 0 | FA38: =EB$182 -> 0 | FB38: 0 | FC38: 0 | FD38: 0 | FE38: 0 | FF38: 40.96 | FG38: 38.912 | FH38: 36.9664 | FI38: 35.11808 | FJ38: 33.362176 | FK38: 31.6940672 | FL38: 30.10936384 | FM38: 28.60389565 | FN38: 27.74577878 | FO38: 26.91340542 | FP38: 26.10600325 | FQ38: 25.32282316 | FR38: 24.56313846 | FS38: 23.82624431 | FT38: 23.11145698 | FU38: 22.41811327 | FV38: 21.74556987 | FW38: 21.09320277 | FX38: 20.46040669 | FY38: 19.84659449 | FZ38: 19.25119666 | GA38: 18.67366076 | GB38: 18.11345093 | GC38: 17.57004741 | GD38: 17.04294598 | GE38: 16.5316576 | GF38: 0 | GG38: 0 | GH38: 0 | GI38: 0 | GJ38: 0 | GK38: 0 | GL38: 40 | GM38: 42 | GN38: 44.1 | GO38: 46.305 | GP38: 48.62025 | GQ38: 51.0512625 | GR38: 53.60382563 | GS38: 56.28401691 | GT38: 59.09821775 | GU38: 62.05312864 | GV38: 65.15578507 | GW38: 68.41357432 | GX38: 71.83425304 | GY38: 75.42596569 | GZ38: 79.19726398 | HA38: 83.15712718 | HB38: 85 | HC38: 85 | HD38: 85 | HE38: 85 | HF38: 85 | HG38: 85 | HH38: 85 | HI38: 85 | HJ38: 85 | HK38: 85 | HL38: 85 | HM38: =GN$182 -> 85 | HN38: 85 | HO38: 85 | HP38: 85 | HQ38: 85 | HR38: 85 | HS38: 85 | HT38: 85 | HU38: 85 | HV38: 85 | HW38: 85 | HX38: 85 | HY38: 85 | HZ38: 85 | IA38: 85 | IB38: 85 | IC38: 85 | ID38: 85 | IE38: 85 | IF38: 85 | IG38: 85 | IH38: 85 | II38: 85 | IJ38: 85 | IK38: 85 | IL38: 85 | IM38: 85 | IN38: 85 | IO38: 85 | IP38: 85 | IQ38: 85 | IR38: 85 | IS38: 85 | IT38: 85 | IU38: 85 | IV38: 85 | IW38: 85 | IX38: 85 | IY38: 85 | IZ38: 85 | JA38: 85 | JB38: 85
A39: ". " | B39: Well 012 | AE39: =C$182 -> 0 | AF39: =D$182 -> 0 | AG39: 0 | AH39: 0 | AI39: 0 | AJ39: 0 | AK39: 100 | AL39: 95 | AM39: 90.25 | AN39: 85.7375 | AO39: 81.450625 | AP39: 77.37809375 | AQ39: 73.50918906 | AR39: 69.83372961 | AS39: 67.73871772 | AT39: 65.70655619 | AU39: 63.7353595 | AV39: 61.82329872 | AW39: 59.96859976 | AX39: 58.16954176 | AY39: 56.42445551 | AZ39: 54.73172185 | BA39: 53.08977019 | BB39: 51.49707709 | BC39: 49.95216477 | BD39: 48.45359983 | BE39: 46.99999183 | BF39: 45.58999208 | BG39: 44.22229232 | BH39: 42.89562355 | BI39: 41.60875484 | BJ39: 40.3604922 | BK39: 0 | BL39: 0 | BM39: 0 | BN39: 0 | BO39: 0 | BP39: 0 | BQ39: 80 | BR39: 76 | BS39: 72.2 | BT39: 68.59 | BU39: 65.1605 | BV39: 61.902475 | BW39: 58.80735125 | BX39: 55.86698369 | BY39: 54.19097418 | BZ39: 52.56524495 | CA39: 50.9882876 | CB39: 49.45863897 | CC39: 47.97487981 | CD39: 46.53563341 | CE39: 45.13956441 | CF39: 43.78537748 | CG39: 42.47181615 | CH39: 41.19766167 | CI39: 39.96173182 | CJ39: 38.76287986 | CK39: 37.59999347 | CL39: 36.47199366 | CM39: 35.37783385 | CN39: 34.31649884 | CO39: 33.28700387 | CP39: 32.28839376 | CQ39: 0 | CR39: =BP$182 -> 0 | CS39: 0 | CT39: 0 | CU39: 0 | CV39: 0 | CW39: 64 | CX39: 60.8 | CY39: 57.76 | CZ39: 54.872 | DA39: 52.1284 | DB39: 49.52198 | DC39: 47.045881 | DD39: 44.69358695 | DE39: 43.35277934 | DF39: 42.05219596 | DG39: 40.79063008 | DH39: 39.56691118 | DI39: 38.37990384 | DJ39: 37.22850673 | DK39: 36.11165153 | DL39: 35.02830198 | DM39: 33.97745292 | DN39: 32.95812933 | DO39: 31.96938545 | DP39: 31.01030389 | DQ39: 30.07999477 | DR39: 29.17759493 | DS39: 28.30226708 | DT39: 27.45319907 | DU39: 26.6296031 | DV39: 25.83071501 | DW39: 0 | DX39: 0 | DY39: 0 | DZ39: 0 | EA39: 0 | EB39: 0 | EC39: 51.2 | ED39: 48.64 | EE39: 46.208 | EF39: 43.8976 | EG39: 41.70272 | EH39: 39.617584 | EI39: 37.6367048 | EJ39: 35.75486956 | EK39: 34.68222347 | EL39: 33.64175677 | EM39: 32.63250407 | EN39: 31.65352894 | EO39: 30.70392308 | EP39: 29.78280538 | EQ39: 28.88932122 | ER39: 28.02264159 | ES39: 27.18196234 | ET39: 26.36650347 | EU39: 25.57550836 | EV39: 24.80824311 | EW39: 24.06399582 | EX39: 23.34207594 | EY39: 22.64181367 | EZ39: 21.96255926 | FA39: 21.30368248 | FB39: 20.664572 | FC39: 0 | FD39: =EB$182 -> 0 | FE39: 0 | FF39: 0 | FG39: 0 | FH39: 0 | FI39: 40.96 | FJ39: 38.912 | FK39: 36.9664 | FL39: 35.11808 | FM39: 33.362176 | FN39: 31.6940672 | FO39: 30.10936384 | FP39: 28.60389565 | FQ39: 27.74577878 | FR39: 26.91340542 | FS39: 26.10600325 | FT39: 25.32282316 | FU39: 24.56313846 | FV39: 23.82624431 | FW39: 23.11145698 | FX39: 22.41811327 | FY39: 21.74556987 | FZ39: 21.09320277 | GA39: 20.46040669 | GB39: 19.84659449 | GC39: 19.25119666 | GD39: 18.67366076 | GE39: 18.11345093 | GF39: 17.57004741 | GG39: 17.04294598 | GH39: 16.5316576 | GI39: 0 | GJ39: 0 | GK39: 0 | GL39: 0 | GM39: 0 | GN39: 0 | GO39: 40 | GP39: 42 | GQ39: 44.1 | GR39: 46.305 | GS39: 48.62025 | GT39: 51.0512625 | GU39: 53.60382563 | GV39: 56.28401691 | GW39: 59.09821775 | GX39: 62.05312864 | GY39: 65.15578507 | GZ39: 68.41357432 | HA39: 71.83425304 | HB39: 75.42596569 | HC39: 79.19726398 | HD39: 83.15712718 | HE39: 85 | HF39: 85 | HG39: 85 | HH39: 85 | HI39: 85 | HJ39: 85 | HK39: 85 | HL39: 85 | HM39: 85 | HN39: 85 | HO39: 85 | HP39: =GN$182 -> 85 | HQ39: 85 | HR39: 85 | HS39: 85 | HT39: 85 | HU39: 85 | HV39: 85 | HW39: 85 | HX39: 85 | HY39: 85 | HZ39: 85 | IA39: 85 | IB39: 85 | IC39: 85 | ID39: 85 | IE39: 85 | IF39: 85 | IG39: 85 | IH39: 85 | II39: 85 | IJ39: 85 | IK39: 85 | IL39: 85 | IM39: 85 | IN39: 85 | IO39: 85 | IP39: 85 | IQ39: 85 | IR39: 85 | IS39: 85 | IT39: 85 | IU39: 85 | IV39: 85 | IW39: 85 | IX39: 85 | IY39: 85 | IZ39: 85 | JA39: 85 | JB39: 85
A40: ". " | B40: Well 013 | AH40: =C$182 -> 0 | AI40: =D$182 -> 0 | AJ40: 0 | AK40: 0 | AL40: 0 | AM40: 0 | AN40: 100 | AO40: 95 | AP40: 90.25 | AQ40: 85.7375 | AR40: 81.450625 | AS40: 77.37809375 | AT40: 73.50918906 | AU40: 69.83372961 | AV40: 67.73871772 | AW40: 65.70655619 | AX40: 63.7353595 | AY40: 61.82329872 | AZ40: 59.96859976 | BA40: 58.16954176 | BB40: 56.42445551 | BC40: 54.73172185 | BD40: 53.08977019 | BE40: 51.49707709 | BF40: 49.95216477 | BG40: 48.45359983 | BH40: 46.99999183 | BI40: 45.58999208 | BJ40: 44.22229232 | BK40: 42.89562355 | BL40: 41.60875484 | BM40: 40.3604922 | BN40: 0 | BO40: 0 | BP40: 0 | BQ40: 0 | BR40: 0 | BS40: 0 | BT40: 80 | BU40: 76 | BV40: 72.2 | BW40: 68.59 | BX40: 65.1605 | BY40: 61.902475 | BZ40: 58.80735125 | CA40: 55.86698369 | CB40: 54.19097418 | CC40: 52.56524495 | CD40: 50.9882876 | CE40: 49.45863897 | CF40: 47.97487981 | CG40: 46.53563341 | CH40: 45.13956441 | CI40: 43.78537748 | CJ40: 42.47181615 | CK40: 41.19766167 | CL40: 39.96173182 | CM40: 38.76287986 | CN40: 37.59999347 | CO40: 36.47199366 | CP40: 35.37783385 | CQ40: 34.31649884 | CR40: 33.28700387 | CS40: 32.28839376 | CT40: 0 | CU40: =BP$182 -> 0 | CV40: 0 | CW40: 0 | CX40: 0 | CY40: 0 | CZ40: 64 | DA40: 60.8 | DB40: 57.76 | DC40: 54.872 | DD40: 52.1284 | DE40: 49.52198 | DF40: 47.045881 | DG40: 44.69358695 | DH40: 43.35277934 | DI40: 42.05219596 | DJ40: 40.79063008 | DK40: 39.56691118 | DL40: 38.37990384 | DM40: 37.22850673 | DN40: 36.11165153 | DO40: 35.02830198 | DP40: 33.97745292 | DQ40: 32.95812933 | DR40: 31.96938545 | DS40: 31.01030389 | DT40: 30.07999477 | DU40: 29.17759493 | DV40: 28.30226708 | DW40: 27.45319907 | DX40: 26.6296031 | DY40: 25.83071501 | DZ40: 0 | EA40: 0 | EB40: 0 | EC40: 0 | ED40: 0 | EE40: 0 | EF40: 51.2 | EG40: 48.64 | EH40: 46.208 | EI40: 43.8976 | EJ40: 41.70272 | EK40: 39.617584 | EL40: 37.6367048 | EM40: 35.75486956 | EN40: 34.68222347 | EO40: 33.64175677 | EP40: 32.63250407 | EQ40: 31.65352894 | ER40: 30.70392308 | ES40: 29.78280538 | ET40: 28.88932122 | EU40: 28.02264159 | EV40: 27.18196234 | EW40: 26.36650347 | EX40: 25.57550836 | EY40: 24.80824311 | EZ40: 24.06399582 | FA40: 23.34207594 | FB40: 22.64181367 | FC40: 21.96255926 | FD40: 21.30368248 | FE40: 20.664572 | FF40: 0 | FG40: =EB$182 -> 0 | FH40: 0 | FI40: 0 | FJ40: 0 | FK40: 0 | FL40: 40.96 | FM40: 38.912 | FN40: 36.9664 | FO40: 35.11808 | FP40: 33.362176 | FQ40: 31.6940672 | FR40: 30.10936384 | FS40: 28.60389565 | FT40: 27.74577878 | FU40: 26.91340542 | FV40: 26.10600325 | FW40: 25.32282316 | FX40: 24.56313846 | FY40: 23.82624431 | FZ40: 23.11145698 | GA40: 22.41811327 | GB40: 21.74556987 | GC40: 21.09320277 | GD40: 20.46040669 | GE40: 19.84659449 | GF40: 19.25119666 | GG40: 18.67366076 | GH40: 18.11345093 | GI40: 17.57004741 | GJ40: 17.04294598 | GK40: 16.5316576 | GL40: 0 | GM40: 0 | GN40: 0 | GO40: 0 | GP40: 0 | GQ40: 0 | GR40: 40 | GS40: 42 | GT40: 44.1 | GU40: 46.305 | GV40: 48.62025 | GW40: 51.0512625 | GX40: 53.60382563 | GY40: 56.28401691 | GZ40: 59.09821775 | HA40: 62.05312864 | HB40: 65.15578507 | HC40: 68.41357432 | HD40: 71.83425304 | HE40: 75.42596569 | HF40: 79.19726398 | HG40: 83.15712718 | HH40: 85 | HI40: 85 | HJ40: 85 | HK40: 85 | HL40: 85 | HM40: 85 | HN40: 85 | HO40: 85 | HP40: 85 | HQ40: 85 | HR40: 85 | HS40: =GN$182 -> 85 | HT40: 85 | HU40: 85 | HV40: 85 | HW40: 85 | HX40: 85 | HY40: 85 | HZ40: 85 | IA40: 85 | IB40: 85 | IC40: 85 | ID40: 85 | IE40: 85 | IF40: 85 | IG40: 85 | IH40: 85 | II40: 85 | IJ40: 85 | IK40: 85 | IL40: 85 | IM40: 85 | IN40: 85 | IO40: 85 | IP40: 85 | IQ40: 85 | IR40: 85 | IS40: 85 | IT40: 85 | IU40: 85 | IV40: 85 | IW40: 85 | IX40: 85 | IY40: 85 | IZ40: 85 | JA40: 85 | JB40: 85
A41: ". " | B41: Well 014 | AK41: =C$182 -> 0 | AL41: =D$182 -> 0 | AM41: 0 | AN41: 0 | AO41: 0 | AP41: 0 | AQ41: 100 | AR41: 95 | AS41: 90.25 | AT41: 85.7375 | AU41: 81.450625 | AV41: 77.37809375 | AW41: 73.50918906 | AX41: 69.83372961 | AY41: 67.73871772 | AZ41: 65.70655619 | BA41: 63.7353595 | BB41: 61.82329872 | BC41: 59.96859976 | BD41: 58.16954176 | BE41: 56.42445551 | BF41: 54.73172185 | BG41: 53.08977019 | BH41: 51.49707709 | BI41: 49.95216477 | BJ41: 48.45359983 | BK41: 46.99999183 | BL41: 45.58999208 | BM41: 44.22229232 | BN41: 42.89562355 | BO41: 41.60875484 | BP41: 40.3604922 | BQ41: 0 | BR41: 0 | BS41: 0 | BT41: 0 | BU41: 0 | BV41: 0 | BW41: 80 | BX41: 76 | BY41: 72.2 | BZ41: 68.59 | CA41: 65.1605 | CB41: 61.902475 | CC41: 58.80735125 | CD41: 55.86698369 | CE41: 54.19097418 | CF41: 52.56524495 | CG41: 50.9882876 | CH41: 49.45863897 | CI41: 47.97487981 | CJ41: 46.53563341 | CK41: 45.13956441 | CL41: 43.78537748 | CM41: 42.47181615 | CN41: 41.19766167 | CO41: 39.96173182 | CP41: 38.76287986 | CQ41: 37.59999347 | CR41: 36.47199366 | CS41: 35.37783385 | CT41: 34.31649884 | CU41: 33.28700387 | CV41: 32.28839376 | CW41: 0 | CX41: =BP$182 -> 0 | CY41: 0 | CZ41: 0 | DA41: 0 | DB41: 0 | DC41: 64 | DD41: 60.8 | DE41: 57.76 | DF41: 54.872 | DG41: 52.1284 | DH41: 49.52198 | DI41: 47.045881 | DJ41: 44.69358695 | DK41: 43.35277934 | DL41: 42.05219596 | DM41: 40.79063008 | DN41: 39.56691118 | DO41: 38.37990384 | DP41: 37.22850673 | DQ41: 36.11165153 | DR41: 35.02830198 | DS41: 33.97745292 | DT41: 32.95812933 | DU41: 31.96938545 | DV41: 31.01030389 | DW41: 30.07999477 | DX41: 29.17759493 | DY41: 28.30226708 | DZ41: 27.45319907 | EA41: 26.6296031 | EB41: 25.83071501 | EC41: 0 | ED41: 0 | EE41: 0 | EF41: 0 | EG41: 0 | EH41: 0 | EI41: 51.2 | EJ41: 48.64 | EK41: 46.208 | EL41: 43.8976 | EM41: 41.70272 | EN41: 39.617584 | EO41: 37.6367048 | EP41: 35.75486956 | EQ41: 34.68222347 | ER41: 33.64175677 | ES41: 32.63250407 | ET41: 31.65352894 | EU41: 30.70392308 | EV41: 29.78280538 | EW41: 28.88932122 | EX41: 28.02264159 | EY41: 27.18196234 | EZ41: 26.36650347 | FA41: 25.57550836 | FB41: 24.80824311 | FC41: 24.06399582 | FD41: 23.34207594 | FE41: 22.64181367 | FF41: 21.96255926 | FG41: 21.30368248 | FH41: 20.664572 | FI41: 0 | FJ41: =EB$182 -> 0 | FK41: 0 | FL41: 0 | FM41: 0 | FN41: 0 | FO41: 40.96 | FP41: 38.912 | FQ41: 36.9664 | FR41: 35.11808 | FS41: 33.362176 | FT41: 31.6940672 | FU41: 30.10936384 | FV41: 28.60389565 | FW41: 27.74577878 | FX41: 26.91340542 | FY41: 26.10600325 | FZ41: 25.32282316 | GA41: 24.56313846 | GB41: 23.82624431 | GC41: 23.11145698 | GD41: 22.41811327 | GE41: 21.74556987 | GF41: 21.09320277 | GG41: 20.46040669 | GH41: 19.84659449 | GI41: 19.25119666 | GJ41: 18.67366076 | GK41: 18.11345093 | GL41: 17.57004741 | GM41: 17.04294598 | GN41: 16.5316576 | GO41: 0 | GP41: 0 | GQ41: 0 | GR41: 0 | GS41: 0 | GT41: 0 | GU41: 40 | GV41: 42 | GW41: 44.1 | GX41: 46.305 | GY41: 48.62025 | GZ41: 51.0512625 | HA41: 53.60382563 | HB41: 56.28401691 | HC41: 59.09821775 | HD41: 62.05312864 | HE41: 65.15578507 | HF41: 68.41357432 | HG41: 71.83425304 | HH41: 75.42596569 | HI41: 79.19726398 | HJ41: 83.15712718 | HK41: 85 | HL41: 85 | HM41: 85 | HN41: 85 | HO41: 85 | HP41: 85 | HQ41: 85 | HR41: 85 | HS41: 85 | HT41: 85 | HU41: 85 | HV41: =GN$182 -> 85 | HW41: 85 | HX41: 85 | HY41: 85 | HZ41: 85 | IA41: 85 | IB41: 85 | IC41: 85 | ID41: 85 | IE41: 85 | IF41: 85 | IG41: 85 | IH41: 85 | II41: 85 | IJ41: 85 | IK41: 85 | IL41: 85 | IM41: 85 | IN41: 85 | IO41: 85 | IP41: 85 | IQ41: 85 | IR41: 85 | IS41: 85 | IT41: 85 | IU41: 85 | IV41: 85 | IW41: 85 | IX41: 85 | IY41: 85 | IZ41: 85 | JA41: 85 | JB41: 85
A42: 50 MMBTU | B42: Well 015 | AH42: These two plus three above | AI42: =C$182 -> 0 | AJ42: =D$182 -> 0 | AK42: 0 | AL42: 0 | AM42: 0 | AN42: 0 | AO42: 100 | AP42: 95 | AQ42: 90.25 | AR42: 85.7375 | AS42: 81.450625 | AT42: 77.37809375 | AU42: 73.50918906 | AV42: 69.83372961 | AW42: 67.73871772 | AX42: 65.70655619 | AY42: 63.7353595 | AZ42: 61.82329872 | BA42: 59.96859976 | BB42: 58.16954176 | BC42: 56.42445551 | BD42: 54.73172185 | BE42: 53.08977019 | BF42: 51.49707709 | BG42: 49.95216477 | BH42: 48.45359983 | BI42: 46.99999183 | BJ42: 45.58999208 | BK42: 44.22229232 | BL42: 42.89562355 | BM42: 41.60875484 | BN42: 40.3604922 | BO42: 0 | BP42: 0 | BQ42: 0 | BR42: 0 | BS42: 0 | BT42: 0 | BU42: 80 | BV42: 76 | BW42: 72.2 | BX42: 68.59 | BY42: 65.1605 | BZ42: 61.902475 | CA42: 58.80735125 | CB42: 55.86698369 | CC42: 54.19097418 | CD42: 52.56524495 | CE42: 50.9882876 | CF42: 49.45863897 | CG42: 47.97487981 | CH42: 46.53563341 | CI42: 45.13956441 | CJ42: 43.78537748 | CK42: 42.47181615 | CL42: 41.19766167 | CM42: 39.96173182 | CN42: 38.76287986 | CO42: 37.59999347 | CP42: 36.47199366 | CQ42: 35.37783385 | CR42: 34.31649884 | CS42: 33.28700387 | CT42: 32.28839376 | CU42: 0 | CV42: =BP$182 -> 0 | CW42: 0 | CX42: 0 | CY42: 0 | CZ42: 0 | DA42: 64 | DB42: 60.8 | DC42: 57.76 | DD42: 54.872 | DE42: 52.1284 | DF42: 49.52198 | DG42: 47.045881 | DH42: 44.69358695 | DI42: 43.35277934 | DJ42: 42.05219596 | DK42: 40.79063008 | DL42: 39.56691118 | DM42: 38.37990384 | DN42: 37.22850673 | DO42: 36.11165153 | DP42: 35.02830198 | DQ42: 33.97745292 | DR42: 32.95812933 | DS42: 31.96938545 | DT42: 31.01030389 | DU42: 30.07999477 | DV42: 29.17759493 | DW42: 28.30226708 | DX42: 27.45319907 | DY42: 26.6296031 | DZ42: 25.83071501 | EA42: 0 | EB42: 0 | EC42: 0 | ED42: 0 | EE42: 0 | EF42: 0 | EG42: 51.2 | EH42: 48.64 | EI42: 46.208 | EJ42: 43.8976 | EK42: 41.70272 | EL42: 39.617584 | EM42: 37.6367048 | EN42: 35.75486956 | EO42: 34.68222347 | EP42: 33.64175677 | EQ42: 32.63250407 | ER42: 31.65352894 | ES42: 30.70392308 | ET42: 29.78280538 | EU42: 28.88932122 | EV42: 28.02264159 | EW42: 27.18196234 | EX42: 26.36650347 | EY42: 25.57550836 | EZ42: 24.80824311 | FA42: 24.06399582 | FB42: 23.34207594 | FC42: 22.64181367 | FD42: 21.96255926 | FE42: 21.30368248 | FF42: 20.664572 | FG42: 0 | FH42: =EB$182 -> 0 | FI42: 0 | FJ42: 0 | FK42: 0 | FL42: 0 | FM42: 40.96 | FN42: 38.912 | FO42: 36.9664 | FP42: 35.11808 | FQ42: 33.362176 | FR42: 31.6940672 | FS42: 30.10936384 | FT42: 28.60389565 | FU42: 27.74577878 | FV42: 26.91340542 | FW42: 26.10600325 | FX42: 25.32282316 | FY42: 24.56313846 | FZ42: 23.82624431 | GA42: 23.11145698 | GB42: 22.41811327 | GC42: 21.74556987 | GD42: 21.09320277 | GE42: 20.46040669 | GF42: 19.84659449 | GG42: 19.25119666 | GH42: 18.67366076 | GI42: 18.11345093 | GJ42: 17.57004741 | GK42: 17.04294598 | GL42: 16.5316576 | GM42: 0 | GN42: 0 | GO42: 0 | GP42: 0 | GQ42: 0 | GR42: 0 | GS42: 40 | GT42: 42 | GU42: 44.1 | GV42: 46.305 | GW42: 48.62025 | GX42: 51.0512625 | GY42: 53.60382563 | GZ42: 56.28401691 | HA42: 59.09821775 | HB42: 62.05312864 | HC42: 65.15578507 | HD42: 68.41357432 | HE42: 71.83425304 | HF42: 75.42596569 | HG42: 79.19726398 | HH42: 83.15712718 | HI42: 85 | HJ42: 85 | HK42: 85 | HL42: 85 | HM42: 85 | HN42: 85 | HO42: 85 | HP42: 85 | HQ42: 85 | HR42: 85 | HS42: 85 | HT42: =GN$182 -> 85 | HU42: 85 | HV42: 85 | HW42: 85 | HX42: 85 | HY42: 85 | HZ42: 85 | IA42: 85 | IB42: 85 | IC42: 85 | ID42: 85 | IE42: 85 | IF42: 85 | IG42: 85 | IH42: 85 | II42: 85 | IJ42: 85 | IK42: 85 | IL42: 85 | IM42: 85 | IN42: 85 | IO42: 85 | IP42: 85 | IQ42: 85 | IR42: 85 | IS42: 85 | IT42: 85 | IU42: 85 | IV42: 85 | IW42: 85 | IX42: 85 | IY42: 85 | IZ42: 85 | JA42: 85 | JB42: 85
A43: Generator | B43: Well 016 | AI43: =C$182 -> 0 | AJ43: 0 | AK43: 0 | AL43: 0 | AM43: 0 | AN43: 0 | AO43: 100 | AP43: 95 | AQ43: 90.25 | AR43: 85.7375 | AS43: 81.450625 | AT43: 77.37809375 | AU43: 73.50918906 | AV43: 69.83372961 | AW43: 67.73871772 | AX43: 65.70655619 | AY43: 63.7353595 | AZ43: 61.82329872 | BA43: 59.96859976 | BB43: 58.16954176 | BC43: 56.42445551 | BD43: 54.73172185 | BE43: 53.08977019 | BF43: 51.49707709 | BG43: 49.95216477 | BH43: 48.45359983 | BI43: 46.99999183 | BJ43: 45.58999208 | BK43: 44.22229232 | BL43: 42.89562355 | BM43: 41.60875484 | BN43: 40.3604922 | BO43: 0 | BP43: 0 | BQ43: 0 | BR43: 0 | BS43: 0 | BT43: 0 | BU43: 80 | BV43: 76 | BW43: 72.2 | BX43: 68.59 | BY43: 65.1605 | BZ43: 61.902475 | CA43: 58.80735125 | CB43: 55.86698369 | CC43: 54.19097418 | CD43: 52.56524495 | CE43: 50.9882876 | CF43: 49.45863897 | CG43: 47.97487981 | CH43: 46.53563341 | CI43: 45.13956441 | CJ43: 43.78537748 | CK43: 42.47181615 | CL43: 41.19766167 | CM43: 39.96173182 | CN43: 38.76287986 | CO43: 37.59999347 | CP43: 36.47199366 | CQ43: 35.37783385 | CR43: 34.31649884 | CS43: 33.28700387 | CT43: 32.28839376 | CU43: 0 | CV43: 0 | CW43: 0 | CX43: 0 | CY43: 0 | CZ43: 0 | DA43: 64 | DB43: 60.8 | DC43: 57.76 | DD43: 54.872 | DE43: 52.1284 | DF43: 49.52198 | DG43: 47.045881 | DH43: 44.69358695 | DI43: 43.35277934 | DJ43: 42.05219596 | DK43: 40.79063008 | DL43: 39.56691118 | DM43: 38.37990384 | DN43: 37.22850673 | DO43: 36.11165153 | DP43: 35.02830198 | DQ43: 33.97745292 | DR43: 32.95812933 | DS43: 31.96938545 | DT43: 31.01030389 | DU43: 30.07999477 | DV43: 29.17759493 | DW43: 28.30226708 | DX43: 27.45319907 | DY43: 26.6296031 | DZ43: 25.83071501 | EA43: 0 | EB43: 0 | EC43: 0 | ED43: 0 | EE43: 0 | EF43: 0 | EG43: 51.2 | EH43: 48.64 | EI43: 46.208 | EJ43: 43.8976 | EK43: 41.70272 | EL43: 39.617584 | EM43: 37.6367048 | EN43: 35.75486956 | EO43: 34.68222347 | EP43: 33.64175677 | EQ43: 32.63250407 | ER43: 31.65352894 | ES43: 30.70392308 | ET43: 29.78280538 | EU43: 28.88932122 | EV43: 28.02264159 | EW43: 27.18196234 | EX43: 26.36650347 | EY43: 25.57550836 | EZ43: 24.80824311 | FA43: 24.06399582 | FB43: 23.34207594 | FC43: 22.64181367 | FD43: 21.96255926 | FE43: 21.30368248 | FF43: 20.664572 | FG43: 0 | FH43: 0 | FI43: 0 | FJ43: 0 | FK43: 0 | FL43: 0 | FM43: 40.96 | FN43: 38.912 | FO43: 36.9664 | FP43: 35.11808 | FQ43: 33.362176 | FR43: 31.6940672 | FS43: 30.10936384 | FT43: 28.60389565 | FU43: 27.74577878 | FV43: 26.91340542 | FW43: 26.10600325 | FX43: 25.32282316 | FY43: 24.56313846 | FZ43: 23.82624431 | GA43: 23.11145698 | GB43: 22.41811327 | GC43: 21.74556987 | GD43: 21.09320277 | GE43: 20.46040669 | GF43: 19.84659449 | GG43: 19.25119666 | GH43: 18.67366076 | GI43: 18.11345093 | GJ43: 17.57004741 | GK43: 17.04294598 | GL43: 16.5316576 | GM43: 0 | GN43: 0 | GO43: 0 | GP43: 0 | GQ43: 0 | GR43: 0 | GS43: 40 | GT43: 42 | GU43: 44.1 | GV43: 46.305 | GW43: 48.62025 | GX43: 51.0512625 | GY43: 53.60382563 | GZ43: 56.28401691 | HA43: 59.09821775 | HB43: 62.05312864 | HC43: 65.15578507 | HD43: 68.41357432 | HE43: 71.83425304 | HF43: 75.42596569 | HG43: 79.19726398 | HH43: 83.15712718 | HI43: 85 | HJ43: 85 | HK43: 85 | HL43: 85 | HM43: 85 | HN43: 85 | HO43: 85 | HP43: 85 | HQ43: 85 | HR43: 85 | HS43: 85 | HT43: 85 | HU43: 85 | HV43: 85 | HW43: 85 | HX43: 85 | HY43: 85 | HZ43: 85 | IA43: 85 | IB43: 85 | IC43: 85 | ID43: 85 | IE43: 85 | IF43: 85 | IG43: 85 | IH43: 85 | II43: 85 | IJ43: 85 | IK43: 85 | IL43: 85 | IM43: 85 | IN43: 85 | IO43: 85 | IP43: 85 | IQ43: 85 | IR43: 85 | IS43: 85 | IT43: 85 | IU43: 85 | IV43: 85 | IW43: 85 | IX43: 85 | IY43: 85 | IZ43: 85 | JA43: 85 | JB43: 85
A44: 5 Wells at | B44: Well 017 | AL44: =C$182 -> 0 | AM44: =D$182 -> 0 | AN44: 0 | AO44: 0 | AP44: 0 | AQ44: 0 | AR44: 100 | AS44: 95 | AT44: 90.25 | AU44: 85.7375 | AV44: 81.450625 | AW44: 77.37809375 | AX44: 73.50918906 | AY44: 69.83372961 | AZ44: 67.73871772 | BA44: 65.70655619 | BB44: 63.7353595 | BC44: 61.82329872 | BD44: 59.96859976 | BE44: 58.16954176 | BF44: 56.42445551 | BG44: 54.73172185 | BH44: 53.08977019 | BI44: 51.49707709 | BJ44: 49.95216477 | BK44: 48.45359983 | BL44: 46.99999183 | BM44: 45.58999208 | BN44: 44.22229232 | BO44: 42.89562355 | BP44: 41.60875484 | BQ44: 40.3604922 | BR44: 0 | BS44: 0 | BT44: 0 | BU44: 0 | BV44: 0 | BW44: 0 | BX44: 80 | BY44: 76 | BZ44: 72.2 | CA44: 68.59 | CB44: 65.1605 | CC44: 61.902475 | CD44: 58.80735125 | CE44: 55.86698369 | CF44: 54.19097418 | CG44: 52.56524495 | CH44: 50.9882876 | CI44: 49.45863897 | CJ44: 47.97487981 | CK44: 46.53563341 | CL44: 45.13956441 | CM44: 43.78537748 | CN44: 42.47181615 | CO44: 41.19766167 | CP44: 39.96173182 | CQ44: 38.76287986 | CR44: 37.59999347 | CS44: 36.47199366 | CT44: 35.37783385 | CU44: 34.31649884 | CV44: 33.28700387 | CW44: 32.28839376 | CX44: 0 | CY44: =BP$182 -> 0 | CZ44: 0 | DA44: 0 | DB44: 0 | DC44: 0 | DD44: 64 | DE44: 60.8 | DF44: 57.76 | DG44: 54.872 | DH44: 52.1284 | DI44: 49.52198 | DJ44: 47.045881 | DK44: 44.69358695 | DL44: 43.35277934 | DM44: 42.05219596 | DN44: 40.79063008 | DO44: 39.56691118 | DP44: 38.37990384 | DQ44: 37.22850673 | DR44: 36.11165153 | DS44: 35.02830198 | DT44: 33.97745292 | DU44: 32.95812933 | DV44: 31.96938545 | DW44: 31.01030389 | DX44: 30.07999477 | DY44: 29.17759493 | DZ44: 28.30226708 | EA44: 27.45319907 | EB44: 26.6296031 | EC44: 25.83071501 | ED44: 0 | EE44: 0 | EF44: 0 | EG44: 0 | EH44: 0 | EI44: 0 | EJ44: 51.2 | EK44: 48.64 | EL44: 46.208 | EM44: 43.8976 | EN44: 41.70272 | EO44: 39.617584 | EP44: 37.6367048 | EQ44: 35.75486956 | ER44: 34.68222347 | ES44: 33.64175677 | ET44: 32.63250407 | EU44: 31.65352894 | EV44: 30.70392308 | EW44: 29.78280538 | EX44: 28.88932122 | EY44: 28.02264159 | EZ44: 27.18196234 | FA44: 26.36650347 | FB44: 25.57550836 | FC44: 24.80824311 | FD44: 24.06399582 | FE44: 23.34207594 | FF44: 22.64181367 | FG44: 21.96255926 | FH44: 21.30368248 | FI44: 20.664572 | FJ44: 0 | FK44: =EB$182 -> 0 | FL44: 0 | FM44: 0 | FN44: 0 | FO44: 0 | FP44: 40.96 | FQ44: 38.912 | FR44: 36.9664 | FS44: 35.11808 | FT44: 33.362176 | FU44: 31.6940672 | FV44: 30.10936384 | FW44: 28.60389565 | FX44: 27.74577878 | FY44: 26.91340542 | FZ44: 26.10600325 | GA44: 25.32282316 | GB44: 24.56313846 | GC44: 23.82624431 | GD44: 23.11145698 | GE44: 22.41811327 | GF44: 21.74556987 | GG44: 21.09320277 | GH44: 20.46040669 | GI44: 19.84659449 | GJ44: 19.25119666 | GK44: 18.67366076 | GL44: 18.11345093 | GM44: 17.57004741 | GN44: 17.04294598 | GO44: 16.5316576 | GP44: 0 | GQ44: 0 | GR44: 0 | GS44: 0 | GT44: 0 | GU44: 0 | GV44: Put to Long Term Steam
A45: a time | B45: Well 018 | AL45: =C$182 -> 0 | AM45: 0 | AN45: 0 | AO45: 0 | AP45: 0 | AQ45: 0 | AR45: 100 | AS45: 95 | AT45: 90.25 | AU45: 85.7375 | AV45: 81.450625 | AW45: 77.37809375 | AX45: 73.50918906 | AY45: 69.83372961 | AZ45: 67.73871772 | BA45: 65.70655619 | BB45: 63.7353595 | BC45: 61.82329872 | BD45: 59.96859976 | BE45: 58.16954176 | BF45: 56.42445551 | BG45: 54.73172185 | BH45: 53.08977019 | BI45: 51.49707709 | BJ45: 49.95216477 | BK45: 48.45359983 | BL45: 46.99999183 | BM45: 45.58999208 | BN45: 44.22229232 | BO45: 42.89562355 | BP45: 41.60875484 | BQ45: 40.3604922 | BR45: 0 | BS45: 0 | BT45: 0 | BU45: 0 | BV45: 0 | BW45: 0 | BX45: 80 | BY45: 76 | BZ45: 72.2 | CA45: 68.59 | CB45: 65.1605 | CC45: 61.902475 | CD45: 58.80735125 | CE45: 55.86698369 | CF45: 54.19097418 | CG45: 52.56524495 | CH45: 50.9882876 | CI45: 49.45863897 | CJ45: 47.97487981 | CK45: 46.53563341 | CL45: 45.13956441 | CM45: 43.78537748 | CN45: 42.47181615 | CO45: 41.19766167 | CP45: 39.96173182 | CQ45: 38.76287986 | CR45: 37.59999347 | CS45: 36.47199366 | CT45: 35.37783385 | CU45: 34.31649884 | CV45: 33.28700387 | CW45: 32.28839376 | CX45: 0 | CY45: 0 | CZ45: 0 | DA45: 0 | DB45: 0 | DC45: 0 | DD45: 64 | DE45: 60.8 | DF45: 57.76 | DG45: 54.872 | DH45: 52.1284 | DI45: 49.52198 | DJ45: 47.045881 | DK45: 44.69358695 | DL45: 43.35277934 | DM45: 42.05219596 | DN45: 40.79063008 | DO45: 39.56691118 | DP45: 38.37990384 | DQ45: 37.22850673 | DR45: 36.11165153 | DS45: 35.02830198 | DT45: 33.97745292 | DU45: 32.95812933 | DV45: 31.96938545 | DW45: 31.01030389 | DX45: 30.07999477 | DY45: 29.17759493 | DZ45: 28.30226708 | EA45: 27.45319907 | EB45: 26.6296031 | EC45: 25.83071501 | ED45: 0 | EE45: 0 | EF45: 0 | EG45: 0 | EH45: 0 | EI45: 0 | EJ45: 51.2 | EK45: 48.64 | EL45: 46.208 | EM45: 43.8976 | EN45: 41.70272 | EO45: 39.617584 | EP45: 37.6367048 | EQ45: 35.75486956 | ER45: 34.68222347 | ES45: 33.64175677 | ET45: 32.63250407 | EU45: 31.65352894 | EV45: 30.70392308 | EW45: 29.78280538 | EX45: 28.88932122 | EY45: 28.02264159 | EZ45: 27.18196234 | FA45: 26.36650347 | FB45: 25.57550836 | FC45: 24.80824311 | FD45: 24.06399582 | FE45: 23.34207594 | FF45: 22.64181367 | FG45: 21.96255926 | FH45: 21.30368248 | FI45: 20.664572 | FJ45: 0 | FK45: 0 | FL45: 0 | FM45: 0 | FN45: 0 | FO45: 0 | FP45: 40.96 | FQ45: 38.912 | FR45: 36.9664 | FS45: 35.11808 | FT45: 33.362176 | FU45: 31.6940672 | FV45: 30.10936384 | FW45: 28.60389565 | FX45: 27.74577878 | FY45: 26.91340542 | FZ45: 26.10600325 | GA45: 25.32282316 | GB45: 24.56313846 | GC45: 23.82624431 | GD45: 23.11145698 | GE45: 22.41811327 | GF45: 21.74556987 | GG45: 21.09320277 | GH45: 20.46040669 | GI45: 19.84659449 | GJ45: 19.25119666 | GK45: 18.67366076 | GL45: 18.11345093 | GM45: 17.57004741 | GN45: 17.04294598 | GO45: 16.5316576 | GP45: 0 | GQ45: 0 | GR45: 0 | GS45: 0 | GT45: 0 | GU45: 0 | GV45: 40 | GW45: 42 | GX45: 44.1 | GY45: 46.305 | GZ45: 48.62025 | HA45: 51.0512625 | HB45: 53.60382563 | HC45: 56.28401691 | HD45: 59.09821775 | HE45: 62.05312864 | HF45: 65.15578507 | HG45: 68.41357432 | HH45: 71.83425304 | HI45: 75.42596569 | HJ45: 79.19726398 | HK45: 83.15712718 | HL45: 85 | HM45: 85 | HN45: 85 | HO45: 85 | HP45: 85 | HQ45: 85 | HR45: 85 | HS45: 85 | HT45: 85 | HU45: 85 | HV45: 85 | HW45: =GN$182 -> 85 | HX45: 85 | HY45: 85 | HZ45: 85 | IA45: 85 | IB45: 85 | IC45: 85 | ID45: 85 | IE45: 85 | IF45: 85 | IG45: 85 | IH45: 85 | II45: 85 | IJ45: 85 | IK45: 85 | IL45: 85 | IM45: 85 | IN45: 85 | IO45: 85 | IP45: 85 | IQ45: 85 | IR45: 85 | IS45: 85 | IT45: 85 | IU45: 85 | IV45: 85 | IW45: 85 | IX45: 85 | IY45: 85 | IZ45: 85 | JA45: 85 | JB45: 85
A46: ". " | B46: Well 019 | AL46: =C$182 -> 0 | AM46: 0 | AN46: 0 | AO46: 0 | AP46: 0 | AQ46: 0 | AR46: 100 | AS46: 95 | AT46: 90.25 | AU46: 85.7375 | AV46: 81.450625 | AW46: 77.37809375 | AX46: 73.50918906 | AY46: 69.83372961 | AZ46: 67.73871772 | BA46: 65.70655619 | BB46: 63.7353595 | BC46: 61.82329872 | BD46: 59.96859976 | BE46: 58.16954176 | BF46: 56.42445551 | BG46: 54.73172185 | BH46: 53.08977019 | BI46: 51.49707709 | BJ46: 49.95216477 | BK46: 48.45359983 | BL46: 46.99999183 | BM46: 45.58999208 | BN46: 44.22229232 | BO46: 42.89562355 | BP46: 41.60875484 | BQ46: 40.3604922 | BR46: 0 | BS46: 0 | BT46: 0 | BU46: 0 | BV46: 0 | BW46: 0 | BX46: 80 | BY46: 76 | BZ46: 72.2 | CA46: 68.59 | CB46: 65.1605 | CC46: 61.902475 | CD46: 58.80735125 | CE46: 55.86698369 | CF46: 54.19097418 | CG46: 52.56524495 | CH46: 50.9882876 | CI46: 49.45863897 | CJ46: 47.97487981 | CK46: 46.53563341 | CL46: 45.13956441 | CM46: 43.78537748 | CN46: 42.47181615 | CO46: 41.19766167 | CP46: 39.96173182 | CQ46: 38.76287986 | CR46: 37.59999347 | CS46: 36.47199366 | CT46: 35.37783385 | CU46: 34.31649884 | CV46: 33.28700387 | CW46: 32.28839376 | CX46: 0 | CY46: 0 | CZ46: 0 | DA46: 0 | DB46: 0 | DC46: 0 | DD46: 64 | DE46: 60.8 | DF46: 57.76 | DG46: 54.872 | DH46: 52.1284 | DI46: 49.52198 | DJ46: 47.045881 | DK46: 44.69358695 | DL46: 43.35277934 | DM46: 42.05219596 | DN46: 40.79063008 | DO46: 39.56691118 | DP46: 38.37990384 | DQ46: 37.22850673 | DR46: 36.11165153 | DS46: 35.02830198 | DT46: 33.97745292 | DU46: 32.95812933 | DV46: 31.96938545 | DW46: 31.01030389 | DX46: 30.07999477 | DY46: 29.17759493 | DZ46: 28.30226708 | EA46: 27.45319907 | EB46: 26.6296031 | EC46: 25.83071501 | ED46: 0 | EE46: 0 | EF46: 0 | EG46: 0 | EH46: 0 | EI46: 0 | EJ46: 51.2 | EK46: 48.64 | EL46: 46.208 | EM46: 43.8976 | EN46: 41.70272 | EO46: 39.617584 | EP46: 37.6367048 | EQ46: 35.75486956 | ER46: 34.68222347 | ES46: 33.64175677 | ET46: 32.63250407 | EU46: 31.65352894 | EV46: 30.70392308 | EW46: 29.78280538 | EX46: 28.88932122 | EY46: 28.02264159 | EZ46: 27.18196234 | FA46: 26.36650347 | FB46: 25.57550836 | FC46: 24.80824311 | FD46: 24.06399582 | FE46: 23.34207594 | FF46: 22.64181367 | FG46: 21.96255926 | FH46: 21.30368248 | FI46: 20.664572 | FJ46: 0 | FK46: 0 | FL46: 0 | FM46: 0 | FN46: 0 | FO46: 0 | FP46: 40.96 | FQ46: 38.912 | FR46: 36.9664 | FS46: 35.11808 | FT46: 33.362176 | FU46: 31.6940672 | FV46: 30.10936384 | FW46: 28.60389565 | FX46: 27.74577878 | FY46: 26.91340542 | FZ46: 26.10600325 | GA46: 25.32282316 | GB46: 24.56313846 | GC46: 23.82624431 | GD46: 23.11145698 | GE46: 22.41811327 | GF46: 21.74556987 | GG46: 21.09320277 | GH46: 20.46040669 | GI46: 19.84659449 | GJ46: 19.25119666 | GK46: 18.67366076 | GL46: 18.11345093 | GM46: 17.57004741 | GN46: 17.04294598 | GO46: 16.5316576 | GP46: 0 | GQ46: 0 | GR46: 0 | GS46: 0 | GT46: 0 | GU46: 0 | GV46: 40 | GW46: 42 | GX46: 44.1 | GY46: 46.305 | GZ46: 48.62025 | HA46: 51.0512625 | HB46: 53.60382563 | HC46: 56.28401691 | HD46: 59.09821775 | HE46: 62.05312864 | HF46: 65.15578507 | HG46: 68.41357432 | HH46: 71.83425304 | HI46: 75.42596569 | HJ46: 79.19726398 | HK46: 83.15712718 | HL46: 85 | HM46: 85 | HN46: 85 | HO46: 85 | HP46: 85 | HQ46: 85 | HR46: 85 | HS46: 85 | HT46: 85 | HU46: 85 | HV46: 85 | HW46: 85 | HX46: 85 | HY46: 85 | HZ46: 85 | IA46: 85 | IB46: 85 | IC46: 85 | ID46: 85 | IE46: 85 | IF46: 85 | IG46: 85 | IH46: 85 | II46: 85 | IJ46: 85 | IK46: 85 | IL46: 85 | IM46: 85 | IN46: 85 | IO46: 85 | IP46: 85 | IQ46: 85 | IR46: 85 | IS46: 85 | IT46: 85 | IU46: 85 | IV46: 85 | IW46: 85 | IX46: 85 | IY46: 85 | IZ46: 85 | JA46: 85 | JB46: 85
A47: ". " | B47: Well 020 | AL47: =C$182 -> 0 | AM47: 0 | AN47: 0 | AO47: 0 | AP47: 0 | AQ47: 0 | AR47: 100 | AS47: 95 | AT47: 90.25 | AU47: 85.7375 | AV47: 81.450625 | AW47: 77.37809375 | AX47: 73.50918906 | AY47: 69.83372961 | AZ47: 67.73871772 | BA47: 65.70655619 | BB47: 63.7353595 | BC47: 61.82329872 | BD47: 59.96859976 | BE47: 58.16954176 | BF47: 56.42445551 | BG47: 54.73172185 | BH47: 53.08977019 | BI47: 51.49707709 | BJ47: 49.95216477 | BK47: 48.45359983 | BL47: 46.99999183 | BM47: 45.58999208 | BN47: 44.22229232 | BO47: 42.89562355 | BP47: 41.60875484 | BQ47: 40.3604922 | BR47: 0 | BS47: 0 | BT47: 0 | BU47: 0 | BV47: 0 | BW47: 0 | BX47: 80 | BY47: 76 | BZ47: 72.2 | CA47: 68.59 | CB47: 65.1605 | CC47: 61.902475 | CD47: 58.80735125 | CE47: 55.86698369 | CF47: 54.19097418 | CG47: 52.56524495 | CH47: 50.9882876 | CI47: 49.45863897 | CJ47: 47.97487981 | CK47: 46.53563341 | CL47: 45.13956441 | CM47: 43.78537748 | CN47: 42.47181615 | CO47: 41.19766167 | CP47: 39.96173182 | CQ47: 38.76287986 | CR47: 37.59999347 | CS47: 36.47199366 | CT47: 35.37783385 | CU47: 34.31649884 | CV47: 33.28700387 | CW47: 32.28839376 | CX47: =BO$182 -> 0 | CY47: 0 | CZ47: 0 | DA47: 0 | DB47: 0 | DC47: 0 | DD47: 64 | DE47: 60.8 | DF47: 57.76 | DG47: 54.872 | DH47: 52.1284 | DI47: 49.52198 | DJ47: 47.045881 | DK47: 44.69358695 | DL47: 43.35277934 | DM47: 42.05219596 | DN47: 40.79063008 | DO47: 39.56691118 | DP47: 38.37990384 | DQ47: 37.22850673 | DR47: 36.11165153 | DS47: 35.02830198 | DT47: 33.97745292 | DU47: 32.95812933 | DV47: 31.96938545 | DW47: 31.01030389 | DX47: 30.07999477 | DY47: 29.17759493 | DZ47: 28.30226708 | EA47: 27.45319907 | EB47: 26.6296031 | EC47: 25.83071501 | ED47: 0 | EE47: 0 | EF47: 0 | EG47: 0 | EH47: 0 | EI47: 0 | EJ47: 51.2 | EK47: 48.64 | EL47: 46.208 | EM47: 43.8976 | EN47: 41.70272 | EO47: 39.617584 | EP47: 37.6367048 | EQ47: 35.75486956 | ER47: 34.68222347 | ES47: 33.64175677 | ET47: 32.63250407 | EU47: 31.65352894 | EV47: 30.70392308 | EW47: 29.78280538 | EX47: 28.88932122 | EY47: 28.02264159 | EZ47: 27.18196234 | FA47: 26.36650347 | FB47: 25.57550836 | FC47: 24.80824311 | FD47: 24.06399582 | FE47: 23.34207594 | FF47: 22.64181367 | FG47: 21.96255926 | FH47: 21.30368248 | FI47: 20.664572 | FJ47: =EA$182 -> 0 | FK47: 0 | FL47: 0 | FM47: 0 | FN47: 0 | FO47: 0 | FP47: 40.96 | FQ47: 38.912 | FR47: 36.9664 | FS47: 35.11808 | FT47: 33.362176 | FU47: 31.6940672 | FV47: 30.10936384 | FW47: 28.60389565 | FX47: 27.74577878 | FY47: 26.91340542 | FZ47: 26.10600325 | GA47: 25.32282316 | GB47: 24.56313846 | GC47: 23.82624431 | GD47: 23.11145698 | GE47: 22.41811327 | GF47: 21.74556987 | GG47: 21.09320277 | GH47: 20.46040669 | GI47: 19.84659449 | GJ47: 19.25119666 | GK47: 18.67366076 | GL47: 18.11345093 | GM47: 17.57004741 | GN47: 17.04294598 | GO47: 16.5316576 | GP47: 0 | GQ47: 0 | GR47: 0 | GS47: 0 | GT47: 0 | GU47: 0 | GV47: 40 | GW47: 42 | GX47: 44.1 | GY47: 46.305 | GZ47: 48.62025 | HA47: 51.0512625 | HB47: 53.60382563 | HC47: 56.28401691 | HD47: 59.09821775 | HE47: 62.05312864 | HF47: 65.15578507 | HG47: 68.41357432 | HH47: 71.83425304 | HI47: 75.42596569 | HJ47: 79.19726398 | HK47: 83.15712718 | HL47: 85 | HM47: 85 | HN47: 85 | HO47: 85 | HP47: 85 | HQ47: 85 | HR47: 85 | HS47: 85 | HT47: 85 | HU47: 85 | HV47: =GM$182 -> 85 | HW47: 85 | HX47: 85 | HY47: 85 | HZ47: 85 | IA47: 85 | IB47: 85 | IC47: 85 | ID47: 85 | IE47: 85 | IF47: 85 | IG47: 85 | IH47: 85 | II47: 85 | IJ47: 85 | IK47: 85 | IL47: 85 | IM47: 85 | IN47: 85 | IO47: 85 | IP47: 85 | IQ47: 85 | IR47: 85 | IS47: 85 | IT47: 85 | IU47: 85 | IV47: 85 | IW47: 85 | IX47: 85 | IY47: 85 | IZ47: 85 | JA47: 85 | JB47: 85
A48: ". " | B48: Well 021 | AL48: =C$182 -> 0 | AM48: =D$182 -> 0 | AN48: 0 | AO48: 0 | AP48: 0 | AQ48: 0 | AR48: 100 | AS48: 95 | AT48: 90.25 | AU48: 85.7375 | AV48: 81.450625 | AW48: 77.37809375 | AX48: 73.50918906 | AY48: 69.83372961 | AZ48: 67.73871772 | BA48: 65.70655619 | BB48: 63.7353595 | BC48: 61.82329872 | BD48: 59.96859976 | BE48: 58.16954176 | BF48: 56.42445551 | BG48: 54.73172185 | BH48: 53.08977019 | BI48: 51.49707709 | BJ48: 49.95216477 | BK48: 48.45359983 | BL48: 46.99999183 | BM48: 45.58999208 | BN48: 44.22229232 | BO48: 42.89562355 | BP48: 41.60875484 | BQ48: 40.3604922 | BR48: 0 | BS48: 0 | BT48: 0 | BU48: 0 | BV48: 0 | BW48: 0 | BX48: 80 | BY48: 76 | BZ48: 72.2 | CA48: 68.59 | CB48: 65.1605 | CC48: 61.902475 | CD48: 58.80735125 | CE48: 55.86698369 | CF48: 54.19097418 | CG48: 52.56524495 | CH48: 50.9882876 | CI48: 49.45863897 | CJ48: 47.97487981 | CK48: 46.53563341 | CL48: 45.13956441 | CM48: 43.78537748 | CN48: 42.47181615 | CO48: 41.19766167 | CP48: 39.96173182 | CQ48: 38.76287986 | CR48: 37.59999347 | CS48: 36.47199366 | CT48: 35.37783385 | CU48: 34.31649884 | CV48: 33.28700387 | CW48: 32.28839376 | CX48: 0 | CY48: =BP$182 -> 0 | CZ48: 0 | DA48: 0 | DB48: 0 | DC48: 0 | DD48: 64 | DE48: 60.8 | DF48: 57.76 | DG48: 54.872 | DH48: 52.1284 | DI48: 49.52198 | DJ48: 47.045881 | DK48: 44.69358695 | DL48: 43.35277934 | DM48: 42.05219596 | DN48: 40.79063008 | DO48: 39.56691118 | DP48: 38.37990384 | DQ48: 37.22850673 | DR48: 36.11165153 | DS48: 35.02830198 | DT48: 33.97745292 | DU48: 32.95812933 | DV48: 31.96938545 | DW48: 31.01030389 | DX48: 30.07999477 | DY48: 29.17759493 | DZ48: 28.30226708 | EA48: 27.45319907 | EB48: 26.6296031 | EC48: 25.83071501 | ED48: 0 | EE48: 0 | EF48: 0 | EG48: 0 | EH48: 0 | EI48: 0 | EJ48: 51.2 | EK48: 48.64 | EL48: 46.208 | EM48: 43.8976 | EN48: 41.70272 | EO48: 39.617584 | EP48: 37.6367048 | EQ48: 35.75486956 | ER48: 34.68222347 | ES48: 33.64175677 | ET48: 32.63250407 | EU48: 31.65352894 | EV48: 30.70392308 | EW48: 29.78280538 | EX48: 28.88932122 | EY48: 28.02264159 | EZ48: 27.18196234 | FA48: 26.36650347 | FB48: 25.57550836 | FC48: 24.80824311 | FD48: 24.06399582 | FE48: 23.34207594 | FF48: 22.64181367 | FG48: 21.96255926 | FH48: 21.30368248 | FI48: 20.664572 | FJ48: 0 | FK48: =EB$182 -> 0 | FL48: 0 | FM48: 0 | FN48: 0 | FO48: 0 | FP48: 40.96 | FQ48: 38.912 | FR48: 36.9664 | FS48: 35.11808 | FT48: 33.362176 | FU48: 31.6940672 | FV48: 30.10936384 | FW48: 28.60389565 | FX48: 27.74577878 | FY48: 26.91340542 | FZ48: 26.10600325 | GA48: 25.32282316 | GB48: 24.56313846 | GC48: 23.82624431 | GD48: 23.11145698 | GE48: 22.41811327 | GF48: 21.74556987 | GG48: 21.09320277 | GH48: 20.46040669 | GI48: 19.84659449 | GJ48: 19.25119666 | GK48: 18.67366076 | GL48: 18.11345093 | GM48: 17.57004741 | GN48: 17.04294598 | GO48: 16.5316576 | GP48: 0 | GQ48: 0 | GR48: 0 | GS48: 0 | GT48: 0 | GU48: 0 | GV48: 40 | GW48: 42 | GX48: 44.1 | GY48: 46.305 | GZ48: 48.62025 | HA48: 51.0512625 | HB48: 53.60382563 | HC48: 56.28401691 | HD48: 59.09821775 | HE48: 62.05312864 | HF48: 65.15578507 | HG48: 68.41357432 | HH48: 71.83425304 | HI48: 75.42596569 | HJ48: 79.19726398 | HK48: 83.15712718 | HL48: 85 | HM48: 85 | HN48: 85 | HO48: 85 | HP48: 85 | HQ48: 85 | HR48: 85 | HS48: 85 | HT48: 85 | HU48: 85 | HV48: 85 | HW48: 85 | HX48: 85 | HY48: 85 | HZ48: 85 | IA48: 85 | IB48: 85 | IC48: 85 | ID48: 85 | IE48: 85 | IF48: 85 | IG48: 85 | IH48: 85 | II48: 85 | IJ48: 85 | IK48: 85 | IL48: 85 | IM48: 85 | IN48: 85 | IO48: 85 | IP48: 85 | IQ48: 85 | IR48: 85 | IS48: 85 | IT48: 85 | IU48: 85 | IV48: 85 | IW48: 85 | IX48: 85 | IY48: 85 | IZ48: 85 | JA48: 85 | JB48: 85
A49: ". " | B49: Well 022 | AO49: =C$182 -> 0 | AP49: 0 | AQ49: 0 | AR49: 0 | AS49: 0 | AT49: 0 | AU49: 100 | AV49: 95 | AW49: 90.25 | AX49: 85.7375 | AY49: =M$182 -> 81.450625 | AZ49: 77.37809375 | BA49: 73.50918906 | BB49: 69.83372961 | BC49: 67.73871772 | BD49: 65.70655619 | BE49: 63.7353595 | BF49: 61.82329872 | BG49: 59.96859976 | BH49: 58.16954176 | BI49: =W$182 -> 56.42445551 | BJ49: 54.73172185 | BK49: 53.08977019 | BL49: 51.49707709 | BM49: 49.95216477 | BN49: 48.45359983 | BO49: 46.99999183 | BP49: 45.58999208 | BQ49: 44.22229232 | BR49: 42.89562355 | BS49: =AG$182 -> 41.60875484 | BT49: 40.3604922 | BU49: 0 | BV49: 0 | BW49: 0 | BX49: 0 | BY49: 0 | BZ49: 0 | CA49: 80 | CB49: 76 | CC49: =AQ$182 -> 72.2 | CD49: 68.59 | CE49: 65.1605 | CF49: 61.902475 | CG49: 58.80735125 | CH49: 55.86698369 | CI49: 54.19097418 | CJ49: 52.56524495 | CK49: 50.9882876 | CL49: 49.45863897 | CM49: =BA$182 -> 47.97487981 | CN49: 46.53563341 | CO49: 45.13956441 | CP49: 43.78537748 | CQ49: 42.47181615 | CR49: 41.19766167 | CS49: 39.96173182 | CT49: 38.76287986 | CU49: 37.59999347 | CV49: 36.47199366 | CW49: =BK$182 -> 35.37783385 | CX49: 34.31649884 | CY49: 33.28700387 | CZ49: 32.28839376 | DA49: 0 | DB49: 0 | DC49: 0 | DD49: 0 | DE49: 0 | DF49: 0 | DG49: =BU$182 -> 64 | DH49: 60.8 | DI49: 57.76 | DJ49: 54.872 | DK49: 52.1284 | DL49: 49.52198 | DM49: 47.045881 | DN49: 44.69358695 | DO49: 43.35277934 | DP49: 42.05219596 | DQ49: =CE$182 -> 40.79063008 | DR49: 39.56691118 | DS49: 38.37990384 | DT49: 37.22850673 | DU49: 36.11165153 | DV49: 35.02830198 | DW49: 33.97745292 | DX49: 32.95812933 | DY49: 31.96938545 | DZ49: 31.01030389 | EA49: =CO$182 -> 30.07999477 | EB49: 29.17759493 | EC49: 28.30226708 | ED49: 27.45319907 | EE49: 26.6296031 | EF49: 25.83071501 | EG49: 0 | EH49: 0 | EI49: 0 | EJ49: 0 | EK49: =CY$182 -> 0 | EL49: 0 | EM49: 51.2 | EN49: 48.64 | EO49: 46.208 | EP49: 43.8976 | EQ49: 41.70272 | ER49: 39.617584 | ES49: 37.6367048 | ET49: 35.75486956 | EU49: =DI$182 -> 34.68222347 | EV49: 33.64175677 | EW49: 32.63250407 | EX49: 31.65352894 | EY49: 30.70392308 | EZ49: 29.78280538 | FA49: 28.88932122 | FB49: 28.02264159 | FC49: 27.18196234 | FD49: 26.36650347 | FE49: =DS$182 -> 25.57550836 | FF49: 24.80824311 | FG49: 24.06399582 | FH49: 23.34207594 | FI49: 22.64181367 | FJ49: 21.96255926 | FK49: 21.30368248 | FL49: 20.664572 | FM49: 0 | FN49: 0 | FO49: =EC$182 -> 0 | FP49: 0 | FQ49: 0 | FR49: 0 | FS49: 40.96 | FT49: 38.912 | FU49: 36.9664 | FV49: 35.11808 | FW49: 33.362176 | FX49: 31.6940672 | FY49: =EM$182 -> 30.10936384 | FZ49: 28.60389565 | GA49: 27.74577878 | GB49: 26.91340542 | GC49: 26.10600325 | GD49: 25.32282316 | GE49: 24.56313846 | GF49: 23.82624431 | GG49: 23.11145698 | GH49: 22.41811327 | GI49: =EW$182 -> 21.74556987 | GJ49: 21.09320277 | GK49: 20.46040669 | GL49: 19.84659449 | GM49: 19.25119666 | GN49: 18.67366076 | GO49: 18.11345093 | GP49: 17.57004741 | GQ49: 17.04294598 | GR49: 16.5316576 | GS49: =FG$182 -> 0 | GT49: 0 | GU49: 0 | GV49: 0 | GW49: 0 | GX49: 0 | GY49: Put to Long Term Steam
A50: ". " | B50: Well 023 | AO50: 0 | AP50: 0 | AQ50: 0 | AR50: 0 | AS50: 0 | AT50: 0 | AU50: 100 | AV50: 95 | AW50: 90.25 | AX50: 85.7375 | AY50: 81.450625 | AZ50: 77.37809375 | BA50: 73.50918906 | BB50: 69.83372961 | BC50: 67.73871772 | BD50: 65.70655619 | BE50: 63.7353595 | BF50: 61.82329872 | BG50: 59.96859976 | BH50: 58.16954176 | BI50: 56.42445551 | BJ50: 54.73172185 | BK50: 53.08977019 | BL50: 51.49707709 | BM50: 49.95216477 | BN50: 48.45359983 | BO50: 46.99999183 | BP50: 45.58999208 | BQ50: 44.22229232 | BR50: 42.89562355 | BS50: 41.60875484 | BT50: 40.3604922 | BU50: 0 | BV50: 0 | BW50: 0 | BX50: 0 | BY50: 0 | BZ50: 0 | CA50: 80 | CB50: 76 | CC50: 72.2 | CD50: 68.59 | CE50: 65.1605 | CF50: 61.902475 | CG50: 58.80735125 | CH50: 55.86698369 | CI50: 54.19097418 | CJ50: 52.56524495 | CK50: 50.9882876 | CL50: 49.45863897 | CM50: 47.97487981 | CN50: 46.53563341 | CO50: 45.13956441 | CP50: 43.78537748 | CQ50: 42.47181615 | CR50: 41.19766167 | CS50: 39.96173182 | CT50: 38.76287986 | CU50: 37.59999347 | CV50: 36.47199366 | CW50: 35.37783385 | CX50: 34.31649884 | CY50: 33.28700387 | CZ50: 32.28839376 | DA50: 0 | DB50: 0 | DC50: 0 | DD50: 0 | DE50: 0 | DF50: 0 | DG50: 64 | DH50: 60.8 | DI50: 57.76 | DJ50: 54.872 | DK50: 52.1284 | DL50: 49.52198 | DM50: 47.045881 | DN50: 44.69358695 | DO50: 43.35277934 | DP50: 42.05219596 | DQ50: 40.79063008 | DR50: 39.56691118 | DS50: 38.37990384 | DT50: 37.22850673 | DU50: 36.11165153 | DV50: 35.02830198 | DW50: 33.97745292 | DX50: 32.95812933 | DY50: 31.96938545 | DZ50: 31.01030389 | EA50: 30.07999477 | EB50: 29.17759493 | EC50: 28.30226708 | ED50: 27.45319907 | EE50: 26.6296031 | EF50: 25.83071501 | EG50: 0 | EH50: 0 | EI50: 0 | EJ50: 0 | EK50: 0 | EL50: 0 | EM50: 51.2 | EN50: 48.64 | EO50: 46.208 | EP50: 43.8976 | EQ50: 41.70272 | ER50: 39.617584 | ES50: 37.6367048 | ET50: 35.75486956 | EU50: 34.68222347 | EV50: 33.64175677 | EW50: 32.63250407 | EX50: 31.65352894 | EY50: 30.70392308 | EZ50: 29.78280538 | FA50: 28.88932122 | FB50: 28.02264159 | FC50: 27.18196234 | FD50: 26.36650347 | FE50: 25.57550836 | FF50: 24.80824311 | FG50: 24.06399582 | FH50: 23.34207594 | FI50: 22.64181367 | FJ50: 21.96255926 | FK50: 21.30368248 | FL50: 20.664572 | FM50: 0 | FN50: 0 | FO50: 0 | FP50: 0 | FQ50: 0 | FR50: 0 | FS50: 40.96 | FT50: 38.912 | FU50: 36.9664 | FV50: 35.11808 | FW50: 33.362176 | FX50: 31.6940672 | FY50: 30.10936384 | FZ50: 28.60389565 | GA50: 27.74577878 | GB50: 26.91340542 | GC50: 26.10600325 | GD50: 25.32282316 | GE50: 24.56313846 | GF50: 23.82624431 | GG50: 23.11145698 | GH50: 22.41811327 | GI50: 21.74556987 | GJ50: 21.09320277 | GK50: 20.46040669 | GL50: 19.84659449 | GM50: 19.25119666 | GN50: 18.67366076 | GO50: 18.11345093 | GP50: 17.57004741 | GQ50: 17.04294598 | GR50: 16.5316576 | GS50: 0 | GT50: 0 | GU50: 0 | GV50: 0 | GW50: 0 | GX50: 0 | GY50: =FM$182 -> 40 | GZ50: 42 | HA50: 44.1 | HB50: 46.305 | HC50: 48.62025 | HD50: 51.0512625 | HE50: 53.60382563 | HF50: 56.28401691 | HG50: 59.09821775 | HH50: 62.05312864 | HI50: =FW$182 -> 65.15578507 | HJ50: 68.41357432 | HK50: 71.83425304 | HL50: 75.42596569 | HM50: 79.19726398 | HN50: 83.15712718 | HO50: 85 | HP50: 85 | HQ50: 85 | HR50: 85 | HS50: =GG$182 -> 85 | HT50: 85 | HU50: 85 | HV50: 85 | HW50: 85 | HX50: 85 | HY50: 85 | HZ50: 85 | IA50: 85 | IB50: 85 | IC50: =GQ$182 -> 85 | ID50: 85 | IE50: 85 | IF50: 85 | IG50: 85 | IH50: 85 | II50: 85 | IJ50: 85 | IK50: 85 | IL50: 85 | IM50: =HA$182 -> 85 | IN50: 85 | IO50: 85 | IP50: 85 | IQ50: 85 | IR50: 85 | IS50: 85 | IT50: 85 | IU50: 85 | IV50: 85 | IW50: =HK$182 -> 85 | IX50: 85 | IY50: 85 | IZ50: 85 | JA50: 85 | JB50: 85
A51: ". " | B51: Well 024 | AO51: 0 | AP51: 0 | AQ51: 0 | AR51: 0 | AS51: 0 | AT51: 0 | AU51: 100 | AV51: 95 | AW51: 90.25 | AX51: 85.7375 | AY51: 81.450625 | AZ51: 77.37809375 | BA51: 73.50918906 | BB51: 69.83372961 | BC51: 67.73871772 | BD51: 65.70655619 | BE51: 63.7353595 | BF51: 61.82329872 | BG51: 59.96859976 | BH51: 58.16954176 | BI51: 56.42445551 | BJ51: 54.73172185 | BK51: 53.08977019 | BL51: 51.49707709 | BM51: 49.95216477 | BN51: 48.45359983 | BO51: 46.99999183 | BP51: 45.58999208 | BQ51: 44.22229232 | BR51: 42.89562355 | BS51: 41.60875484 | BT51: 40.3604922 | BU51: 0 | BV51: 0 | BW51: 0 | BX51: 0 | BY51: 0 | BZ51: 0 | CA51: 80 | CB51: 76 | CC51: 72.2 | CD51: 68.59 | CE51: 65.1605 | CF51: 61.902475 | CG51: 58.80735125 | CH51: 55.86698369 | CI51: 54.19097418 | CJ51: 52.56524495 | CK51: 50.9882876 | CL51: 49.45863897 | CM51: 47.97487981 | CN51: 46.53563341 | CO51: 45.13956441 | CP51: 43.78537748 | CQ51: 42.47181615 | CR51: 41.19766167 | CS51: 39.96173182 | CT51: 38.76287986 | CU51: 37.59999347 | CV51: 36.47199366 | CW51: 35.37783385 | CX51: 34.31649884 | CY51: 33.28700387 | CZ51: 32.28839376 | DA51: 0 | DB51: 0 | DC51: 0 | DD51: 0 | DE51: 0 | DF51: 0 | DG51: 64 | DH51: 60.8 | DI51: 57.76 | DJ51: 54.872 | DK51: 52.1284 | DL51: 49.52198 | DM51: 47.045881 | DN51: 44.69358695 | DO51: 43.35277934 | DP51: 42.05219596 | DQ51: 40.79063008 | DR51: 39.56691118 | DS51: 38.37990384 | DT51: 37.22850673 | DU51: 36.11165153 | DV51: 35.02830198 | DW51: 33.97745292 | DX51: 32.95812933 | DY51: 31.96938545 | DZ51: 31.01030389 | EA51: 30.07999477 | EB51: 29.17759493 | EC51: 28.30226708 | ED51: 27.45319907 | EE51: 26.6296031 | EF51: 25.83071501 | EG51: 0 | EH51: 0 | EI51: 0 | EJ51: 0 | EK51: 0 | EL51: 0 | EM51: 51.2 | EN51: 48.64 | EO51: 46.208 | EP51: 43.8976 | EQ51: 41.70272 | ER51: 39.617584 | ES51: 37.6367048 | ET51: 35.75486956 | EU51: 34.68222347 | EV51: 33.64175677 | EW51: 32.63250407 | EX51: 31.65352894 | EY51: 30.70392308 | EZ51: 29.78280538 | FA51: 28.88932122 | FB51: 28.02264159 | FC51: 27.18196234 | FD51: 26.36650347 | FE51: 25.57550836 | FF51: 24.80824311 | FG51: 24.06399582 | FH51: 23.34207594 | FI51: 22.64181367 | FJ51: 21.96255926 | FK51: 21.30368248 | FL51: 20.664572 | FM51: 0 | FN51: 0 | FO51: 0 | FP51: 0 | FQ51: 0 | FR51: 0 | FS51: 40.96 | FT51: 38.912 | FU51: 36.9664 | FV51: 35.11808 | FW51: 33.362176 | FX51: 31.6940672 | FY51: 30.10936384 | FZ51: 28.60389565 | GA51: 27.74577878 | GB51: 26.91340542 | GC51: 26.10600325 | GD51: 25.32282316 | GE51: 24.56313846 | GF51: 23.82624431 | GG51: 23.11145698 | GH51: 22.41811327 | GI51: 21.74556987 | GJ51: 21.09320277 | GK51: 20.46040669 | GL51: 19.84659449 | GM51: 19.25119666 | GN51: 18.67366076 | GO51: 18.11345093 | GP51: 17.57004741 | GQ51: 17.04294598 | GR51: 16.5316576 | GS51: 0 | GT51: 0 | GU51: 0 | GV51: 0 | GW51: 0 | GX51: 0 | GY51: 40 | GZ51: 42 | HA51: 44.1 | HB51: 46.305 | HC51: 48.62025 | HD51: 51.0512625 | HE51: 53.60382563 | HF51: 56.28401691 | HG51: 59.09821775 | HH51: 62.05312864 | HI51: 65.15578507 | HJ51: 68.41357432 | HK51: 71.83425304 | HL51: 75.42596569 | HM51: 79.19726398 | HN51: 83.15712718 | HO51: 85 | HP51: 85 | HQ51: 85 | HR51: 85 | HS51: 85 | HT51: 85 | HU51: 85 | HV51: 85 | HW51: 85 | HX51: 85 | HY51: 85 | HZ51: 85 | IA51: 85 | IB51: 85 | IC51: 85 | ID51: 85 | IE51: 85 | IF51: 85 | IG51: 85 | IH51: 85 | II51: 85 | IJ51: 85 | IK51: 85 | IL51: 85 | IM51: 85 | IN51: 85 | IO51: 85 | IP51: 85 | IQ51: 85 | IR51: 85 | IS51: 85 | IT51: 85 | IU51: 85 | IV51: 85 | IW51: 85 | IX51: 85 | IY51: 85 | IZ51: 85 | JA51: 85 | JB51: 85
A52: ". " | B52: Well 025 | AO52: 0 | AP52: 0 | AQ52: 0 | AR52: 0 | AS52: 0 | AT52: 0 | AU52: 100 | AV52: 95 | AW52: 90.25 | AX52: 85.7375 | AY52: 81.450625 | AZ52: 77.37809375 | BA52: 73.50918906 | BB52: 69.83372961 | BC52: 67.73871772 | BD52: 65.70655619 | BE52: 63.7353595 | BF52: 61.82329872 | BG52: 59.96859976 | BH52: 58.16954176 | BI52: 56.42445551 | BJ52: 54.73172185 | BK52: 53.08977019 | BL52: 51.49707709 | BM52: 49.95216477 | BN52: 48.45359983 | BO52: 46.99999183 | BP52: 45.58999208 | BQ52: 44.22229232 | BR52: 42.89562355 | BS52: 41.60875484 | BT52: 40.3604922 | BU52: 0 | BV52: 0 | BW52: 0 | BX52: 0 | BY52: 0 | BZ52: 0 | CA52: 80 | CB52: 76 | CC52: 72.2 | CD52: 68.59 | CE52: 65.1605 | CF52: 61.902475 | CG52: 58.80735125 | CH52: 55.86698369 | CI52: 54.19097418 | CJ52: 52.56524495 | CK52: 50.9882876 | CL52: 49.45863897 | CM52: 47.97487981 | CN52: 46.53563341 | CO52: 45.13956441 | CP52: 43.78537748 | CQ52: 42.47181615 | CR52: 41.19766167 | CS52: 39.96173182 | CT52: 38.76287986 | CU52: 37.59999347 | CV52: 36.47199366 | CW52: 35.37783385 | CX52: 34.31649884 | CY52: 33.28700387 | CZ52: 32.28839376 | DA52: 0 | DB52: 0 | DC52: 0 | DD52: 0 | DE52: 0 | DF52: 0 | DG52: 64 | DH52: 60.8 | DI52: 57.76 | DJ52: 54.872 | DK52: 52.1284 | DL52: 49.52198 | DM52: 47.045881 | DN52: 44.69358695 | DO52: 43.35277934 | DP52: 42.05219596 | DQ52: 40.79063008 | DR52: 39.56691118 | DS52: 38.37990384 | DT52: 37.22850673 | DU52: 36.11165153 | DV52: 35.02830198 | DW52: 33.97745292 | DX52: 32.95812933 | DY52: 31.96938545 | DZ52: 31.01030389 | EA52: 30.07999477 | EB52: 29.17759493 | EC52: 28.30226708 | ED52: 27.45319907 | EE52: 26.6296031 | EF52: 25.83071501 | EG52: 0 | EH52: 0 | EI52: 0 | EJ52: 0 | EK52: 0 | EL52: 0 | EM52: 51.2 | EN52: 48.64 | EO52: 46.208 | EP52: 43.8976 | EQ52: 41.70272 | ER52: 39.617584 | ES52: 37.6367048 | ET52: 35.75486956 | EU52: 34.68222347 | EV52: 33.64175677 | EW52: 32.63250407 | EX52: 31.65352894 | EY52: 30.70392308 | EZ52: 29.78280538 | FA52: 28.88932122 | FB52: 28.02264159 | FC52: 27.18196234 | FD52: 26.36650347 | FE52: 25.57550836 | FF52: 24.80824311 | FG52: 24.06399582 | FH52: 23.34207594 | FI52: 22.64181367 | FJ52: 21.96255926 | FK52: 21.30368248 | FL52: 20.664572 | FM52: 0 | FN52: 0 | FO52: 0 | FP52: 0 | FQ52: 0 | FR52: 0 | FS52: 40.96 | FT52: 38.912 | FU52: 36.9664 | FV52: 35.11808 | FW52: 33.362176 | FX52: 31.6940672 | FY52: 30.10936384 | FZ52: 28.60389565 | GA52: 27.74577878 | GB52: 26.91340542 | GC52: 26.10600325 | GD52: 25.32282316 | GE52: 24.56313846 | GF52: 23.82624431 | GG52: 23.11145698 | GH52: 22.41811327 | GI52: 21.74556987 | GJ52: 21.09320277 | GK52: 20.46040669 | GL52: 19.84659449 | GM52: 19.25119666 | GN52: 18.67366076 | GO52: 18.11345093 | GP52: 17.57004741 | GQ52: 17.04294598 | GR52: 16.5316576 | GS52: 0 | GT52: 0 | GU52: 0 | GV52: 0 | GW52: 0 | GX52: 0 | GY52: 40 | GZ52: 42 | HA52: 44.1 | HB52: 46.305 | HC52: 48.62025 | HD52: 51.0512625 | HE52: 53.60382563 | HF52: 56.28401691 | HG52: 59.09821775 | HH52: 62.05312864 | HI52: 65.15578507 | HJ52: 68.41357432 | HK52: 71.83425304 | HL52: 75.42596569 | HM52: 79.19726398 | HN52: 83.15712718 | HO52: 85 | HP52: 85 | HQ52: 85 | HR52: 85 | HS52: 85 | HT52: 85 | HU52: 85 | HV52: 85 | HW52: 85 | HX52: 85 | HY52: 85 | HZ52: 85 | IA52: 85 | IB52: 85 | IC52: 85 | ID52: 85 | IE52: 85 | IF52: 85 | IG52: 85 | IH52: 85 | II52: 85 | IJ52: 85 | IK52: 85 | IL52: 85 | IM52: 85 | IN52: 85 | IO52: 85 | IP52: 85 | IQ52: 85 | IR52: 85 | IS52: 85 | IT52: 85 | IU52: 85 | IV52: 85 | IW52: 85 | IX52: 85 | IY52: 85 | IZ52: 85 | JA52: 85 | JB52: 85
A53: ". " | B53: Well 026 | AO53: 0 | AP53: 0 | AQ53: 0 | AR53: 0 | AS53: 0 | AT53: 0 | AU53: 100 | AV53: 95 | AW53: 90.25 | AX53: 85.7375 | AY53: 81.450625 | AZ53: 77.37809375 | BA53: 73.50918906 | BB53: 69.83372961 | BC53: 67.73871772 | BD53: 65.70655619 | BE53: 63.7353595 | BF53: 61.82329872 | BG53: 59.96859976 | BH53: 58.16954176 | BI53: 56.42445551 | BJ53: 54.73172185 | BK53: 53.08977019 | BL53: 51.49707709 | BM53: 49.95216477 | BN53: 48.45359983 | BO53: 46.99999183 | BP53: 45.58999208 | BQ53: 44.22229232 | BR53: 42.89562355 | BS53: 41.60875484 | BT53: 40.3604922 | BU53: 0 | BV53: 0 | BW53: 0 | BX53: 0 | BY53: 0 | BZ53: 0 | CA53: 80 | CB53: 76 | CC53: 72.2 | CD53: 68.59 | CE53: 65.1605 | CF53: 61.902475 | CG53: 58.80735125 | CH53: 55.86698369 | CI53: 54.19097418 | CJ53: 52.56524495 | CK53: 50.9882876 | CL53: 49.45863897 | CM53: 47.97487981 | CN53: 46.53563341 | CO53: 45.13956441 | CP53: 43.78537748 | CQ53: 42.47181615 | CR53: 41.19766167 | CS53: 39.96173182 | CT53: 38.76287986 | CU53: 37.59999347 | CV53: 36.47199366 | CW53: 35.37783385 | CX53: 34.31649884 | CY53: 33.28700387 | CZ53: 32.28839376 | DA53: 0 | DB53: 0 | DC53: 0 | DD53: 0 | DE53: 0 | DF53: 0 | DG53: 64 | DH53: 60.8 | DI53: 57.76 | DJ53: 54.872 | DK53: 52.1284 | DL53: 49.52198 | DM53: 47.045881 | DN53: 44.69358695 | DO53: 43.35277934 | DP53: 42.05219596 | DQ53: 40.79063008 | DR53: 39.56691118 | DS53: 38.37990384 | DT53: 37.22850673 | DU53: 36.11165153 | DV53: 35.02830198 | DW53: 33.97745292 | DX53: 32.95812933 | DY53: 31.96938545 | DZ53: 31.01030389 | EA53: 30.07999477 | EB53: 29.17759493 | EC53: 28.30226708 | ED53: 27.45319907 | EE53: 26.6296031 | EF53: 25.83071501 | EG53: 0 | EH53: 0 | EI53: 0 | EJ53: 0 | EK53: 0 | EL53: 0 | EM53: 51.2 | EN53: 48.64 | EO53: 46.208 | EP53: 43.8976 | EQ53: 41.70272 | ER53: 39.617584 | ES53: 37.6367048 | ET53: 35.75486956 | EU53: 34.68222347 | EV53: 33.64175677 | EW53: 32.63250407 | EX53: 31.65352894 | EY53: 30.70392308 | EZ53: 29.78280538 | FA53: 28.88932122 | FB53: 28.02264159 | FC53: 27.18196234 | FD53: 26.36650347 | FE53: 25.57550836 | FF53: 24.80824311 | FG53: 24.06399582 | FH53: 23.34207594 | FI53: 22.64181367 | FJ53: 21.96255926 | FK53: 21.30368248 | FL53: 20.664572 | FM53: 0 | FN53: 0 | FO53: 0 | FP53: 0 | FQ53: 0 | FR53: 0 | FS53: 40.96 | FT53: 38.912 | FU53: 36.9664 | FV53: 35.11808 | FW53: 33.362176 | FX53: 31.6940672 | FY53: 30.10936384 | FZ53: 28.60389565 | GA53: 27.74577878 | GB53: 26.91340542 | GC53: 26.10600325 | GD53: 25.32282316 | GE53: 24.56313846 | GF53: 23.82624431 | GG53: 23.11145698 | GH53: 22.41811327 | GI53: 21.74556987 | GJ53: 21.09320277 | GK53: 20.46040669 | GL53: 19.84659449 | GM53: 19.25119666 | GN53: 18.67366076 | GO53: 18.11345093 | GP53: 17.57004741 | GQ53: 17.04294598 | GR53: 16.5316576 | GS53: 0 | GT53: 0 | GU53: 0 | GV53: 0 | GW53: 0 | GX53: 0 | GY53: 40 | GZ53: 42 | HA53: 44.1 | HB53: 46.305 | HC53: 48.62025 | HD53: 51.0512625 | HE53: 53.60382563 | HF53: 56.28401691 | HG53: 59.09821775 | HH53: 62.05312864 | HI53: 65.15578507 | HJ53: 68.41357432 | HK53: 71.83425304 | HL53: 75.42596569 | HM53: 79.19726398 | HN53: 83.15712718 | HO53: 85 | HP53: 85 | HQ53: 85 | HR53: 85 | HS53: 85 | HT53: 85 | HU53: 85 | HV53: 85 | HW53: 85 | HX53: 85 | HY53: 85 | HZ53: 85 | IA53: 85 | IB53: 85 | IC53: 85 | ID53: 85 | IE53: 85 | IF53: 85 | IG53: 85 | IH53: 85 | II53: 85 | IJ53: 85 | IK53: 85 | IL53: 85 | IM53: 85 | IN53: 85 | IO53: 85 | IP53: 85 | IQ53: 85 | IR53: 85 | IS53: 85 | IT53: 85 | IU53: 85 | IV53: 85 | IW53: 85 | IX53: 85 | IY53: 85 | IZ53: 85 | JA53: 85 | JB53: 85
A54: ". " | B54: Well 027 | AR54: =C$182 -> 0 | AS54: =D$182 -> 0 | AT54: 0 | AU54: 0 | AV54: 0 | AW54: 0 | AX54: 100 | AY54: 95 | AZ54: 90.25 | BA54: 85.7375 | BB54: 81.450625 | BC54: 77.37809375 | BD54: 73.50918906 | BE54: 69.83372961 | BF54: 67.73871772 | BG54: 65.70655619 | BH54: 63.7353595 | BI54: 61.82329872 | BJ54: 59.96859976 | BK54: 58.16954176 | BL54: 56.42445551 | BM54: 54.73172185 | BN54: 53.08977019 | BO54: 51.49707709 | BP54: 49.95216477 | BQ54: 48.45359983 | BR54: 46.99999183 | BS54: 45.58999208 | BT54: 44.22229232 | BU54: 42.89562355 | BV54: 41.60875484 | BW54: 40.3604922 | BX54: 0 | BY54: 0 | BZ54: 0 | CA54: 0 | CB54: 0 | CC54: 0 | CD54: 80 | CE54: 76 | CF54: 72.2 | CG54: 68.59 | CH54: 65.1605 | CI54: 61.902475 | CJ54: 58.80735125 | CK54: 55.86698369 | CL54: 54.19097418 | CM54: 52.56524495 | CN54: 50.9882876 | CO54: 49.45863897 | CP54: 47.97487981 | CQ54: 46.53563341 | CR54: 45.13956441 | CS54: 43.78537748 | CT54: 42.47181615 | CU54: 41.19766167 | CV54: 39.96173182 | CW54: 38.76287986 | CX54: 37.59999347 | CY54: 36.47199366 | CZ54: 35.37783385 | DA54: 34.31649884 | DB54: 33.28700387 | DC54: 32.28839376 | DD54: 0 | DE54: =BP$182 -> 0 | DF54: 0 | DG54: 0 | DH54: 0 | DI54: 0 | DJ54: 64 | DK54: 60.8 | DL54: 57.76 | DM54: 54.872 | DN54: 52.1284 | DO54: 49.52198 | DP54: 47.045881 | DQ54: 44.69358695 | DR54: 43.35277934 | DS54: 42.05219596 | DT54: 40.79063008 | DU54: 39.56691118 | DV54: 38.37990384 | DW54: 37.22850673 | DX54: 36.11165153 | DY54: 35.02830198 | DZ54: 33.97745292 | EA54: 32.95812933 | EB54: 31.96938545 | EC54: 31.01030389 | ED54: 30.07999477 | EE54: 29.17759493 | EF54: 28.30226708 | EG54: 27.45319907 | EH54: 26.6296031 | EI54: 25.83071501 | EJ54: 0 | EK54: 0 | EL54: 0 | EM54: 0 | EN54: 0 | EO54: 0 | EP54: 51.2 | EQ54: 48.64 | ER54: 46.208 | ES54: 43.8976 | ET54: 41.70272 | EU54: 39.617584 | EV54: 37.6367048 | EW54: 35.75486956 | EX54: 34.68222347 | EY54: 33.64175677 | EZ54: 32.63250407 | FA54: 31.65352894 | FB54: 30.70392308 | FC54: 29.78280538 | FD54: 28.88932122 | FE54: 28.02264159 | FF54: 27.18196234 | FG54: 26.36650347 | FH54: 25.57550836 | FI54: 24.80824311 | FJ54: 24.06399582 | FK54: 23.34207594 | FL54: 22.64181367 | FM54: 21.96255926 | FN54: 21.30368248 | FO54: 20.664572 | FP54: 0 | FQ54: =EB$182 -> 0 | FR54: 0 | FS54: 0 | FT54: 0 | FU54: 0 | FV54: 40.96 | FW54: 38.912 | FX54: 36.9664 | FY54: 35.11808 | FZ54: 33.362176 | GA54: 31.6940672 | GB54: 30.10936384 | GC54: 28.60389565 | GD54: 27.74577878 | GE54: 26.91340542 | GF54: 26.10600325 | GG54: 25.32282316 | GH54: 24.56313846 | GI54: 23.82624431 | GJ54: 23.11145698 | GK54: 22.41811327 | GL54: 21.74556987 | GM54: 21.09320277 | GN54: 20.46040669 | GO54: 19.84659449 | GP54: 19.25119666 | GQ54: 18.67366076 | GR54: 18.11345093 | GS54: 17.57004741 | GT54: 17.04294598 | GU54: 16.5316576 | GV54: 0 | GW54: 0 | GX54: 0 | GY54: 0 | GZ54: 0 | HA54: 0 | HB54: Put to Long Term Steam
A55: ". " | B55: Well 028 | AR55: =C$182 -> 0 | AS55: 0 | AT55: 0 | AU55: 0 | AV55: 0 | AW55: 0 | AX55: 100 | AY55: 95 | AZ55: 90.25 | BA55: 85.7375 | BB55: 81.450625 | BC55: 77.37809375 | BD55: 73.50918906 | BE55: 69.83372961 | BF55: 67.73871772 | BG55: 65.70655619 | BH55: 63.7353595 | BI55: 61.82329872 | BJ55: 59.96859976 | BK55: 58.16954176 | BL55: 56.42445551 | BM55: 54.73172185 | BN55: 53.08977019 | BO55: 51.49707709 | BP55: 49.95216477 | BQ55: 48.45359983 | BR55: 46.99999183 | BS55: 45.58999208 | BT55: 44.22229232 | BU55: 42.89562355 | BV55: 41.60875484 | BW55: 40.3604922 | BX55: 0 | BY55: 0 | BZ55: 0 | CA55: 0 | CB55: 0 | CC55: 0 | CD55: 80 | CE55: 76 | CF55: 72.2 | CG55: 68.59 | CH55: 65.1605 | CI55: 61.902475 | CJ55: 58.80735125 | CK55: 55.86698369 | CL55: 54.19097418 | CM55: 52.56524495 | CN55: 50.9882876 | CO55: 49.45863897 | CP55: 47.97487981 | CQ55: 46.53563341 | CR55: 45.13956441 | CS55: 43.78537748 | CT55: 42.47181615 | CU55: 41.19766167 | CV55: 39.96173182 | CW55: 38.76287986 | CX55: 37.59999347 | CY55: 36.47199366 | CZ55: 35.37783385 | DA55: 34.31649884 | DB55: 33.28700387 | DC55: 32.28839376 | DD55: 0 | DE55: 0 | DF55: 0 | DG55: 0 | DH55: 0 | DI55: 0 | DJ55: 64 | DK55: 60.8 | DL55: 57.76 | DM55: 54.872 | DN55: 52.1284 | DO55: 49.52198 | DP55: 47.045881 | DQ55: 44.69358695 | DR55: 43.35277934 | DS55: 42.05219596 | DT55: 40.79063008 | DU55: 39.56691118 | DV55: 38.37990384 | DW55: 37.22850673 | DX55: 36.11165153 | DY55: 35.02830198 | DZ55: 33.97745292 | EA55: 32.95812933 | EB55: 31.96938545 | EC55: 31.01030389 | ED55: 30.07999477 | EE55: 29.17759493 | EF55: 28.30226708 | EG55: 27.45319907 | EH55: 26.6296031 | EI55: 25.83071501 | EJ55: 0 | EK55: 0 | EL55: 0 | EM55: 0 | EN55: 0 | EO55: 0 | EP55: 51.2 | EQ55: 48.64 | ER55: 46.208 | ES55: 43.8976 | ET55: 41.70272 | EU55: 39.617584 | EV55: 37.6367048 | EW55: 35.75486956 | EX55: 34.68222347 | EY55: 33.64175677 | EZ55: 32.63250407 | FA55: 31.65352894 | FB55: 30.70392308 | FC55: 29.78280538 | FD55: 28.88932122 | FE55: 28.02264159 | FF55: 27.18196234 | FG55: 26.36650347 | FH55: 25.57550836 | FI55: 24.80824311 | FJ55: 24.06399582 | FK55: 23.34207594 | FL55: 22.64181367 | FM55: 21.96255926 | FN55: 21.30368248 | FO55: 20.664572 | FP55: 0 | FQ55: 0 | FR55: 0 | FS55: 0 | FT55: 0 | FU55: 0 | FV55: 40.96 | FW55: 38.912 | FX55: 36.9664 | FY55: 35.11808 | FZ55: 33.362176 | GA55: 31.6940672 | GB55: 30.10936384 | GC55: 28.60389565 | GD55: 27.74577878 | GE55: 26.91340542 | GF55: 26.10600325 | GG55: 25.32282316 | GH55: 24.56313846 | GI55: 23.82624431 | GJ55: 23.11145698 | GK55: 22.41811327 | GL55: 21.74556987 | GM55: 21.09320277 | GN55: 20.46040669 | GO55: 19.84659449 | GP55: 19.25119666 | GQ55: 18.67366076 | GR55: 18.11345093 | GS55: 17.57004741 | GT55: 17.04294598 | GU55: 16.5316576 | GV55: 0 | GW55: 0 | GX55: 0 | GY55: 0 | GZ55: 0 | HA55: 0 | HB55: 40 | HC55: 42 | HD55: 44.1 | HE55: 46.305 | HF55: 48.62025 | HG55: 51.0512625 | HH55: 53.60382563 | HI55: 56.28401691 | HJ55: 59.09821775 | HK55: 62.05312864 | HL55: 65.15578507 | HM55: 68.41357432 | HN55: 71.83425304 | HO55: 75.42596569 | HP55: 79.19726398 | HQ55: 83.15712718 | HR55: 85 | HS55: 85 | HT55: 85 | HU55: 85 | HV55: 85 | HW55: 85 | HX55: 85 | HY55: 85 | HZ55: 85 | IA55: 85 | IB55: 85 | IC55: =GN$182 -> 85 | ID55: 85 | IE55: 85 | IF55: 85 | IG55: 85 | IH55: 85 | II55: 85 | IJ55: 85 | IK55: 85 | IL55: 85 | IM55: 85 | IN55: 85 | IO55: 85 | IP55: 85 | IQ55: 85 | IR55: 85 | IS55: 85 | IT55: 85 | IU55: 85 | IV55: 85 | IW55: 85 | IX55: 85 | IY55: 85 | IZ55: 85 | JA55: 85 | JB55: 85
A56: ". " | B56: Well 029 | AR56: =C$182 -> 0 | AS56: 0 | AT56: 0 | AU56: 0 | AV56: 0 | AW56: 0 | AX56: 100 | AY56: 95 | AZ56: 90.25 | BA56: 85.7375 | BB56: 81.450625 | BC56: 77.37809375 | BD56: 73.50918906 | BE56: 69.83372961 | BF56: 67.73871772 | BG56: 65.70655619 | BH56: 63.7353595 | BI56: 61.82329872 | BJ56: 59.96859976 | BK56: 58.16954176 | BL56: 56.42445551 | BM56: 54.73172185 | BN56: 53.08977019 | BO56: 51.49707709 | BP56: 49.95216477 | BQ56: 48.45359983 | BR56: 46.99999183 | BS56: 45.58999208 | BT56: 44.22229232 | BU56: 42.89562355 | BV56: 41.60875484 | BW56: 40.3604922 | BX56: 0 | BY56: 0 | BZ56: 0 | CA56: 0 | CB56: 0 | CC56: 0 | CD56: 80 | CE56: 76 | CF56: 72.2 | CG56: 68.59 | CH56: 65.1605 | CI56: 61.902475 | CJ56: 58.80735125 | CK56: 55.86698369 | CL56: 54.19097418 | CM56: 52.56524495 | CN56: 50.9882876 | CO56: 49.45863897 | CP56: 47.97487981 | CQ56: 46.53563341 | CR56: 45.13956441 | CS56: 43.78537748 | CT56: 42.47181615 | CU56: 41.19766167 | CV56: 39.96173182 | CW56: 38.76287986 | CX56: 37.59999347 | CY56: 36.47199366 | CZ56: 35.37783385 | DA56: 34.31649884 | DB56: 33.28700387 | DC56: 32.28839376 | DD56: 0 | DE56: 0 | DF56: 0 | DG56: 0 | DH56: 0 | DI56: 0 | DJ56: 64 | DK56: 60.8 | DL56: 57.76 | DM56: 54.872 | DN56: 52.1284 | DO56: 49.52198 | DP56: 47.045881 | DQ56: 44.69358695 | DR56: 43.35277934 | DS56: 42.05219596 | DT56: 40.79063008 | DU56: 39.56691118 | DV56: 38.37990384 | DW56: 37.22850673 | DX56: 36.11165153 | DY56: 35.02830198 | DZ56: 33.97745292 | EA56: 32.95812933 | EB56: 31.96938545 | EC56: 31.01030389 | ED56: 30.07999477 | EE56: 29.17759493 | EF56: 28.30226708 | EG56: 27.45319907 | EH56: 26.6296031 | EI56: 25.83071501 | EJ56: 0 | EK56: 0 | EL56: 0 | EM56: 0 | EN56: 0 | EO56: 0 | EP56: 51.2 | EQ56: 48.64 | ER56: 46.208 | ES56: 43.8976 | ET56: 41.70272 | EU56: 39.617584 | EV56: 37.6367048 | EW56: 35.75486956 | EX56: 34.68222347 | EY56: 33.64175677 | EZ56: 32.63250407 | FA56: 31.65352894 | FB56: 30.70392308 | FC56: 29.78280538 | FD56: 28.88932122 | FE56: 28.02264159 | FF56: 27.18196234 | FG56: 26.36650347 | FH56: 25.57550836 | FI56: 24.80824311 | FJ56: 24.06399582 | FK56: 23.34207594 | FL56: 22.64181367 | FM56: 21.96255926 | FN56: 21.30368248 | FO56: 20.664572 | FP56: 0 | FQ56: 0 | FR56: 0 | FS56: 0 | FT56: 0 | FU56: 0 | FV56: 40.96 | FW56: 38.912 | FX56: 36.9664 | FY56: 35.11808 | FZ56: 33.362176 | GA56: 31.6940672 | GB56: 30.10936384 | GC56: 28.60389565 | GD56: 27.74577878 | GE56: 26.91340542 | GF56: 26.10600325 | GG56: 25.32282316 | GH56: 24.56313846 | GI56: 23.82624431 | GJ56: 23.11145698 | GK56: 22.41811327 | GL56: 21.74556987 | GM56: 21.09320277 | GN56: 20.46040669 | GO56: 19.84659449 | GP56: 19.25119666 | GQ56: 18.67366076 | GR56: 18.11345093 | GS56: 17.57004741 | GT56: 17.04294598 | GU56: 16.5316576 | GV56: 0 | GW56: 0 | GX56: 0 | GY56: 0 | GZ56: 0 | HA56: 0 | HB56: 40 | HC56: 42 | HD56: 44.1 | HE56: 46.305 | HF56: 48.62025 | HG56: 51.0512625 | HH56: 53.60382563 | HI56: 56.28401691 | HJ56: 59.09821775 | HK56: 62.05312864 | HL56: 65.15578507 | HM56: 68.41357432 | HN56: 71.83425304 | HO56: 75.42596569 | HP56: 79.19726398 | HQ56: 83.15712718 | HR56: 85 | HS56: 85 | HT56: 85 | HU56: 85 | HV56: 85 | HW56: 85 | HX56: 85 | HY56: 85 | HZ56: 85 | IA56: 85 | IB56: 85 | IC56: 85 | ID56: 85 | IE56: 85 | IF56: 85 | IG56: 85 | IH56: 85 | II56: 85 | IJ56: 85 | IK56: 85 | IL56: 85 | IM56: 85 | IN56: 85 | IO56: 85 | IP56: 85 | IQ56: 85 | IR56: 85 | IS56: 85 | IT56: 85 | IU56: 85 | IV56: 85 | IW56: 85 | IX56: 85 | IY56: 85 | IZ56: 85 | JA56: 85 | JB56: 85
A57: ". " | B57: Well 030 | AR57: =C$182 -> 0 | AS57: 0 | AT57: 0 | AU57: 0 | AV57: 0 | AW57: 0 | AX57: 100 | AY57: 95 | AZ57: 90.25 | BA57: 85.7375 | BB57: 81.450625 | BC57: 77.37809375 | BD57: 73.50918906 | BE57: 69.83372961 | BF57: 67.73871772 | BG57: 65.70655619 | BH57: 63.7353595 | BI57: 61.82329872 | BJ57: 59.96859976 | BK57: 58.16954176 | BL57: 56.42445551 | BM57: 54.73172185 | BN57: 53.08977019 | BO57: 51.49707709 | BP57: 49.95216477 | BQ57: 48.45359983 | BR57: 46.99999183 | BS57: 45.58999208 | BT57: 44.22229232 | BU57: 42.89562355 | BV57: 41.60875484 | BW57: 40.3604922 | BX57: 0 | BY57: 0 | BZ57: 0 | CA57: 0 | CB57: 0 | CC57: 0 | CD57: 80 | CE57: 76 | CF57: 72.2 | CG57: 68.59 | CH57: 65.1605 | CI57: 61.902475 | CJ57: 58.80735125 | CK57: 55.86698369 | CL57: 54.19097418 | CM57: 52.56524495 | CN57: 50.9882876 | CO57: 49.45863897 | CP57: 47.97487981 | CQ57: 46.53563341 | CR57: 45.13956441 | CS57: 43.78537748 | CT57: 42.47181615 | CU57: 41.19766167 | CV57: 39.96173182 | CW57: 38.76287986 | CX57: 37.59999347 | CY57: 36.47199366 | CZ57: 35.37783385 | DA57: 34.31649884 | DB57: 33.28700387 | DC57: 32.28839376 | DD57: =BO$182 -> 0 | DE57: 0 | DF57: 0 | DG57: 0 | DH57: 0 | DI57: 0 | DJ57: 64 | DK57: 60.8 | DL57: 57.76 | DM57: 54.872 | DN57: 52.1284 | DO57: 49.52198 | DP57: 47.045881 | DQ57: 44.69358695 | DR57: 43.35277934 | DS57: 42.05219596 | DT57: 40.79063008 | DU57: 39.56691118 | DV57: 38.37990384 | DW57: 37.22850673 | DX57: 36.11165153 | DY57: 35.02830198 | DZ57: 33.97745292 | EA57: 32.95812933 | EB57: 31.96938545 | EC57: 31.01030389 | ED57: 30.07999477 | EE57: 29.17759493 | EF57: 28.30226708 | EG57: 27.45319907 | EH57: 26.6296031 | EI57: 25.83071501 | EJ57: 0 | EK57: 0 | EL57: 0 | EM57: 0 | EN57: 0 | EO57: 0 | EP57: 51.2 | EQ57: 48.64 | ER57: 46.208 | ES57: 43.8976 | ET57: 41.70272 | EU57: 39.617584 | EV57: 37.6367048 | EW57: 35.75486956 | EX57: 34.68222347 | EY57: 33.64175677 | EZ57: 32.63250407 | FA57: 31.65352894 | FB57: 30.70392308 | FC57: 29.78280538 | FD57: 28.88932122 | FE57: 28.02264159 | FF57: 27.18196234 | FG57: 26.36650347 | FH57: 25.57550836 | FI57: 24.80824311 | FJ57: 24.06399582 | FK57: 23.34207594 | FL57: 22.64181367 | FM57: 21.96255926 | FN57: 21.30368248 | FO57: 20.664572 | FP57: =EA$182 -> 0 | FQ57: 0 | FR57: 0 | FS57: 0 | FT57: 0 | FU57: 0 | FV57: 40.96 | FW57: 38.912 | FX57: 36.9664 | FY57: 35.11808 | FZ57: 33.362176 | GA57: 31.6940672 | GB57: 30.10936384 | GC57: 28.60389565 | GD57: 27.74577878 | GE57: 26.91340542 | GF57: 26.10600325 | GG57: 25.32282316 | GH57: 24.56313846 | GI57: 23.82624431 | GJ57: 23.11145698 | GK57: 22.41811327 | GL57: 21.74556987 | GM57: 21.09320277 | GN57: 20.46040669 | GO57: 19.84659449 | GP57: 19.25119666 | GQ57: 18.67366076 | GR57: 18.11345093 | GS57: 17.57004741 | GT57: 17.04294598 | GU57: 16.5316576 | GV57: 0 | GW57: 0 | GX57: 0 | GY57: 0 | GZ57: 0 | HA57: 0 | HB57: 40 | HC57: 42 | HD57: 44.1 | HE57: 46.305 | HF57: 48.62025 | HG57: 51.0512625 | HH57: 53.60382563 | HI57: 56.28401691 | HJ57: 59.09821775 | HK57: 62.05312864 | HL57: 65.15578507 | HM57: 68.41357432 | HN57: 71.83425304 | HO57: 75.42596569 | HP57: 79.19726398 | HQ57: 83.15712718 | HR57: 85 | HS57: 85 | HT57: 85 | HU57: 85 | HV57: 85 | HW57: 85 | HX57: 85 | HY57: 85 | HZ57: 85 | IA57: 85 | IB57: =GM$182 -> 85 | IC57: 85 | ID57: 85 | IE57: 85 | IF57: 85 | IG57: 85 | IH57: 85 | II57: 85 | IJ57: 85 | IK57: 85 | IL57: 85 | IM57: 85 | IN57: 85 | IO57: 85 | IP57: 85 | IQ57: 85 | IR57: 85 | IS57: 85 | IT57: 85 | IU57: 85 | IV57: 85 | IW57: 85 | IX57: 85 | IY57: 85 | IZ57: 85 | JA57: 85 | JB57: 85
A58: ". " | B58: Well 031 | AR58: =C$182 -> 0 | AS58: =D$182 -> 0 | AT58: 0 | AU58: 0 | AV58: 0 | AW58: 0 | AX58: 100 | AY58: 95 | AZ58: 90.25 | BA58: 85.7375 | BB58: 81.450625 | BC58: 77.37809375 | BD58: 73.50918906 | BE58: 69.83372961 | BF58: 67.73871772 | BG58: 65.70655619 | BH58: 63.7353595 | BI58: 61.82329872 | BJ58: 59.96859976 | BK58: 58.16954176 | BL58: 56.42445551 | BM58: 54.73172185 | BN58: 53.08977019 | BO58: 51.49707709 | BP58: 49.95216477 | BQ58: 48.45359983 | BR58: 46.99999183 | BS58: 45.58999208 | BT58: 44.22229232 | BU58: 42.89562355 | BV58: 41.60875484 | BW58: 40.3604922 | BX58: 0 | BY58: 0 | BZ58: 0 | CA58: 0 | CB58: 0 | CC58: 0 | CD58: 80 | CE58: 76 | CF58: 72.2 | CG58: 68.59 | CH58: 65.1605 | CI58: 61.902475 | CJ58: 58.80735125 | CK58: 55.86698369 | CL58: 54.19097418 | CM58: 52.56524495 | CN58: 50.9882876 | CO58: 49.45863897 | CP58: 47.97487981 | CQ58: 46.53563341 | CR58: 45.13956441 | CS58: 43.78537748 | CT58: 42.47181615 | CU58: 41.19766167 | CV58: 39.96173182 | CW58: 38.76287986 | CX58: 37.59999347 | CY58: 36.47199366 | CZ58: 35.37783385 | DA58: 34.31649884 | DB58: 33.28700387 | DC58: 32.28839376 | DD58: 0 | DE58: =BP$182 -> 0 | DF58: 0 | DG58: 0 | DH58: 0 | DI58: 0 | DJ58: 64 | DK58: 60.8 | DL58: 57.76 | DM58: 54.872 | DN58: 52.1284 | DO58: 49.52198 | DP58: 47.045881 | DQ58: 44.69358695 | DR58: 43.35277934 | DS58: 42.05219596 | DT58: 40.79063008 | DU58: 39.56691118 | DV58: 38.37990384 | DW58: 37.22850673 | DX58: 36.11165153 | DY58: 35.02830198 | DZ58: 33.97745292 | EA58: 32.95812933 | EB58: 31.96938545 | EC58: 31.01030389 | ED58: 30.07999477 | EE58: 29.17759493 | EF58: 28.30226708 | EG58: 27.45319907 | EH58: 26.6296031 | EI58: 25.83071501 | EJ58: 0 | EK58: 0 | EL58: 0 | EM58: 0 | EN58: 0 | EO58: 0 | EP58: 51.2 | EQ58: 48.64 | ER58: 46.208 | ES58: 43.8976 | ET58: 41.70272 | EU58: 39.617584 | EV58: 37.6367048 | EW58: 35.75486956 | EX58: 34.68222347 | EY58: 33.64175677 | EZ58: 32.63250407 | FA58: 31.65352894 | FB58: 30.70392308 | FC58: 29.78280538 | FD58: 28.88932122 | FE58: 28.02264159 | FF58: 27.18196234 | FG58: 26.36650347 | FH58: 25.57550836 | FI58: 24.80824311 | FJ58: 24.06399582 | FK58: 23.34207594 | FL58: 22.64181367 | FM58: 21.96255926 | FN58: 21.30368248 | FO58: 20.664572 | FP58: 0 | FQ58: =EB$182 -> 0 | FR58: 0 | FS58: 0 | FT58: 0 | FU58: 0 | FV58: 40.96 | FW58: 38.912 | FX58: 36.9664 | FY58: 35.11808 | FZ58: 33.362176 | GA58: 31.6940672 | GB58: 30.10936384 | GC58: 28.60389565 | GD58: 27.74577878 | GE58: 26.91340542 | GF58: 26.10600325 | GG58: 25.32282316 | GH58: 24.56313846 | GI58: 23.82624431 | GJ58: 23.11145698 | GK58: 22.41811327 | GL58: 21.74556987 | GM58: 21.09320277 | GN58: 20.46040669 | GO58: 19.84659449 | GP58: 19.25119666 | GQ58: 18.67366076 | GR58: 18.11345093 | GS58: 17.57004741 | GT58: 17.04294598 | GU58: 16.5316576 | GV58: 0 | GW58: 0 | GX58: 0 | GY58: 0 | GZ58: 0 | HA58: 0 | HB58: 40 | HC58: 42 | HD58: 44.1 | HE58: 46.305 | HF58: 48.62025 | HG58: 51.0512625 | HH58: 53.60382563 | HI58: 56.28401691 | HJ58: 59.09821775 | HK58: 62.05312864 | HL58: 65.15578507 | HM58: 68.41357432 | HN58: 71.83425304 | HO58: 75.42596569 | HP58: 79.19726398 | HQ58: 83.15712718 | HR58: 85 | HS58: 85 | HT58: 85 | HU58: 85 | HV58: 85 | HW58: 85 | HX58: 85 | HY58: 85 | HZ58: 85 | IA58: 85 | IB58: 85 | IC58: 85 | ID58: 85 | IE58: 85 | IF58: 85 | IG58: 85 | IH58: 85 | II58: 85 | IJ58: 85 | IK58: 85 | IL58: 85 | IM58: 85 | IN58: 85 | IO58: 85 | IP58: 85 | IQ58: 85 | IR58: 85 | IS58: 85 | IT58: 85 | IU58: 85 | IV58: 85 | IW58: 85 | IX58: 85 | IY58: 85 | IZ58: 85 | JA58: 85 | JB58: 85
A59: ". " | B59: Well 032 | AU59: =C$182 -> 0 | AV59: =D$182 -> 0 | AW59: 0 | AX59: 0 | AY59: 0 | AZ59: 0 | BA59: 100 | BB59: 95 | BC59: 90.25 | BD59: 85.7375 | BE59: 81.450625 | BF59: 77.37809375 | BG59: 73.50918906 | BH59: 69.83372961 | BI59: 67.73871772 | BJ59: 65.70655619 | BK59: 63.7353595 | BL59: 61.82329872 | BM59: 59.96859976 | BN59: 58.16954176 | BO59: 56.42445551 | BP59: 54.73172185 | BQ59: 53.08977019 | BR59: 51.49707709 | BS59: 49.95216477 | BT59: 48.45359983 | BU59: 46.99999183 | BV59: 45.58999208 | BW59: 44.22229232 | BX59: 42.89562355 | BY59: 41.60875484 | BZ59: 40.3604922 | CA59: 0 | CB59: 0 | CC59: 0 | CD59: 0 | CE59: 0 | CF59: 0 | CG59: 80 | CH59: 76 | CI59: 72.2 | CJ59: 68.59 | CK59: 65.1605 | CL59: 61.902475 | CM59: 58.80735125 | CN59: 55.86698369 | CO59: 54.19097418 | CP59: 52.56524495 | CQ59: 50.9882876 | CR59: 49.45863897 | CS59: 47.97487981 | CT59: 46.53563341 | CU59: 45.13956441 | CV59: 43.78537748 | CW59: 42.47181615 | CX59: 41.19766167 | CY59: 39.96173182 | CZ59: 38.76287986 | DA59: 37.59999347 | DB59: 36.47199366 | DC59: 35.37783385 | DD59: 34.31649884 | DE59: 33.28700387 | DF59: 32.28839376 | DG59: 0 | DH59: =BP$182 -> 0 | DI59: 0 | DJ59: 0 | DK59: 0 | DL59: 0 | DM59: 64 | DN59: 60.8 | DO59: 57.76 | DP59: 54.872 | DQ59: 52.1284 | DR59: 49.52198 | DS59: 47.045881 | DT59: 44.69358695 | DU59: 43.35277934 | DV59: 42.05219596 | DW59: 40.79063008 | DX59: 39.56691118 | DY59: 38.37990384 | DZ59: 37.22850673 | EA59: 36.11165153 | EB59: 35.02830198 | EC59: 33.97745292 | ED59: 32.95812933 | EE59: 31.96938545 | EF59: 31.01030389 | EG59: 30.07999477 | EH59: 29.17759493 | EI59: 28.30226708 | EJ59: 27.45319907 | EK59: 26.6296031 | EL59: 25.83071501 | EM59: 0 | EN59: 0 | EO59: 0 | EP59: 0 | EQ59: 0 | ER59: 0 | ES59: 51.2 | ET59: 48.64 | EU59: 46.208 | EV59: 43.8976 | EW59: 41.70272 | EX59: 39.617584 | EY59: 37.6367048 | EZ59: 35.75486956 | FA59: 34.68222347 | FB59: 33.64175677 | FC59: 32.63250407 | FD59: 31.65352894 | FE59: 30.70392308 | FF59: 29.78280538 | FG59: 28.88932122 | FH59: 28.02264159 | FI59: 27.18196234 | FJ59: 26.36650347 | FK59: 25.57550836 | FL59: 24.80824311 | FM59: 24.06399582 | FN59: 23.34207594 | FO59: 22.64181367 | FP59: 21.96255926 | FQ59: 21.30368248 | FR59: 20.664572 | FS59: 0 | FT59: =EB$182 -> 0 | FU59: 0 | FV59: 0 | FW59: 0 | FX59: 0 | FY59: 40.96 | FZ59: 38.912 | GA59: 36.9664 | GB59: 35.11808 | GC59: 33.362176 | GD59: 31.6940672 | GE59: 30.10936384 | GF59: 28.60389565 | GG59: 27.74577878 | GH59: 26.91340542 | GI59: 26.10600325 | GJ59: 25.32282316 | GK59: 24.56313846 | GL59: 23.82624431 | GM59: 23.11145698 | GN59: 22.41811327 | GO59: 21.74556987 | GP59: 21.09320277 | GQ59: 20.46040669 | GR59: 19.84659449 | GS59: 19.25119666 | GT59: 18.67366076 | GU59: 18.11345093 | GV59: 17.57004741 | GW59: 17.04294598 | GX59: 16.5316576 | GY59: 0 | GZ59: 0 | HA59: 0 | HB59: 0 | HC59: 0 | HD59: 0 | HE59: Put to Long Term Steam
A60: ". " | B60: Well 033 | AU60: =C$182 -> 0 | AV60: 0 | AW60: 0 | AX60: 0 | AY60: 0 | AZ60: 0 | BA60: 100 | BB60: 95 | BC60: 90.25 | BD60: 85.7375 | BE60: 81.450625 | BF60: 77.37809375 | BG60: 73.50918906 | BH60: 69.83372961 | BI60: 67.73871772 | BJ60: 65.70655619 | BK60: 63.7353595 | BL60: 61.82329872 | BM60: 59.96859976 | BN60: 58.16954176 | BO60: 56.42445551 | BP60: 54.73172185 | BQ60: 53.08977019 | BR60: 51.49707709 | BS60: 49.95216477 | BT60: 48.45359983 | BU60: 46.99999183 | BV60: 45.58999208 | BW60: 44.22229232 | BX60: 42.89562355 | BY60: 41.60875484 | BZ60: 40.3604922 | CA60: 0 | CB60: 0 | CC60: 0 | CD60: 0 | CE60: 0 | CF60: 0 | CG60: 80 | CH60: 76 | CI60: 72.2 | CJ60: 68.59 | CK60: 65.1605 | CL60: 61.902475 | CM60: 58.80735125 | CN60: 55.86698369 | CO60: 54.19097418 | CP60: 52.56524495 | CQ60: 50.9882876 | CR60: 49.45863897 | CS60: 47.97487981 | CT60: 46.53563341 | CU60: 45.13956441 | CV60: 43.78537748 | CW60: 42.47181615 | CX60: 41.19766167 | CY60: 39.96173182 | CZ60: 38.76287986 | DA60: 37.59999347 | DB60: 36.47199366 | DC60: 35.37783385 | DD60: 34.31649884 | DE60: 33.28700387 | DF60: 32.28839376 | DG60: 0 | DH60: 0 | DI60: 0 | DJ60: 0 | DK60: 0 | DL60: 0 | DM60: 64 | DN60: 60.8 | DO60: 57.76 | DP60: 54.872 | DQ60: 52.1284 | DR60: 49.52198 | DS60: 47.045881 | DT60: 44.69358695 | DU60: 43.35277934 | DV60: 42.05219596 | DW60: 40.79063008 | DX60: 39.56691118 | DY60: 38.37990384 | DZ60: 37.22850673 | EA60: 36.11165153 | EB60: 35.02830198 | EC60: 33.97745292 | ED60: 32.95812933 | EE60: 31.96938545 | EF60: 31.01030389 | EG60: 30.07999477 | EH60: 29.17759493 | EI60: 28.30226708 | EJ60: 27.45319907 | EK60: 26.6296031 | EL60: 25.83071501 | EM60: 0 | EN60: 0 | EO60: 0 | EP60: 0 | EQ60: 0 | ER60: 0 | ES60: 51.2 | ET60: 48.64 | EU60: 46.208 | EV60: 43.8976 | EW60: 41.70272 | EX60: 39.617584 | EY60: 37.6367048 | EZ60: 35.75486956 | FA60: 34.68222347 | FB60: 33.64175677 | FC60: 32.63250407 | FD60: 31.65352894 | FE60: 30.70392308 | FF60: 29.78280538 | FG60: 28.88932122 | FH60: 28.02264159 | FI60: 27.18196234 | FJ60: 26.36650347 | FK60: 25.57550836 | FL60: 24.80824311 | FM60: 24.06399582 | FN60: 23.34207594 | FO60: 22.64181367 | FP60: 21.96255926 | FQ60: 21.30368248 | FR60: 20.664572 | FS60: 0 | FT60: 0 | FU60: 0 | FV60: 0 | FW60: 0 | FX60: 0 | FY60: 40.96 | FZ60: 38.912 | GA60: 36.9664 | GB60: 35.11808 | GC60: 33.362176 | GD60: 31.6940672 | GE60: 30.10936384 | GF60: 28.60389565 | GG60: 27.74577878 | GH60: 26.91340542 | GI60: 26.10600325 | GJ60: 25.32282316 | GK60: 24.56313846 | GL60: 23.82624431 | GM60: 23.11145698 | GN60: 22.41811327 | GO60: 21.74556987 | GP60: 21.09320277 | GQ60: 20.46040669 | GR60: 19.84659449 | GS60: 19.25119666 | GT60: 18.67366076 | GU60: 18.11345093 | GV60: 17.57004741 | GW60: 17.04294598 | GX60: 16.5316576 | GY60: 0 | GZ60: 0 | HA60: 0 | HB60: 0 | HC60: 0 | HD60: 0 | HE60: 40 | HF60: 42 | HG60: 44.1 | HH60: 46.305 | HI60: 48.62025 | HJ60: 51.0512625 | HK60: 53.60382563 | HL60: 56.28401691 | HM60: 59.09821775 | HN60: 62.05312864 | HO60: 65.15578507 | HP60: 68.41357432 | HQ60: 71.83425304 | HR60: 75.42596569 | HS60: 79.19726398 | HT60: 83.15712718 | HU60: 85 | HV60: 85 | HW60: 85 | HX60: 85 | HY60: 85 | HZ60: 85 | IA60: 85 | IB60: 85 | IC60: 85 | ID60: 85 | IE60: 85 | IF60: =GN$182 -> 85 | IG60: 85 | IH60: 85 | II60: 85 | IJ60: 85 | IK60: 85 | IL60: 85 | IM60: 85 | IN60: 85 | IO60: 85 | IP60: 85 | IQ60: 85 | IR60: 85 | IS60: 85 | IT60: 85 | IU60: 85 | IV60: 85 | IW60: 85 | IX60: 85 | IY60: 85 | IZ60: 85 | JA60: 85 | JB60: 85
A61: ". " | B61: Well 034 | AU61: =C$182 -> 0 | AV61: 0 | AW61: 0 | AX61: 0 | AY61: 0 | AZ61: 0 | BA61: 100 | BB61: 95 | BC61: 90.25 | BD61: 85.7375 | BE61: 81.450625 | BF61: 77.37809375 | BG61: 73.50918906 | BH61: 69.83372961 | BI61: 67.73871772 | BJ61: 65.70655619 | BK61: 63.7353595 | BL61: 61.82329872 | BM61: 59.96859976 | BN61: 58.16954176 | BO61: 56.42445551 | BP61: 54.73172185 | BQ61: 53.08977019 | BR61: 51.49707709 | BS61: 49.95216477 | BT61: 48.45359983 | BU61: 46.99999183 | BV61: 45.58999208 | BW61: 44.22229232 | BX61: 42.89562355 | BY61: 41.60875484 | BZ61: 40.3604922 | CA61: 0 | CB61: 0 | CC61: 0 | CD61: 0 | CE61: 0 | CF61: 0 | CG61: 80 | CH61: 76 | CI61: 72.2 | CJ61: 68.59 | CK61: 65.1605 | CL61: 61.902475 | CM61: 58.80735125 | CN61: 55.86698369 | CO61: 54.19097418 | CP61: 52.56524495 | CQ61: 50.9882876 | CR61: 49.45863897 | CS61: 47.97487981 | CT61: 46.53563341 | CU61: 45.13956441 | CV61: 43.78537748 | CW61: 42.47181615 | CX61: 41.19766167 | CY61: 39.96173182 | CZ61: 38.76287986 | DA61: 37.59999347 | DB61: 36.47199366 | DC61: 35.37783385 | DD61: 34.31649884 | DE61: 33.28700387 | DF61: 32.28839376 | DG61: 0 | DH61: 0 | DI61: 0 | DJ61: 0 | DK61: 0 | DL61: 0 | DM61: 64 | DN61: 60.8 | DO61: 57.76 | DP61: 54.872 | DQ61: 52.1284 | DR61: 49.52198 | DS61: 47.045881 | DT61: 44.69358695 | DU61: 43.35277934 | DV61: 42.05219596 | DW61: 40.79063008 | DX61: 39.56691118 | DY61: 38.37990384 | DZ61: 37.22850673 | EA61: 36.11165153 | EB61: 35.02830198 | EC61: 33.97745292 | ED61: 32.95812933 | EE61: 31.96938545 | EF61: 31.01030389 | EG61: 30.07999477 | EH61: 29.17759493 | EI61: 28.30226708 | EJ61: 27.45319907 | EK61: 26.6296031 | EL61: 25.83071501 | EM61: 0 | EN61: 0 | EO61: 0 | EP61: 0 | EQ61: 0 | ER61: 0 | ES61: 51.2 | ET61: 48.64 | EU61: 46.208 | EV61: 43.8976 | EW61: 41.70272 | EX61: 39.617584 | EY61: 37.6367048 | EZ61: 35.75486956 | FA61: 34.68222347 | FB61: 33.64175677 | FC61: 32.63250407 | FD61: 31.65352894 | FE61: 30.70392308 | FF61: 29.78280538 | FG61: 28.88932122 | FH61: 28.02264159 | FI61: 27.18196234 | FJ61: 26.36650347 | FK61: 25.57550836 | FL61: 24.80824311 | FM61: 24.06399582 | FN61: 23.34207594 | FO61: 22.64181367 | FP61: 21.96255926 | FQ61: 21.30368248 | FR61: 20.664572 | FS61: 0 | FT61: 0 | FU61: 0 | FV61: 0 | FW61: 0 | FX61: 0 | FY61: 40.96 | FZ61: 38.912 | GA61: 36.9664 | GB61: 35.11808 | GC61: 33.362176 | GD61: 31.6940672 | GE61: 30.10936384 | GF61: 28.60389565 | GG61: 27.74577878 | GH61: 26.91340542 | GI61: 26.10600325 | GJ61: 25.32282316 | GK61: 24.56313846 | GL61: 23.82624431 | GM61: 23.11145698 | GN61: 22.41811327 | GO61: 21.74556987 | GP61: 21.09320277 | GQ61: 20.46040669 | GR61: 19.84659449 | GS61: 19.25119666 | GT61: 18.67366076 | GU61: 18.11345093 | GV61: 17.57004741 | GW61: 17.04294598 | GX61: 16.5316576 | GY61: 0 | GZ61: 0 | HA61: 0 | HB61: 0 | HC61: 0 | HD61: 0 | HE61: 40 | HF61: 42 | HG61: 44.1 | HH61: 46.305 | HI61: 48.62025 | HJ61: 51.0512625 | HK61: 53.60382563 | HL61: 56.28401691 | HM61: 59.09821775 | HN61: 62.05312864 | HO61: 65.15578507 | HP61: 68.41357432 | HQ61: 71.83425304 | HR61: 75.42596569 | HS61: 79.19726398 | HT61: 83.15712718 | HU61: 85 | HV61: 85 | HW61: 85 | HX61: 85 | HY61: 85 | HZ61: 85 | IA61: 85 | IB61: 85 | IC61: 85 | ID61: 85 | IE61: 85 | IF61: 85 | IG61: 85 | IH61: 85 | II61: 85 | IJ61: 85 | IK61: 85 | IL61: 85 | IM61: 85 | IN61: 85 | IO61: 85 | IP61: 85 | IQ61: 85 | IR61: 85 | IS61: 85 | IT61: 85 | IU61: 85 | IV61: 85 | IW61: 85 | IX61: 85 | IY61: 85 | IZ61: 85 | JA61: 85 | JB61: 85
A62: ". " | B62: Well 035 | AU62: =C$182 -> 0 | AV62: 0 | AW62: 0 | AX62: 0 | AY62: 0 | AZ62: 0 | BA62: 100 | BB62: 95 | BC62: 90.25 | BD62: 85.7375 | BE62: 81.450625 | BF62: 77.37809375 | BG62: 73.50918906 | BH62: 69.83372961 | BI62: 67.73871772 | BJ62: 65.70655619 | BK62: 63.7353595 | BL62: 61.82329872 | BM62: 59.96859976 | BN62: 58.16954176 | BO62: 56.42445551 | BP62: 54.73172185 | BQ62: 53.08977019 | BR62: 51.49707709 | BS62: 49.95216477 | BT62: 48.45359983 | BU62: 46.99999183 | BV62: 45.58999208 | BW62: 44.22229232 | BX62: 42.89562355 | BY62: 41.60875484 | BZ62: 40.3604922 | CA62: 0 | CB62: 0 | CC62: 0 | CD62: 0 | CE62: 0 | CF62: 0 | CG62: 80 | CH62: 76 | CI62: 72.2 | CJ62: 68.59 | CK62: 65.1605 | CL62: 61.902475 | CM62: 58.80735125 | CN62: 55.86698369 | CO62: 54.19097418 | CP62: 52.56524495 | CQ62: 50.9882876 | CR62: 49.45863897 | CS62: 47.97487981 | CT62: 46.53563341 | CU62: 45.13956441 | CV62: 43.78537748 | CW62: 42.47181615 | CX62: 41.19766167 | CY62: 39.96173182 | CZ62: 38.76287986 | DA62: 37.59999347 | DB62: 36.47199366 | DC62: 35.37783385 | DD62: 34.31649884 | DE62: 33.28700387 | DF62: 32.28839376 | DG62: =BO$182 -> 0 | DH62: 0 | DI62: 0 | DJ62: 0 | DK62: 0 | DL62: 0 | DM62: 64 | DN62: 60.8 | DO62: 57.76 | DP62: 54.872 | DQ62: 52.1284 | DR62: 49.52198 | DS62: 47.045881 | DT62: 44.69358695 | DU62: 43.35277934 | DV62: 42.05219596 | DW62: 40.79063008 | DX62: 39.56691118 | DY62: 38.37990384 | DZ62: 37.22850673 | EA62: 36.11165153 | EB62: 35.02830198 | EC62: 33.97745292 | ED62: 32.95812933 | EE62: 31.96938545 | EF62: 31.01030389 | EG62: 30.07999477 | EH62: 29.17759493 | EI62: 28.30226708 | EJ62: 27.45319907 | EK62: 26.6296031 | EL62: 25.83071501 | EM62: 0 | EN62: 0 | EO62: 0 | EP62: 0 | EQ62: 0 | ER62: 0 | ES62: 51.2 | ET62: 48.64 | EU62: 46.208 | EV62: 43.8976 | EW62: 41.70272 | EX62: 39.617584 | EY62: 37.6367048 | EZ62: 35.75486956 | FA62: 34.68222347 | FB62: 33.64175677 | FC62: 32.63250407 | FD62: 31.65352894 | FE62: 30.70392308 | FF62: 29.78280538 | FG62: 28.88932122 | FH62: 28.02264159 | FI62: 27.18196234 | FJ62: 26.36650347 | FK62: 25.57550836 | FL62: 24.80824311 | FM62: 24.06399582 | FN62: 23.34207594 | FO62: 22.64181367 | FP62: 21.96255926 | FQ62: 21.30368248 | FR62: 20.664572 | FS62: =EA$182 -> 0 | FT62: 0 | FU62: 0 | FV62: 0 | FW62: 0 | FX62: 0 | FY62: 40.96 | FZ62: 38.912 | GA62: 36.9664 | GB62: 35.11808 | GC62: 33.362176 | GD62: 31.6940672 | GE62: 30.10936384 | GF62: 28.60389565 | GG62: 27.74577878 | GH62: 26.91340542 | GI62: 26.10600325 | GJ62: 25.32282316 | GK62: 24.56313846 | GL62: 23.82624431 | GM62: 23.11145698 | GN62: 22.41811327 | GO62: 21.74556987 | GP62: 21.09320277 | GQ62: 20.46040669 | GR62: 19.84659449 | GS62: 19.25119666 | GT62: 18.67366076 | GU62: 18.11345093 | GV62: 17.57004741 | GW62: 17.04294598 | GX62: 16.5316576 | GY62: 0 | GZ62: 0 | HA62: 0 | HB62: 0 | HC62: 0 | HD62: 0 | HE62: 40 | HF62: 42 | HG62: 44.1 | HH62: 46.305 | HI62: 48.62025 | HJ62: 51.0512625 | HK62: 53.60382563 | HL62: 56.28401691 | HM62: 59.09821775 | HN62: 62.05312864 | HO62: 65.15578507 | HP62: 68.41357432 | HQ62: 71.83425304 | HR62: 75.42596569 | HS62: 79.19726398 | HT62: 83.15712718 | HU62: 85 | HV62: 85 | HW62: 85 | HX62: 85 | HY62: 85 | HZ62: 85 | IA62: 85 | IB62: 85 | IC62: 85 | ID62: 85 | IE62: =GM$182 -> 85 | IF62: 85 | IG62: 85 | IH62: 85 | II62: 85 | IJ62: 85 | IK62: 85 | IL62: 85 | IM62: 85 | IN62: 85 | IO62: 85 | IP62: 85 | IQ62: 85 | IR62: 85 | IS62: 85 | IT62: 85 | IU62: 85 | IV62: 85 | IW62: 85 | IX62: 85 | IY62: 85 | IZ62: 85 | JA62: 85 | JB62: 85
A63: ". " | B63: Well 036 | AU63: =C$182 -> 0 | AV63: =D$182 -> 0 | AW63: 0 | AX63: 0 | AY63: 0 | AZ63: 0 | BA63: 100 | BB63: 95 | BC63: 90.25 | BD63: 85.7375 | BE63: 81.450625 | BF63: 77.37809375 | BG63: 73.50918906 | BH63: 69.83372961 | BI63: 67.73871772 | BJ63: 65.70655619 | BK63: 63.7353595 | BL63: 61.82329872 | BM63: 59.96859976 | BN63: 58.16954176 | BO63: 56.42445551 | BP63: 54.73172185 | BQ63: 53.08977019 | BR63: 51.49707709 | BS63: 49.95216477 | BT63: 48.45359983 | BU63: 46.99999183 | BV63: 45.58999208 | BW63: 44.22229232 | BX63: 42.89562355 | BY63: 41.60875484 | BZ63: 40.3604922 | CA63: 0 | CB63: 0 | CC63: 0 | CD63: 0 | CE63: 0 | CF63: 0 | CG63: 80 | CH63: 76 | CI63: 72.2 | CJ63: 68.59 | CK63: 65.1605 | CL63: 61.902475 | CM63: 58.80735125 | CN63: 55.86698369 | CO63: 54.19097418 | CP63: 52.56524495 | CQ63: 50.9882876 | CR63: 49.45863897 | CS63: 47.97487981 | CT63: 46.53563341 | CU63: 45.13956441 | CV63: 43.78537748 | CW63: 42.47181615 | CX63: 41.19766167 | CY63: 39.96173182 | CZ63: 38.76287986 | DA63: 37.59999347 | DB63: 36.47199366 | DC63: 35.37783385 | DD63: 34.31649884 | DE63: 33.28700387 | DF63: 32.28839376 | DG63: 0 | DH63: =BP$182 -> 0 | DI63: 0 | DJ63: 0 | DK63: 0 | DL63: 0 | DM63: 64 | DN63: 60.8 | DO63: 57.76 | DP63: 54.872 | DQ63: 52.1284 | DR63: 49.52198 | DS63: 47.045881 | DT63: 44.69358695 | DU63: 43.35277934 | DV63: 42.05219596 | DW63: 40.79063008 | DX63: 39.56691118 | DY63: 38.37990384 | DZ63: 37.22850673 | EA63: 36.11165153 | EB63: 35.02830198 | EC63: 33.97745292 | ED63: 32.95812933 | EE63: 31.96938545 | EF63: 31.01030389 | EG63: 30.07999477 | EH63: 29.17759493 | EI63: 28.30226708 | EJ63: 27.45319907 | EK63: 26.6296031 | EL63: 25.83071501 | EM63: 0 | EN63: 0 | EO63: 0 | EP63: 0 | EQ63: 0 | ER63: 0 | ES63: 51.2 | ET63: 48.64 | EU63: 46.208 | EV63: 43.8976 | EW63: 41.70272 | EX63: 39.617584 | EY63: 37.6367048 | EZ63: 35.75486956 | FA63: 34.68222347 | FB63: 33.64175677 | FC63: 32.63250407 | FD63: 31.65352894 | FE63: 30.70392308 | FF63: 29.78280538 | FG63: 28.88932122 | FH63: 28.02264159 | FI63: 27.18196234 | FJ63: 26.36650347 | FK63: 25.57550836 | FL63: 24.80824311 | FM63: 24.06399582 | FN63: 23.34207594 | FO63: 22.64181367 | FP63: 21.96255926 | FQ63: 21.30368248 | FR63: 20.664572 | FS63: 0 | FT63: =EB$182 -> 0 | FU63: 0 | FV63: 0 | FW63: 0 | FX63: 0 | FY63: 40.96 | FZ63: 38.912 | GA63: 36.9664 | GB63: 35.11808 | GC63: 33.362176 | GD63: 31.6940672 | GE63: 30.10936384 | GF63: 28.60389565 | GG63: 27.74577878 | GH63: 26.91340542 | GI63: 26.10600325 | GJ63: 25.32282316 | GK63: 24.56313846 | GL63: 23.82624431 | GM63: 23.11145698 | GN63: 22.41811327 | GO63: 21.74556987 | GP63: 21.09320277 | GQ63: 20.46040669 | GR63: 19.84659449 | GS63: 19.25119666 | GT63: 18.67366076 | GU63: 18.11345093 | GV63: 17.57004741 | GW63: 17.04294598 | GX63: 16.5316576 | GY63: 0 | GZ63: 0 | HA63: 0 | HB63: 0 | HC63: 0 | HD63: 0 | HE63: 40 | HF63: 42 | HG63: 44.1 | HH63: 46.305 | HI63: 48.62025 | HJ63: 51.0512625 | HK63: 53.60382563 | HL63: 56.28401691 | HM63: 59.09821775 | HN63: 62.05312864 | HO63: 65.15578507 | HP63: 68.41357432 | HQ63: 71.83425304 | HR63: 75.42596569 | HS63: 79.19726398 | HT63: 83.15712718 | HU63: 85 | HV63: 85 | HW63: 85 | HX63: 85 | HY63: 85 | HZ63: 85 | IA63: 85 | IB63: 85 | IC63: 85 | ID63: 85 | IE63: 85 | IF63: 85 | IG63: 85 | IH63: 85 | II63: 85 | IJ63: 85 | IK63: 85 | IL63: 85 | IM63: 85 | IN63: 85 | IO63: 85 | IP63: 85 | IQ63: 85 | IR63: 85 | IS63: 85 | IT63: 85 | IU63: 85 | IV63: 85 | IW63: 85 | IX63: 85 | IY63: 85 | IZ63: 85 | JA63: 85 | JB63: 85
A64: ". " | B64: Well 037 | AX64: =C$182 -> 0 | AY64: =D$182 -> 0 | AZ64: 0 | BA64: 0 | BB64: 0 | BC64: 0 | BD64: 100 | BE64: 95 | BF64: 90.25 | BG64: 85.7375 | BH64: 81.450625 | BI64: 77.37809375 | BJ64: 73.50918906 | BK64: 69.83372961 | BL64: 67.73871772 | BM64: 65.70655619 | BN64: 63.7353595 | BO64: 61.82329872 | BP64: 59.96859976 | BQ64: 58.16954176 | BR64: 56.42445551 | BS64: 54.73172185 | BT64: 53.08977019 | BU64: 51.49707709 | BV64: 49.95216477 | BW64: 48.45359983 | BX64: 46.99999183 | BY64: 45.58999208 | BZ64: 44.22229232 | CA64: 42.89562355 | CB64: 41.60875484 | CC64: 40.3604922 | CD64: 0 | CE64: 0 | CF64: 0 | CG64: 0 | CH64: 0 | CI64: 0 | CJ64: 80 | CK64: 76 | CL64: 72.2 | CM64: 68.59 | CN64: 65.1605 | CO64: 61.902475 | CP64: 58.80735125 | CQ64: 55.86698369 | CR64: 54.19097418 | CS64: 52.56524495 | CT64: 50.9882876 | CU64: 49.45863897 | CV64: 47.97487981 | CW64: 46.53563341 | CX64: 45.13956441 | CY64: 43.78537748 | CZ64: 42.47181615 | DA64: 41.19766167 | DB64: 39.96173182 | DC64: 38.76287986 | DD64: 37.59999347 | DE64: 36.47199366 | DF64: 35.37783385 | DG64: 34.31649884 | DH64: 33.28700387 | DI64: 32.28839376 | DJ64: 0 | DK64: =BP$182 -> 0 | DL64: 0 | DM64: 0 | DN64: 0 | DO64: 0 | DP64: 64 | DQ64: 60.8 | DR64: 57.76 | DS64: 54.872 | DT64: 52.1284 | DU64: 49.52198 | DV64: 47.045881 | DW64: 44.69358695 | DX64: 43.35277934 | DY64: 42.05219596 | DZ64: 40.79063008 | EA64: 39.56691118 | EB64: 38.37990384 | EC64: 37.22850673 | ED64: 36.11165153 | EE64: 35.02830198 | EF64: 33.97745292 | EG64: 32.95812933 | EH64: 31.96938545 | EI64: 31.01030389 | EJ64: 30.07999477 | EK64: 29.17759493 | EL64: 28.30226708 | EM64: 27.45319907 | EN64: 26.6296031 | EO64: 25.83071501 | EP64: 0 | EQ64: 0 | ER64: 0 | ES64: 0 | ET64: 0 | EU64: 0 | EV64: 51.2 | EW64: 48.64 | EX64: 46.208 | EY64: 43.8976 | EZ64: 41.70272 | FA64: 39.617584 | FB64: 37.6367048 | FC64: 35.75486956 | FD64: 34.68222347 | FE64: 33.64175677 | FF64: 32.63250407 | FG64: 31.65352894 | FH64: 30.70392308 | FI64: 29.78280538 | FJ64: 28.88932122 | FK64: 28.02264159 | FL64: 27.18196234 | FM64: 26.36650347 | FN64: 25.57550836 | FO64: 24.80824311 | FP64: 24.06399582 | FQ64: 23.34207594 | FR64: 22.64181367 | FS64: 21.96255926 | FT64: 21.30368248 | FU64: 20.664572 | FV64: 0 | FW64: =EB$182 -> 0 | FX64: 0 | FY64: 0 | FZ64: 0 | GA64: 0 | GB64: 40.96 | GC64: 38.912 | GD64: 36.9664 | GE64: 35.11808 | GF64: 33.362176 | GG64: 31.6940672 | GH64: 30.10936384 | GI64: 28.60389565 | GJ64: 27.74577878 | GK64: 26.91340542 | GL64: 26.10600325 | GM64: 25.32282316 | GN64: 24.56313846 | GO64: 23.82624431 | GP64: 23.11145698 | GQ64: 22.41811327 | GR64: 21.74556987 | GS64: 21.09320277 | GT64: 20.46040669 | GU64: 19.84659449 | GV64: 19.25119666 | GW64: 18.67366076 | GX64: 18.11345093 | GY64: 17.57004741 | GZ64: 17.04294598 | HA64: 16.5316576 | HB64: 0 | HC64: 0 | HD64: 0 | HE64: 0 | HF64: 0 | HG64: 0 | HH64: Put to Long Term Steam
A65: ". " | B65: Well 038 | AX65: =C$182 -> 0 | AY65: 0 | AZ65: 0 | BA65: 0 | BB65: 0 | BC65: 0 | BD65: 100 | BE65: 95 | BF65: 90.25 | BG65: 85.7375 | BH65: 81.450625 | BI65: 77.37809375 | BJ65: 73.50918906 | BK65: 69.83372961 | BL65: 67.73871772 | BM65: 65.70655619 | BN65: 63.7353595 | BO65: 61.82329872 | BP65: 59.96859976 | BQ65: 58.16954176 | BR65: 56.42445551 | BS65: 54.73172185 | BT65: 53.08977019 | BU65: 51.49707709 | BV65: 49.95216477 | BW65: 48.45359983 | BX65: 46.99999183 | BY65: 45.58999208 | BZ65: 44.22229232 | CA65: 42.89562355 | CB65: 41.60875484 | CC65: 40.3604922 | CD65: 0 | CE65: 0 | CF65: 0 | CG65: 0 | CH65: 0 | CI65: 0 | CJ65: 80 | CK65: 76 | CL65: 72.2 | CM65: 68.59 | CN65: 65.1605 | CO65: 61.902475 | CP65: 58.80735125 | CQ65: 55.86698369 | CR65: 54.19097418 | CS65: 52.56524495 | CT65: 50.9882876 | CU65: 49.45863897 | CV65: 47.97487981 | CW65: 46.53563341 | CX65: 45.13956441 | CY65: 43.78537748 | CZ65: 42.47181615 | DA65: 41.19766167 | DB65: 39.96173182 | DC65: 38.76287986 | DD65: 37.59999347 | DE65: 36.47199366 | DF65: 35.37783385 | DG65: 34.31649884 | DH65: 33.28700387 | DI65: 32.28839376 | DJ65: 0 | DK65: 0 | DL65: 0 | DM65: 0 | DN65: 0 | DO65: 0 | DP65: 64 | DQ65: 60.8 | DR65: 57.76 | DS65: 54.872 | DT65: 52.1284 | DU65: 49.52198 | DV65: 47.045881 | DW65: 44.69358695 | DX65: 43.35277934 | DY65: 42.05219596 | DZ65: 40.79063008 | EA65: 39.56691118 | EB65: 38.37990384 | EC65: 37.22850673 | ED65: 36.11165153 | EE65: 35.02830198 | EF65: 33.97745292 | EG65: 32.95812933 | EH65: 31.96938545 | EI65: 31.01030389 | EJ65: 30.07999477 | EK65: 29.17759493 | EL65: 28.30226708 | EM65: 27.45319907 | EN65: 26.6296031 | EO65: 25.83071501 | EP65: 0 | EQ65: 0 | ER65: 0 | ES65: 0 | ET65: 0 | EU65: 0 | EV65: 51.2 | EW65: 48.64 | EX65: 46.208 | EY65: 43.8976 | EZ65: 41.70272 | FA65: 39.617584 | FB65: 37.6367048 | FC65: 35.75486956 | FD65: 34.68222347 | FE65: 33.64175677 | FF65: 32.63250407 | FG65: 31.65352894 | FH65: 30.70392308 | FI65: 29.78280538 | FJ65: 28.88932122 | FK65: 28.02264159 | FL65: 27.18196234 | FM65: 26.36650347 | FN65: 25.57550836 | FO65: 24.80824311 | FP65: 24.06399582 | FQ65: 23.34207594 | FR65: 22.64181367 | FS65: 21.96255926 | FT65: 21.30368248 | FU65: 20.664572 | FV65: 0 | FW65: 0 | FX65: 0 | FY65: 0 | FZ65: 0 | GA65: 0 | GB65: 40.96 | GC65: 38.912 | GD65: 36.9664 | GE65: 35.11808 | GF65: 33.362176 | GG65: 31.6940672 | GH65: 30.10936384 | GI65: 28.60389565 | GJ65: 27.74577878 | GK65: 26.91340542 | GL65: 26.10600325 | GM65: 25.32282316 | GN65: 24.56313846 | GO65: 23.82624431 | GP65: 23.11145698 | GQ65: 22.41811327 | GR65: 21.74556987 | GS65: 21.09320277 | GT65: 20.46040669 | GU65: 19.84659449 | GV65: 19.25119666 | GW65: 18.67366076 | GX65: 18.11345093 | GY65: 17.57004741 | GZ65: 17.04294598 | HA65: 16.5316576 | HB65: 0 | HC65: 0 | HD65: 0 | HE65: 0 | HF65: 0 | HG65: 0 | HH65: 40 | HI65: 42 | HJ65: 44.1 | HK65: 46.305 | HL65: 48.62025 | HM65: 51.0512625 | HN65: 53.60382563 | HO65: 56.28401691 | HP65: 59.09821775 | HQ65: 62.05312864 | HR65: 65.15578507 | HS65: 68.41357432 | HT65: 71.83425304 | HU65: 75.42596569 | HV65: 79.19726398 | HW65: 83.15712718 | HX65: 85 | HY65: 85 | HZ65: 85 | IA65: 85 | IB65: 85 | IC65: 85 | ID65: 85 | IE65: 85 | IF65: 85 | IG65: 85 | IH65: 85 | II65: =GN$182 -> 85 | IJ65: 85 | IK65: 85 | IL65: 85 | IM65: 85 | IN65: 85 | IO65: 85 | IP65: 85 | IQ65: 85 | IR65: 85 | IS65: 85 | IT65: 85 | IU65: 85 | IV65: 85 | IW65: 85 | IX65: 85 | IY65: 85 | IZ65: 85 | JA65: 85 | JB65: 85
A66: ". " | B66: Well 039 | AX66: =C$182 -> 0 | AY66: 0 | AZ66: 0 | BA66: 0 | BB66: 0 | BC66: 0 | BD66: 100 | BE66: 95 | BF66: 90.25 | BG66: 85.7375 | BH66: 81.450625 | BI66: 77.37809375 | BJ66: 73.50918906 | BK66: 69.83372961 | BL66: 67.73871772 | BM66: 65.70655619 | BN66: 63.7353595 | BO66: 61.82329872 | BP66: 59.96859976 | BQ66: 58.16954176 | BR66: 56.42445551 | BS66: 54.73172185 | BT66: 53.08977019 | BU66: 51.49707709 | BV66: 49.95216477 | BW66: 48.45359983 | BX66: 46.99999183 | BY66: 45.58999208 | BZ66: 44.22229232 | CA66: 42.89562355 | CB66: 41.60875484 | CC66: 40.3604922 | CD66: 0 | CE66: 0 | CF66: 0 | CG66: 0 | CH66: 0 | CI66: 0 | CJ66: 80 | CK66: 76 | CL66: 72.2 | CM66: 68.59 | CN66: 65.1605 | CO66: 61.902475 | CP66: 58.80735125 | CQ66: 55.86698369 | CR66: 54.19097418 | CS66: 52.56524495 | CT66: 50.9882876 | CU66: 49.45863897 | CV66: 47.97487981 | CW66: 46.53563341 | CX66: 45.13956441 | CY66: 43.78537748 | CZ66: 42.47181615 | DA66: 41.19766167 | DB66: 39.96173182 | DC66: 38.76287986 | DD66: 37.59999347 | DE66: 36.47199366 | DF66: 35.37783385 | DG66: 34.31649884 | DH66: 33.28700387 | DI66: 32.28839376 | DJ66: 0 | DK66: 0 | DL66: 0 | DM66: 0 | DN66: 0 | DO66: 0 | DP66: 64 | DQ66: 60.8 | DR66: 57.76 | DS66: 54.872 | DT66: 52.1284 | DU66: 49.52198 | DV66: 47.045881 | DW66: 44.69358695 | DX66: 43.35277934 | DY66: 42.05219596 | DZ66: 40.79063008 | EA66: 39.56691118 | EB66: 38.37990384 | EC66: 37.22850673 | ED66: 36.11165153 | EE66: 35.02830198 | EF66: 33.97745292 | EG66: 32.95812933 | EH66: 31.96938545 | EI66: 31.01030389 | EJ66: 30.07999477 | EK66: 29.17759493 | EL66: 28.30226708 | EM66: 27.45319907 | EN66: 26.6296031 | EO66: 25.83071501 | EP66: 0 | EQ66: 0 | ER66: 0 | ES66: 0 | ET66: 0 | EU66: 0 | EV66: 51.2 | EW66: 48.64 | EX66: 46.208 | EY66: 43.8976 | EZ66: 41.70272 | FA66: 39.617584 | FB66: 37.6367048 | FC66: 35.75486956 | FD66: 34.68222347 | FE66: 33.64175677 | FF66: 32.63250407 | FG66: 31.65352894 | FH66: 30.70392308 | FI66: 29.78280538 | FJ66: 28.88932122 | FK66: 28.02264159 | FL66: 27.18196234 | FM66: 26.36650347 | FN66: 25.57550836 | FO66: 24.80824311 | FP66: 24.06399582 | FQ66: 23.34207594 | FR66: 22.64181367 | FS66: 21.96255926 | FT66: 21.30368248 | FU66: 20.664572 | FV66: 0 | FW66: 0 | FX66: 0 | FY66: 0 | FZ66: 0 | GA66: 0 | GB66: 40.96 | GC66: 38.912 | GD66: 36.9664 | GE66: 35.11808 | GF66: 33.362176 | GG66: 31.6940672 | GH66: 30.10936384 | GI66: 28.60389565 | GJ66: 27.74577878 | GK66: 26.91340542 | GL66: 26.10600325 | GM66: 25.32282316 | GN66: 24.56313846 | GO66: 23.82624431 | GP66: 23.11145698 | GQ66: 22.41811327 | GR66: 21.74556987 | GS66: 21.09320277 | GT66: 20.46040669 | GU66: 19.84659449 | GV66: 19.25119666 | GW66: 18.67366076 | GX66: 18.11345093 | GY66: 17.57004741 | GZ66: 17.04294598 | HA66: 16.5316576 | HB66: 0 | HC66: 0 | HD66: 0 | HE66: 0 | HF66: 0 | HG66: 0 | HH66: 40 | HI66: 42 | HJ66: 44.1 | HK66: 46.305 | HL66: 48.62025 | HM66: 51.0512625 | HN66: 53.60382563 | HO66: 56.28401691 | HP66: 59.09821775 | HQ66: 62.05312864 | HR66: 65.15578507 | HS66: 68.41357432 | HT66: 71.83425304 | HU66: 75.42596569 | HV66: 79.19726398 | HW66: 83.15712718 | HX66: 85 | HY66: 85 | HZ66: 85 | IA66: 85 | IB66: 85 | IC66: 85 | ID66: 85 | IE66: 85 | IF66: 85 | IG66: 85 | IH66: 85 | II66: 85 | IJ66: 85 | IK66: 85 | IL66: 85 | IM66: 85 | IN66: 85 | IO66: 85 | IP66: 85 | IQ66: 85 | IR66: 85 | IS66: 85 | IT66: 85 | IU66: 85 | IV66: 85 | IW66: 85 | IX66: 85 | IY66: 85 | IZ66: 85 | JA66: 85 | JB66: 85
A67: ". " | B67: Well 040 | AX67: =C$182 -> 0 | AY67: 0 | AZ67: 0 | BA67: 0 | BB67: 0 | BC67: 0 | BD67: 100 | BE67: 95 | BF67: 90.25 | BG67: 85.7375 | BH67: 81.450625 | BI67: 77.37809375 | BJ67: 73.50918906 | BK67: 69.83372961 | BL67: 67.73871772 | BM67: 65.70655619 | BN67: 63.7353595 | BO67: 61.82329872 | BP67: 59.96859976 | BQ67: 58.16954176 | BR67: 56.42445551 | BS67: 54.73172185 | BT67: 53.08977019 | BU67: 51.49707709 | BV67: 49.95216477 | BW67: 48.45359983 | BX67: 46.99999183 | BY67: 45.58999208 | BZ67: 44.22229232 | CA67: 42.89562355 | CB67: 41.60875484 | CC67: 40.3604922 | CD67: 0 | CE67: 0 | CF67: 0 | CG67: 0 | CH67: 0 | CI67: 0 | CJ67: 80 | CK67: 76 | CL67: 72.2 | CM67: 68.59 | CN67: 65.1605 | CO67: 61.902475 | CP67: 58.80735125 | CQ67: 55.86698369 | CR67: 54.19097418 | CS67: 52.56524495 | CT67: 50.9882876 | CU67: 49.45863897 | CV67: 47.97487981 | CW67: 46.53563341 | CX67: 45.13956441 | CY67: 43.78537748 | CZ67: 42.47181615 | DA67: 41.19766167 | DB67: 39.96173182 | DC67: 38.76287986 | DD67: 37.59999347 | DE67: 36.47199366 | DF67: 35.37783385 | DG67: 34.31649884 | DH67: 33.28700387 | DI67: 32.28839376 | DJ67: =BO$182 -> 0 | DK67: 0 | DL67: 0 | DM67: 0 | DN67: 0 | DO67: 0 | DP67: 64 | DQ67: 60.8 | DR67: 57.76 | DS67: 54.872 | DT67: 52.1284 | DU67: 49.52198 | DV67: 47.045881 | DW67: 44.69358695 | DX67: 43.35277934 | DY67: 42.05219596 | DZ67: 40.79063008 | EA67: 39.56691118 | EB67: 38.37990384 | EC67: 37.22850673 | ED67: 36.11165153 | EE67: 35.02830198 | EF67: 33.97745292 | EG67: 32.95812933 | EH67: 31.96938545 | EI67: 31.01030389 | EJ67: 30.07999477 | EK67: 29.17759493 | EL67: 28.30226708 | EM67: 27.45319907 | EN67: 26.6296031 | EO67: 25.83071501 | EP67: 0 | EQ67: 0 | ER67: 0 | ES67: 0 | ET67: 0 | EU67: 0 | EV67: 51.2 | EW67: 48.64 | EX67: 46.208 | EY67: 43.8976 | EZ67: 41.70272 | FA67: 39.617584 | FB67: 37.6367048 | FC67: 35.75486956 | FD67: 34.68222347 | FE67: 33.64175677 | FF67: 32.63250407 | FG67: 31.65352894 | FH67: 30.70392308 | FI67: 29.78280538 | FJ67: 28.88932122 | FK67: 28.02264159 | FL67: 27.18196234 | FM67: 26.36650347 | FN67: 25.57550836 | FO67: 24.80824311 | FP67: 24.06399582 | FQ67: 23.34207594 | FR67: 22.64181367 | FS67: 21.96255926 | FT67: 21.30368248 | FU67: 20.664572 | FV67: =EA$182 -> 0 | FW67: 0 | FX67: 0 | FY67: 0 | FZ67: 0 | GA67: 0 | GB67: 40.96 | GC67: 38.912 | GD67: 36.9664 | GE67: 35.11808 | GF67: 33.362176 | GG67: 31.6940672 | GH67: 30.10936384 | GI67: 28.60389565 | GJ67: 27.74577878 | GK67: 26.91340542 | GL67: 26.10600325 | GM67: 25.32282316 | GN67: 24.56313846 | GO67: 23.82624431 | GP67: 23.11145698 | GQ67: 22.41811327 | GR67: 21.74556987 | GS67: 21.09320277 | GT67: 20.46040669 | GU67: 19.84659449 | GV67: 19.25119666 | GW67: 18.67366076 | GX67: 18.11345093 | GY67: 17.57004741 | GZ67: 17.04294598 | HA67: 16.5316576 | HB67: 0 | HC67: 0 | HD67: 0 | HE67: 0 | HF67: 0 | HG67: 0 | HH67: 40 | HI67: 42 | HJ67: 44.1 | HK67: 46.305 | HL67: 48.62025 | HM67: 51.0512625 | HN67: 53.60382563 | HO67: 56.28401691 | HP67: 59.09821775 | HQ67: 62.05312864 | HR67: 65.15578507 | HS67: 68.41357432 | HT67: 71.83425304 | HU67: 75.42596569 | HV67: 79.19726398 | HW67: 83.15712718 | HX67: 85 | HY67: 85 | HZ67: 85 | IA67: 85 | IB67: 85 | IC67: 85 | ID67: 85 | IE67: 85 | IF67: 85 | IG67: 85 | IH67: =GM$182 -> 85 | II67: 85 | IJ67: 85 | IK67: 85 | IL67: 85 | IM67: 85 | IN67: 85 | IO67: 85 | IP67: 85 | IQ67: 85 | IR67: 85 | IS67: 85 | IT67: 85 | IU67: 85 | IV67: 85 | IW67: 85 | IX67: 85 | IY67: 85 | IZ67: 85 | JA67: 85 | JB67: 85
A69: New Field | B69: Well 001 | BA69: =C$182 -> 0 | BB69: 0 | BC69: 0 | BD69: 0 | BE69: 0 | BF69: 0 | BG69: 100 | BH69: 95 | BI69: 90.25 | BJ69: 85.7375 | BK69: =M$182 -> 81.450625 | BL69: 77.37809375 | BM69: 73.50918906 | BN69: 69.83372961 | BO69: 67.73871772 | BP69: 65.70655619 | BQ69: 63.7353595 | BR69: 61.82329872 | BS69: 59.96859976 | BT69: 58.16954176 | BU69: =W$182 -> 56.42445551 | BV69: 54.73172185 | BW69: 53.08977019 | BX69: 51.49707709 | BY69: 49.95216477 | BZ69: 48.45359983 | CA69: 46.99999183 | CB69: 45.58999208 | CC69: 44.22229232 | CD69: 42.89562355 | CE69: =AG$182 -> 41.60875484 | CF69: 40.3604922 | CG69: 0 | CH69: 0 | CI69: 0 | CJ69: 0 | CK69: 0 | CL69: 0 | CM69: 80 | CN69: 76 | CO69: =AQ$182 -> 72.2 | CP69: 68.59 | CQ69: 65.1605 | CR69: 61.902475 | CS69: 58.80735125 | CT69: 55.86698369 | CU69: 54.19097418 | CV69: 52.56524495 | CW69: 50.9882876 | CX69: 49.45863897 | CY69: =BA$182 -> 47.97487981 | CZ69: 46.53563341 | DA69: 45.13956441 | DB69: 43.78537748 | DC69: 42.47181615 | DD69: 41.19766167 | DE69: 39.96173182 | DF69: 38.76287986 | DG69: 37.59999347 | DH69: 36.47199366 | DI69: =BK$182 -> 35.37783385 | DJ69: 34.31649884 | DK69: 33.28700387 | DL69: 32.28839376 | DM69: 0 | DN69: 0 | DO69: 0 | DP69: 0 | DQ69: 0 | DR69: 0 | DS69: =BU$182 -> 64 | DT69: 60.8 | DU69: 57.76 | DV69: 54.872 | DW69: 52.1284 | DX69: 49.52198 | DY69: 47.045881 | DZ69: 44.69358695 | EA69: 43.35277934 | EB69: 42.05219596 | EC69: =CE$182 -> 40.79063008 | ED69: 39.56691118 | EE69: 38.37990384 | EF69: 37.22850673 | EG69: 36.11165153 | EH69: 35.02830198 | EI69: 33.97745292 | EJ69: 32.95812933 | EK69: 31.96938545 | EL69: 31.01030389 | EM69: =CO$182 -> 30.07999477 | EN69: 29.17759493 | EO69: 28.30226708 | EP69: 27.45319907 | EQ69: 26.6296031 | ER69: 25.83071501 | ES69: 0 | ET69: 0 | EU69: 0 | EV69: 0 | EW69: =CY$182 -> 0 | EX69: 0 | EY69: 51.2 | EZ69: 48.64 | FA69: 46.208 | FB69: 43.8976 | FC69: 41.70272 | FD69: 39.617584 | FE69: 37.6367048 | FF69: 35.75486956 | FG69: =DI$182 -> 34.68222347 | FH69: 33.64175677 | FI69: 32.63250407 | FJ69: 31.65352894 | FK69: 30.70392308 | FL69: 29.78280538 | FM69: 28.88932122 | FN69: 28.02264159 | FO69: 27.18196234 | FP69: 26.36650347 | FQ69: =DS$182 -> 25.57550836 | FR69: 24.80824311 | FS69: 24.06399582 | FT69: 23.34207594 | FU69: 22.64181367 | FV69: 21.96255926 | FW69: 21.30368248 | FX69: 20.664572 | FY69: 0 | FZ69: 0 | GA69: =EC$182 -> 0 | GB69: 0 | GC69: 0 | GD69: 0 | GE69: 40.96 | GF69: 38.912 | GG69: 36.9664 | GH69: 35.11808 | GI69: 33.362176 | GJ69: 31.6940672 | GK69: =EM$182 -> 30.10936384 | GL69: 28.60389565 | GM69: 27.74577878 | GN69: 26.91340542 | GO69: 26.10600325 | GP69: 25.32282316 | GQ69: 24.56313846 | GR69: 23.82624431 | GS69: 23.11145698 | GT69: 22.41811327 | GU69: =EW$182 -> 21.74556987 | GV69: 21.09320277 | GW69: 20.46040669 | GX69: 19.84659449 | GY69: 19.25119666 | GZ69: 18.67366076 | HA69: 18.11345093 | HB69: 17.57004741 | HC69: 17.04294598 | HD69: 16.5316576 | HE69: =FG$182 -> 0 | HF69: 0 | HG69: 0 | HH69: 0 | HI69: 0 | HJ69: 0 | HK69: Put to Long Term Steam
A70: ". " | B70: Well 002 | BA70: 0 | BB70: 0 | BC70: 0 | BD70: 0 | BE70: 0 | BF70: 0 | BG70: 100 | BH70: 95 | BI70: 90.25 | BJ70: 85.7375 | BK70: 81.450625 | BL70: 77.37809375 | BM70: 73.50918906 | BN70: 69.83372961 | BO70: 67.73871772 | BP70: 65.70655619 | BQ70: 63.7353595 | BR70: 61.82329872 | BS70: 59.96859976 | BT70: 58.16954176 | BU70: 56.42445551 | BV70: 54.73172185 | BW70: 53.08977019 | BX70: 51.49707709 | BY70: 49.95216477 | BZ70: 48.45359983 | CA70: 46.99999183 | CB70: 45.58999208 | CC70: 44.22229232 | CD70: 42.89562355 | CE70: 41.60875484 | CF70: 40.3604922 | CG70: 0 | CH70: 0 | CI70: 0 | CJ70: 0 | CK70: 0 | CL70: 0 | CM70: 80 | CN70: 76 | CO70: 72.2 | CP70: 68.59 | CQ70: 65.1605 | CR70: 61.902475 | CS70: 58.80735125 | CT70: 55.86698369 | CU70: 54.19097418 | CV70: 52.56524495 | CW70: 50.9882876 | CX70: 49.45863897 | CY70: 47.97487981 | CZ70: 46.53563341 | DA70: 45.13956441 | DB70: 43.78537748 | DC70: 42.47181615 | DD70: 41.19766167 | DE70: 39.96173182 | DF70: 38.76287986 | DG70: 37.59999347 | DH70: 36.47199366 | DI70: 35.37783385 | DJ70: 34.31649884 | DK70: 33.28700387 | DL70: 32.28839376 | DM70: 0 | DN70: 0 | DO70: 0 | DP70: 0 | DQ70: 0 | DR70: 0 | DS70: 64 | DT70: 60.8 | DU70: 57.76 | DV70: 54.872 | DW70: 52.1284 | DX70: 49.52198 | DY70: 47.045881 | DZ70: 44.69358695 | EA70: 43.35277934 | EB70: 42.05219596 | EC70: 40.79063008 | ED70: 39.56691118 | EE70: 38.37990384 | EF70: 37.22850673 | EG70: 36.11165153 | EH70: 35.02830198 | EI70: 33.97745292 | EJ70: 32.95812933 | EK70: 31.96938545 | EL70: 31.01030389 | EM70: 30.07999477 | EN70: 29.17759493 | EO70: 28.30226708 | EP70: 27.45319907 | EQ70: 26.6296031 | ER70: 25.83071501 | ES70: 0 | ET70: 0 | EU70: 0 | EV70: 0 | EW70: 0 | EX70: 0 | EY70: 51.2 | EZ70: 48.64 | FA70: 46.208 | FB70: 43.8976 | FC70: 41.70272 | FD70: 39.617584 | FE70: 37.6367048 | FF70: 35.75486956 | FG70: 34.68222347 | FH70: 33.64175677 | FI70: 32.63250407 | FJ70: 31.65352894 | FK70: 30.70392308 | FL70: 29.78280538 | FM70: 28.88932122 | FN70: 28.02264159 | FO70: 27.18196234 | FP70: 26.36650347 | FQ70: 25.57550836 | FR70: 24.80824311 | FS70: 24.06399582 | FT70: 23.34207594 | FU70: 22.64181367 | FV70: 21.96255926 | FW70: 21.30368248 | FX70: 20.664572 | FY70: 0 | FZ70: 0 | GA70: 0 | GB70: 0 | GC70: 0 | GD70: 0 | GE70: 40.96 | GF70: 38.912 | GG70: 36.9664 | GH70: 35.11808 | GI70: 33.362176 | GJ70: 31.6940672 | GK70: 30.10936384 | GL70: 28.60389565 | GM70: 27.74577878 | GN70: 26.91340542 | GO70: 26.10600325 | GP70: 25.32282316 | GQ70: 24.56313846 | GR70: 23.82624431 | GS70: 23.11145698 | GT70: 22.41811327 | GU70: 21.74556987 | GV70: 21.09320277 | GW70: 20.46040669 | GX70: 19.84659449 | GY70: 19.25119666 | GZ70: 18.67366076 | HA70: 18.11345093 | HB70: 17.57004741 | HC70: 17.04294598 | HD70: 16.5316576 | HE70: 0 | HF70: 0 | HG70: 0 | HH70: 0 | HI70: 0 | HJ70: 0 | HK70: =FM$182 -> 40 | HL70: 42 | HM70: 44.1 | HN70: 46.305 | HO70: 48.62025 | HP70: 51.0512625 | HQ70: 53.60382563 | HR70: 56.28401691 | HS70: 59.09821775 | HT70: 62.05312864 | HU70: =FW$182 -> 65.15578507 | HV70: 68.41357432 | HW70: 71.83425304 | HX70: 75.42596569 | HY70: 79.19726398 | HZ70: 83.15712718 | IA70: 85 | IB70: 85 | IC70: 85 | ID70: 85 | IE70: =GG$182 -> 85 | IF70: 85 | IG70: 85 | IH70: 85 | II70: 85 | IJ70: 85 | IK70: 85 | IL70: 85 | IM70: 85 | IN70: 85 | IO70: =GQ$182 -> 85 | IP70: 85 | IQ70: 85 | IR70: 85 | IS70: 85 | IT70: 85 | IU70: 85 | IV70: 85 | IW70: 85 | IX70: 85 | IY70: =HA$182 -> 85 | IZ70: 85 | JA70: 85 | JB70: 85
A71: ". " | B71: Well 003 | BA71: 0 | BB71: 0 | BC71: 0 | BD71: 0 | BE71: 0 | BF71: 0 | BG71: 100 | BH71: 95 | BI71: 90.25 | BJ71: 85.7375 | BK71: 81.450625 | BL71: 77.37809375 | BM71: 73.50918906 | BN71: 69.83372961 | BO71: 67.73871772 | BP71: 65.70655619 | BQ71: 63.7353595 | BR71: 61.82329872 | BS71: 59.96859976 | BT71: 58.16954176 | BU71: 56.42445551 | BV71: 54.73172185 | BW71: 53.08977019 | BX71: 51.49707709 | BY71: 49.95216477 | BZ71: 48.45359983 | CA71: 46.99999183 | CB71: 45.58999208 | CC71: 44.22229232 | CD71: 42.89562355 | CE71: 41.60875484 | CF71: 40.3604922 | CG71: 0 | CH71: 0 | CI71: 0 | CJ71: 0 | CK71: 0 | CL71: 0 | CM71: 80 | CN71: 76 | CO71: 72.2 | CP71: 68.59 | CQ71: 65.1605 | CR71: 61.902475 | CS71: 58.80735125 | CT71: 55.86698369 | CU71: 54.19097418 | CV71: 52.56524495 | CW71: 50.9882876 | CX71: 49.45863897 | CY71: 47.97487981 | CZ71: 46.53563341 | DA71: 45.13956441 | DB71: 43.78537748 | DC71: 42.47181615 | DD71: 41.19766167 | DE71: 39.96173182 | DF71: 38.76287986 | DG71: 37.59999347 | DH71: 36.47199366 | DI71: 35.37783385 | DJ71: 34.31649884 | DK71: 33.28700387 | DL71: 32.28839376 | DM71: 0 | DN71: 0 | DO71: 0 | DP71: 0 | DQ71: 0 | DR71: 0 | DS71: 64 | DT71: 60.8 | DU71: 57.76 | DV71: 54.872 | DW71: 52.1284 | DX71: 49.52198 | DY71: 47.045881 | DZ71: 44.69358695 | EA71: 43.35277934 | EB71: 42.05219596 | EC71: 40.79063008 | ED71: 39.56691118 | EE71: 38.37990384 | EF71: 37.22850673 | EG71: 36.11165153 | EH71: 35.02830198 | EI71: 33.97745292 | EJ71: 32.95812933 | EK71: 31.96938545 | EL71: 31.01030389 | EM71: 30.07999477 | EN71: 29.17759493 | EO71: 28.30226708 | EP71: 27.45319907 | EQ71: 26.6296031 | ER71: 25.83071501 | ES71: 0 | ET71: 0 | EU71: 0 | EV71: 0 | EW71: 0 | EX71: 0 | EY71: 51.2 | EZ71: 48.64 | FA71: 46.208 | FB71: 43.8976 | FC71: 41.70272 | FD71: 39.617584 | FE71: 37.6367048 | FF71: 35.75486956 | FG71: 34.68222347 | FH71: 33.64175677 | FI71: 32.63250407 | FJ71: 31.65352894 | FK71: 30.70392308 | FL71: 29.78280538 | FM71: 28.88932122 | FN71: 28.02264159 | FO71: 27.18196234 | FP71: 26.36650347 | FQ71: 25.57550836 | FR71: 24.80824311 | FS71: 24.06399582 | FT71: 23.34207594 | FU71: 22.64181367 | FV71: 21.96255926 | FW71: 21.30368248 | FX71: 20.664572 | FY71: 0 | FZ71: 0 | GA71: 0 | GB71: 0 | GC71: 0 | GD71: 0 | GE71: 40.96 | GF71: 38.912 | GG71: 36.9664 | GH71: 35.11808 | GI71: 33.362176 | GJ71: 31.6940672 | GK71: 30.10936384 | GL71: 28.60389565 | GM71: 27.74577878 | GN71: 26.91340542 | GO71: 26.10600325 | GP71: 25.32282316 | GQ71: 24.56313846 | GR71: 23.82624431 | GS71: 23.11145698 | GT71: 22.41811327 | GU71: 21.74556987 | GV71: 21.09320277 | GW71: 20.46040669 | GX71: 19.84659449 | GY71: 19.25119666 | GZ71: 18.67366076 | HA71: 18.11345093 | HB71: 17.57004741 | HC71: 17.04294598 | HD71: 16.5316576 | HE71: 0 | HF71: 0 | HG71: 0 | HH71: 0 | HI71: 0 | HJ71: 0 | HK71: 40 | HL71: 42 | HM71: 44.1 | HN71: 46.305 | HO71: 48.62025 | HP71: 51.0512625 | HQ71: 53.60382563 | HR71: 56.28401691 | HS71: 59.09821775 | HT71: 62.05312864 | HU71: 65.15578507 | HV71: 68.41357432 | HW71: 71.83425304 | HX71: 75.42596569 | HY71: 79.19726398 | HZ71: 83.15712718 | IA71: 85 | IB71: 85 | IC71: 85 | ID71: 85 | IE71: 85 | IF71: 85 | IG71: 85 | IH71: 85 | II71: 85 | IJ71: 85 | IK71: 85 | IL71: 85 | IM71: 85 | IN71: 85 | IO71: 85 | IP71: 85 | IQ71: 85 | IR71: 85 | IS71: 85 | IT71: 85 | IU71: 85 | IV71: 85 | IW71: 85 | IX71: 85 | IY71: 85 | IZ71: 85 | JA71: 85 | JB71: 85
A72: ". " | B72: Well 004 | BA72: 0 | BB72: 0 | BC72: 0 | BD72: 0 | BE72: 0 | BF72: 0 | BG72: 100 | BH72: 95 | BI72: 90.25 | BJ72: 85.7375 | BK72: 81.450625 | BL72: 77.37809375 | BM72: 73.50918906 | BN72: 69.83372961 | BO72: 67.73871772 | BP72: 65.70655619 | BQ72: 63.7353595 | BR72: 61.82329872 | BS72: 59.96859976 | BT72: 58.16954176 | BU72: 56.42445551 | BV72: 54.73172185 | BW72: 53.08977019 | BX72: 51.49707709 | BY72: 49.95216477 | BZ72: 48.45359983 | CA72: 46.99999183 | CB72: 45.58999208 | CC72: 44.22229232 | CD72: 42.89562355 | CE72: 41.60875484 | CF72: 40.3604922 | CG72: 0 | CH72: 0 | CI72: 0 | CJ72: 0 | CK72: 0 | CL72: 0 | CM72: 80 | CN72: 76 | CO72: 72.2 | CP72: 68.59 | CQ72: 65.1605 | CR72: 61.902475 | CS72: 58.80735125 | CT72: 55.86698369 | CU72: 54.19097418 | CV72: 52.56524495 | CW72: 50.9882876 | CX72: 49.45863897 | CY72: 47.97487981 | CZ72: 46.53563341 | DA72: 45.13956441 | DB72: 43.78537748 | DC72: 42.47181615 | DD72: 41.19766167 | DE72: 39.96173182 | DF72: 38.76287986 | DG72: 37.59999347 | DH72: 36.47199366 | DI72: 35.37783385 | DJ72: 34.31649884 | DK72: 33.28700387 | DL72: 32.28839376 | DM72: 0 | DN72: 0 | DO72: 0 | DP72: 0 | DQ72: 0 | DR72: 0 | DS72: 64 | DT72: 60.8 | DU72: 57.76 | DV72: 54.872 | DW72: 52.1284 | DX72: 49.52198 | DY72: 47.045881 | DZ72: 44.69358695 | EA72: 43.35277934 | EB72: 42.05219596 | EC72: 40.79063008 | ED72: 39.56691118 | EE72: 38.37990384 | EF72: 37.22850673 | EG72: 36.11165153 | EH72: 35.02830198 | EI72: 33.97745292 | EJ72: 32.95812933 | EK72: 31.96938545 | EL72: 31.01030389 | EM72: 30.07999477 | EN72: 29.17759493 | EO72: 28.30226708 | EP72: 27.45319907 | EQ72: 26.6296031 | ER72: 25.83071501 | ES72: 0 | ET72: 0 | EU72: 0 | EV72: 0 | EW72: 0 | EX72: 0 | EY72: 51.2 | EZ72: 48.64 | FA72: 46.208 | FB72: 43.8976 | FC72: 41.70272 | FD72: 39.617584 | FE72: 37.6367048 | FF72: 35.75486956 | FG72: 34.68222347 | FH72: 33.64175677 | FI72: 32.63250407 | FJ72: 31.65352894 | FK72: 30.70392308 | FL72: 29.78280538 | FM72: 28.88932122 | FN72: 28.02264159 | FO72: 27.18196234 | FP72: 26.36650347 | FQ72: 25.57550836 | FR72: 24.80824311 | FS72: 24.06399582 | FT72: 23.34207594 | FU72: 22.64181367 | FV72: 21.96255926 | FW72: 21.30368248 | FX72: 20.664572 | FY72: 0 | FZ72: 0 | GA72: 0 | GB72: 0 | GC72: 0 | GD72: 0 | GE72: 40.96 | GF72: 38.912 | GG72: 36.9664 | GH72: 35.11808 | GI72: 33.362176 | GJ72: 31.6940672 | GK72: 30.10936384 | GL72: 28.60389565 | GM72: 27.74577878 | GN72: 26.91340542 | GO72: 26.10600325 | GP72: 25.32282316 | GQ72: 24.56313846 | GR72: 23.82624431 | GS72: 23.11145698 | GT72: 22.41811327 | GU72: 21.74556987 | GV72: 21.09320277 | GW72: 20.46040669 | GX72: 19.84659449 | GY72: 19.25119666 | GZ72: 18.67366076 | HA72: 18.11345093 | HB72: 17.57004741 | HC72: 17.04294598 | HD72: 16.5316576 | HE72: 0 | HF72: 0 | HG72: 0 | HH72: 0 | HI72: 0 | HJ72: 0 | HK72: 40 | HL72: 42 | HM72: 44.1 | HN72: 46.305 | HO72: 48.62025 | HP72: 51.0512625 | HQ72: 53.60382563 | HR72: 56.28401691 | HS72: 59.09821775 | HT72: 62.05312864 | HU72: 65.15578507 | HV72: 68.41357432 | HW72: 71.83425304 | HX72: 75.42596569 | HY72: 79.19726398 | HZ72: 83.15712718 | IA72: 85 | IB72: 85 | IC72: 85 | ID72: 85 | IE72: 85 | IF72: 85 | IG72: 85 | IH72: 85 | II72: 85 | IJ72: 85 | IK72: 85 | IL72: 85 | IM72: 85 | IN72: 85 | IO72: 85 | IP72: 85 | IQ72: 85 | IR72: 85 | IS72: 85 | IT72: 85 | IU72: 85 | IV72: 85 | IW72: 85 | IX72: 85 | IY72: 85 | IZ72: 85 | JA72: 85 | JB72: 85
A73: ". " | B73: Well 005 | BA73: 0 | BB73: 0 | BC73: 0 | BD73: 0 | BE73: 0 | BF73: 0 | BG73: 100 | BH73: 95 | BI73: 90.25 | BJ73: 85.7375 | BK73: 81.450625 | BL73: 77.37809375 | BM73: 73.50918906 | BN73: 69.83372961 | BO73: 67.73871772 | BP73: 65.70655619 | BQ73: 63.7353595 | BR73: 61.82329872 | BS73: 59.96859976 | BT73: 58.16954176 | BU73: 56.42445551 | BV73: 54.73172185 | BW73: 53.08977019 | BX73: 51.49707709 | BY73: 49.95216477 | BZ73: 48.45359983 | CA73: 46.99999183 | CB73: 45.58999208 | CC73: 44.22229232 | CD73: 42.89562355 | CE73: 41.60875484 | CF73: 40.3604922 | CG73: 0 | CH73: 0 | CI73: 0 | CJ73: 0 | CK73: 0 | CL73: 0 | CM73: 80 | CN73: 76 | CO73: 72.2 | CP73: 68.59 | CQ73: 65.1605 | CR73: 61.902475 | CS73: 58.80735125 | CT73: 55.86698369 | CU73: 54.19097418 | CV73: 52.56524495 | CW73: 50.9882876 | CX73: 49.45863897 | CY73: 47.97487981 | CZ73: 46.53563341 | DA73: 45.13956441 | DB73: 43.78537748 | DC73: 42.47181615 | DD73: 41.19766167 | DE73: 39.96173182 | DF73: 38.76287986 | DG73: 37.59999347 | DH73: 36.47199366 | DI73: 35.37783385 | DJ73: 34.31649884 | DK73: 33.28700387 | DL73: 32.28839376 | DM73: 0 | DN73: 0 | DO73: 0 | DP73: 0 | DQ73: 0 | DR73: 0 | DS73: 64 | DT73: 60.8 | DU73: 57.76 | DV73: 54.872 | DW73: 52.1284 | DX73: 49.52198 | DY73: 47.045881 | DZ73: 44.69358695 | EA73: 43.35277934 | EB73: 42.05219596 | EC73: 40.79063008 | ED73: 39.56691118 | EE73: 38.37990384 | EF73: 37.22850673 | EG73: 36.11165153 | EH73: 35.02830198 | EI73: 33.97745292 | EJ73: 32.95812933 | EK73: 31.96938545 | EL73: 31.01030389 | EM73: 30.07999477 | EN73: 29.17759493 | EO73: 28.30226708 | EP73: 27.45319907 | EQ73: 26.6296031 | ER73: 25.83071501 | ES73: 0 | ET73: 0 | EU73: 0 | EV73: 0 | EW73: 0 | EX73: 0 | EY73: 51.2 | EZ73: 48.64 | FA73: 46.208 | FB73: 43.8976 | FC73: 41.70272 | FD73: 39.617584 | FE73: 37.6367048 | FF73: 35.75486956 | FG73: 34.68222347 | FH73: 33.64175677 | FI73: 32.63250407 | FJ73: 31.65352894 | FK73: 30.70392308 | FL73: 29.78280538 | FM73: 28.88932122 | FN73: 28.02264159 | FO73: 27.18196234 | FP73: 26.36650347 | FQ73: 25.57550836 | FR73: 24.80824311 | FS73: 24.06399582 | FT73: 23.34207594 | FU73: 22.64181367 | FV73: 21.96255926 | FW73: 21.30368248 | FX73: 20.664572 | FY73: 0 | FZ73: 0 | GA73: 0 | GB73: 0 | GC73: 0 | GD73: 0 | GE73: 40.96 | GF73: 38.912 | GG73: 36.9664 | GH73: 35.11808 | GI73: 33.362176 | GJ73: 31.6940672 | GK73: 30.10936384 | GL73: 28.60389565 | GM73: 27.74577878 | GN73: 26.91340542 | GO73: 26.10600325 | GP73: 25.32282316 | GQ73: 24.56313846 | GR73: 23.82624431 | GS73: 23.11145698 | GT73: 22.41811327 | GU73: 21.74556987 | GV73: 21.09320277 | GW73: 20.46040669 | GX73: 19.84659449 | GY73: 19.25119666 | GZ73: 18.67366076 | HA73: 18.11345093 | HB73: 17.57004741 | HC73: 17.04294598 | HD73: 16.5316576 | HE73: 0 | HF73: 0 | HG73: 0 | HH73: 0 | HI73: 0 | HJ73: 0 | HK73: 40 | HL73: 42 | HM73: 44.1 | HN73: 46.305 | HO73: 48.62025 | HP73: 51.0512625 | HQ73: 53.60382563 | HR73: 56.28401691 | HS73: 59.09821775 | HT73: 62.05312864 | HU73: 65.15578507 | HV73: 68.41357432 | HW73: 71.83425304 | HX73: 75.42596569 | HY73: 79.19726398 | HZ73: 83.15712718 | IA73: 85 | IB73: 85 | IC73: 85 | ID73: 85 | IE73: 85 | IF73: 85 | IG73: 85 | IH73: 85 | II73: 85 | IJ73: 85 | IK73: 85 | IL73: 85 | IM73: 85 | IN73: 85 | IO73: 85 | IP73: 85 | IQ73: 85 | IR73: 85 | IS73: 85 | IT73: 85 | IU73: 85 | IV73: 85 | IW73: 85 | IX73: 85 | IY73: 85 | IZ73: 85 | JA73: 85 | JB73: 85
A74: ". " | B74: Well 006 | BD74: =C$182 -> 0 | BE74: 0 | BF74: 0 | BG74: 0 | BH74: 0 | BI74: 0 | BJ74: 100 | BK74: 95 | BL74: 90.25 | BM74: 85.7375 | BN74: =M$182 -> 81.450625 | BO74: 77.37809375 | BP74: 73.50918906 | BQ74: 69.83372961 | BR74: 67.73871772 | BS74: 65.70655619 | BT74: 63.7353595 | BU74: 61.82329872 | BV74: 59.96859976 | BW74: 58.16954176 | BX74: =W$182 -> 56.42445551 | BY74: 54.73172185 | BZ74: 53.08977019 | CA74: 51.49707709 | CB74: 49.95216477 | CC74: 48.45359983 | CD74: 46.99999183 | CE74: 45.58999208 | CF74: 44.22229232 | CG74: 42.89562355 | CH74: =AG$182 -> 41.60875484 | CI74: 40.3604922 | CJ74: 0 | CK74: 0 | CL74: 0 | CM74: 0 | CN74: 0 | CO74: 0 | CP74: 80 | CQ74: 76 | CR74: =AQ$182 -> 72.2 | CS74: 68.59 | CT74: 65.1605 | CU74: 61.902475 | CV74: 58.80735125 | CW74: 55.86698369 | CX74: 54.19097418 | CY74: 52.56524495 | CZ74: 50.9882876 | DA74: 49.45863897 | DB74: =BA$182 -> 47.97487981 | DC74: 46.53563341 | DD74: 45.13956441 | DE74: 43.78537748 | DF74: 42.47181615 | DG74: 41.19766167 | DH74: 39.96173182 | DI74: 38.76287986 | DJ74: 37.59999347 | DK74: 36.47199366 | DL74: =BK$182 -> 35.37783385 | DM74: 34.31649884 | DN74: 33.28700387 | DO74: 32.28839376 | DP74: 0 | DQ74: 0 | DR74: 0 | DS74: 0 | DT74: 0 | DU74: 0 | DV74: =BU$182 -> 64 | DW74: 60.8 | DX74: 57.76 | DY74: 54.872 | DZ74: 52.1284 | EA74: 49.52198 | EB74: 47.045881 | EC74: 44.69358695 | ED74: 43.35277934 | EE74: 42.05219596 | EF74: =CE$182 -> 40.79063008 | EG74: 39.56691118 | EH74: 38.37990384 | EI74: 37.22850673 | EJ74: 36.11165153 | EK74: 35.02830198 | EL74: 33.97745292 | EM74: 32.95812933 | EN74: 31.96938545 | EO74: 31.01030389 | EP74: =CO$182 -> 30.07999477 | EQ74: 29.17759493 | ER74: 28.30226708 | ES74: 27.45319907 | ET74: 26.6296031 | EU74: 25.83071501 | EV74: 0 | EW74: 0 | EX74: 0 | EY74: 0 | EZ74: =CY$182 -> 0 | FA74: 0 | FB74: 51.2 | FC74: 48.64 | FD74: 46.208 | FE74: 43.8976 | FF74: 41.70272 | FG74: 39.617584 | FH74: 37.6367048 | FI74: 35.75486956 | FJ74: =DI$182 -> 34.68222347 | FK74: 33.64175677 | FL74: 32.63250407 | FM74: 31.65352894 | FN74: 30.70392308 | FO74: 29.78280538 | FP74: 28.88932122 | FQ74: 28.02264159 | FR74: 27.18196234 | FS74: 26.36650347 | FT74: =DS$182 -> 25.57550836 | FU74: 24.80824311 | FV74: 24.06399582 | FW74: 23.34207594 | FX74: 22.64181367 | FY74: 21.96255926 | FZ74: 21.30368248 | GA74: 20.664572 | GB74: 0 | GC74: 0 | GD74: =EC$182 -> 0 | GE74: 0 | GF74: 0 | GG74: 0 | GH74: 40.96 | GI74: 38.912 | GJ74: 36.9664 | GK74: 35.11808 | GL74: 33.362176 | GM74: 31.6940672 | GN74: =EM$182 -> 30.10936384 | GO74: 28.60389565 | GP74: 27.74577878 | GQ74: 26.91340542 | GR74: 26.10600325 | GS74: 25.32282316 | GT74: 24.56313846 | GU74: 23.82624431 | GV74: 23.11145698 | GW74: 22.41811327 | GX74: =EW$182 -> 21.74556987 | GY74: 21.09320277 | GZ74: 20.46040669 | HA74: 19.84659449 | HB74: 19.25119666 | HC74: 18.67366076 | HD74: 18.11345093 | HE74: 17.57004741 | HF74: 17.04294598 | HG74: 16.5316576 | HH74: =FG$182 -> 0 | HI74: 0 | HJ74: 0 | HK74: 0 | HL74: 0 | HM74: 0 | HN74: Put to Long Term Steam
A75: ". " | B75: Well 007 | BD75: 0 | BE75: 0 | BF75: 0 | BG75: 0 | BH75: 0 | BI75: 0 | BJ75: 100 | BK75: 95 | BL75: 90.25 | BM75: 85.7375 | BN75: 81.450625 | BO75: 77.37809375 | BP75: 73.50918906 | BQ75: 69.83372961 | BR75: 67.73871772 | BS75: 65.70655619 | BT75: 63.7353595 | BU75: 61.82329872 | BV75: 59.96859976 | BW75: 58.16954176 | BX75: 56.42445551 | BY75: 54.73172185 | BZ75: 53.08977019 | CA75: 51.49707709 | CB75: 49.95216477 | CC75: 48.45359983 | CD75: 46.99999183 | CE75: 45.58999208 | CF75: 44.22229232 | CG75: 42.89562355 | CH75: 41.60875484 | CI75: 40.3604922 | CJ75: 0 | CK75: 0 | CL75: 0 | CM75: 0 | CN75: 0 | CO75: 0 | CP75: 80 | CQ75: 76 | CR75: 72.2 | CS75: 68.59 | CT75: 65.1605 | CU75: 61.902475 | CV75: 58.80735125 | CW75: 55.86698369 | CX75: 54.19097418 | CY75: 52.56524495 | CZ75: 50.9882876 | DA75: 49.45863897 | DB75: 47.97487981 | DC75: 46.53563341 | DD75: 45.13956441 | DE75: 43.78537748 | DF75: 42.47181615 | DG75: 41.19766167 | DH75: 39.96173182 | DI75: 38.76287986 | DJ75: 37.59999347 | DK75: 36.47199366 | DL75: 35.37783385 | DM75: 34.31649884 | DN75: 33.28700387 | DO75: 32.28839376 | DP75: 0 | DQ75: 0 | DR75: 0 | DS75: 0 | DT75: 0 | DU75: 0 | DV75: 64 | DW75: 60.8 | DX75: 57.76 | DY75: 54.872 | DZ75: 52.1284 | EA75: 49.52198 | EB75: 47.045881 | EC75: 44.69358695 | ED75: 43.35277934 | EE75: 42.05219596 | EF75: 40.79063008 | EG75: 39.56691118 | EH75: 38.37990384 | EI75: 37.22850673 | EJ75: 36.11165153 | EK75: 35.02830198 | EL75: 33.97745292 | EM75: 32.95812933 | EN75: 31.96938545 | EO75: 31.01030389 | EP75: 30.07999477 | EQ75: 29.17759493 | ER75: 28.30226708 | ES75: 27.45319907 | ET75: 26.6296031 | EU75: 25.83071501 | EV75: 0 | EW75: 0 | EX75: 0 | EY75: 0 | EZ75: 0 | FA75: 0 | FB75: 51.2 | FC75: 48.64 | FD75: 46.208 | FE75: 43.8976 | FF75: 41.70272 | FG75: 39.617584 | FH75: 37.6367048 | FI75: 35.75486956 | FJ75: 34.68222347 | FK75: 33.64175677 | FL75: 32.63250407 | FM75: 31.65352894 | FN75: 30.70392308 | FO75: 29.78280538 | FP75: 28.88932122 | FQ75: 28.02264159 | FR75: 27.18196234 | FS75: 26.36650347 | FT75: 25.57550836 | FU75: 24.80824311 | FV75: 24.06399582 | FW75: 23.34207594 | FX75: 22.64181367 | FY75: 21.96255926 | FZ75: 21.30368248 | GA75: 20.664572 | GB75: 0 | GC75: 0 | GD75: 0 | GE75: 0 | GF75: 0 | GG75: 0 | GH75: 40.96 | GI75: 38.912 | GJ75: 36.9664 | GK75: 35.11808 | GL75: 33.362176 | GM75: 31.6940672 | GN75: 30.10936384 | GO75: 28.60389565 | GP75: 27.74577878 | GQ75: 26.91340542 | GR75: 26.10600325 | GS75: 25.32282316 | GT75: 24.56313846 | GU75: 23.82624431 | GV75: 23.11145698 | GW75: 22.41811327 | GX75: 21.74556987 | GY75: 21.09320277 | GZ75: 20.46040669 | HA75: 19.84659449 | HB75: 19.25119666 | HC75: 18.67366076 | HD75: 18.11345093 | HE75: 17.57004741 | HF75: 17.04294598 | HG75: 16.5316576 | HH75: 0 | HI75: 0 | HJ75: 0 | HK75: 0 | HL75: 0 | HM75: 0 | HN75: =FM$182 -> 40 | HO75: 42 | HP75: 44.1 | HQ75: 46.305 | HR75: 48.62025 | HS75: 51.0512625 | HT75: 53.60382563 | HU75: 56.28401691 | HV75: 59.09821775 | HW75: 62.05312864 | HX75: =FW$182 -> 65.15578507 | HY75: 68.41357432 | HZ75: 71.83425304 | IA75: 75.42596569 | IB75: 79.19726398 | IC75: 83.15712718 | ID75: 85 | IE75: 85 | IF75: 85 | IG75: 85 | IH75: =GG$182 -> 85 | II75: 85 | IJ75: 85 | IK75: 85 | IL75: 85 | IM75: 85 | IN75: 85 | IO75: 85 | IP75: 85 | IQ75: 85 | IR75: =GQ$182 -> 85 | IS75: 85 | IT75: 85 | IU75: 85 | IV75: 85 | IW75: 85 | IX75: 85 | IY75: 85 | IZ75: 85 | JA75: 85 | JB75: =HA$182 -> 85
